Workbook

Sheet GETEM - Read Me
F1: GETEM: Geothermal Electricity Technology Evaluation Model
F2: A Technology Characterization Tool for the Geothermal Technologies Office,
F3: U.S. Department of Energy, Washington, DC
B5: Note: THIS IS A BETA VERSION OF THE CURRENT GETEM MODEL. IT HAS NOT BEEN SUBJECTED TO ANY RIGOROUS CHECK OR VALIDATION. IT IS STRONGLY RECOMMENDED THAT A COPY OF THE ORIGINAL FILE BE RETAINED, AND WORKING COPIES SAVED WITH DIFFERENT FILE NAMES. MOST OF THE SHEETS IN THIS VERSION OF GETEM ARE PASSWORD PROTECTED WITH "GTO". BECAUSE THE PASSWORD FOR THE FILE IS GIVEN HERE, THE GTO SHOULD NOT MAKE THIS VERSION AVAILABLE TO THE PUBLIC. THE PUBLIC VERSION IS SIMILARLY PASSWORD PROTECTED, BUT WITH A DIFFERENT PASSWORD ("mango").
B8: Caveat:
C9: The estimates and correlations for the performance and costs of geothermal electric power systems are intended for use in analysis of government policies, and should not be construed or represented as "official" U.S. Department of Energy Estimates of performance and/or cost of any real geothermal power system or any of its components. The authors do not recommend or endorse any of the technologies described and characterized here.
B11: Description of Model:
C12: This model estimates the Levelized-Cost-of-Electricity (LCOE) for a User defined geothermal resource type, temperature and depth. With this information, GETEM estimates a generation cost using a set of default inputs that are based upon several resource scenarios that the DOE Geothermal Technologies Office (GTO) has defined and evaluated. The costs, performance and LCOE based on those default input are displayed in the model as the 'Default Scenario'. A GETEM User can develop an alternative scenario by revising selected default inputs (up to ~109 total) for the power plant, well field, exploration, confirmation, operation and maintenance, geothermal pumping, reservoir performance, and economic parameters used. The model displays the values used in the default scenario. Those values can be retained for the scenario evaluation, or can be revised. As inputs are revised, the LCOE for the Revised scenario (shown at top of page) will change.
C14: Model Use
C16: The User begins use of GETEM at the Start Here sheet. On this sheet the 3 inputs to define the default scenario are provided (resource type, temperature, and depth). On this sheet the User can also change the conversion system that is used in the evaluation – either air-cooled binary or flash-steam plants are evaluated. Note that while the model defaults to one of these based on the resource temperature, if the User opts to evaluate a scenario with the other type of plant, the plant used for the Default Scenario changes as well.
C18: There are hyper-links (in Red) on the Start Here sheet that will take the User to input sections for the different project phases on the Scenario Definition sheet. Near the bottom of the Start Here sheet is a summary the changes the User has made in each of the input areas. If the value next to the input section is > 0, there have been changes made. The hyperlinks can be used to review those changes.
C20: An Error-Warnings sheet is included that has displays potential issues with the input a User provides. The count of messages is displayed at the top of each page where the User can make revisions to the model input. The displayed count has a hyperlink that takes the User to the Error-Warnings sheet where these messages are displayed. Each message has a link that directs the User to input that can be revised to avoid the warning/error message. Note that in some instances, a message will be displayed that a User may opt to ignore - for instance, a message that flashing is occurring in the production well when a flash plant is being evaluated that has no production pumping. In some instances the model ignores input that produces the error and uses the default or calculated value. In other instances, the model is unable to provide a viable estimate using the input provided.
C22: Methodology
C24: Calculations are based upon either a defined power sales or a number of production wells . If sales are defined, the calculated or defined plant performance metric, brine effectiveness and the calculated specific geothermal pumping power are used with the power sales to determine the total geothermal fluid flow rate required. The brine effectiveness is the net plant output per unit flow rate, while the specific geothermal pumping power is the power required per unit flow of geothermal fluid. The defined flow rate per production well is used to determine the total number of production wells needed to produce the specified power sales. If the number of production wells are defined, the flow rate per well, brine effectiveness and specific geothermal pumping power are used to determine the power sales. The number of injection wells needed is based on the number of production wells specified or required. Drilling success rates and any spare wells define the number of total wells drilled.
C26: Well costs are based on their depth and whether they are a ‘larger’ or ’smaller’ diameter well. Note that the smaller diameter wells are not slim holes. The smallest diameter used in estimating well costs assumes that the minimum diameter of a liner in either the production or injection interval is 7-inch. If the well has an open production or injection interval, the minimum diameter for that interval is 8.5 inch. Well costs are determined using cost correlations that are based on estimated costs provided by Sandia National Laboratory for wells at multiple depths with varying casing designs.
C28: The model allows for evaluation of projects were multiple sites have to be evaluated and drilled before a successful, commercial site is found. If the evaluation is performed using this down-select process, the exploration costs for all sites (including drilling) are included in the project's total exploration cost. GETEM's default is to consider only those costs for the site that is developed for commercial power generation - costs for those site not developed are not included in GETEM's estimate of LCOE.
C30: For Greenfield projects, it is assumed that successful full-size wells are drilled during the exploration phase that supports the subsequent operation of the power plant.at the developed site during the exploration phase. The model default for the number of successful wells varies with the resource type. GETEM has not criteria for determining whether or not a well is successful. In GETEM all wells considered successful produce at the specified temperature and flow, and have the specified decline in productivity with time.
C32: GETEM allows for stimulation of either or both injection and production wells. Well stimulation is consider to be necessary with EGS resources; the model does allow for stimulation of Hydrothermal resource wells.
C34: O&M costs are based on the capital costs incurred in the project development, estimates of the staff required to operate the facility, and production pump maintenance. Also included are estimates of the chemical costs required for treating the geothermal fluid and cooling water (flash plant). For EGS resources, a cost is also included for any makeup water needed to sustain the flow rate of the geothermal fluid through the plant and subsurface reservoir. Annual taxes and insurance are also included, as are Royalties. Royalty estimates are based on those paid to the BLM.
C36: Geothermal pumping power is based on the flow rate per well, estimates of the well casing configuration, calculated hydrostatic pressures and the Productivity and Injectivity Indices. The model does consider scenarios where the production wells are not pumped and a flash-steam plant is used. Injection pumping power, if required, is always included.
C38: The model considers both flash-steam and air-cooled binary power plants or conversion systems. The flash plants can utilize 1 or 2 flash pressures. Flash pressures are estimated for the default scenario using a methodology described by DiPippo, with the caveat that the highest flash pressure be lower than the estimated well head pressure and that the lowest flash pressure be greater than 1 atmosphere. The binary plant performance that is used is based on there being a relationship between the binary plant performance and its cost (more efficient plants cost more). Note that this relationship is based on the 2nd law efficiency and not the thermal efficiency. Once all inputs are provided when an air-cooled binary plant is being evaluated, the User is to run the model’s macro which varies the power plant level of performance until the LCOE is minimized. This macro trades off the added cost of a more efficient plant with the reduction in total flow required and associated decreases in the well field cost. This macro can also be used for the ‘Revised Scenario’ or the User may opt to input the brine effectiveness, in which case the model estimates plant cost based on the corresponding 2nd law efficiency.
C40: The correlations used in determining the performance of both flash and binary plants assumes that there is a minimum temperature constraint placed on the geothermal fluid to prevent the precipitation of silica. This is not an option that can be 'turned off'.
C42: When the macro is run to find the optimal binary plant performance that produces the minimum LCOE, the macro will not necessarily converge on the exact same level of performance for the default and revised scenario. This will result in some small differences in the results for the two scenarios when both utilize the same inputs.
C44: The model’s estimate of the LCOE includes the effect of a decline in the produced fluid temperature with time. As the temperature declines, the plant’s 2nd law conversion efficiency decreases as does the produced fluid’s available energy. As a result the plant output decreases with time. The model assumes that the geothermal fluid flow rate remains constant throughout the life of the project. If the temperature decline is excessive, the model will replace the entire well field, provided sufficient resource potential was found during the exploration phase. Costs for this replacement are included in the estimate of generation costs, along with the effect of re-setting the power production of the revenues.
C46: The model has inherent limitations on the size of a project that can be evaluated. The model's cost correlations for binary plants were developed for plants larger than ~3 MWe. It will estimate costs for smaller plants, however those estimates are outside of the cost correlations used in developing the model. Though there is not a specific limit on the size of flash plants, it is not recommended that the model be used for flash plants smaller than ~10 MWe. The binary plant cost and performance correlations were developed for resource temperatures between 75°C and 200°C. It is not recommended that evaluations be done outside of this temperature range using the binary plant. Because an Excel spreadsheet is used as the model platform, it uses simple correlations for the properties of water. These correlations were developed for resource temperatures <~300°C, and may not work at higher temperatures (they will not work at temperatures above the critical temperature of water).
B48: Additional Information
C50: GETEM calculates the LCOE using 2 different methodologies. The LCOE that is displayed as a 'result' is based on a methodology utilized by the GTO that replicates a discounted cash flow sheet. This approach allows the discount rates and time periods for the different pre-operational activities to be varied. Those calculations are on sheet EERE COE. A simple discounted cash flow sheet is also included in the model (DCF-COE), where a User can run macros to determine the LCOE that produces a cash flow of $0. This sheet was utilized during the integration of the EERE/GTO methodology and has been retained. The 2nd approach used in GETEM to estimate the LCOE utilizes a fixed charge rate (FCR). The FCR is the fraction of the total capital cost that must be recovered annually for costs associated with capital - return on equity, interest on debt, and certain taxes and insurance. This methodology was utilized in versions of GETEM prior to 2012. FCR values used by the GTO are based on the assumption of a 30 year fixed project life, hence the error message that will be present for scenarios that have a different project life. Model estimates using the fixed FCR are shown on the Binary Output and Flash Output sheets.
C52: The model's prediction of costs are referenced to specific years. In order to bring those costs current, Producer Price Indices obtained from the Bureau of Labor Statistics are applied to the projected costs. Those PPI's are found in the Tables sheet. This sheet is protected, but not password protected, so the User can update these values as needed. Note plant costs are referenced to 2002; the well cost curves to 2010.
C54: Power sales is the net plant output less the pumping power required for the geothermal fluid. The net plant output is the turbine generator output less the parasitic power loads within the plant, exclusive of any injection or production pumping power. GETEM determines the power plant costs based on this net plant output.
C56: The model uses fractional wells, sites, components and personnel in its calculations, and is not intended for the examination of a specific project. Its purpose is both to provide DOE with 'representative' generation costs for geothermal and to provide a means of assessing how technology would impact those costs. A User may attempt to use the model to evaluate a specific project, but that requires the User provide all input necessary to define that project.
C58: Most of the worksheets in this file are protected. A number of the worksheets where calculations are made are hidden; the user can 'Unhide' these sheets, if desired.
C60: GETEM uses the following to assist in identifying the transfer of information within the model
E61: Tan background - default value
E62: Yellow background - User input
D63: Red font - value imported from other sheet
D64: Blue font - value exported to other sheet
B67: Authors and Contributors:
C69: This model and its documentation were originally prepared as required work under a subcontract from the National
C70: Renewable Energy Laboratory to Princeton Energy Resources International, Rockville, MD.
D72: Dan Entingh, PERI | F72: General plan, economics factors and calculations.
F73: Original arrangement of system performance and cost sheets.
F74: Estimates for exploration and confirmation costing.
F75: Drawdown and makeup functions and costs.
D76: Greg Mines, INL | F76: Performance and cost of power plants, production pumps, injection pumps.
F77: General arrangement of I/O, system, O&M, and power plant sheets
D78: Chip Mansure, SNL | F78: Cost of wells, based on recent geothermal experience.
D79: Susan Petty, Consultant | F79: Geothermal field practices and cost factors.
D80: Gerry Nix, NREL | F80: Technical guidance, GUI, user needs.
C82: The current version of the model includes changes made between 2008 - 2012 by the LCOE Analysis team. The team, lead by Jay Nathwani from the DOE GT0, established model inputs for specific resource scenarios. Those inputs are the basis for the default inputs currently used. Other LCOE Analysis team members include:
D84: Chad Augustine, NREL
D85: Erin Camp, Sentech, Inc.
D86: Greg Mines, INL
D87: Mark Paster, Consultant
D88: Ma Seungwook, DOE-EERE Strategic Analysis Group
D89: Ella Thodal, SRA International
D90: Steven Hanson, SRA International
C92: This version of the model also incorporates revisions suggested by industry advisors to the GTO Vision Study effort. When adapting this revisions the model was modified to align its depiction of the development of a geothermal project with the "Geothermal Handbook: Planning and Financing Power Generation" developed by the World Bank's ESMAP in 2012.

Sheet GeoVision Notes
C4: This version of GETEM has been modified in several ways to tailor it to the supply curve runs necessary for the Geothermal Vision Study (2016) - Chad Augustine
C6: The Default Inputs page was modified to include the GETEM inputs from the Task Forces for the Reference and improved cases, and for Greenfield vs. Brownfield inputs.
C9: I did spot checks for "errors" that were generated by GETEM but still yielded results. Most were warnings. None were of major concern and can be ignored.
C10: For example, when hydrothermal wells are stimulated, it generates 3 errors warning that only say that wells are being stimulated.
C12: 2017-02-07 | D12: Updated the "Additional Costs Incurred not Associated with Drilling Exploration Wells" typo, per conversation with Travis McLing
C33: GeoVision Well Cost Updates
C34: GETEM Default Well Cost Curves were replaced by updated well costs from Sandia National Laboratory (SNL - Tom Lowry, PI).
C35: SNL developed a matrix of well cost curves and calculated well costs at regular intervals from 500-7,000 m. The matrix was based on the following:
C36: Well Type: | D36: Vertical (w/ open hole) or Deviated (w/ liner)
C37: Well Diam: | D37: Small or Large
C38: Scenario: | D38: Base, Intermediate 1, Intermediate 2, Ideal
C39: I developed quadratic cost correlations for each of the SNL cost curves using Excel's LINEST function
C40: I put the coeffecients and calculated well cost for these cost correlation on the far right hand side of the Default Inputs Tab.
C41: I added decision logic so that GETEM chooses the well cost correlation that matches the run scenario and copies it to cell "Default Inputs C119" the column of values being used
C42: I changed the "Drilling Costs" worksheet so it uses the correct SNL Well Cost Correlation Value
D43: Changed Row 14 so all well costs reference cell "'DEFAULT Inputs'!$S$119"
D44: This assumes that the injection and production well costs are always identical
C46: Binary Solver Updates
C47: The Solver routine for binary plant optimiziation was set minimize Capital Costs, not on LCOE (since LCOE calculations include many variables that may not reflect what is being modeled/assumed in ReEDS)
C48: The precision of the Solver routine was decreaed slightly from its default value to speed up runs. The change decreased the number of iterations that Solver does, but did not change the output for test runs (any change is too small to detect with the number of significant digits we use)
C49: The Solver for the default case was shut off and a reasonable guess (80% of Max Brine Effectiveness) was used instead to speed up batch runs. Only the Revised values are recorded for the supply curves, just need a good guess for the default case to minimize error messages.
C51: GETEM Errors - Errors encountered in GETEM that I've fixed along the way
C52: "Well Count" I41
D53: Tells GETEM to drill negative # of wells in well field drilling phase (which causes all sorts of messes) if more full-sized wells are drilled in the exploration phase than are needed
D54: Fix by applying same code that's in K41, with appropriate cell reference changes, that checks for too many wells drilled and tells GETEM not to drill any more
B56: 2017-02-24 | C56: "Default Inputs " V43:Y261
D57: All of these cells have logic that determines which case GETEM is running: Reference/Improved and Greenfield/Brownfield. It had the logic for Reference/Improved reversed for the Brownfield case
D58: This error was not noticed because the macro that calls GETEM also had an error so that only the Greenfield scenario was called. The macro was not updating the correct cell.
D59: Fixed the macro first, then the logic in the "Default Inputs" scenario selection.
B61: 2017-05-02 | C61: Updated the scenarios to include the (aggregated, final) improved technology scenario
D62: Currently taking the spot of the "High Tech" scenario inputs, since it's based on this scenario
D63: Summary of changes in the file "GETEM Inputs Compilation - All Scenarios.xlsx"
C64: Removed the "2012 Improvments" column on "Default Inputs" page and adjusted "GETEM Default" Case reference year
D65: Prior version had carryover GPRA inputs, in "Default Inputs" Column A. These had been used to update GETEM inputs to reflect geothermal improvements for GPRA since 2012. Were interfering with the BAU and Improved Tech inputs, altering them from what the Task Forces has provided
D66: GETEM Default Case had been set to 2016 reference year, corrected it to 2015 (Assumption year for techs in ReEDS) to match Revised Case value so PPI adjustments wouldn't impact inputs from BAU andI Improved Tech scenarios
C67: Linked Default Inputs for # full sized exploration wells stimulated to input on "Scenario Definition" tab
D68: "Scenario Definitions" worksheet cell J165 changed to equalt valuein "DEFAULT INPUTS" Cell S95
C69: Corrected Error in GETEM where Stimulations Numbers and Stimulations Costs were referencing stimulations during drilling phase, not all stimulations
D70: Changed "Drilling Costs" Cell H59 and K59 from "Well Count" I98 to "Well Count" Sum(I96:97)
D71: Changed "Results" D51 and E51 to same formula as above - =SUM('Well Count'!I96:I97)

Sheet Start Here
E1: Revised Scenario | H1: GETEM Default | U1: Sensitivity | V1: Hydrothermal | W1: Yes | X1: Flash | BB1: F | BC1: ft
C2: LEVELIZED COST OF ELECTRICITY | E2: =OUT!H12*100 -> 7.009738834 | F2: ₵/ kWh | H2: =OUT!G12*100 -> 6.99391475 | I2: ₵/ kWh | U2: Waterfall | V2: EGS | W2: No | X2: Binary | BB2: C | BC2: meter
C3: NET POWER SALES | E3: =OUT!H9*1000 -> 40000 | F3: KW | H3: =OUT!G9*1000 -> 40000 | I3: KW
C4: Errors/Warnings | E4: ='Error-Warnings'!E3 -> 3
C5: The cells with the yellow background are input cells. Some have dropdown lists - select from that list, or leave blank to use the default value. The units have dropdown lists as well. If units are changed, the default values should change to be displayed in the units selected.
A7: =IF(E7=V1,0,1) -> 0 | C7: Do you wish to evaluate a Hydrothermal or EGS resource? | E7: Hydrothermal | H7: GETEM determines the input used for the Default scenario based upon the resource type selected, and the resource temperature and depth that are specified. The LCOE for the GETEM default scenario is based on these 3 inputs
C9: What is the resource temperature? | E9: 225 | F9: C
A10: =IF(E10=W1,0,1) -> 1 | C10: If EGS resource do you wish to base resource depth on a geographic location?
C11: What is the resource depth? | E11: 5000 | F11: meter
C12: If Yes, please list State
C13: Please list County
C14: The estimated gradient for your location is | E14: value from lookup
C15: At this gradient the required depth is | E15: calculated | F15: km
C17: At the indicate temperature, GETEM defaults to the indicated conversion system - you may change below | E17: =IF(AND(A7=0,IN!G5>=200),"Flash",IF(AND(A7=1,IN!G5>200),"Flash","Binary")) -> Flash | G17: The default conversion system is based on the resource temperature provided. If you elect to change the conversion system, the type selected will be used for both the Default and the Revised Scenarios - if blank the default will be used. Recommended that Binary not be used above 200C and Flash not below 150C
C19: Type of Conversion System to be Used
C23: If GETEM defaults to Binary, or if a Binary conversion system is selected - run the optimize macro for default scenario by clicking on button to the right. This must be done to obtain a LCOE estimate. | G23: The macro does not come to the same solution for the default and revised scenarios. As a consequence the plant costs, total flow, number of wells, pumping power, and well field costs will vary slightly when the default inputs are used for the revised scenario. One can go to sheet Binary A1, and enter the same level of performance for both scenarios and the costs, flows, and well count will be the same.
D30: If you wish to review and/or revise GETEM default values, click on hyperlink below | G30: Revised Scenario Value/Cost (w/o Contingency)
C34: If you do make changes and a binary plant is being used - run the optimization macro again to re-establish plant performance & cost | E34: Power Sales | H34: =OUT!H9 -> 40 | I34: MW
E35: Economic
E36: Permitting
E37: Exploration | H37: =OUT!H115 -> 19803762.9 | I37: overnight costs
E38: Drilling | H38: =OUT!H235 -> 26351939.81 | I38: overnight costs
E39: Field Gathering System & Pumping | H39: =OUT!H267 -> 7381197.891 | I39: overnight costs
E40: Reservoir Performance | H40: =OUT!H133 -> 6.279292103 | I40: production wells required
E41: Operating & Maintenance | H41: =OUT!H414 -> 5373262.066 | I41: per year
E42: Power Plant | H42: =OUT!H447 -> 86133547.3 | I42: overnight costs
C45: Summary of Changes Made for Revised Scenario | E45: # changes to default
C46: Power Sales | E46: ='Scenario Definition'!D10 -> 0
C47: Economic Parameters | E47: ='Scenario Definition'!D50 -> 0
C48: Permitting | E48: ='Scenario Definition'!D100 -> 0
C49: Exploration | E49: ='Scenario Definition'!D150 -> 0
C50: Drilling | E50: ='Scenario Definition'!D200 -> 0
C51: Field Gathering System | E51: ='Scenario Definition'!D250 -> 0
C52: Reservoir Performance | E52: ='Scenario Definition'!D300 -> 0
C53: O&M | E53: ='Scenario Definition'!D350 -> 0
C54: Power Plant | E54: ='Scenario Definition'!D400 -> 1

Sheet DEFAULT Inputs
B1: Fixed Charge Rate | C1: FCR | D1: Hydrothermal | E1: Temperature | F1: Greenfield | G1: Yes | H1: Success Rate | I1: Production | J1: Low | K1: 1 | L1: surface | M1: Jet
A2: =IN!A9 -> 0 | B2: EERE Discounted Cash Flow | C2: Inputted COE | D2: EGS | E2: Depth | F2: Field Expansion | G2: No | H2: # of Wells | I2: Injection | J2: Medium | K2: 2 | L2: direct contact | M2: VacPump
I3: Both | J3: High | K3: 3 | L3: 0 | M3: Hybrid
B5: Well Count | C5: Lump Sum | D5: Cost Curves | E5: Smaller Diameter | F5: Perforated / Slotted Liner | G5: Lump Sum | H5: k*A | I5: Annual Decline Rate | J5: Input Value | K5: Yes | L5: Input | M5: Core Hole
B6: Confirmed Capacity | C6: % Drilling Costs | D6: GETEM Estimate | E6: Larger Diameter | F6: Open Hole | G6: Calculated | H6: Fracture Flow | I6: Annual Decline Rate | J6: Input Value | K6: Yes | L6: Input | M6: Slim Hole
E7: Greenfield | M7: Production Size
A8: =IF(R32=E8,1,0) -> 0 | B8: % of Costs | C8: Submersible | D8: Power Sales | E8: Binary | F8: Power | G8: Fixed | H8: Performance | I8: Fixed Cost | J8: Input | K8: ≤115kV | L8: Flat | M8: Rural
B9: Lump Sum | C9: Lineshaft | D9: Production Wells | E9: Flash | F9: Flow | G9: Percent | H9: Reference | I9: Calculated | J9: Calculate | K9: 230kV | L9: Hilly | M9: Suburban
K10: 500kV | L10: Mountainous | M10: Urban
L11: Forested
C12: C | D12: meter | E12: C/km | F12: kg/s | G12: km | H12: psi-h/1000lb | I12: ΔC | J12: meter | K12: KJ/h-m^2-C
C13: F | D13: ft | E13: F/1000 ft | F13: lb/hr | G13: ft | H13: kPa-s/kg | I13: ΔF | J13: inch | K13: btu/h-sqft-F
F14: gpm
C16: $/m^3 | D16: bar | E16: cm | F16: w-h/lb | G16: kPa | H16: mm-Hg
C17: $/acre-ft | D17: psi | E17: inch | F17: kW-s/kg | G17: psi | H17: inch-Hg
N20: GETEM - INPUT WORKSHEET | AT20: Notes on Reference/Improved Scenario | BD20: GeoVision - Improved Scenarios
N21: HIGH-LEVEL SUMMARY | R21: The values in column R are the defaults for year 2012. The values in column S are the defaults for the year selected for the PPI on Scenario Definition cell K53. When an improvement has been identified relative to the 2012 technology, that improvement in listed in column AA with the logic that if the year being evaluated (cell AB33) is more recent than the year the technology was applied, the benefit is applied to the default value. If the improvement is specific to the resource type being evaluated, the logic in the cells in column AA determines whether or not the improvement is applied (see AA78 as an example). In this cell the benefit (a 50% reduction in permitting) occurred in 2013 for EGS resources. If an EGS resource is being evaluated and the year is subsequent to 2012, the benefit is applied. If the default input is a cost, a PPI is also applied to the value in column S. That PPI is listed in column AB. If there is no PPI for the inputted cost, the value is this column is 1. | AT21: Reference and Improved scenearios were inserted into this version of GETEM so that they could be run for supply curve calculations for the Geothermal Vision Study | BD21: =AY25 -> High Tech | BE21: =LOOKUP(BD21,BD22:BD25,BE22:BE25) -> 0
N22: TECHNOLOGY YEAR | AT22: Reference = GVS BAU case. Improved = one of the improved scenarios for GVS | BD22: Exploration De-Risk | BE22: 20
N23: COST OF ELECTRICITY | P23: ¢ /kW-h | AT23: In update to 2016 GETEM, some default values in reference case were changed. I implemented those changes in the columns below | BD23: High Tech | BE23: 0
N24: RESOURCE TYPE | AT24: Cells with pink fill were added to GETEM to be able to implement improved scenario assumptions for things like %decrease in drilling costs, plant costs, etc. | BD24: Nimble in Numbers | BE24: 30
N25: CASE | AU25: Scenario Being Used: | AV25: =IF(AY25="Reference", "Reference", "Improved") -> Improved | AX25: Scenario Name: | AY25: High Tech | BD25: Tech Transfer | BE25: 10
N26: CONVERSION SYSTEM | AU26: FieldType Being Used: | AV26: Greenfield | AX26: Well Cost Curve: | AY26: Ideal
N27: POWER SALES | P27: kW | AS27: Reference Scenario | AX27: Improved Scenario | BC27: Reference Scenario | BH27: Improved Scenario | BN27: Improved Scenario --> Stability & Size - Improved Technology | BX27: Improved Scenario --> Stability & Size -Technology Transfer | CH27: Improved Scenario --> Exploration De-Risk | CR27: Improved Scenario --> Nimble in Numbers | DB27: Legacy Improved Values from the 2013 GETEM work (Mines, Paster, Nathwani and Augustine)
R28: =IF(AND(IN!A4=0,A8=1),1,IF(AND(IN!A4=0,A8=0),2,IF(AND(IN!A4=1,A8=1),3,4))) -> 2 | V28: 1 | W28: 2 | X28: 3 | Y28: 4 | AS28: 1 | AT28: 2 | AU28: 3 | AV28: 4 | AX28: 1 | AY28: 2 | AZ28: 3 | BA28: 4 | BC28: 1 | BD28: 2 | BE28: 3 | BF28: 4 | BH28: 1 | BI28: 2 | BJ28: 3 | BK28: 4 | BN28: 1 | BO28: 2 | BP28: 3 | BQ28: 4 | BS28: 1 | BT28: 2 | BU28: 3 | BV28: 4 | BX28: 1 | BY28: 2 | BZ28: 3 | CA28: 4 | CC28: 1 | CD28: 2 | CE28: 3 | CF28: 4 | CH28: 1 | CI28: 2 | CJ28: 3 | CK28: 4 | CM28: 1 | CN28: 2 | CO28: 3 | CP28: 4 | CR28: 1 | CS28: 2 | CT28: 3 | CU28: 4 | CW28: 1 | CX28: 2 | CY28: 3 | CZ28: 4 | DB28: 1 | DC28: 2 | DD28: 3 | DE28: 4 | DG28: 1 | DH28: 2 | DI28: 3 | DJ28: 4
N29: Resource | R29: =IN!G4 -> Hydrothermal | V29: Hydrothermal | W29: Hydrothermal | X29: EGS | Y29: EGS | AD29: =AD36 -> Hydrothermal | AE29: =AE36 -> Hydrothermal | AF29: =AF36 -> Hydrothermal | AG29: =AG36 -> Hydrothermal | AH29: =AH36 -> Hydrothermal | AJ29: =AJ36 -> EGS | AK29: =AK36 -> EGS | AL29: =AL36 -> EGS | AN29: =AN36 -> EGS | AO29: =AO36 -> EGS | AS29: Hydrothermal | AT29: Hydrothermal | AU29: EGS | AV29: EGS | AX29: Hydrothermal | AY29: Hydrothermal | AZ29: EGS | BA29: EGS | BC29: Hydrothermal | BD29: Hydrothermal | BE29: EGS | BF29: EGS | BH29: Hydrothermal | BI29: Hydrothermal | BJ29: EGS | BK29: EGS | BN29: Hydrothermal | BO29: Hydrothermal | BP29: EGS | BQ29: EGS | BS29: Hydrothermal | BT29: Hydrothermal | BU29: EGS | BV29: EGS | BX29: Hydrothermal | BY29: Hydrothermal | BZ29: EGS | CA29: EGS | CC29: Hydrothermal | CD29: Hydrothermal | CE29: EGS | CF29: EGS | CH29: Hydrothermal | CI29: Hydrothermal | CJ29: EGS | CK29: EGS | CM29: Hydrothermal | CN29: Hydrothermal | CO29: EGS | CP29: EGS | CR29: Hydrothermal | CS29: Hydrothermal | CT29: EGS | CU29: EGS | CW29: Hydrothermal | CX29: Hydrothermal | CY29: EGS | CZ29: EGS | DB29: Hydrothermal | DC29: Hydrothermal | DD29: EGS | DE29: EGS | DG29: Hydrothermal | DH29: Hydrothermal | DI29: EGS | DJ29: EGS
N30: Temperature | P30: C | R30: =IN!G5 -> 225 | AD30: =AD38 -> 140 | AE30: 175 | AF30: 175 | AG30: 225 | AH30: 140 | AJ30: =AJ38 -> 100 | AK30: 150 | AL30: 175 | AN30: =AN38 -> 250 | AO30: =AO38 -> 325
N31: Depth | P31: m | R31: =IN!G7 -> 5000 | V31: Binary | W31: Flash | X31: Binary | Y31: Flash | AD31: 1500 | AE31: 1500 | AF31: 1500 | AG31: 2500 | AH31: 2500 | AJ31: 2000 | AK31: 2500 | AL31: 3000 | AN31: =AN39 -> 3500 | AO31: =AO39 -> 4000 | AS31: Binary | AT31: Flash | AU31: Binary | AV31: Flash | AX31: Binary | AY31: Flash | AZ31: Binary | BA31: Flash | BC31: Binary | BD31: Flash | BE31: Binary | BF31: Flash | BH31: Binary | BI31: Flash | BJ31: Binary | BK31: Flash | BN31: Binary | BO31: Flash | BP31: Binary | BQ31: Flash | BS31: Binary | BT31: Flash | BU31: Binary | BV31: Flash | BX31: Binary | BY31: Flash | BZ31: Binary | CA31: Flash | CC31: Binary | CD31: Flash | CE31: Binary | CF31: Flash | CH31: Binary | CI31: Flash | CJ31: Binary | CK31: Flash | CM31: Binary | CN31: Flash | CO31: Binary | CP31: Flash | CR31: Binary | CS31: Flash | CT31: Binary | CU31: Flash | CW31: Binary | CX31: Flash | CY31: Binary | CZ31: Flash | DB31: Binary | DC31: Flash | DD31: Binary | DE31: Flash | DG31: Binary | DH31: Flash | DI31: Binary | DJ31: Flash
N32: Conversion System | R32: =IF(ISBLANK('Start Here'!E19),IF(AND(IN!A4=0,R30>=200),"Flash",IF(AND(IN!A4=1,R30>200),"Flash","Binary")),'Start Here'!E19) -> Flash | AB32: PPI | AC32: PPI | AD32: 15 | AE32: 30 | AF32: 30 | AG32: 40 | AH32: 15 | AJ32: 10 | AK32: 15 | AL32: 25 | AN32: 25 | AO32: 30
N33: PROJECT PHASE | R33: ='Start Here'!E2 -> 7.009738834 | V33: ='Start Here'!H2 -> 6.99391475 | AB33: =S43 -> 2019 | AC33: Imprv Yr
N35: RESOURCE DEFINITION
N36: Geothermal Resource Type | R36: Resource Type | AD36: Hydrothermal | AE36: Hydrothermal | AF36: Hydrothermal | AG36: Hydrothermal | AH36: Hydrothermal | AJ36: EGS | AK36: EGS | AL36: EGS | AN36: EGS | AO36: EGS
N37: Resource Temperature & Depth :
N38: Resource Temperature | P38: C | R38: Temperature | AD38: 140 | AE38: 175 | AF38: 175 | AG38: 225 | AH38: 140 | AJ38: 100 | AK38: 150 | AL38: 175 | AN38: 250 | AO38: 325 | BX38: ***For Improved Scenarios, green formatting indicates that value matches BAU (refencee) case value.
N39: Resource Depth | P39: meter | R39: Depth | AD39: 1500 | AE39: 1500 | AF39: 1500 | AG39: 2500 | AH39: 2500 | AJ39: 2000 | AK39: 2500 | AL39: 3000 | AN39: 3500 | AO39: 4000
AS40: GREENFIELD | BC40: BROWNFIELD
N41: ECONOMIC PARAMETERS | BN41: GREENFIELD | BS41: BROWNFIELD | BX41: GREENFIELD | CC41: BROWNFIELD | CH41: GREENFIELD | CM41: BROWNFIELD | CR41: GREENFIELD | CW41: BROWNFIELD
N42: General Project Variables : | BN42: Hydrothermal | BO42: Hydrothermal | BP42: EGS | BQ42: EGS | BS42: Hydrothermal | BT42: Hydrothermal | BU42: EGS | BV42: EGS | BX42: Hydrothermal | BY42: Hydrothermal | BZ42: EGS | CA42: EGS | CC42: Hydrothermal | CD42: Hydrothermal | CE42: EGS | CF42: EGS | CH42: Hydrothermal | CI42: Hydrothermal | CJ42: EGS | CK42: EGS | CM42: Hydrothermal | CN42: Hydrothermal | CO42: EGS | CP42: EGS | CR42: Hydrothermal | CS42: Hydrothermal | CT42: EGS | CU42: EGS | CW42: Hydrothermal | CX42: Hydrothermal | CY42: EGS | CZ42: EGS
N43: Reference Year $ | R43: 2015 | S43: =IN!I16 -> 2019 | V43: =IF($AV$25="Reference", IF($AV$26="Greenfield", AS43,IF($AV$26="Brownfield", BC43,"FAIL")), IF($AV$25="Improved", IF($AV$26="Greenfield", AX43,IF($AV$26="Brownfield", BH43,"FAIL")))) -> 2016 | W43: 2016 | X43: 2016 | Y43: 2016 | AD43: =$R43 -> 2015 | AE43: =$R43 -> 2015 | AF43: =$R43 -> 2015 | AG43: =$R43 -> 2015 | AH43: =$R43 -> 2015 | AJ43: =$R43 -> 2015 | AK43: =$R43 -> 2015 | AL43: =$R43 -> 2015 | AN43: =$R43 -> 2015 | AO43: =$R43 -> 2015 | AS43: 2016 | AT43: 2016 | AU43: 2016 | AV43: 2016 | AX43: 2016 | AY43: 2016 | AZ43: 2016 | BA43: 2016 | BC43: 2016 | BD43: 2016 | BE43: 2016 | BF43: 2016 | BH43: 2016 | BI43: 2016 | BJ43: 2016 | BK43: 2016 | BN43: Binary | BO43: Flash | BP43: Binary | BQ43: Flash | BS43: Binary | BT43: Flash | BU43: Binary | BV43: Flash | BX43: Binary | BY43: Flash | BZ43: Binary | CA43: Flash | CC43: Binary | CD43: Flash | CE43: Binary | CF43: Flash | CH43: Binary | CI43: Flash | CJ43: Binary | CK43: Flash | CM43: Binary | CN43: Flash | CO43: Binary | CP43: Flash | CR43: Binary | CS43: Flash | CT43: Binary | CU43: Flash | CW43: Binary | CX43: Flash | CY43: Binary | CZ43: Flash
N44: Contingency | P44: % | R44: =LOOKUP($R$28,$V$28:$Y$28,V44:Y44) -> 0.15 | S44: =IF(ISBLANK(AA44),LOOKUP($R$28,$V$28:$Y$28,V44:Y44),AA44) -> 0.15 | V44: 0.15 | W44: 0.15 | X44: 0.15 | Y44: 0.15 | AD44: Most Likely | AE44: Most Likely | AF44: Most Likely | AG44: Most Likely | AH44: Most Likely | AJ44: Most Likely | AK44: Most Likely | AL44: Most Likely | AN44: Most Likely | AO44: Most Likely | AS44: 0.15 | AT44: 0.15 | AU44: 0.15 | AV44: 0.15 | AX44: =INDEX($BN44:$CZ44, 1, $BE$21+AX$28) -> 0.15 | AY44: =INDEX($BN44:$CZ44, 1, $BE$21+AY$28) -> 0.15 | AZ44: 0.15 | BA44: 0.15 | BC44: 0.15 | BD44: 0.15 | BE44: 0.15 | BF44: 0.15 | BH44: =INDEX($BN44:$CZ44, 1, 5+$BE$21+BH$28) -> 0.15 | BI44: =INDEX($BN44:$CZ44, 1, 5+$BE$21+BI$28) -> 0.15 | BJ44: =INDEX($BN44:$CZ44, 1, 5+$BE$21+BJ$28) -> 0.15 | BK44: =INDEX($BN44:$CZ44, 1, 5+$BE$21+BK$28) -> 0.15 | BN44: 0.15 | BO44: 0.15 | BP44: 0.15 | BQ44: 0.15 | BS44: 0.15 | BT44: 0.15 | BU44: 0.15 | BV44: 0.15 | BX44: 0.15 | BY44: 0.15 | BZ44: 0.15 | CA44: 0.15 | CC44: 0.15 | CD44: 0.15 | CE44: 0.15 | CF44: 0.15 | CH44: 0.15 | CI44: 0.15 | CJ44: 0.15 | CK44: 0.15 | CM44: 0.15 | CN44: 0.15 | CO44: 0.15 | CP44: 0.15 | CR44: 0.15 | CS44: 0.15 | CT44: 0.15 | CU44: 0.15 | CW44: 0.15 | CX44: 0.15 | CY44: 0.15 | CZ44: 0.15 | DB44: 0.15 | DC44: 0.15 | DD44: 0.15 | DE44: 0.15 | DG44: 0.15 | DH44: 0.15 | DI44: 0.15 | DJ44: 0.15
N45: Royalty (thru Yr 10) | P45: % | R45: 0.0175 | S45: 0.0175 | AD45: 0.0175 | AE45: 0.0175 | AF45: 0.0175 | AG45: 0.0175 | AH45: 0.0175 | AJ45: 0.0175 | AK45: 0.0175 | AL45: 0.0175 | AN45: 0.0175 | AO45: 0.0175
N46: Royalty (after Yr 10) | R46: 0.035 | S46: 0.035 | AD46: 0.035 | AE46: 0.035 | AF46: 0.035 | AG46: 0.035 | AH46: 0.035 | AJ46: 0.035 | AK46: 0.035 | AL46: 0.035 | AN46: 0.035 | AO46: 0.035
N47: Discount Rate | P47: % | R47: =LOOKUP($R$28,$V$28:$Y$28,V47:Y47) -> 0.07 | S47: 0.07 | V47: =IF($AV$25="Reference", IF($AV$26="Greenfield", AS47,IF($AV$26="Brownfield", BC47,"FAIL")), IF($AV$25="Improved", IF($AV$26="Greenfield", AX47,IF($AV$26="Brownfield", BH47,"FAIL")))) -> 0.07 | W47: =IF($AV$25="Reference", IF($AV$26="Greenfield", AT47,IF($AV$26="Brownfield", BD47,"FAIL")), IF($AV$25="Improved", IF($AV$26="Greenfield", AY47,IF($AV$26="Brownfield", BI47,"FAIL")))) -> 0.07 | X47: =IF($AV$25="Reference", IF($AV$26="Greenfield", AU47,IF($AV$26="Brownfield", BE47,"FAIL")), IF($AV$25="Improved", IF($AV$26="Greenfield", AZ47,IF($AV$26="Brownfield", BJ47,"FAIL")))) -> 0.07 | Y47: =IF($AV$25="Reference", IF($AV$26="Greenfield", AV47,IF($AV$26="Brownfield", BF47,"FAIL")), IF($AV$25="Improved", IF($AV$26="Greenfield", BA47,IF($AV$26="Brownfield", BK47,"FAIL")))) -> 0.07 | AD47: Most Likely | AE47: Most Likely | AF47: Most Likely | AG47: Most Likely | AH47: Most Likely | AJ47: Most Likely | AK47: Most Likely | AL47: Most Likely | AN47: Most Likely | AO47: Most Likely | AS47: 0.07 | AT47: 0.07 | AU47: 0.07 | AV47: 0.07 | AX47: =INDEX($BN47:$CZ47, 1, $BE$21+AX$28) -> 0.07 | AY47: =INDEX($BN47:$CZ47, 1, $BE$21+AY$28) -> 0.07 | AZ47: 0.07 | BA47: 0.07 | BC47: 0.07 | BD47: 0.07 | BE47: 0.07 | BF47: 0.07 | BH47: =INDEX($BN47:$CZ47, 1, 5+$BE$21+BH$28) -> 0.07 | BI47: =INDEX($BN47:$CZ47, 1, 5+$BE$21+BI$28) -> 0.07 | BJ47: =INDEX($BN47:$CZ47, 1, 5+$BE$21+BJ$28) -> 0.07 | BK47: =INDEX($BN47:$CZ47, 1, 5+$BE$21+BK$28) -> 0.07 | BN47: 0.07 | BO47: 0.07 | BP47: 0.07 | BQ47: 0.07 | BS47: 0.07 | BT47: 0.07 | BU47: 0.07 | BV47: 0.07 | BX47: 0.07 | BY47: 0.07 | BZ47: 0.07 | CA47: 0.07 | CC47: 0.07 | CD47: 0.07 | CE47: 0.07 | CF47: 0.07 | CH47: 0.07 | CI47: 0.07 | CJ47: 0.07 | CK47: 0.07 | CM47: 0.07 | CN47: 0.07 | CO47: 0.07 | CP47: 0.07 | CR47: 0.07 | CS47: 0.07 | CT47: 0.07 | CU47: 0.07 | CW47: 0.07 | CX47: 0.07 | CY47: 0.07 | CZ47: 0.07 | DB47: 0.07 | DC47: 0.07 | DD47: 0.07 | DE47: 0.07 | DG47: 0.07 | DH47: 0.07 | DI47: 0.07 | DJ47: 0.07
N48: Effective Tax Rate | P48: % | R48: 0.392 | S48: 0.392 | AD48: 0.392 | AE48: 0.392 | AF48: 0.392 | AG48: 0.392 | AH48: 0.392 | AJ48: 0.392 | AK48: 0.392 | AL48: 0.392 | AN48: 0.392 | AO48: 0.392
N49: Net Capacity Factor | R49: =LOOKUP($R$28,$V$28:$Y$28,V49:Y49) -> 0.95 | S49: 0.95 | V49: =IF($AV$25="Reference", IF($AV$26="Greenfield", AS49,IF($AV$26="Brownfield", BC49,"FAIL")), IF($AV$25="Improved", IF($AV$26="Greenfield", AX49,IF($AV$26="Brownfield", BH49,"FAIL")))) -> 0.95 | W49: 0.95 | X49: 0.95 | Y49: 0.95 | AD49: Most Likely | AE49: Most Likely | AF49: Most Likely | AG49: Most Likely | AH49: Most Likely | AJ49: Most Likely | AK49: Most Likely | AL49: Most Likely | AN49: Most Likely | AO49: Most Likely | AS49: 0.95 | AT49: 0.95 | AU49: 0.95 | AV49: 0.95 | AX49: =INDEX($BN49:$CZ49, 1, $BE$21+AX$28) -> 0.95 | AY49: 0.95 | AZ49: 0.95 | BA49: 0.95 | BC49: 0.95 | BD49: 0.95 | BE49: 0.95 | BF49: 0.95 | BH49: =INDEX($BN49:$CZ49, 1, 5+$BE$21+BH$28) -> 0.95 | BI49: 0.95 | BJ49: 0.95 | BK49: 0.95 | BN49: 0.95 | BO49: 0.95 | BP49: 0.95 | BQ49: 0.95 | BS49: 0.95 | BT49: 0.95 | BU49: 0.95 | BV49: 0.95 | BX49: 0.95 | BY49: 0.95 | BZ49: 0.95 | CA49: 0.95 | CC49: 0.95 | CD49: 0.95 | CE49: 0.95 | CF49: 0.95 | CH49: 0.95 | CI49: 0.95 | CJ49: 0.95 | CK49: 0.95 | CM49: 0.95 | CN49: 0.95 | CO49: 0.95 | CP49: 0.95 | CR49: 0.95 | CS49: 0.95 | CT49: 0.95 | CU49: 0.95 | CW49: 0.95 | CX49: 0.95 | CY49: 0.95 | CZ49: 0.95 | DB49: 0.95 | DC49: 0.95 | DD49: 0.95 | DE49: 0.95 | DG49: 0.95 | DH49: 0.95 | DI49: 0.95 | DJ49: 0.95
N50: Project Life (Period of Operation) | P50: yr(s) | R50: =LOOKUP($R$28,$V$28:$Y$28,V50:Y50) -> 30 | S50: 30 | V50: 30 | W50: 30 | X50: 25 | Y50: 25 | AD50: Most Likely | AE50: Most Likely | AF50: Most Likely | AG50: Most Likely | AH50: Most Likely | AJ50: Most Likely | AK50: Most Likely | AL50: Most Likely | AN50: Most Likely | AO50: Most Likely | AS50: 30 | AT50: 30 | AU50: 25 | AV50: 25 | AX50: 30 | AY50: 30 | AZ50: 25 | BA50: 25 | BC50: 30 | BD50: 30 | BE50: 25 | BF50: 25 | BH50: 30 | BI50: 30 | BJ50: 25 | BK50: 25 | BN50: 30 | BO50: 30 | BP50: 25 | BQ50: 25 | BS50: 30 | BT50: 30 | BU50: 25 | BV50: 25 | BX50: 30 | BY50: 30 | BZ50: 25 | CA50: 25 | CC50: 30 | CD50: 30 | CE50: 25 | CF50: 25 | CH50: 30 | CI50: 30 | CJ50: 25 | CK50: 25 | CM50: 30 | CN50: 30 | CO50: 25 | CP50: 25 | CR50: 30 | CS50: 30 | CT50: 25 | CU50: 25 | CW50: 30 | CX50: 30 | CY50: 25 | CZ50: 25 | DB50: 30 | DC50: 30 | DD50: 25 | DE50: 25 | DG50: 30 | DH50: 30 | DI50: 25 | DJ50: 25
N51: Method used to Calculate Cost of Electricity | R51: EERE Discounted Cash Flow | S51: EERE Discounted Cash Flow | AD51: EERE Approach | AE51: EERE Approach | AF51: EERE Approach | AG51: EERE Approach | AH51: EERE Approach | AJ51: EERE Approach | AK51: EERE Approach | AL51: EERE Approach | AN51: EERE Approach | AO51: EERE Approach
N52: Calculations based on Fixed Charge Rate (FCR) of | R52: =LOOKUP($R$28,$V$28:$Y$28,V52:Y52) -> 0.108 | S52: =LOOKUP($R$28,$V$28:$Y$28,V52:Y52) -> 0.108 | V52: =IF($AV$25="Reference", IF($AV$26="Greenfield", AS52,IF($AV$26="Brownfield", BC52,"FAIL")), IF($AV$25="Improved", IF($AV$26="Greenfield", AX52,IF($AV$26="Brownfield", BH52,"FAIL")))) -> 0.108 | W52: =IF($AV$25="Reference", IF($AV$26="Greenfield", AT52,IF($AV$26="Brownfield", BD52,"FAIL")), IF($AV$25="Improved", IF($AV$26="Greenfield", AY52,IF($AV$26="Brownfield", BI52,"FAIL")))) -> 0.108 | X52: =IF($AV$25="Reference", IF($AV$26="Greenfield", AU52,IF($AV$26="Brownfield", BE52,"FAIL")), IF($AV$25="Improved", IF($AV$26="Greenfield", AZ52,IF($AV$26="Brownfield", BJ52,"FAIL")))) -> 0.108 | Y52: =IF($AV$25="Reference", IF($AV$26="Greenfield", AV52,IF($AV$26="Brownfield", BF52,"FAIL")), IF($AV$25="Improved", IF($AV$26="Greenfield", BA52,IF($AV$26="Brownfield", BK52,"FAIL")))) -> 0.108 | AD52: Most Likely | AE52: Most Likely | AF52: Most Likely | AG52: Most Likely | AH52: Most Likely | AJ52: Most Likely | AK52: Most Likely | AL52: Most Likely | AN52: Most Likely | AO52: Most Likely | AS52: 0.108 | AT52: 0.108 | AU52: 0.108 | AV52: 0.108 | AX52: =INDEX($BN52:$CZ52, 1, $BE$21+AX$28) -> 0.108 | AY52: =INDEX($BN52:$CZ52, 1, $BE$21+AY$28) -> 0.108 | AZ52: 0.108 | BA52: 0.108 | BC52: 0.108 | BD52: 0.108 | BE52: 0.108 | BF52: 0.108 | BH52: =INDEX($BN52:$CZ52, 1, 5+$BE$21+BH$28) -> 0.108 | BI52: =INDEX($BN52:$CZ52, 1, 5+$BE$21+BI$28) -> 0.108 | BJ52: =INDEX($BN52:$CZ52, 1, 5+$BE$21+BJ$28) -> 0.108 | BK52: =INDEX($BN52:$CZ52, 1, 5+$BE$21+BK$28) -> 0.108 | BN52: 0.108 | BO52: 0.108 | BP52: 0.108 | BQ52: 0.108 | BS52: 0.108 | BT52: 0.108 | BU52: 0.108 | BV52: 0.108 | BX52: 0.108 | BY52: 0.108 | BZ52: 0.108 | CA52: 0.108 | CC52: 0.108 | CD52: 0.108 | CE52: 0.108 | CF52: 0.108 | CH52: 0.108 | CI52: 0.108 | CJ52: 0.108 | CK52: 0.108 | CM52: 0.108 | CN52: 0.108 | CO52: 0.108 | CP52: 0.108 | CR52: 0.108 | CS52: 0.108 | CT52: 0.108 | CU52: 0.108 | CW52: 0.108 | CX52: 0.108 | CY52: 0.108 | CZ52: 0.108 | DB52: 0.108 | DC52: 0.108 | DD52: 0.108 | DE52: 0.108 | DG52: 0.108 | DH52: 0.108 | DI52: 0.108 | DJ52: 0.108
N53: Pre-Operation Discount Rates
N54: Exploration | R54: =LOOKUP($R$28,$V$28:$Y$28,V54:Y54) -> 0.07 | S54: =IF(ISBLANK(AA54),LOOKUP($R$28,$V$28:$Y$28,V54:Y54),AA54) -> 0.07 | V54: =IF($AV$25="Reference", IF($AV$26="Greenfield", AS54,IF($AV$26="Brownfield", BC54,"FAIL")), IF($AV$25="Improved", IF($AV$26="Greenfield", AX54,IF($AV$26="Brownfield", BH54,"FAIL")))) -> 0.07 | W54: 0.07 | X54: 0.07 | Y54: 0.07 | AD54: 0.3 | AE54: 0.3 | AF54: 0.3 | AG54: 0.3 | AH54: 0.3 | AJ54: 0.3 | AK54: 0.3 | AL54: 0.3 | AN54: 0.3 | AO54: 0.3 | AS54: 0.07 | AT54: 0.07 | AU54: 0.07 | AV54: 0.07 | AX54: =INDEX($BN54:$CZ54, 1, $BE$21+AX$28) -> 0.07 | AY54: 0.07 | AZ54: 0.07 | BA54: 0.07 | BC54: 0.07 | BD54: 0.07 | BE54: 0.07 | BF54: 0.07 | BH54: =INDEX($BN54:$CZ54, 1, 5+$BE$21+BH$28) -> 0.07 | BI54: 0.07 | BJ54: 0.07 | BK54: 0.07 | BN54: 0.07 | BO54: 0.07 | BP54: 0.07 | BQ54: 0.07 | BS54: 0.07 | BT54: 0.07 | BU54: 0.07 | BV54: 0.07 | BX54: 0.07 | BY54: 0.07 | BZ54: 0.07 | CA54: 0.07 | CC54: 0.07 | CD54: 0.07 | CE54: 0.07 | CF54: 0.07 | CH54: 0.07 | CI54: 0.07 | CJ54: 0.07 | CK54: 0.07 | CM54: 0.07 | CN54: 0.07 | CO54: 0.07 | CP54: 0.07 | CR54: 0.07 | CS54: 0.07 | CT54: 0.1 | CU54: 0.1 | CW54: 0.07 | CX54: 0.07 | CY54: 0.1 | CZ54: 0.1 | DB54: 0.07 | DC54: 0.07 | DD54: 0.07 | DE54: 0.07 | DG54: 0.07 | DH54: 0.07 | DI54: 0.07 | DJ54: 0.07
N55: Drilling | R55: =LOOKUP($R$28,$V$28:$Y$28,V55:Y55) -> 0.07 | S55: =IF(ISBLANK(AA55),LOOKUP($R$28,$V$28:$Y$28,V55:Y55),AA55) -> 0.07 | V55: 0.07 | W55: 0.07 | X55: 0.07 | Y55: 0.07 | AD55: 0.3 | AE55: 0.3 | AF55: 0.3 | AG55: 0.3 | AH55: 0.3 | AJ55: 0.3 | AK55: 0.3 | AL55: 0.3 | AN55: 0.3 | AO55: 0.3 | AS55: 0.07 | AT55: 0.07 | AU55: 0.07 | AV55: 0.07 | AX55: 0.07 | AY55: 0.07 | AZ55: 0.07 | BA55: 0.07 | BC55: 0.07 | BD55: 0.07 | BE55: 0.07 | BF55: 0.07 | BH55: 0.07 | BI55: 0.07 | BJ55: 0.07 | BK55: 0.07 | BN55: 0.07 | BO55: 0.07 | BP55: 0.07 | BQ55: 0.07 | BS55: 0.07 | BT55: 0.07 | BU55: 0.07 | BV55: 0.07 | BX55: 0.07 | BY55: 0.07 | BZ55: 0.162 | CA55: 0.162 | CC55: 0.07 | CD55: 0.07 | CE55: 0.16 | CF55: 0.16 | CH55: 0.07 | CI55: 0.07 | CJ55: 0.07 | CK55: 0.07 | CM55: 0.07 | CN55: 0.07 | CO55: 0.07 | CP55: 0.07 | CR55: 0.07 | CS55: 0.07 | CT55: 0.3 | CU55: 0.2 | CW55: 0.07 | CX55: 0.07 | CY55: 0.3 | CZ55: 0.2 | DB55: 0.07 | DC55: 0.07 | DD55: 0.07 | DE55: 0.07 | DG55: 0.07 | DH55: 0.07 | DI55: 0.07 | DJ55: 0.07
N56: Field Gathering System | R56: =LOOKUP($R$28,$V$28:$Y$28,V56:Y56) -> 0.07 | S56: =IF(ISBLANK(AA56),LOOKUP($R$28,$V$28:$Y$28,V56:Y56),AA56) -> 0.07 | V56: 0.07 | W56: 0.07 | X56: 0.07 | Y56: 0.07 | AD56: 0.15 | AE56: 0.15 | AF56: 0.15 | AG56: 0.15 | AH56: 0.15 | AJ56: 0.15 | AK56: 0.15 | AL56: 0.15 | AN56: 0.15 | AO56: 0.15 | AS56: 0.07 | AT56: 0.07 | AU56: 0.07 | AV56: 0.07 | AX56: 0.07 | AY56: 0.07 | AZ56: 0.07 | BA56: 0.07 | BC56: 0.07 | BD56: 0.07 | BE56: 0.07 | BF56: 0.07 | BH56: 0.07 | BI56: 0.07 | BJ56: 0.07 | BK56: 0.07 | BN56: 0.07 | BO56: 0.07 | BP56: 0.07 | BQ56: 0.07 | BS56: 0.07 | BT56: 0.07 | BU56: 0.07 | BV56: 0.07 | BX56: 0.07 | BY56: 0.07 | BZ56: 0.07 | CA56: 0.07 | CC56: 0.07 | CD56: 0.07 | CE56: 0.07 | CF56: 0.07 | CH56: 0.07 | CI56: 0.07 | CJ56: 0.07 | CK56: 0.07 | CM56: 0.07 | CN56: 0.07 | CO56: 0.07 | CP56: 0.07 | CR56: 0.07 | CS56: 0.07 | CT56: 0.07 | CU56: 0.07 | CW56: 0.07 | CX56: 0.07 | CY56: 0.07 | CZ56: 0.07 | DB56: 0.07 | DC56: 0.07 | DD56: 0.07 | DE56: 0.07 | DG56: 0.07 | DH56: 0.07 | DI56: 0.07 | DJ56: 0.07
N57: Plant Construction & Startup | R57: =LOOKUP($R$28,$V$28:$Y$28,V57:Y57) -> 0.07 | S57: =IF(ISBLANK(AA57),LOOKUP($R$28,$V$28:$Y$28,V57:Y57),AA57) -> 0.07 | V57: 0.07 | W57: 0.07 | X57: 0.07 | Y57: 0.07 | AD57: 0.07 | AE57: 0.07 | AF57: 0.07 | AG57: 0.07 | AH57: 0.07 | AJ57: 0.07 | AK57: 0.07 | AL57: 0.07 | AN57: 0.07 | AO57: 0.07 | AS57: 0.07 | AT57: 0.07 | AU57: 0.07 | AV57: 0.07 | AX57: 0.07 | AY57: 0.07 | AZ57: 0.07 | BA57: 0.07 | BC57: 0.07 | BD57: 0.07 | BE57: 0.07 | BF57: 0.07 | BH57: 0.07 | BI57: 0.07 | BJ57: 0.07 | BK57: 0.07 | BN57: 0.07 | BO57: 0.07 | BP57: 0.07 | BQ57: 0.07 | BS57: 0.07 | BT57: 0.07 | BU57: 0.07 | BV57: 0.07 | BX57: 0.07 | BY57: 0.07 | BZ57: 0.07 | CA57: 0.07 | CC57: 0.07 | CD57: 0.07 | CE57: 0.07 | CF57: 0.07 | CH57: 0.07 | CI57: 0.07 | CJ57: 0.07 | CK57: 0.07 | CM57: 0.07 | CN57: 0.07 | CO57: 0.07 | CP57: 0.07 | CR57: 0.07 | CS57: 0.07 | CT57: 0.07 | CU57: 0.07 | CW57: 0.07 | CX57: 0.07 | CY57: 0.07 | CZ57: 0.07 | DB57: 0.07 | DC57: 0.07 | DD57: 0.07 | DE57: 0.07 | DG57: 0.07 | DH57: 0.07 | DI57: 0.07 | DJ57: 0.07
N58: Refinance Earlier costs when PPA obtained? | R58: =LOOKUP($R$28,$V$28:$Y$28,V58:Y58) -> No | S58: =IF(ISBLANK(AA58),LOOKUP($R$28,$V$28:$Y$28,V58:Y58),AA58) -> No | V58: No | W58: No | X58: No | Y58: No | AS58: No | AT58: No | AU58: No | AV58: No | AX58: No | AY58: No | AZ58: No | BA58: No | BC58: No | BD58: No | BE58: No | BF58: No | BH58: No | BI58: No | BJ58: No | BK58: No | BN58: No | BO58: No | BP58: No | BQ58: No | BS58: No | BT58: No | BU58: No | BV58: No | BX58: No | BY58: No | BZ58: No | CA58: No | CC58: No | CD58: No | CE58: No | CF58: No | CH58: No | CI58: No | CJ58: No | CK58: No | CM58: No | CN58: No | CO58: No | CP58: No | CR58: No | CS58: No | CT58: No | CU58: No | CW58: No | CX58: No | CY58: No | CZ58: No | DB58: No | DC58: No | DD58: No | DE58: No | DG58: No | DH58: No | DI58: No | DJ58: No
N59: Project Schedule & Durations :
N60: Duration of Exploration Phase | P60: yr(s) | R60: =LOOKUP($R$28,$V$28:$Y$28,V60:Y60) -> 1 | S60: =IF(ISBLANK(AA60),LOOKUP($R$28,$V$28:$Y$28,V60:Y60),AA60) -> 1 | V60: =IF($AV$25="Reference", IF($AV$26="Greenfield", AS60,IF($AV$26="Brownfield", BC60,"FAIL")), IF($AV$25="Improved", IF($AV$26="Greenfield", AX60,IF($AV$26="Brownfield", BH60,"FAIL")))) -> 1 | W60: 1 | X60: 0.5 | Y60: 0.5 | AD60: Most Likely | AE60: Most Likely | AF60: Most Likely | AG60: Most Likely | AH60: Most Likely | AJ60: Most Likely | AK60: Most Likely | AL60: Most Likely | AN60: Most Likely | AO60: Most Likely | AS60: 4 | AT60: 4 | AU60: 1.5 | AV60: 1.5 | AX60: =INDEX($BN60:$CZ60, 1, $BE$21+AX$28) -> 1 | AY60: 1 | AZ60: 0.5 | BA60: 0.5 | BC60: 2.5 | BD60: 2.5 | BE60: 1.5 | BF60: 1.5 | BH60: =INDEX($BN60:$CZ60, 1, 5+$BE$21+BH$28) -> 0.5 | BI60: 0.5 | BJ60: 0.5 | BK60: 0.5 | BN60: 1 | BO60: 1 | BP60: 0.5 | BQ60: 0.5 | BS60: 0.5 | BT60: 0.5 | BU60: 0.5 | BV60: 0.5 | BX60: 4 | BY60: 4 | BZ60: 1.5 | CA60: 1.5 | CC60: 2.5 | CD60: 2.5 | CE60: 1.5 | CF60: 1.5 | CH60: 1 | CI60: 1 | CJ60: 0.5 | CK60: 0.5 | CM60: 0.5 | CN60: 0.5 | CO60: 0.5 | CP60: 0.5 | CR60: 1 | CS60: 1 | CT60: 0.5 | CU60: 0.5 | CW60: 0.5 | CX60: 0.5 | CY60: 0.5 | CZ60: 0.5 | DB60: 2.5 | DC60: 2 | DD60: 1.5 | DE60: 1.5 | DG60: 2.5 | DH60: 2 | DI60: 1.5 | DJ60: 1.5
N61: Duration of Drilling Phase | P61: yr(s) | R61: =LOOKUP($R$28,$V$28:$Y$28,V61:Y61) -> 1 | S61: =IF(ISBLANK(AA61),LOOKUP($R$28,$V$28:$Y$28,V61:Y61),AA61) -> 1 | V61: 1 | W61: 1 | X61: 1.5 | Y61: 1.5 | AD61: Most Likely | AE61: Most Likely | AF61: Most Likely | AG61: Most Likely | AH61: Most Likely | AJ61: Most Likely | AK61: Most Likely | AL61: Most Likely | AN61: Most Likely | AO61: Most Likely | AS61: 2.5 | AT61: 2.5 | AU61: 2 | AV61: 2 | AX61: 1 | AY61: 1 | AZ61: 1.5 | BA61: 1.5 | BC61: 2.5 | BD61: 2.5 | BE61: 2 | BF61: 2 | BH61: 1 | BI61: 1 | BJ61: 1 | BK61: 1 | BN61: 1 | BO61: 1 | BP61: 1.5 | BQ61: 1.5 | BS61: 1 | BT61: 1 | BU61: 1 | BV61: 1 | BX61: 2.5 | BY61: 2.5 | BZ61: 2 | CA61: 2 | CC61: 2.5 | CD61: 2.5 | CE61: 2 | CF61: 2 | CH61: 1 | CI61: 1 | CJ61: 1.5 | CK61: 1.5 | CM61: 1 | CN61: 1 | CO61: 1 | CP61: 1 | CR61: 1 | CS61: 1 | CT61: 1.5 | CU61: 1.5 | CW61: 1 | CX61: 1 | CY61: 1 | CZ61: 1 | DB61: 2.5 | DC61: 2.5 | DD61: 2 | DE61: 2 | DG61: 2.5 | DH61: 2.5 | DI61: 2 | DJ61: 2
N62: Duration of Field Gathering System | P62: yr(s) | R62: =LOOKUP($R$28,$V$28:$Y$28,V62:Y62) -> 0.5 | S62: =IF(ISBLANK(AA62),LOOKUP($R$28,$V$28:$Y$28,V62:Y62),AA62) -> 0.5 | V62: 0.5 | W62: 0.5 | X62: 0.5 | Y62: 0.5 | AD62: Most Likely | AE62: Most Likely | AF62: Most Likely | AG62: Most Likely | AH62: Most Likely | AJ62: Most Likely | AK62: Most Likely | AL62: Most Likely | AN62: Most Likely | AO62: Most Likely | AS62: 2.5 | AT62: 2.5 | AU62: 2 | AV62: 2 | AX62: 0.5 | AY62: 0.5 | AZ62: 0.5 | BA62: 0.5 | BC62: 2.5 | BD62: 2.5 | BE62: 2 | BF62: 2 | BH62: 0.5 | BI62: 0.5 | BJ62: 0.5 | BK62: 0.5 | BN62: 0.5 | BO62: 0.5 | BP62: 0.5 | BQ62: 0.5 | BS62: 0.5 | BT62: 0.5 | BU62: 0.5 | BV62: 0.5 | BX62: 2.5 | BY62: 2.5 | BZ62: 2 | CA62: 2 | CC62: 2.5 | CD62: 2.5 | CE62: 2 | CF62: 2 | CH62: 0.5 | CI62: 0.5 | CJ62: 0.5 | CK62: 0.5 | CM62: 0.5 | CN62: 0.5 | CO62: 0.5 | CP62: 0.5 | CR62: 0.5 | CS62: 0.5 | CT62: 0.5 | CU62: 0.5 | CW62: 0.5 | CX62: 0.5 | CY62: 0.5 | CZ62: 0.5 | DB62: 2.5 | DC62: 2.5 | DD62: 2 | DE62: 2 | DG62: 2.5 | DH62: 2.5 | DI62: 2 | DJ62: 2
N63: Duration of Plant Design & Finalizing PPA | R63: =LOOKUP($R$28,$V$28:$Y$28,V63:Y63) -> 1 | S63: =IF(ISBLANK(AA63),LOOKUP($R$28,$V$28:$Y$28,V63:Y63),AA63) -> 1 | V63: =IF($AV$25="Reference", IF($AV$26="Greenfield", AS63,IF($AV$26="Brownfield", BC63,"FAIL")), IF($AV$25="Improved", IF($AV$26="Greenfield", AX63,IF($AV$26="Brownfield", BH63,"FAIL")))) -> 1 | W63: =IF($AV$25="Reference", IF($AV$26="Greenfield", AT63,IF($AV$26="Brownfield", BD63,"FAIL")), IF($AV$25="Improved", IF($AV$26="Greenfield", AY63,IF($AV$26="Brownfield", BI63,"FAIL")))) -> 1 | X63: =IF($AV$25="Reference", IF($AV$26="Greenfield", AU63,IF($AV$26="Brownfield", BE63,"FAIL")), IF($AV$25="Improved", IF($AV$26="Greenfield", AZ63,IF($AV$26="Brownfield", BJ63,"FAIL")))) -> 1 | Y63: 1 | AS63: 1 | AT63: 1 | AU63: 1 | AV63: 1 | AX63: 1 | AY63: 1 | AZ63: 1 | BA63: 1 | BC63: 1 | BD63: 1 | BE63: 1 | BF63: 1 | BH63: 0.5 | BI63: 0.5 | BJ63: 0.5 | BK63: 0.5 | BN63: 1 | BO63: 1 | BP63: 1 | BQ63: 1 | BS63: 0.5 | BT63: 0.5 | BU63: 0.5 | BV63: 0.5 | BX63: 1 | BY63: 1 | BZ63: 1 | CA63: 1 | CC63: 1 | CD63: 1 | CE63: 1 | CF63: 1 | CH63: 1 | CI63: 1 | CJ63: 1 | CK63: 1 | CM63: 0.5 | CN63: 0.5 | CO63: 0.5 | CP63: 0.5 | CR63: 1 | CS63: 1 | CT63: 1 | CU63: 1 | CW63: 0.5 | CX63: 0.5 | CY63: 0.5 | CZ63: 0.5 | DB63: 1 | DC63: 1 | DD63: 1 | DE63: 1 | DG63: 1 | DH63: 1 | DI63: 1 | DJ63: 1
N64: Duration of Plant Construction | P64: yr(s) | R64: =LOOKUP($R$28,$V$28:$Y$28,V64:Y64) -> 1.5 | S64: =IF(ISBLANK(AA64),LOOKUP($R$28,$V$28:$Y$28,V64:Y64),AA64) -> 1.5 | V64: 1.5 | W64: 1.5 | X64: 1.5 | Y64: 1.5 | AD64: Most Likely | AE64: Most Likely | AF64: Most Likely | AG64: Most Likely | AH64: Most Likely | AJ64: Most Likely | AK64: Most Likely | AL64: Most Likely | AN64: Most Likely | AO64: Most Likely | AS64: 2 | AT64: 1.5 | AU64: 2 | AV64: 1.5 | AX64: 1.5 | AY64: 1.5 | AZ64: 1.5 | BA64: 1.5 | BC64: 2 | BD64: 1.5 | BE64: 2 | BF64: 1.5 | BH64: 1 | BI64: 1 | BJ64: 1 | BK64: 1 | BN64: 1.5 | BO64: 1.5 | BP64: 1.5 | BQ64: 1.5 | BS64: 1 | BT64: 1 | BU64: 1 | BV64: 1 | BX64: 2 | BY64: 1.5 | BZ64: 2 | CA64: 1.5 | CC64: 2 | CD64: 1.5 | CE64: 2 | CF64: 1.5 | CH64: 1.5 | CI64: 1.5 | CJ64: 1.5 | CK64: 1.5 | CM64: 1 | CN64: 1 | CO64: 1 | CP64: 1 | CR64: 1.5 | CS64: 1.5 | CT64: 1.5 | CU64: 1.5 | CW64: 1 | CX64: 1 | CY64: 1 | CZ64: 1 | DB64: 2 | DC64: 1.5 | DD64: 2 | DE64: 1.5 | DG64: 2 | DH64: 1.5 | DI64: 2 | DJ64: 1.5
N65: Depreciation Schedule
N66: Year 1 | R66: =LOOKUP($R$28,$V$28:$Y$28,V66:Y66) -> 0.2 | S66: =LOOKUP($R$28,$V$28:$Y$28,V66:Y66) -> 0.2 | V66: =IF($AV$25="Reference", IF($AV$26="Greenfield", AS66,IF($AV$26="Brownfield", BC66,"FAIL")), IF($AV$25="Improved", IF($AV$26="Greenfield", AX66,IF($AV$26="Brownfield", BH66,"FAIL")))) -> 0.2 | W66: 0.2 | X66: 0.2 | Y66: 0.2 | AD66: 0.2 | AE66: 0.2 | AF66: 0.2 | AG66: 0.2 | AH66: 0.2 | AJ66: 0.2 | AK66: 0.2 | AL66: 0.2 | AN66: 0.2 | AO66: 0.2 | AS66: 0.2 | AT66: 0.2 | AU66: 0.2 | AV66: 0.2 | AX66: =INDEX($BN66:$CZ66, 1, $BE$21+AX$28) -> 0.2 | AY66: 0.2 | AZ66: 0.2 | BA66: 0.2 | BC66: 0.2 | BD66: 0.2 | BE66: 0.2 | BF66: 0.2 | BH66: =INDEX($BN66:$CZ66, 1, 5+$BE$21+BH$28) -> 0.2 | BI66: 0.2 | BJ66: 0.2 | BK66: 0.2 | BN66: 0.2 | BO66: 0.2 | BP66: 0.2 | BQ66: 0.2 | BS66: 0.2 | BT66: 0.2 | BU66: 0.2 | BV66: 0.2 | BX66: 0.2 | BY66: 0.2 | BZ66: 0.2 | CA66: 0.2 | CC66: 0.2 | CD66: 0.2 | CE66: 0.2 | CF66: 0.2 | CH66: 0.2 | CI66: 0.2 | CJ66: 0.2 | CK66: 0.2 | CM66: 0.2 | CN66: 0.2 | CO66: 0.2 | CP66: 0.2 | CR66: 0.2 | CS66: 0.2 | CT66: 0.2 | CU66: 0.2 | CW66: 0.2 | CX66: 0.2 | CY66: 0.2 | CZ66: 0.2 | DB66: 0.2 | DC66: 0.2 | DD66: 0.2 | DE66: 0.2 | DG66: 0.2 | DH66: 0.2 | DI66: 0.2 | DJ66: 0.2
N67: Year 2 | R67: 0.32 | S67: 0.32 | V67: 0.32 | W67: 0.32 | X67: 0.32 | Y67: 0.32 | AD67: 0.32 | AE67: 0.32 | AF67: 0.32 | AG67: 0.32 | AH67: 0.32 | AJ67: 0.32 | AK67: 0.32 | AL67: 0.32 | AN67: 0.32 | AO67: 0.32 | AS67: 0.32 | AT67: 0.32 | AU67: 0.32 | AV67: 0.32 | AX67: 0.32 | AY67: 0.32 | AZ67: 0.32 | BA67: 0.32 | BC67: 0.32 | BD67: 0.32 | BE67: 0.32 | BF67: 0.32 | BH67: 0.32 | BI67: 0.32 | BJ67: 0.32 | BK67: 0.32 | BN67: 0.32 | BO67: 0.32 | BP67: 0.32 | BQ67: 0.32 | BS67: 0.32 | BT67: 0.32 | BU67: 0.32 | BV67: 0.32 | BX67: 0.32 | BY67: 0.32 | BZ67: 0.32 | CA67: 0.32 | CC67: 0.32 | CD67: 0.32 | CE67: 0.32 | CF67: 0.32 | CH67: 0.32 | CI67: 0.32 | CJ67: 0.32 | CK67: 0.32 | CM67: 0.32 | CN67: 0.32 | CO67: 0.32 | CP67: 0.32 | CR67: 0.32 | CS67: 0.32 | CT67: 0.32 | CU67: 0.32 | CW67: 0.32 | CX67: 0.32 | CY67: 0.32 | CZ67: 0.32 | DB67: 0.32 | DC67: 0.32 | DD67: 0.32 | DE67: 0.32 | DG67: 0.32 | DH67: 0.32 | DI67: 0.32 | DJ67: 0.32
N68: Year 3 | R68: 0.192 | S68: 0.192 | V68: 0.192 | W68: 0.192 | X68: 0.192 | Y68: 0.192 | AD68: 0.192 | AE68: 0.192 | AF68: 0.192 | AG68: 0.192 | AH68: 0.192 | AJ68: 0.192 | AK68: 0.192 | AL68: 0.192 | AN68: 0.192 | AO68: 0.192 | AS68: 0.192 | AT68: 0.192 | AU68: 0.192 | AV68: 0.192 | AX68: 0.192 | AY68: 0.192 | AZ68: 0.192 | BA68: 0.192 | BC68: 0.192 | BD68: 0.192 | BE68: 0.192 | BF68: 0.192 | BH68: 0.192 | BI68: 0.192 | BJ68: 0.192 | BK68: 0.192 | BN68: 0.192 | BO68: 0.192 | BP68: 0.192 | BQ68: 0.192 | BS68: 0.192 | BT68: 0.192 | BU68: 0.192 | BV68: 0.192 | BX68: 0.192 | BY68: 0.192 | BZ68: 0.192 | CA68: 0.192 | CC68: 0.192 | CD68: 0.192 | CE68: 0.192 | CF68: 0.192 | CH68: 0.192 | CI68: 0.192 | CJ68: 0.192 | CK68: 0.192 | CM68: 0.192 | CN68: 0.192 | CO68: 0.192 | CP68: 0.192 | CR68: 0.192 | CS68: 0.192 | CT68: 0.192 | CU68: 0.192 | CW68: 0.192 | CX68: 0.192 | CY68: 0.192 | CZ68: 0.192 | DB68: 0.192 | DC68: 0.192 | DD68: 0.192 | DE68: 0.192 | DG68: 0.192 | DH68: 0.192 | DI68: 0.192 | DJ68: 0.192
N69: Year 4 | R69: 0.1152 | S69: 0.1152 | V69: 0.1152 | W69: 0.1152 | X69: 0.1152 | Y69: 0.1152 | AD69: 0.1152 | AE69: 0.1152 | AF69: 0.1152 | AG69: 0.1152 | AH69: 0.1152 | AJ69: 0.1152 | AK69: 0.1152 | AL69: 0.1152 | AN69: 0.1152 | AO69: 0.1152 | AS69: 0.1152 | AT69: 0.1152 | AU69: 0.1152 | AV69: 0.1152 | AX69: 0.1152 | AY69: 0.1152 | AZ69: 0.1152 | BA69: 0.1152 | BC69: 0.1152 | BD69: 0.1152 | BE69: 0.1152 | BF69: 0.1152 | BH69: 0.1152 | BI69: 0.1152 | BJ69: 0.1152 | BK69: 0.1152 | BN69: 0.1152 | BO69: 0.1152 | BP69: 0.1152 | BQ69: 0.1152 | BS69: 0.1152 | BT69: 0.1152 | BU69: 0.1152 | BV69: 0.1152 | BX69: 0.1152 | BY69: 0.1152 | BZ69: 0.1152 | CA69: 0.1152 | CC69: 0.1152 | CD69: 0.1152 | CE69: 0.1152 | CF69: 0.1152 | CH69: 0.1152 | CI69: 0.1152 | CJ69: 0.1152 | CK69: 0.1152 | CM69: 0.1152 | CN69: 0.1152 | CO69: 0.1152 | CP69: 0.1152 | CR69: 0.1152 | CS69: 0.1152 | CT69: 0.1152 | CU69: 0.1152 | CW69: 0.1152 | CX69: 0.1152 | CY69: 0.1152 | CZ69: 0.1152 | DB69: 0.1152 | DC69: 0.1152 | DD69: 0.1152 | DE69: 0.1152 | DG69: 0.1152 | DH69: 0.1152 | DI69: 0.1152 | DJ69: 0.1152
N70: Year 5 | R70: 0.1152 | S70: 0.1152 | V70: 0.1152 | W70: 0.1152 | X70: 0.1152 | Y70: 0.1152 | AD70: 0.1152 | AE70: 0.1152 | AF70: 0.1152 | AG70: 0.1152 | AH70: 0.1152 | AJ70: 0.1152 | AK70: 0.1152 | AL70: 0.1152 | AN70: 0.1152 | AO70: 0.1152 | AS70: 0.1152 | AT70: 0.1152 | AU70: 0.1152 | AV70: 0.1152 | AX70: 0.1152 | AY70: 0.1152 | AZ70: 0.1152 | BA70: 0.1152 | BC70: 0.1152 | BD70: 0.1152 | BE70: 0.1152 | BF70: 0.1152 | BH70: 0.1152 | BI70: 0.1152 | BJ70: 0.1152 | BK70: 0.1152 | BN70: 0.1152 | BO70: 0.1152 | BP70: 0.1152 | BQ70: 0.1152 | BS70: 0.1152 | BT70: 0.1152 | BU70: 0.1152 | BV70: 0.1152 | BX70: 0.1152 | BY70: 0.1152 | BZ70: 0.1152 | CA70: 0.1152 | CC70: 0.1152 | CD70: 0.1152 | CE70: 0.1152 | CF70: 0.1152 | CH70: 0.1152 | CI70: 0.1152 | CJ70: 0.1152 | CK70: 0.1152 | CM70: 0.1152 | CN70: 0.1152 | CO70: 0.1152 | CP70: 0.1152 | CR70: 0.1152 | CS70: 0.1152 | CT70: 0.1152 | CU70: 0.1152 | CW70: 0.1152 | CX70: 0.1152 | CY70: 0.1152 | CZ70: 0.1152 | DB70: 0.1152 | DC70: 0.1152 | DD70: 0.1152 | DE70: 0.1152 | DG70: 0.1152 | DH70: 0.1152 | DI70: 0.1152 | DJ70: 0.1152
N71: Year 6 | R71: 0.0576 | S71: 0.0576 | V71: 0.0576 | W71: 0.0576 | X71: 0.0576 | Y71: 0.0576 | AD71: 0.0576 | AE71: 0.0576 | AF71: 0.0576 | AG71: 0.0576 | AH71: 0.0576 | AJ71: 0.0576 | AK71: 0.0576 | AL71: 0.0576 | AN71: 0.0576 | AO71: 0.0576 | AS71: 0.0576 | AT71: 0.0576 | AU71: 0.0576 | AV71: 0.0576 | AX71: 0.0576 | AY71: 0.0576 | AZ71: 0.0576 | BA71: 0.0576 | BC71: 0.0576 | BD71: 0.0576 | BE71: 0.0576 | BF71: 0.0576 | BH71: 0.0576 | BI71: 0.0576 | BJ71: 0.0576 | BK71: 0.0576 | BN71: 0.0576 | BO71: 0.0576 | BP71: 0.0576 | BQ71: 0.0576 | BS71: 0.0576 | BT71: 0.0576 | BU71: 0.0576 | BV71: 0.0576 | BX71: 0.0576 | BY71: 0.0576 | BZ71: 0.0576 | CA71: 0.0576 | CC71: 0.0576 | CD71: 0.0576 | CE71: 0.0576 | CF71: 0.0576 | CH71: 0.0576 | CI71: 0.0576 | CJ71: 0.0576 | CK71: 0.0576 | CM71: 0.0576 | CN71: 0.0576 | CO71: 0.0576 | CP71: 0.0576 | CR71: 0.0576 | CS71: 0.0576 | CT71: 0.0576 | CU71: 0.0576 | CW71: 0.0576 | CX71: 0.0576 | CY71: 0.0576 | CZ71: 0.0576 | DB71: 0.0576 | DC71: 0.0576 | DD71: 0.0576 | DE71: 0.0576 | DG71: 0.0576 | DH71: 0.0576 | DI71: 0.0576 | DJ71: 0.0576
N73: PERMITTING
N74: Duration of Permitting for Exploration & Early Drilling Activities | R74: =LOOKUP($R$28,$V$28:$Y$28,V74:Y74) -> 1 | S74: =IF(ISBLANK(AA74),LOOKUP($R$28,$V$28:$Y$28,V74:Y74),AA74) -> 1 | V74: =IF($AV$25="Reference", IF($AV$26="Greenfield", AS74,IF($AV$26="Brownfield", BC74,"FAIL")), IF($AV$25="Improved", IF($AV$26="Greenfield", AX74,IF($AV$26="Brownfield", BH74,"FAIL")))) -> 1 | W74: 1 | X74: 1 | Y74: 1 | AD74: 1 | AE74: 1 | AF74: 1 | AG74: 1 | AH74: 1 | AJ74: 1 | AK74: 1 | AL74: 1 | AN74: 1 | AO74: 1 | AS74: 1 | AT74: 1 | AU74: =1 -> 1 | AV74: 1 | AX74: =INDEX($BN74:$CZ74, 1, $BE$21+AX$28) -> 1 | AY74: 1 | AZ74: 1 | BA74: 1 | BC74: 1 | BD74: 1 | BE74: =1 -> 1 | BF74: 1 | BH74: =INDEX($BN74:$CZ74, 1, 5+$BE$21+BH$28) -> 1 | BI74: 1 | BJ74: 1 | BK74: 1 | BN74: 1 | BO74: 1 | BP74: =1 -> 1 | BQ74: 1 | BS74: 1 | BT74: 1 | BU74: =1 -> 1 | BV74: 1 | BX74: 1 | BY74: 1 | BZ74: =1 -> 1 | CA74: 1 | CC74: 1 | CD74: 1 | CE74: =1 -> 1 | CF74: 1 | CH74: 1 | CI74: 1 | CJ74: =1 -> 1 | CK74: 1 | CM74: 1 | CN74: 1 | CO74: =1 -> 1 | CP74: 1 | CR74: 1 | CS74: 1 | CT74: =1 -> 1 | CU74: 1 | CW74: 1 | CX74: 1 | CY74: =1 -> 1 | CZ74: 1 | DB74: 1 | DC74: 1 | DD74: 1 | DE74: 1 | DG74: 1 | DH74: 1 | DI74: 1 | DJ74: 1
N75: Permitting Process Costs for Pre-Drilling Activities | P75: per location | R75: =LOOKUP($R$28,$V$28:$Y$28,V75:Y75) -> 60000 | S75: =LOOKUP($R$28,$V$28:$Y$28,V75:Y75)*AB75*(IF(ISBLANK(AA75),1,AA75)) -> 67347.36842 | V75: 60000 | W75: 60000 | X75: 60000 | Y75: 60000 | AB75: ='Tables (up)'!Q65/'Tables (up)'!Q64 -> 1.12245614 | AD75: 60000 | AE75: 60000 | AF75: 60000 | AG75: 60000 | AH75: 60000 | AJ75: 60000 | AK75: 60000 | AL75: 60000 | AN75: 60000 | AO75: 60000 | AS75: 60000 | AT75: 60000 | AU75: =60000 -> 60000 | AV75: 60000 | AX75: 60000 | AY75: 60000 | AZ75: 60000 | BA75: 60000 | BC75: 60000 | BD75: 60000 | BE75: =60000 -> 60000 | BF75: 60000 | BH75: 60000 | BI75: 60000 | BJ75: 60000 | BK75: 60000 | BN75: 60000 | BO75: 60000 | BP75: =60000 -> 60000 | BQ75: 60000 | BS75: 60000 | BT75: 60000 | BU75: =60000 -> 60000 | BV75: 60000 | BX75: 60000 | BY75: 60000 | BZ75: =60000 -> 60000 | CA75: 60000 | CC75: 60000 | CD75: 60000 | CE75: =60000 -> 60000 | CF75: 60000 | CH75: 60000 | CI75: 60000 | CJ75: =60000 -> 60000 | CK75: 60000 | CM75: 60000 | CN75: 60000 | CO75: =60000 -> 60000 | CP75: 60000 | CR75: 60000 | CS75: 60000 | CT75: =60000 -> 60000 | CU75: 60000 | CW75: 60000 | CX75: 60000 | CY75: =60000 -> 60000 | CZ75: 60000 | DB75: 60000 | DC75: 60000 | DD75: 60000 | DE75: 60000 | DG75: 60000 | DH75: 60000 | DI75: 60000 | DJ75: 60000
N76: Permitting Process Costs for Exploration Early Project Drilling | P76: per site | R76: =LOOKUP($R$28,$V$28:$Y$28,V76:Y76) -> 250000 | S76: =LOOKUP($R$28,$V$28:$Y$28,V76:Y76)*AB76*(IF(ISBLANK(AA76),1,AA76)) -> 280614.0351 | V76: 250000 | W76: 250000 | X76: 250000 | Y76: 250000 | AB76: ='Tables (up)'!Q65/'Tables (up)'!Q64 -> 1.12245614 | AD76: 125000 | AE76: 125000 | AF76: 125000 | AG76: 125000 | AH76: 125000 | AJ76: 250000 | AK76: 250000 | AL76: 250000 | AN76: 250000 | AO76: 250000 | AS76: 250000 | AT76: 250000 | AU76: 250000 | AV76: 250000 | AX76: 250000 | AY76: 250000 | AZ76: 250000 | BA76: 250000 | BC76: 250000 | BD76: 250000 | BE76: 250000 | BF76: 250000 | BH76: 250000 | BI76: 250000 | BJ76: 250000 | BK76: 250000 | BN76: 250000 | BO76: 250000 | BP76: 250000 | BQ76: 250000 | BS76: 250000 | BT76: 250000 | BU76: 250000 | BV76: 250000 | BX76: 250000 | BY76: 250000 | BZ76: 250000 | CA76: 250000 | CC76: 250000 | CD76: 250000 | CE76: 250000 | CF76: 250000 | CH76: 250000 | CI76: 250000 | CJ76: 250000 | CK76: 250000 | CM76: 250000 | CN76: 250000 | CO76: 250000 | CP76: 250000 | CR76: 250000 | CS76: 250000 | CT76: 250000 | CU76: 250000 | CW76: 250000 | CX76: 250000 | CY76: 250000 | CZ76: 250000 | DB76: 125000 | DC76: 125000 | DD76: 250000 | DE76: 250000 | DG76: 125000 | DH76: 125000 | DI76: 250000 | DJ76: 250000
N77: Duration for Utilization Permit (Well Field and Plant) | P77: yr(s) | R77: =LOOKUP($R$28,$V$28:$Y$28,V77:Y77) -> 1 | S77: =IF(ISBLANK(AA77),LOOKUP($R$28,$V$28:$Y$28,V77:Y77),AA77) -> 1 | V77: 1 | W77: 1 | X77: 1 | Y77: 1 | AD77: 1 | AE77: 1 | AF77: 1 | AG77: 1 | AH77: 1 | AJ77: 1 | AK77: 1 | AL77: 1 | AN77: 1 | AO77: 1 | AS77: 1 | AT77: 1 | AU77: =1 -> 1 | AV77: 1 | AX77: 1 | AY77: 1 | AZ77: 1 | BA77: 1 | BC77: 1 | BD77: 1 | BE77: =1 -> 1 | BF77: 1 | BH77: 1 | BI77: 1 | BJ77: 1 | BK77: 1 | BN77: 1 | BO77: 1 | BP77: =1 -> 1 | BQ77: 1 | BS77: 1 | BT77: 1 | BU77: =1 -> 1 | BV77: 1 | BX77: 1 | BY77: 1 | BZ77: =1 -> 1 | CA77: 1 | CC77: 1 | CD77: 1 | CE77: =1 -> 1 | CF77: 1 | CH77: 1 | CI77: 1 | CJ77: =1 -> 1 | CK77: 1 | CM77: 1 | CN77: 1 | CO77: =1 -> 1 | CP77: 1 | CR77: 1 | CS77: 1 | CT77: =1 -> 1 | CU77: 1 | CW77: 1 | CX77: 1 | CY77: =1 -> 1 | CZ77: 1 | DB77: 1 | DC77: 1 | DD77: 1 | DE77: 1 | DG77: 1 | DH77: 1 | DI77: 1 | DJ77: 1
N78: Permitting (Utilization Plant) Cost for Well Field & Power Plant | R78: =LOOKUP($R$28,$V$28:$Y$28,V78:Y78) -> 1000000 | S78: =LOOKUP($R$28,$V$28:$Y$28,V78:Y78)*AB78*(IF(ISBLANK(AA78),1,AA78)) -> 1122456.14 | V78: 1000000 | W78: 1000000 | X78: 1000000 | Y78: 1000000 | AB78: ='Tables (up)'!Q65/'Tables (up)'!Q64 -> 1.12245614 | AD78: Most Likely | AE78: Most Likely | AF78: Most Likely | AG78: Most Likely | AH78: Most Likely | AJ78: Most Likely | AK78: Most Likely | AL78: Most Likely | AN78: Most Likely | AO78: Most Likely | AS78: 1000000 | AT78: 1000000 | AU78: =1000000 -> 1000000 | AV78: 1000000 | AX78: 1000000 | AY78: 1000000 | AZ78: 1000000 | BA78: 1000000 | BC78: 1000000 | BD78: 1000000 | BE78: =1000000 -> 1000000 | BF78: 1000000 | BH78: 1000000 | BI78: 1000000 | BJ78: 1000000 | BK78: 1000000 | BN78: 1000000 | BO78: 1000000 | BP78: =1000000 -> 1000000 | BQ78: 1000000 | BS78: 1000000 | BT78: 1000000 | BU78: =1000000 -> 1000000 | BV78: 1000000 | BX78: 1000000 | BY78: 1000000 | BZ78: =1000000 -> 1000000 | CA78: 1000000 | CC78: 1000000 | CD78: 1000000 | CE78: =1000000 -> 1000000 | CF78: 1000000 | CH78: 1000000 | CI78: 1000000 | CJ78: =1000000 -> 1000000 | CK78: 1000000 | CM78: 1000000 | CN78: 1000000 | CO78: =1000000 -> 1000000 | CP78: 1000000 | CR78: 1000000 | CS78: 1000000 | CT78: =1000000 -> 1000000 | CU78: 1000000 | CW78: 1000000 | CX78: 1000000 | CY78: =1000000 -> 1000000 | CZ78: 1000000 | DB78: 1000000 | DC78: 1000000 | DD78: 1000000 | DE78: 1000000 | DG78: 1000000 | DH78: 1000000 | DI78: 1000000 | DJ78: 1000000
N80: RESOURCE EXPLORATION
N81: Exploration Parameters:
N82: Resource status before development | R82: =LOOKUP($R$28,$V$28:$Y$28,V82:Y82) -> Greenfield | S82: =IF(ISBLANK(AA82),LOOKUP($R$28,$V$28:$Y$28,V82:Y82),AA82) -> Greenfield | V82: =IF($AV$25="Reference", IF($AV$26="Greenfield", AS82,IF($AV$26="Brownfield", BC82,"FAIL")), IF($AV$25="Improved", IF($AV$26="Greenfield", AX82,IF($AV$26="Brownfield", BH82,"FAIL")))) -> Greenfield | W82: Greenfield | X82: Greenfield | Y82: Greenfield | AD82: Greenfield | AE82: Greenfield | AF82: Greenfield | AG82: Greenfield | AH82: Greenfield | AJ82: Greenfield | AK82: Greenfield | AL82: Greenfield | AN82: Greenfield | AO82: Greenfield | AS82: Greenfield | AT82: Greenfield | AU82: Greenfield | AV82: Greenfield | AX82: =INDEX($BN82:$CZ82, 1, $BE$21+AX$28) -> Greenfield | AY82: Greenfield | AZ82: Greenfield | BA82: Greenfield | BC82: Field Expansion | BD82: Field Expansion | BE82: Field Expansion | BF82: Field Expansion | BH82: =INDEX($BN82:$CZ82, 1, 5+$BE$21+BH$28) -> Field Expansion | BI82: Field Expansion | BJ82: Field Expansion | BK82: Field Expansion | BN82: Greenfield | BO82: Greenfield | BP82: Greenfield | BQ82: Greenfield | BS82: Field Expansion | BT82: Field Expansion | BU82: Field Expansion | BV82: Field Expansion | BX82: Greenfield | BY82: Greenfield | BZ82: Greenfield | CA82: Greenfield | CC82: Field Expansion | CD82: Field Expansion | CE82: Field Expansion | CF82: Field Expansion | CH82: Greenfield | CI82: Greenfield | CJ82: Greenfield | CK82: Greenfield | CM82: Field Expansion | CN82: Field Expansion | CO82: Field Expansion | CP82: Field Expansion | CR82: Greenfield | CS82: Greenfield | CT82: Greenfield | CU82: Greenfield | CW82: Field Expansion | CX82: Field Expansion | CY82: Field Expansion | CZ82: Field Expansion | DB82: Greenfield | DC82: Greenfield | DD82: Greenfield | DE82: Greenfield | DG82: Greenfield | DH82: Greenfield | DI82: Greenfield | DJ82: Greenfield
N83: Will the Project have Exploration Drilling? | R83: =LOOKUP($R$28,$V$28:$Y$28,V83:Y83) -> Yes | S83: =IF(ISBLANK(AA83),LOOKUP($R$28,$V$28:$Y$28,V83:Y83),AA83) -> Yes | V83: Yes | W83: Yes | X83: Yes | Y83: Yes | AD83: Yes | AE83: Yes | AF83: Yes | AG83: Yes | AH83: Yes | AJ83: Yes | AK83: Yes | AL83: Yes | AN83: Yes | AO83: Yes | AS83: Yes | AT83: Yes | AU83: Yes | AV83: Yes | AX83: Yes | AY83: Yes | AZ83: Yes | BA83: Yes | BC83: Yes | BD83: Yes | BE83: Yes | BF83: Yes | BH83: Yes | BI83: Yes | BJ83: Yes | BK83: Yes | BN83: Yes | BO83: Yes | BP83: Yes | BQ83: Yes | BS83: Yes | BT83: Yes | BU83: Yes | BV83: Yes | BX83: Yes | BY83: Yes | BZ83: Yes | CA83: Yes | CC83: Yes | CD83: Yes | CE83: Yes | CF83: Yes | CH83: Yes | CI83: Yes | CJ83: Yes | CK83: Yes | CM83: Yes | CN83: Yes | CO83: Yes | CP83: Yes | CR83: Yes | CS83: Yes | CT83: Yes | CU83: Yes | CW83: Yes | CX83: Yes | CY83: Yes | CZ83: Yes | DB83: Yes | DC83: Yes | DD83: Yes | DE83: Yes | DG83: Yes | DH83: Yes | DI83: Yes | DJ83: Yes
N84: Exploration - Pre-Drilling Costs :
N85: Number of Locations Evaluated Before Exploration Drilling Begins | P85: per project | R85: =LOOKUP($R$28,$V$28:$Y$28,V85:Y85) -> 1 | S85: =IF(ISBLANK(AA85),LOOKUP($R$28,$V$28:$Y$28,V85:Y85),AA85) -> 1 | V85: =IF($AV$25="Reference", IF($AV$26="Greenfield", AS85,IF($AV$26="Brownfield", BC85,"FAIL")), IF($AV$25="Improved", IF($AV$26="Greenfield", AX85,IF($AV$26="Brownfield", BH85,"FAIL")))) -> 1 | W85: 1 | X85: 1 | Y85: 1 | AD85: Most Likely | AE85: Most Likely | AF85: Most Likely | AG85: Most Likely | AH85: Most Likely | AJ85: Most Likely | AK85: Most Likely | AL85: Most Likely | AN85: Most Likely | AO85: Most Likely | AS85: 1 | AT85: 1 | AU85: 1 | AV85: 1 | AX85: =INDEX($BN85:$CZ85, 1, $BE$21+AX$28) -> 1 | AY85: 1 | AZ85: 1 | BA85: 1 | BC85: 1 | BD85: 1 | BE85: 1 | BF85: 1 | BH85: =INDEX($BN85:$CZ85, 1, 5+$BE$21+BH$28) -> 1 | BI85: 1 | BJ85: 1 | BK85: 1 | BN85: 1 | BO85: 1 | BP85: 1 | BQ85: 1 | BS85: 1 | BT85: 1 | BU85: 1 | BV85: 1 | BX85: 1 | BY85: 1 | BZ85: 1 | CA85: 1 | CC85: 1 | CD85: 1 | CE85: 1 | CF85: 1 | CH85: 1 | CI85: 1 | CJ85: 1 | CK85: 1 | CM85: 1 | CN85: 1 | CO85: 1 | CP85: 1 | CR85: 1 | CS85: 1 | CT85: 1 | CU85: 1 | CW85: 1 | CX85: 1 | CY85: 1 | CZ85: 1 | DB85: 1 | DC85: 1 | DD85: 1 | DE85: 1 | DG85: 1 | DH85: 1 | DI85: 1 | DJ85: 1
N86: Lump Sum Cost for Pre-Drilling Exploration Activities at each site | P86: per site | R86: =LOOKUP($R$28,$V$28:$Y$28,V86:Y86) -> 1045000 | S86: =LOOKUP($R$28,$V$28:$Y$28,V86:Y86)*AB86*(IF(ISBLANK(AA86),1,AA86)) -> 1049016.453 | V86: 1045000 | W86: 1045000 | X86: 370000 | Y86: 370000 | AB86: ='Tables (up)'!R65/'Tables (up)'!R64 -> 1.003843496 | AD86: Most Likely | AE86: Most Likely | AF86: Most Likely | AG86: Most Likely | AH86: Most Likely | AJ86: Most Likely | AK86: Most Likely | AL86: Most Likely | AN86: Most Likely | AO86: Most Likely | AS86: 900000 | AT86: =3*10^6*40/50/2 -> 1200000 | AU86: =250000 -> 250000 | AV86: 250000 | AX86: 1045000 | AY86: 1045000 | AZ86: 370000 | BA86: 370000 | BC86: 600000 | BD86: =2000000*40/50/2 -> 800000 | BE86: =250000 -> 250000 | BF86: 250000 | BH86: 695000 | BI86: 695000 | BJ86: 170000 | BK86: 170000 | BN86: =900000+15000*3+100000 -> 1045000 | BO86: =BN86 -> 1045000 | BP86: =250000+15000*3+75000 -> 370000 | BQ86: =250000+15000*3+75000 -> 370000 | BS86: =600000+15000*3+50000 -> 695000 | BT86: =600000+15000*3+50000 -> 695000 | BU86: =100000+15000*3+25000 -> 170000 | BV86: =100000+15000*3+25000 -> 170000 | BX86: 900000 | BY86: 900000 | BZ86: =550000 -> 550000 | CA86: 550000 | CC86: 600000 | CD86: 600000 | CE86: =250000 -> 250000 | CF86: 250000 | CH86: =900000*(1/3) -> 300000 | CI86: =(3*10^6*40/50/2)*1/3 -> 400000 | CJ86: =(250000)*1/3 -> 83333.33333 | CK86: =(250000)*1/3 -> 83333.33333 | CM86: =600000*1/2 -> 300000 | CN86: =2000000*40/50/2*1/2 -> 400000 | CO86: =250000*1/2 -> 125000 | CP86: =250000*1/2 -> 125000 | CR86: =900000/3 -> 300000 | CS86: =3*10^6*10/50/2 -> 300000 | CT86: =250000 -> 250000 | CU86: =250000 -> 250000 | CW86: =600000/3 -> 200000 | CX86: =2000000*10/50/2 -> 200000 | CY86: =250000 -> 250000 | CZ86: 250000 | DB86: 630000 | DC86: 840000 | DD86: 150000 | DE86: 150000 | DG86: 420000 | DH86: 560000 | DI86: 150000 | DJ86: 150000
N87: Exploration - Drilling Costs : | P87: =IF(IN!B45+IN!A4+IN!A53=3,"Stop - No Exploration Wells for Hydrothermal Greenfield Project?"," ") -> 
N88: Number of Sites where Exploration Drilling Occurs | P88: per project | R88: =LOOKUP($R$28,$V$28:$Y$28,V88:Y88) -> 1 | S88: =IF(ISBLANK(AA88),LOOKUP($R$28,$V$28:$Y$28,V88:Y88),AA88) -> 1 | V88: =IF($AV$25="Reference", IF($AV$26="Greenfield", AS88,IF($AV$26="Brownfield", BC88,"FAIL")), IF($AV$25="Improved", IF($AV$26="Greenfield", AX88,IF($AV$26="Brownfield", BH88,"FAIL")))) -> 1 | W88: 1 | X88: 1 | Y88: 1 | AD88: Most Likely | AE88: Most Likely | AF88: Most Likely | AG88: Most Likely | AH88: Most Likely | AJ88: Most Likely | AK88: Most Likely | AL88: Most Likely | AN88: Most Likely | AO88: Most Likely | AS88: 1 | AT88: 1 | AU88: 1 | AV88: 1 | AX88: =INDEX($BN88:$CZ88, 1, $BE$21+AX$28) -> 1 | AY88: 1 | AZ88: 1 | BA88: 1 | BC88: 1 | BD88: 1 | BE88: 1 | BF88: 1 | BH88: =INDEX($BN88:$CZ88, 1, 5+$BE$21+BH$28) -> 1 | BI88: 1 | BJ88: 1 | BK88: 1 | BN88: 1 | BO88: 1 | BP88: 1 | BQ88: 1 | BS88: 1 | BT88: 1 | BU88: 1 | BV88: 1 | BX88: 1 | BY88: 1 | BZ88: 1 | CA88: 1 | CC88: 1 | CD88: 1 | CE88: 1 | CF88: 1 | CH88: 1 | CI88: 1 | CJ88: 1 | CK88: 1 | CM88: 1 | CN88: 1 | CO88: 1 | CP88: 1 | CR88: 1 | CS88: 1 | CT88: 1 | CU88: 1 | CW88: 1 | CX88: 1 | CY88: 1 | CZ88: 1 | DB88: 1 | DC88: 1 | DD88: 1 | DE88: 1 | DG88: 1 | DH88: 1 | DI88: 1 | DJ88: 1
N89: Site Exploration Drilling Cost (includes all temperature gradient, slimhole, corehole wells drilled) | R89: 3591000 | S89: =LOOKUP($R$28,$V$28:$Y$28,V89:Y89)*AB89*(IF(ISBLANK(AA89),1,AA89)) -> 3233825.052 | V89: 3591000 | W89: 3591000 | X89: 3591000 | Y89: 3591000 | AB89: ='Tables (up)'!M65/'Tables (up)'!M64 -> 0.900536077 | AD89: Most Likely | AE89: Most Likely | AF89: Most Likely | AG89: Most Likely | AH89: Most Likely | AJ89: Most Likely | AK89: Most Likely | AL89: Most Likely | AN89: Most Likely | AO89: Most Likely | AS89: 5400000 | AT89: 5400000 | AU89: 5000000 | AV89: 5000000 | AX89: 3591000 | AY89: 3591000 | AZ89: 3591000 | BA89: 3591000 | BC89: 3300000 | BD89: 3300000 | BE89: 1500000 | BF89: 1500000 | BH89: 2194500 | BI89: 2194500 | BJ89: 3790500 | BK89: 3790500 | BN89: =5400000*(1-33.5%) -> 3591000 | BO89: =5400000*(1-33.5%) -> 3591000 | BP89: =5400000*(1-33.5%) -> 3591000 | BQ89: 3591000 | BS89: =3300000*(1-33.5%) -> 2194500 | BT89: =3300000*(1-33.5%) -> 2194500 | BU89: =5700000*(1-33.5%) -> 3790500 | BV89: =5700000*(1-33.5%) -> 3790500 | BX89: 5400000 | BY89: 5400000 | BZ89: 5000000 | CA89: 5000000 | CC89: 3300000 | CD89: 3300000 | CE89: 1500000 | CF89: 1500000 | CH89: =5400000*(1/3) -> 1800000 | CI89: =5400000*(1/3) -> 1800000 | CJ89: =5000000*(1/3) -> 1666666.667 | CK89: =(1/3)*5000000 -> 1666666.667 | CM89: =3300000*0.5 -> 1650000 | CN89: =3300000*0.5 -> 1650000 | CO89: =1500000*0.5 -> 750000 | CP89: =1500000*0.5 -> 750000 | CR89: =5400000/3 -> 1800000 | CS89: =CR89 -> 1800000 | CT89: =5000000/2 -> 2500000 | CU89: =5000000/2 -> 2500000 | CW89: =3300000/3 -> 1100000 | CX89: =CW89 -> 1100000 | CY89: 2500000 | CZ89: 2500000 | DB89: 3240000 | DC89: 3240000 | DD89: 3333333.333 | DE89: 3333333.333 | DG89: 1980000 | DH89: 1980000 | DI89: 1000000 | DJ89: 1000000
N90: Number of sites with full-sized wells drilled | R90: =LOOKUP($R$28,$V$28:$Y$28,V90:Y90) -> 1 | S90: =IF(ISBLANK(AA90),LOOKUP($R$28,$V$28:$Y$28,V90:Y90),AA90) -> 1 | V90: 1 | W90: 1 | X90: 1 | Y90: 1 | AD90: Most Likely | AE90: Most Likely | AF90: Most Likely | AG90: Most Likely | AH90: Most Likely | AJ90: Most Likely | AK90: Most Likely | AL90: Most Likely | AN90: Most Likely | AO90: Most Likely | AS90: 1 | AT90: 1 | AU90: 1 | AV90: 1 | AX90: 1 | AY90: 1 | AZ90: 1 | BA90: 1 | BC90: 1 | BD90: 1 | BE90: 1 | BF90: 1 | BH90: 1 | BI90: 1 | BJ90: 1 | BK90: 1 | BN90: 1 | BO90: 1 | BP90: 1 | BQ90: 1 | BS90: 1 | BT90: 1 | BU90: 1 | BV90: 1 | BX90: 1 | BY90: 1 | BZ90: 1 | CA90: 1 | CC90: 1 | CD90: 1 | CE90: 1 | CF90: 1 | CH90: 1 | CI90: 1 | CJ90: 1 | CK90: 1 | CM90: 1 | CN90: 1 | CO90: 1 | CP90: 1 | CR90: 1 | CS90: 1 | CT90: 1 | CU90: 1 | CW90: 1 | CX90: 1 | CY90: 1 | CZ90: 1 | DB90: 1 | DC90: 1 | DD90: 1 | DE90: 1 | DG90: 1 | DH90: 1 | DI90: 1 | DJ90: 1
N91: Number of full-size wells drilled at each unsuccessful site | O91: wells/site | P91: per site | R91: =LOOKUP($R$28,$V$28:$Y$28,V91:Y91) -> 1 | S91: 1 | V91: 1 | W91: 1 | X91: 1 | Y91: 1 | AD91: 2 | AE91: 2 | AF91: 2 | AG91: 2 | AH91: 2 | AJ91: 1.5 | AK91: 1.5 | AL91: 1.5 | AN91: 1.5 | AO91: 1.5 | AS91: 2 | AT91: 2 | AU91: 1 | AV91: 1 | AX91: 1 | AY91: 1 | AZ91: 1 | BA91: 1 | BC91: 0 | BD91: 0 | BE91: 1 | BF91: 1 | BH91: 0 | BI91: 0 | BJ91: 0 | BK91: 0 | BN91: 1 | BO91: 1 | BP91: 1 | BQ91: 1 | BS91: 0 | BT91: 0 | BU91: 0 | BV91: 0 | BX91: 2 | BY91: 2 | BZ91: 1 | CA91: 1 | CC91: 0 | CD91: 0 | CE91: 1 | CF91: 1 | CH91: 0 | CI91: 0 | CJ91: 0 | CK91: 0 | CM91: 0 | CN91: 0 | CO91: 0 | CP91: 0 | CR91: 2 | CS91: 2 | CT91: 1 | CU91: 1 | CW91: 1 | CX91: 1 | CY91: 1 | CZ91: 1 | DB91: 0 | DC91: 0 | DD91: 0 | DE91: 0 | DG91: 0 | DH91: 0 | DI91: 0 | DJ91: 0
N92: Number of full-sized test wells drilled to get successful well | R92: 1.333333333 | S92: 1.333333333 | V92: 1.333333333 | W92: 1.333333333 | X92: 1.333333333 | Y92: 1.333333333 | AS92: 2 | AT92: 2 | AU92: 2 | AV92: 2 | AX92: 1.333333333 | AY92: 1.333333333 | AZ92: 1.333333333 | BA92: 1.333333333 | BC92: 2 | BD92: 2 | BE92: 2 | BF92: 2 | BH92: 1.333333333 | BI92: 1.333333333 | BJ92: 1.333333333 | BK92: 1.333333333 | BN92: =4/3 -> 1.333333333 | BO92: =4/3 -> 1.333333333 | BP92: =4/3 -> 1.333333333 | BQ92: =4/3 -> 1.333333333 | BS92: =4/3 -> 1.333333333 | BT92: =4/3 -> 1.333333333 | BU92: =4/3 -> 1.333333333 | BV92: =4/3 -> 1.333333333 | BX92: 2 | BY92: 2 | BZ92: 2 | CA92: 2 | CC92: 2 | CD92: 2 | CE92: 2 | CF92: 2 | CH92: 1 | CI92: 1 | CJ92: 1 | CK92: 1 | CM92: 1 | CN92: 1 | CO92: 1 | CP92: 1 | CR92: 2 | CS92: 2 | CT92: 2 | CU92: 2 | CW92: 2 | CX92: 2 | CY92: 2 | CZ92: 2 | DB92: 2 | DC92: 2 | DD92: 2 | DE92: 2 | DG92: 2 | DH92: 2 | DI92: 2 | DJ92: 2
N93: Multiplier for Test Well Costs (>= 1) | R93: 1 | S93: 1 | V93: 1 | W93: 1 | X93: 1 | Y93: 1 | AD93: Most Likely | AE93: Most Likely | AF93: Most Likely | AG93: Most Likely | AH93: Most Likely | AJ93: Most Likely | AK93: Most Likely | AL93: Most Likely | AN93: Most Likely | AO93: Most Likely | AS93: 1.2 | AT93: 1.2 | AU93: 1.5 | AV93: 1.5 | AX93: 1 | AY93: 1 | AZ93: 1 | BA93: 1 | BC93: 1.2 | BD93: 1.2 | BE93: 1.5 | BF93: 1.5 | BH93: 1 | BI93: 1 | BJ93: 1 | BK93: 1 | BN93: 1 | BO93: 1 | BP93: 1 | BQ93: 1 | BS93: 1 | BT93: 1 | BU93: 1 | BV93: 1 | BX93: 1.8 | BY93: 1.8 | BZ93: 1.8 | CA93: 1.8 | CC93: 1.8 | CD93: 1.8 | CE93: 1.8 | CF93: 1.8 | CH93: 1.2 | CI93: 1.2 | CJ93: 1.5 | CK93: 1.5 | CM93: 1.2 | CN93: 1.2 | CO93: 1.5 | CP93: 1.5 | CR93: 1.8 | CS93: 1.8 | CT93: 1.8 | CU93: 1.8 | CW93: 1.8 | CX93: 1.8 | CY93: 1.8 | CZ93: 1.8 | DB93: 1.2 | DC93: 1.2 | DD93: 1.2 | DE93: 1.2 | DG93: 1.2 | DH93: 1.2 | DI93: 1.2 | DJ93: 1.2
N94: # successful full sized wells needed | R94: 3 | S94: 3 | V94: 3 | W94: 3 | X94: 3 | Y94: 3 | AS94: 3 | AT94: 3 | AU94: 9 | AV94: 9 | AX94: 3 | AY94: 3 | AZ94: 3 | BA94: 3 | BC94: 2 | BD94: 2 | BE94: 9 | BF94: 9 | BH94: 3 | BI94: 3 | BJ94: 3 | BK94: 3 | BN94: 3 | BO94: 3 | BP94: 3 | BQ94: 3 | BS94: 3 | BT94: 3 | BU94: 3 | BV94: 3 | BX94: 3 | BY94: 3 | BZ94: 3 | CA94: 3 | CC94: 2 | CD94: 2 | CE94: 3 | CF94: 3 | CH94: 3 | CI94: 3 | CJ94: 3 | CK94: 3 | CM94: 2 | CN94: 2 | CO94: 3 | CP94: 3 | CR94: 2 | CS94: 2 | CT94: 3 | CU94: 3 | CW94: 1 | CX94: 1 | CY94: 3 | CZ94: 3 | DB94: 2 | DC94: 2 | DD94: 6 | DE94: 6 | DG94: 1.333333333 | DH94: 1.333333333 | DI94: 6 | DJ94: 6
N95: Number of full-sized wells stimulated | R95: 2 | S95: 2 | V95: 2 | W95: 2 | X95: 2 | Y95: 2 | AS95: 0 | AT95: 0 | AU95: 9 | AV95: 9 | AX95: 2 | AY95: 2 | AZ95: 2 | BA95: 2 | BC95: 0 | BD95: 0 | BE95: 9 | BF95: 9 | BH95: 2 | BI95: 2 | BJ95: 2 | BK95: 2 | BN95: 2 | BO95: 2 | BP95: 2 | BQ95: 2 | BS95: 2 | BT95: 2 | BU95: 2 | BV95: 2 | BX95: 2 | BY95: 2 | BZ95: 3 | CA95: 3 | CC95: 1 | CD95: 1 | CE95: 3 | CF95: 3 | CH95: 0 | CI95: 0 | CJ95: 3 | CK95: 3 | CM95: 0 | CN95: 0 | CO95: 3 | CP95: 3 | CR95: 0 | CS95: 0 | CT95: 3 | CU95: 3 | CW95: 0 | CX95: 0 | CY95: 3 | CZ95: 3 | DB95: 0 | DC95: 0 | DD95: 2 | DE95: 2 | DG95: 0 | DH95: 0 | DI95: 2 | DJ95: 2
N96: Leasing
N97: Leasing Acreage | R97: =LOOKUP($R$28,$V$28:$Y$28,V97:Y97) -> 2600 | S97: =IF(ISBLANK(AA97),LOOKUP($R$28,$V$28:$Y$28,V97:Y97),AA97) -> 2600 | V97: =IF($AV$25="Reference", IF($AV$26="Greenfield", AS97,IF($AV$26="Brownfield", BC97,"FAIL")), IF($AV$25="Improved", IF($AV$26="Greenfield", AX97,IF($AV$26="Brownfield", BH97,"FAIL")))) -> 2600 | W97: 2600 | X97: 2600 | Y97: 2600 | AS97: 2600 | AT97: 2600 | AU97: 2600 | AV97: 2600 | AX97: =INDEX($BN97:$CZ97, 1, $BE$21+AX$28) -> 2600 | AY97: 2600 | AZ97: 2600 | BA97: 2600 | BC97: 2600 | BD97: 2600 | BE97: 2600 | BF97: 2600 | BH97: =INDEX($BN97:$CZ97, 1, 5+$BE$21+BH$28) -> 2600 | BI97: 2600 | BJ97: 2600 | BK97: 2600 | BN97: 2600 | BO97: 2600 | BP97: 2600 | BQ97: 2600 | BS97: 2600 | BT97: 2600 | BU97: 2600 | BV97: 2600 | BX97: 2600 | BY97: 2600 | BZ97: 2600 | CA97: 2600 | CC97: 2600 | CD97: 2600 | CE97: 2600 | CF97: 2600 | CH97: 2600 | CI97: 2600 | CJ97: 2600 | CK97: 2600 | CM97: 2600 | CN97: 2600 | CO97: 2600 | CP97: 2600 | CR97: 2600 | CS97: 2600 | CT97: 2600 | CU97: 2600 | CW97: 2600 | CX97: 2600 | CY97: 2600 | CZ97: 2600 | DB97: 225 | DC97: 225 | DD97: 225 | DE97: 225 | DG97: 225 | DH97: 225 | DI97: 225 | DJ97: 225
N98: Leasing Cost (assume 45 acre per well per location) | P98: $ per acre | R98: =LOOKUP($R$28,$V$28:$Y$28,V98:Y98) -> 35 | S98: =LOOKUP($R$28,$V$28:$Y$28,V98:Y98)*AB98*(IF(ISBLANK(AA98),1,AA98)) -> 35 | V98: 35 | W98: 35 | X98: 35 | Y98: 35 | AB98: 1 | AD98: Most Likely | AE98: Most Likely | AF98: Most Likely | AG98: Most Likely | AH98: Most Likely | AJ98: Most Likely | AK98: Most Likely | AL98: Most Likely | AN98: Most Likely | AO98: Most Likely | AS98: 35 | AT98: 35 | AU98: 35 | AV98: 35 | AX98: 35 | AY98: 35 | AZ98: 35 | BA98: 35 | BC98: 35 | BD98: 35 | BE98: 35 | BF98: 35 | BH98: 35 | BI98: 35 | BJ98: 35 | BK98: 35 | BN98: 35 | BO98: 35 | BP98: 35 | BQ98: 35 | BS98: 35 | BT98: 35 | BU98: 35 | BV98: 35 | BX98: 35 | BY98: 35 | BZ98: 35 | CA98: 35 | CC98: 35 | CD98: 35 | CE98: 35 | CF98: 35 | CH98: 35 | CI98: 35 | CJ98: 35 | CK98: 35 | CM98: 35 | CN98: 35 | CO98: 35 | CP98: 35 | CR98: 35 | CS98: 35 | CT98: 35 | CU98: 35 | CW98: 35 | CX98: 35 | CY98: 35 | CZ98: 35 | DB98: 30 | DC98: 30 | DD98: 30 | DE98: 30 | DG98: 30 | DH98: 30 | DI98: 30 | DJ98: 30
N99: Additional Costs Incurred not Associated with Drilling Exploration Wells | P99: per site | R99: =LOOKUP($R$28,$V$28:$Y$28,V99:Y99) -> 0.036 | S99: =IF(ISBLANK(AA99),LOOKUP($R$28,$V$28:$Y$28,V99:Y99),AA99) -> 0.036 | V99: 0.036 | W99: 0.036 | X99: 0.05 | Y99: 0.05 | AS99: 0.036 | AT99: 0.036 | AU99: 0.05 | AV99: 0.05 | AX99: 0.036 | AY99: 0.036 | AZ99: 0.05 | BA99: 0.05 | BC99: 0.036 | BD99: 0.036 | BE99: 0.05 | BF99: 0.05 | BH99: 0.036 | BI99: 0.036 | BJ99: 0.05 | BK99: 0.05 | BN99: 0.036 | BO99: 0.036 | BP99: 0.05 | BQ99: 0.05 | BS99: 0.036 | BT99: 0.036 | BU99: 0.05 | BV99: 0.05 | BX99: 0.036 | BY99: 0.036 | BZ99: 0.05 | CA99: 0.05 | CC99: 0.036 | CD99: 0.036 | CE99: 0.05 | CF99: 0.05 | CH99: 0.036 | CI99: 0.036 | CJ99: 0.05 | CK99: 0.05 | CM99: 0.036 | CN99: 0.036 | CO99: 0.05 | CP99: 0.05 | CR99: 0.036 | CS99: 0.036 | CT99: 0.05 | CU99: 0.05 | CW99: 0.036 | CX99: 0.036 | CY99: 0.05 | CZ99: 0.05 | DB99: 0.05 | DC99: 0.05 | DD99: 0.05 | DE99: 0.05 | DG99: 0.05 | DH99: 0.05 | DI99: 0.05 | DJ99: 0.05
N100: Potential Resource found by Exploration & Confirmation activities | P100: MW | R100: =LOOKUP($R$28,$V$28:$Y$28,V100:Y100) -> 120 | S100: =IF(ISBLANK(AA100),LOOKUP($R$28,$V$28:$Y$28,V100:Y100),AA100) -> 120 | V100: 90 | W100: 120 | X100: 100 | Y100: 120 | AD100: 300 | AE100: 300 | AF100: 300 | AG100: 300 | AH100: 300 | AJ100: 300 | AK100: 300 | AL100: 300 | AN100: 300 | AO100: 300 | AS100: =3*AS209 -> 90 | AT100: =3*AT209 -> 120 | AU100: =4*AU209 -> 100 | AV100: =4*AV209 -> 120 | AX100: 90 | AY100: 120 | AZ100: 100 | BA100: 120 | BC100: =3*BC209 -> 90 | BD100: =3*BD209 -> 120 | BE100: =4*BE209 -> 100 | BF100: =4*BF209 -> 120 | BH100: 90 | BI100: 120 | BJ100: 100 | BK100: 120 | BN100: =3*BN209 -> 90 | BO100: =3*BO209 -> 120 | BP100: =4*BP209 -> 100 | BQ100: =4*BQ209 -> 120 | BS100: =3*BS209 -> 90 | BT100: =3*BT209 -> 120 | BU100: =4*BU209 -> 100 | BV100: =4*BV209 -> 120 | BX100: =3*BX209 -> 90 | BY100: =3*BY209 -> 120 | BZ100: =4*BZ209 -> 100 | CA100: =4*CA209 -> 120 | CC100: =3*CC209 -> 90 | CD100: =3*CD209 -> 120 | CE100: =4*CE209 -> 100 | CF100: =4*CF209 -> 120 | CH100: =3*CH209 -> 90 | CI100: =3*CI209 -> 120 | CJ100: =4*CJ209 -> 100 | CK100: =4*CK209 -> 120 | CM100: =3*CM209 -> 90 | CN100: =3*CN209 -> 120 | CO100: =4*CO209 -> 100 | CP100: =4*CP209 -> 120 | CR100: =3*CR209 -> 30 | CS100: =3*CS209 -> 39 | CT100: =4*CT209 -> 32 | CU100: =4*CU209 -> 40 | CW100: =3*CW209 -> 30 | CX100: =3*CX209 -> 39 | CY100: =4*CY209 -> 32 | CZ100: =4*CZ209 -> 40 | DB100: 150 | DC100: 150 | DD100: 200 | DE100: 240 | DG100: 150 | DH100: 150 | DI100: 200 | DJ100: 240
N101: Are Exploration costs to be proportioned based on Potential Resource? | R101: =LOOKUP($R$28,$V$28:$Y$28,V101:Y101) -> No | S101: =IF(ISBLANK(AA101),LOOKUP($R$28,$V$28:$Y$28,V101:Y101),AA101) -> No | V101: No | W101: No | X101: No | Y101: No | AD101: No | AE101: No | AF101: No | AG101: No | AH101: No | AJ101: No | AK101: No | AL101: No | AN101: No | AO101: No | AS101: No | AT101: No | AU101: No | AV101: No | AX101: No | AY101: No | AZ101: No | BA101: No | BC101: No | BD101: No | BE101: No | BF101: No | BH101: No | BI101: No | BJ101: No | BK101: No | BN101: No | BO101: No | BP101: No | BQ101: No | BS101: No | BT101: No | BU101: No | BV101: No | BX101: No | BY101: No | BZ101: No | CA101: No | CC101: No | CD101: No | CE101: No | CF101: No | CH101: No | CI101: No | CJ101: No | CK101: No | CM101: No | CN101: No | CO101: No | CP101: No | CR101: No | CS101: No | CT101: No | CU101: No | CW101: No | CX101: No | CY101: No | CZ101: No | DB101: No | DC101: No | DD101: No | DE101: No | DG101: No | DH101: No | DI101: No | DJ101: No
N103: DRILLING
N104: Well Field Details
N105: Drilling Success Rate during well field development | R105: =LOOKUP($R$28,$V$28:$Y$28,V105:Y105) -> 0.9 | S105: =IF(ISBLANK(AA105),LOOKUP($R$28,$V$28:$Y$28,V105:Y105),AA105) -> 0.9 | V105: =IF($AV$25="Reference", IF($AV$26="Greenfield", AS105,IF($AV$26="Brownfield", BC105,"FAIL")), IF($AV$25="Improved", IF($AV$26="Greenfield", AX105,IF($AV$26="Brownfield", BH105,"FAIL")))) -> 0.9 | W105: 0.9 | X105: 0.9 | Y105: 0.9 | AD105: Most Likely | AE105: Most Likely | AF105: Most Likely | AG105: Most Likely | AH105: Most Likely | AJ105: Most Likely | AK105: Most Likely | AL105: Most Likely | AN105: Most Likely | AO105: Most Likely | AS105: 0.76 | AT105: 0.76 | AU105: 0.76 | AV105: 0.76 | AX105: =INDEX($BN105:$CZ105, 1, $BE$21+AX$28) -> 0.9 | AY105: =INDEX($BN105:$CZ105, 1, $BE$21+AY$28) -> 0.9 | AZ105: 0.9 | BA105: 0.9 | BC105: 0.76 | BD105: 0.76 | BE105: 0.76 | BF105: 0.76 | BH105: =INDEX($BN105:$CZ105, 1, 5+$BE$21+BH$28) -> 0.9 | BI105: 0.9 | BJ105: 0.9 | BK105: 0.9 | BN105: 0.9 | BO105: 0.9 | BP105: 0.9 | BQ105: 0.9 | BS105: 0.9 | BT105: 0.9 | BU105: 0.9 | BV105: 0.9 | BX105: 0.76 | BY105: 0.76 | BZ105: 0.76 | CA105: 0.76 | CC105: 0.76 | CD105: 0.76 | CE105: 0.76 | CF105: 0.76 | CH105: 0.76 | CI105: 0.76 | CJ105: 0.76 | CK105: 0.76 | CM105: 0.76 | CN105: 0.76 | CO105: 0.76 | CP105: 0.76 | CR105: 0.76 | CS105: 0.76 | CT105: 0.76 | CU105: 0.76 | CW105: 0.76 | CX105: 0.76 | CY105: 0.76 | CZ105: 0.76 | DB105: 0.8075 | DC105: 0.8075 | DD105: 1 | DE105: 1 | DG105: 0.8075 | DH105: 0.8075 | DI105: 1 | DJ105: 1
N106: Will new wells be required for fluid disposal (injection)? | R106: Yes | S106: Yes | V106: Yes | W106: Yes | X106: Yes | Y106: Yes | AS106: Yes | AT106: Yes | AU106: Yes | AV106: Yes | AX106: =INDEX($BN106:$CZ106, 1, $BE$21+AX$28) -> Yes | AY106: Yes | AZ106: Yes | BA106: Yes | BC106: Yes | BD106: Yes | BE106: Yes | BF106: Yes | BH106: Yes | BI106: Yes | BJ106: Yes | BK106: Yes | BN106: Yes | BO106: Yes | BP106: Yes | BQ106: Yes | BS106: Yes | BT106: Yes | BU106: Yes | BV106: Yes | BX106: Yes | BY106: Yes | BZ106: Yes | CA106: Yes | CC106: Yes | CD106: Yes | CE106: Yes | CF106: Yes | CH106: Yes | CI106: Yes | CJ106: Yes | CK106: Yes | CM106: Yes | CN106: Yes | CO106: Yes | CP106: Yes | CR106: Yes | CS106: Yes | CT106: Yes | CU106: Yes | CW106: Yes | CX106: Yes | CY106: Yes | CZ106: Yes | DB106: Yes | DC106: Yes | DD106: Yes | DE106: Yes | DG106: Yes | DH106: Yes | DI106: Yes | DJ106: Yes
N107: Are unsuccessful wells to be used to supplement injection? | R107: Yes | S107: Yes | V107: Yes | W107: Yes | X107: No | Y107: No | AS107: Yes | AT107: Yes | AU107: No | AV107: No | AX107: Yes | AY107: Yes | AZ107: No | BA107: No | BC107: Yes | BD107: Yes | BE107: No | BF107: No | BH107: Yes | BI107: Yes | BJ107: No | BK107: No | BN107: Yes | BO107: Yes | BP107: No | BQ107: No | BS107: Yes | BT107: Yes | BU107: No | BV107: No | BX107: Yes | BY107: Yes | BZ107: No | CA107: No | CC107: Yes | CD107: Yes | CE107: No | CF107: No | CH107: Yes | CI107: Yes | CJ107: No | CK107: No | CM107: Yes | CN107: Yes | CO107: No | CP107: No | CR107: Yes | CS107: Yes | CT107: No | CU107: No | CW107: Yes | CX107: Yes | CY107: No | CZ107: No | DB107: Yes | DC107: Yes | DD107: No | DE107: No | DG107: Yes | DH107: Yes | DI107: No | DJ107: No
N108: Productivity of unsuccessful wells relative to successful wells | R108: 0.3 | S108: 0.3 | V108: 0.3 | W108: 0.3 | X108: 0 | Y108: 0 | AS108: 0.3 | AT108: 0.3 | AU108: 0 | AV108: 0 | AX108: 0.3 | AY108: 0.3 | AZ108: 0 | BA108: 0 | BC108: 0.3 | BD108: 0.3 | BE108: 0 | BF108: 0 | BH108: 0.3 | BI108: 0.3 | BJ108: 0 | BK108: 0 | BN108: 0.3 | BO108: 0.3 | BP108: 0 | BQ108: 0 | BS108: 0.3 | BT108: 0.3 | BU108: 0 | BV108: 0 | BX108: 0.3 | BY108: 0.3 | BZ108: 0 | CA108: 0 | CC108: 0.3 | CD108: 0.3 | CE108: 0 | CF108: 0 | CH108: 0.3 | CI108: 0.3 | CJ108: 0 | CK108: 0 | CM108: 0.3 | CN108: 0.3 | CO108: 0 | CP108: 0 | CR108: 0.3 | CS108: 0.3 | CT108: 0 | CU108: 0 | CW108: 0.3 | CX108: 0.3 | CY108: 0 | CZ108: 0 | DB108: 0.3 | DC108: 0.3 | DD108: 0 | DE108: 0 | DG108: 0.3 | DH108: 0.3 | DI108: 0 | DJ108: 0
N109: Production to Injection Well Flow Ratio | R109: 0.75 | S109: 0.75 | V109: 0.75 | W109: 0.75 | X109: 0.5 | Y109: 0.5 | AS109: 0.75 | AT109: 0.75 | AU109: 0.5 | AV109: 0.5 | AX109: 0.75 | AY109: 0.75 | AZ109: 0.5 | BA109: 0.5 | BC109: 0.75 | BD109: 0.75 | BE109: 0.5 | BF109: 0.5 | BH109: 0.75 | BI109: 0.75 | BJ109: 0.5 | BK109: 0.5 | BN109: 0.75 | BO109: 0.75 | BP109: 0.5 | BQ109: 0.5 | BS109: 0.75 | BT109: 0.75 | BU109: 0.5 | BV109: 0.5 | BX109: 0.75 | BY109: 0.75 | BZ109: 0.5 | CA109: 0.5 | CC109: 0.75 | CD109: 0.75 | CE109: 0.5 | CF109: 0.5 | CH109: 0.75 | CI109: 0.75 | CJ109: 0.5 | CK109: 0.5 | CM109: 0.75 | CN109: 0.75 | CO109: 0.5 | CP109: 0.5 | CR109: 0.75 | CS109: 0.75 | CT109: 0.5 | CU109: 0.5 | CW109: 0.75 | CX109: 0.75 | CY109: 0.5 | CZ109: 0.5 | DB109: 0.75 | DC109: 0.75 | DD109: 0.5 | DE109: 0.5 | DG109: 0.75 | DH109: 0.75 | DI109: 0.5 | DJ109: 0.5
N110: Number of Spare Production Wells | R110: 0 | S110: 0 | V110: 0 | W110: 0 | X110: 0 | Y110: 0 | AD110: 0 | AE110: 0 | AF110: 0 | AG110: 0 | AH110: 0 | AJ110: 0 | AK110: 0 | AL110: 0 | AN110: 0 | AO110: 0 | AS110: 0 | AT110: 0 | AU110: 0 | AV110: 0 | AX110: 0 | AY110: 0 | AZ110: 0 | BA110: 0 | BC110: 0 | BD110: 0 | BE110: 0 | BF110: 0 | BH110: 0 | BI110: 0 | BJ110: 0 | BK110: 0 | BN110: 0 | BO110: 0 | BP110: 0 | BQ110: 0 | BS110: 0 | BT110: 0 | BU110: 0 | BV110: 0 | BX110: 0 | BY110: 0 | BZ110: 0 | CA110: 0 | CC110: 0 | CD110: 0 | CE110: 0 | CF110: 0 | CH110: 0 | CI110: 0 | CJ110: 0 | CK110: 0 | CM110: 0 | CN110: 0 | CO110: 0 | CP110: 0 | CR110: 0 | CS110: 0 | CT110: 0 | CU110: 0 | CW110: 0 | CX110: 0 | CY110: 0 | CZ110: 0 | DB110: 0 | DC110: 0 | DD110: 0 | DE110: 0 | DG110: 0 | DH110: 0 | DI110: 0 | DJ110: 0
N111: Ratio Injection Well to Production Well Depth | R111: =LOOKUP($R$28,$V$28:$Y$28,V111:Y111) -> 1 | S111: 1 | V111: 1 | W111: 1 | X111: 1 | Y111: 1 | AD111: 1 | AE111: 1 | AF111: 1 | AG111: 1 | AH111: 1 | AJ111: 1 | AK111: 1 | AL111: 1 | AN111: 1 | AO111: 1 | AS111: 1 | AT111: 1 | AU111: 1 | AV111: 1 | AX111: 1 | AY111: 1 | AZ111: 1 | BA111: 1 | BC111: 1 | BD111: 1 | BE111: 1 | BF111: 1 | BH111: 1 | BI111: 1 | BJ111: 1 | BK111: 1 | BN111: 1 | BO111: 1 | BP111: 1 | BQ111: 1 | BS111: 1 | BT111: 1 | BU111: 1 | BV111: 1 | BX111: 1 | BY111: 1 | BZ111: 1 | CA111: 1 | CC111: 1 | CD111: 1 | CE111: 1 | CF111: 1 | CH111: 1 | CI111: 1 | CJ111: 1 | CK111: 1 | CM111: 1 | CN111: 1 | CO111: 1 | CP111: 1 | CR111: 1 | CS111: 1 | CT111: 1 | CU111: 1 | CW111: 1 | CX111: 1 | CY111: 1 | CZ111: 1 | DB111: 1 | DC111: 1 | DD111: 1 | DE111: 1 | DG111: 1 | DH111: 1 | DI111: 1 | DJ111: 1
N112: Production capacity needed to obtain PPA | R112: =LOOKUP($R$28,$V$28:$Y$28,V112:Y112) -> 0.6 | S112: 0.6 | V112: 0.6 | W112: 0.6 | X112: 0.6 | Y112: 0.6 | AS112: 0.6 | AT112: 0.6 | AU112: 0.6 | AV112: 0.6 | AX112: 0.6 | AY112: 0.6 | AZ112: 0.6 | BA112: 0.6 | BC112: 0.6 | BD112: 0.6 | BE112: 0.6 | BF112: 0.6 | BH112: 0.6 | BI112: 0.6 | BJ112: 0.6 | BK112: 0.6 | BN112: 0.6 | BO112: 0.6 | BP112: 0.6 | BQ112: 0.6 | BS112: 0.6 | BT112: 0.6 | BU112: 0.6 | BV112: 0.6 | BX112: 0.6 | BY112: 0.6 | BZ112: 0.6 | CA112: 0.6 | CC112: 0.6 | CD112: 0.6 | CE112: 0.6 | CF112: 0.6 | CH112: 0.6 | CI112: 0.6 | CJ112: 0.6 | CK112: 0.6 | CM112: 0.6 | CN112: 0.6 | CO112: 0.6 | CP112: 0.6 | CR112: 0.6 | CS112: 0.6 | CT112: 0.6 | CU112: 0.6 | CW112: 0.6 | CX112: 0.6 | CY112: 0.6 | CZ112: 0.6 | DB112: 0.6 | DC112: 0.6 | DD112: 0.6 | DE112: 0.6 | DG112: 0.6 | DH112: 0.6 | DI112: 0.6 | DJ112: 0.6
N114: Production Well size | R114: =LOOKUP($R$28,$V$28:$Y$28,V114:Y114) -> Smaller Diameter | S114: =IF(ISBLANK(AA114),LOOKUP($R$28,$V$28:$Y$28,V114:Y114),AA114) -> Smaller Diameter | V114: =IF($AV$25="Reference", IF($AV$26="Greenfield", AS114,IF($AV$26="Brownfield", BC114,"FAIL")), IF($AV$25="Improved", IF($AV$26="Greenfield", AX114,IF($AV$26="Brownfield", BH114,"FAIL")))) -> Larger Diameter | W114: =IF($AV$25="Reference", IF($AV$26="Greenfield", AT114,IF($AV$26="Brownfield", BD114,"FAIL")), IF($AV$25="Improved", IF($AV$26="Greenfield", AY114,IF($AV$26="Brownfield", BI114,"FAIL")))) -> Smaller Diameter | X114: =IF($AV$25="Reference", IF($AV$26="Greenfield", AU114,IF($AV$26="Brownfield", BE114,"FAIL")), IF($AV$25="Improved", IF($AV$26="Greenfield", AZ114,IF($AV$26="Brownfield", BJ114,"FAIL")))) -> Larger Diameter | Y114: =IF($AV$25="Reference", IF($AV$26="Greenfield", AV114,IF($AV$26="Brownfield", BF114,"FAIL")), IF($AV$25="Improved", IF($AV$26="Greenfield", BA114,IF($AV$26="Brownfield", BK114,"FAIL")))) -> Smaller Diameter | AD114: Larger Diameter | AE114: Larger Diameter | AF114: Larger Diameter | AG114: Larger Diameter | AH114: Larger Diameter | AJ114: Larger Diameter | AK114: Larger Diameter | AL114: Larger Diameter | AN114: Smaller Diameter | AO114: Smaller Diameter | AS114: Larger Diameter | AT114: Smaller Diameter | AU114: Larger Diameter | AV114: Smaller Diameter | AX114: =INDEX($BN114:$CZ114, 1, $BE$21+AX$28) -> Larger Diameter | AY114: =INDEX($BN114:$CZ114, 1, $BE$21+AY$28) -> Smaller Diameter | AZ114: Larger Diameter | BA114: Smaller Diameter | BC114: Larger Diameter | BD114: Smaller Diameter | BE114: Larger Diameter | BF114: Smaller Diameter | BH114: =INDEX($BN114:$CZ114, 1, 5+$BE$21+BH$28) -> Larger Diameter | BI114: =INDEX($BN114:$CZ114, 1, 5+$BE$21+BI$28) -> Smaller Diameter | BJ114: =INDEX($BN114:$CZ114, 1, 5+$BE$21+BJ$28) -> Larger Diameter | BK114: =INDEX($BN114:$CZ114, 1, 5+$BE$21+BK$28) -> Smaller Diameter | BN114: Larger Diameter | BO114: Smaller Diameter | BP114: Larger Diameter | BQ114: Smaller Diameter | BS114: Larger Diameter | BT114: Smaller Diameter | BU114: Larger Diameter | BV114: Smaller Diameter | BX114: Larger Diameter | BY114: Smaller Diameter | BZ114: Larger Diameter | CA114: Smaller Diameter | CC114: Larger Diameter | CD114: Smaller Diameter | CE114: Larger Diameter | CF114: Smaller Diameter | CH114: Larger Diameter | CI114: Smaller Diameter | CJ114: Larger Diameter | CK114: Smaller Diameter | CM114: Larger Diameter | CN114: Smaller Diameter | CO114: Larger Diameter | CP114: Smaller Diameter | CR114: Larger Diameter | CS114: Smaller Diameter | CT114: Larger Diameter | CU114: Smaller Diameter | CW114: Larger Diameter | CX114: Smaller Diameter | CY114: Larger Diameter | CZ114: Smaller Diameter | DB114: Larger Diameter | DC114: Smaller Diameter | DD114: Larger Diameter | DE114: Smaller Diameter | DG114: Larger Diameter | DH114: Smaller Diameter | DI114: Larger Diameter | DJ114: Smaller Diameter
N115: Injection Well Size
N116: Is production/injection interval open hole or cased (slotted/perforated)? | R116: =LOOKUP($R$28,$V$28:$Y$28,V116:Y116) -> Open Hole | S116: =IF(ISBLANK(AA116),LOOKUP($R$28,$V$28:$Y$28,V116:Y116),AA116) -> Open Hole | V116: =IF($AV$25="Reference", IF($AV$26="Greenfield", AS116,IF($AV$26="Brownfield", BC116,"FAIL")), IF($AV$25="Improved", IF($AV$26="Greenfield", AX116,IF($AV$26="Brownfield", BH116,"FAIL")))) -> Open Hole | W116: =IF($AV$25="Reference", IF($AV$26="Greenfield", AT116,IF($AV$26="Brownfield", BD116,"FAIL")), IF($AV$25="Improved", IF($AV$26="Greenfield", AY116,IF($AV$26="Brownfield", BI116,"FAIL")))) -> Open Hole | X116: =IF($AV$25="Reference", IF($AV$26="Greenfield", AU116,IF($AV$26="Brownfield", BE116,"FAIL")), IF($AV$25="Improved", IF($AV$26="Greenfield", AZ116,IF($AV$26="Brownfield", BJ116,"FAIL")))) -> Perforated / Slotted Liner | Y116: =IF($AV$25="Reference", IF($AV$26="Greenfield", AV116,IF($AV$26="Brownfield", BF116,"FAIL")), IF($AV$25="Improved", IF($AV$26="Greenfield", BA116,IF($AV$26="Brownfield", BK116,"FAIL")))) -> Perforated / Slotted Liner | AD116: Open Hole | AE116: Open Hole | AF116: Open Hole | AG116: Open Hole | AH116: Open Hole | AJ116: Perforated / Slotted Liner | AK116: Perforated / Slotted Liner | AL116: Perforated / Slotted Liner | AN116: Perforated / Slotted Liner | AO116: Perforated / Slotted Liner | AS116: Open Hole | AT116: Open Hole | AU116: Perforated / Slotted Liner | AV116: Perforated / Slotted Liner | AX116: =INDEX($BN116:$CZ116, 1, $BE$21+AX$28) -> Open Hole | AY116: =INDEX($BN116:$CZ116, 1, $BE$21+AY$28) -> Open Hole | AZ116: Perforated / Slotted Liner | BA116: Perforated / Slotted Liner | BC116: Open Hole | BD116: Open Hole | BE116: Perforated / Slotted Liner | BF116: Perforated / Slotted Liner | BH116: =INDEX($BN116:$CZ116, 1, 5+$BE$21+BH$28) -> Open Hole | BI116: =INDEX($BN116:$CZ116, 1, 5+$BE$21+BI$28) -> Open Hole | BJ116: =INDEX($BN116:$CZ116, 1, 5+$BE$21+BJ$28) -> Perforated / Slotted Liner | BK116: =INDEX($BN116:$CZ116, 1, 5+$BE$21+BK$28) -> Perforated / Slotted Liner | BN116: Open Hole | BO116: Open Hole | BP116: Perforated / Slotted Liner | BQ116: Perforated / Slotted Liner | BS116: Open Hole | BT116: Open Hole | BU116: Perforated / Slotted Liner | BV116: Perforated / Slotted Liner | BX116: Open Hole | BY116: Open Hole | BZ116: Perforated / Slotted Liner | CA116: Perforated / Slotted Liner | CC116: Open Hole | CD116: Open Hole | CE116: Perforated / Slotted Liner | CF116: Perforated / Slotted Liner | CH116: Open Hole | CI116: Open Hole | CJ116: Perforated / Slotted Liner | CK116: Perforated / Slotted Liner | CM116: Open Hole | CN116: Open Hole | CO116: Perforated / Slotted Liner | CP116: Perforated / Slotted Liner | CR116: Open Hole | CS116: Open Hole | CT116: Perforated / Slotted Liner | CU116: Perforated / Slotted Liner | CW116: Open Hole | CX116: Open Hole | CY116: Perforated / Slotted Liner | CZ116: Perforated / Slotted Liner | DB116: Open Hole | DC116: Open Hole | DD116: Perforated / Slotted Liner | DE116: Perforated / Slotted Liner | DG116: Open Hole | DH116: Open Hole | DI116: Perforated / Slotted Liner | DJ116: Perforated / Slotted Liner
N118: Well Drilling Costs :
N119: How are costs for drilling wells determined ? | R119: Cost Curves | S119: =U284 -> 2850868.115
N120: Drilling Cost Multiplier | S120: =IF(ISBLANK(AA120),LOOKUP($R$28,$V$28:$Y$28,V120:Y120),AA120) -> 1 | V120: =IF($AV$25="Reference", IF($AV$26="Greenfield", AS120,IF($AV$26="Brownfield", BC120,"FAIL")), IF($AV$25="Improved", IF($AV$26="Greenfield", AX120,IF($AV$26="Brownfield", BH120,"FAIL")))) -> 1 | W120: =IF($AV$25="Reference", IF($AV$26="Greenfield", AT120,IF($AV$26="Brownfield", BD120,"FAIL")), IF($AV$25="Improved", IF($AV$26="Greenfield", AY120,IF($AV$26="Brownfield", BI120,"FAIL")))) -> 1 | X120: =IF($AV$25="Reference", IF($AV$26="Greenfield", AU120,IF($AV$26="Brownfield", BE120,"FAIL")), IF($AV$25="Improved", IF($AV$26="Greenfield", AZ120,IF($AV$26="Brownfield", BJ120,"FAIL")))) -> 1 | Y120: =IF($AV$25="Reference", IF($AV$26="Greenfield", AV120,IF($AV$26="Brownfield", BF120,"FAIL")), IF($AV$25="Improved", IF($AV$26="Greenfield", BA120,IF($AV$26="Brownfield", BK120,"FAIL")))) -> 1 | AS120: 1 | AT120: 1 | AU120: 1 | AV120: 1 | AX120: =INDEX($BN120:$CZ120, 1, $BE$21+AX$28) -> 1 | AY120: =INDEX($BN120:$CZ120, 1, $BE$21+AY$28) -> 1 | AZ120: 1 | BA120: 1 | BC120: 1 | BD120: 1 | BE120: 1 | BF120: 1 | BH120: =INDEX($BN120:$CZ120, 1, 5+$BE$21+BH$28) -> 1 | BI120: =INDEX($BN120:$CZ120, 1, 5+$BE$21+BI$28) -> 1 | BJ120: =INDEX($BN120:$CZ120, 1, 5+$BE$21+BJ$28) -> 1 | BK120: =INDEX($BN120:$CZ120, 1, 5+$BE$21+BK$28) -> 1 | BN120: 1 | BO120: 1 | BP120: 1 | BQ120: 1 | BS120: 1 | BT120: 1 | BU120: 1 | BV120: 1 | BX120: 1 | BY120: 1 | BZ120: 1 | CA120: 1 | CC120: 1 | CD120: 1 | CE120: 1 | CF120: 1 | CH120: 1 | CI120: 1 | CJ120: 1 | CK120: 1 | CM120: 1 | CN120: 1 | CO120: 1 | CP120: 1 | CR120: 1 | CS120: 1 | CT120: 1 | CU120: 1 | CW120: 1 | CX120: 1 | CY120: 1 | CZ120: 1 | DB120: 0.6 | DC120: 0.6 | DD120: 0.5 | DE120: 0.5 | DG120: 0.6 | DH120: 0.6 | DI120: 0.5 | DJ120: 0.5
N121: Well Stimulation
N122: =IF(AND(IN!A4=0,IN!A93=1),"A hydrothermal Scenario is being evaluated - are wells stimulated?",IF(AND(IN!A4=1,IN!A93=0),"STOP - Must Enter Stimulation Cost for EGS Resource","Are wells stimulated ?")) -> A hydrothermal Scenario is being evaluated - are wells stimulated? | R122: =LOOKUP($R$28,$V$28:$Y$28,V122:Y122) -> Yes | S122: =IF(ISBLANK(AA122),LOOKUP($R$28,$V$28:$Y$28,V122:Y122),AA122) -> Yes | V122: =IF($AV$25="Reference", IF($AV$26="Greenfield", AS122,IF($AV$26="Brownfield", BC122,"FAIL")), IF($AV$25="Improved", IF($AV$26="Greenfield", AX122,IF($AV$26="Brownfield", BH122,"FAIL")))) -> Yes | W122: Yes | X122: Yes | Y122: Yes | AD122: No | AE122: No | AF122: No | AG122: No | AH122: No | AJ122: Yes | AK122: Yes | AL122: Yes | AN122: Yes | AO122: Yes | AS122: No | AT122: No | AU122: Yes | AV122: Yes | AX122: =INDEX($BN122:$CZ122, 1, $BE$21+AX$28) -> Yes | AY122: Yes | AZ122: Yes | BA122: Yes | BC122: No | BD122: No | BE122: Yes | BF122: Yes | BH122: =INDEX($BN122:$CZ122, 1, 5+$BE$21+BH$28) -> Yes | BI122: Yes | BJ122: Yes | BK122: Yes | BN122: Yes | BO122: Yes | BP122: Yes | BQ122: Yes | BS122: Yes | BT122: Yes | BU122: Yes | BV122: Yes | BX122: Yes | BY122: Yes | BZ122: Yes | CA122: Yes | CC122: Yes | CD122: Yes | CE122: Yes | CF122: Yes | CH122: No | CI122: No | CJ122: Yes | CK122: Yes | CM122: No | CN122: No | CO122: Yes | CP122: Yes | CR122: No | CS122: No | CT122: Yes | CU122: Yes | CW122: No | CX122: No | CY122: Yes | CZ122: Yes | DB122: No | DC122: No | DD122: Yes | DE122: Yes | DG122: No | DH122: No | DI122: Yes | DJ122: Yes
N123: Wells to be stimulated | R123: =LOOKUP($R$28,$V$28:$Y$28,V123:Y123) -> Both | S123: =IF(ISBLANK(AA123),LOOKUP($R$28,$V$28:$Y$28,V123:Y123),AA123) -> Both | V123: Both | W123: Both | X123: Injection | Y123: Injection | AU123: Injection | AV123: Injection | AX123: Both | AY123: Both | AZ123: Injection | BA123: Injection | BE123: Injection | BF123: Injection | BH123: Both | BI123: Both | BJ123: Injection | BK123: Injection | BN123: Both | BO123: Both | BP123: Injection | BQ123: Injection | BS123: Both | BT123: Both | BU123: Injection | BV123: Injection | BX123: Production | BY123: Production | BZ123: Injection | CA123: Injection | CC123: Production | CD123: Production | CE123: Injection | CF123: Injection | CJ123: Injection | CK123: Injection | CO123: Injection | CP123: Injection | CT123: Injection | CU123: Injection | CY123: Injection | CZ123: Injection | DB123: 0 | DC123: 0 | DD123: Injection | DE123: Injection | DI123: Injection | DJ123: Injection
N124: Input Fixed Stimulation Cost per well | P124: $ / well | R124: =LOOKUP($R$28,$V$28:$Y$28,V124:Y124) -> 1250000 | S124: =LOOKUP($R$28,$V$28:$Y$28,V124:Y124)*AB124*(IF(ISBLANK(AA124),1,AA124)) -> 1117666.889 | T124: x | V124: 1250000 | W124: 1250000 | X124: 1250000 | Y124: 1250000 | AB124: ='Tables (up)'!N65/'Tables (up)'!N64 -> 0.8941335113 | AD124: Most Likely | AE124: Most Likely | AF124: Most Likely | AG124: Most Likely | AH124: Most Likely | AJ124: Most Likely | AK124: Most Likely | AL124: Most Likely | AN124: Most Likely | AO124: Most Likely | AS124: 0 | AT124: 0 | AU124: 1250000 | AV124: 1250000 | AX124: 1250000 | AY124: 1250000 | AZ124: 1250000 | BA124: 1250000 | BC124: 0 | BD124: 0 | BE124: 1250000 | BF124: 1250000 | BH124: 1250000 | BI124: 1250000 | BJ124: 1250000 | BK124: 1250000 | BN124: 1250000 | BO124: 1250000 | BP124: 1250000 | BQ124: 1250000 | BS124: 1250000 | BT124: 1250000 | BU124: 1250000 | BV124: 1250000 | BX124: 1250000 | BY124: 1250000 | BZ124: 1250000 | CA124: 1250000 | CC124: 1250000 | CD124: 1250000 | CE124: 1250000 | CF124: 1250000 | CH124: 0 | CI124: 0 | CJ124: 1250000 | CK124: 1250000 | CM124: 0 | CN124: 0 | CO124: 1250000 | CP124: 1250000 | CR124: 0 | CS124: 0 | CT124: 1250000 | CU124: 1250000 | CW124: 0 | CX124: 0 | CY124: 1250000 | CZ124: 1250000 | DB124: 0 | DC124: 0 | DD124: 250000 | DE124: 250000 | DG124: 0 | DH124: 0 | DI124: 250000 | DJ124: 250000
N125: Stimulation Success rate | R125: =LOOKUP($R$28,$V$28:$Y$28,V125:Y125) -> 0.9 | S125: =IF(ISBLANK(AA125),LOOKUP($R$28,$V$28:$Y$28,V125:Y125),AA125) -> 0.9 | V125: 0.9 | W125: 0.9 | X125: 0.9 | Y125: 0.9 | AS125: 0 | AT125: 0 | AU125: 0.75 | AV125: 0.75 | AX125: 0.9 | AY125: 0.9 | AZ125: 0.9 | BA125: 0.9 | BC125: 0 | BD125: 0 | BE125: 0.75 | BF125: 0.75 | BH125: 0.9 | BI125: 0.9 | BJ125: 0.9 | BK125: 0.9 | BN125: 0.9 | BO125: 0.9 | BP125: 0.9 | BQ125: 0.9 | BS125: 0.9 | BT125: 0.9 | BU125: 0.9 | BV125: 0.9 | BX125: 0.9 | BY125: 0.9 | BZ125: 0.9 | CA125: 0.9 | CC125: 0.9 | CD125: 0.9 | CE125: 0.9 | CF125: 0.9 | CH125: 0 | CI125: 0 | CJ125: 0.75 | CK125: 0.75 | CM125: 0 | CN125: 0 | CO125: 0.75 | CP125: 0.75 | CR125: 0 | CS125: 0 | CT125: 0.75 | CU125: 0.75 | CW125: 0 | CX125: 0 | CY125: 0.75 | CZ125: 0.75 | DB125: 0 | DC125: 0 | DD125: 1 | DE125: 1 | DG125: 0 | DH125: 0 | DI125: 1 | DJ125: 1
N126: Other Costs
N127: Well Testing Cost at each site | P127: $/site | R127: =LOOKUP($R$28,$V$28:$Y$28,V127:Y127) -> 150000 | S127: =LOOKUP($R$28,$V$28:$Y$28,V127:Y127)*AB127*(IF(ISBLANK(AA127),1,AA127)) -> 162591.2352 | T127: x | V127: =IF($AV$25="Reference", IF($AV$26="Greenfield", AS127,IF($AV$26="Brownfield", BC127,"FAIL")), IF($AV$25="Improved", IF($AV$26="Greenfield", AX127,IF($AV$26="Brownfield", BH127,"FAIL")))) -> 150000 | W127: 150000 | X127: 500000 | Y127: 500000 | AB127: ='Tables (up)'!E65/'Tables (up)'!E64 -> 1.083941568 | AD127: 150000 | AE127: 150000 | AF127: 150000 | AG127: 150000 | AH127: 150000 | AJ127: 500000 | AK127: 500000 | AL127: 500000 | AN127: 500000 | AO127: 500000 | AS127: 150000 | AT127: 150000 | AU127: 500000 | AV127: 500000 | AX127: =INDEX($BN127:$CZ127, 1, $BE$21+AX$28) -> 150000 | AY127: 150000 | AZ127: 500000 | BA127: 500000 | BC127: 150000 | BD127: 150000 | BE127: 500000 | BF127: 500000 | BH127: =INDEX($BN127:$CZ127, 1, 5+$BE$21+BH$28) -> 150000 | BI127: 150000 | BJ127: 500000 | BK127: 500000 | BN127: 150000 | BO127: 150000 | BP127: 500000 | BQ127: 500000 | BS127: 150000 | BT127: 150000 | BU127: 500000 | BV127: 500000 | BX127: 150000 | BY127: 150000 | BZ127: 500000 | CA127: 500000 | CC127: 150000 | CD127: 150000 | CE127: 500000 | CF127: 500000 | CH127: 150000 | CI127: 150000 | CJ127: 500000 | CK127: 500000 | CM127: 150000 | CN127: 150000 | CO127: 500000 | CP127: 500000 | CR127: 150000 | CS127: 150000 | CT127: 500000 | CU127: 500000 | CW127: 150000 | CX127: 150000 | CY127: 500000 | CZ127: 500000 | DB127: 150000 | DC127: 150000 | DD127: 500000 | DE127: 500000 | DG127: 150000 | DH127: 150000 | DI127: 500000 | DJ127: 500000
N128: How are non-drilling to be determined ? | R128: =LOOKUP($R$28,$V$28:$Y$28,V128:Y128) -> % of Costs | S128: =IF(ISBLANK(AA128),LOOKUP($R$28,$V$28:$Y$28,V128:Y128),AA128) -> % of Costs | V128: % of Costs | W128: % of Costs | X128: % of Costs | Y128: % of Costs | AD128: % Confirmation Drilling Cost | AE128: % Confirmation Drilling Cost | AF128: % Confirmation Drilling Cost | AG128: % Confirmation Drilling Cost | AH128: % Confirmation Drilling Cost | AJ128: % Confirmation Drilling Cost | AK128: % Confirmation Drilling Cost | AL128: % Confirmation Drilling Cost | AN128: % Confirmation Drilling Cost | AO128: % Confirmation Drilling Cost | AS128: % of Costs | AT128: % of Costs | AU128: % of Costs | AV128: % of Costs | AX128: % of Costs | AY128: % of Costs | AZ128: % of Costs | BA128: % of Costs | BC128: % of Costs | BD128: % of Costs | BE128: % of Costs | BF128: % of Costs | BH128: % of Costs | BI128: % of Costs | BJ128: % of Costs | BK128: % of Costs | BN128: % of Costs | BO128: % of Costs | BP128: % of Costs | BQ128: % of Costs | BS128: % of Costs | BT128: % of Costs | BU128: % of Costs | BV128: % of Costs | BX128: % of Costs | BY128: % of Costs | BZ128: % of Costs | CA128: % of Costs | CC128: % of Costs | CD128: % of Costs | CE128: % of Costs | CF128: % of Costs | CH128: % of Costs | CI128: % of Costs | CJ128: % of Costs | CK128: % of Costs | CM128: % of Costs | CN128: % of Costs | CO128: % of Costs | CP128: % of Costs | CR128: % of Costs | CS128: % of Costs | CT128: % of Costs | CU128: % of Costs | CW128: % of Costs | CX128: % of Costs | CY128: % of Costs | CZ128: % of Costs | DB128: % of Costs | DC128: % of Costs | DD128: % of Costs | DE128: % of Costs | DG128: % of Costs | DH128: % of Costs | DI128: % of Costs | DJ128: % of Costs
N129: Lump Sum for Non-Drilling Confirmation Costs (exclusive of stimulation) | R129: =LOOKUP($R$28,$V$28:$Y$28,V129:Y129) -> 2500000 | S129: =LOOKUP($R$28,$V$28:$Y$28,V129:Y129)*AB129*(IF(ISBLANK(AA129),1,AA129)) -> 0 | V129: 2500000 | W129: 2500000 | X129: 2500000 | Y129: 2500000 | AD129: =2500000 -> 2500000 | AE129: =2500000 -> 2500000 | AF129: =2500000 -> 2500000 | AG129: =2500000 -> 2500000 | AH129: =2500000 -> 2500000 | AS129: =2500000 -> 2500000 | AT129: =2500000 -> 2500000 | AU129: =2500000 -> 2500000 | AV129: =2500000 -> 2500000 | AX129: 2500000 | AY129: 2500000 | AZ129: 2500000 | BA129: 2500000 | BC129: =2500000 -> 2500000 | BD129: =2500000 -> 2500000 | BE129: =2500000 -> 2500000 | BF129: =2500000 -> 2500000 | BH129: 2500000 | BI129: 2500000 | BJ129: 2500000 | BK129: 2500000 | BN129: =2500000 -> 2500000 | BO129: =2500000 -> 2500000 | BP129: =2500000 -> 2500000 | BQ129: =2500000 -> 2500000 | BS129: =2500000 -> 2500000 | BT129: =2500000 -> 2500000 | BU129: =2500000 -> 2500000 | BV129: =2500000 -> 2500000 | BX129: =2500000 -> 2500000 | BY129: =2500000 -> 2500000 | BZ129: =2500000 -> 2500000 | CA129: =2500000 -> 2500000 | CC129: =2500000 -> 2500000 | CD129: =2500000 -> 2500000 | CE129: =2500000 -> 2500000 | CF129: =2500000 -> 2500000 | CH129: =2500000 -> 2500000 | CI129: =2500000 -> 2500000 | CJ129: =2500000 -> 2500000 | CK129: =2500000 -> 2500000 | CM129: =2500000 -> 2500000 | CN129: =2500000 -> 2500000 | CO129: =2500000 -> 2500000 | CP129: =2500000 -> 2500000 | CR129: =2500000 -> 2500000 | CS129: =2500000 -> 2500000 | CT129: =2500000 -> 2500000 | CU129: =2500000 -> 2500000 | CW129: =2500000 -> 2500000 | CX129: =2500000 -> 2500000 | CY129: =2500000 -> 2500000 | CZ129: =2500000 -> 2500000 | DB129: 2500000 | DC129: 2500000 | DD129: 2500000 | DE129: 2500000 | DG129: 2500000 | DH129: 2500000 | DI129: 2500000 | DJ129: 2500000
N130: % of total cost for indirect costs ( exclusive of permitting) | R130: =LOOKUP($R$28,$V$28:$Y$28,V130:Y130) -> 0.05 | S130: =IF(ISBLANK(AA130),LOOKUP($R$28,$V$28:$Y$28,V130:Y130),AA130) -> 0.05 | T130: x | V130: 0.05 | W130: 0.05 | X130: 0.05 | Y130: 0.05 | AD130: 0.05 | AE130: 0.05 | AF130: 0.05 | AG130: 0.05 | AH130: 0.05 | AJ130: 0.05 | AK130: 0.05 | AL130: 0.05 | AN130: 0.05 | AO130: 0.05 | AS130: 0.05 | AT130: 0.05 | AU130: 0.05 | AV130: 0.05 | AX130: 0.05 | AY130: 0.05 | AZ130: 0.05 | BA130: 0.05 | BC130: 0.05 | BD130: 0.05 | BE130: 0.05 | BF130: 0.05 | BH130: 0.05 | BI130: 0.05 | BJ130: 0.05 | BK130: 0.05 | BN130: 0.05 | BO130: 0.05 | BP130: 0.05 | BQ130: 0.05 | BS130: 0.05 | BT130: 0.05 | BU130: 0.05 | BV130: 0.05 | BX130: 0.05 | BY130: 0.05 | BZ130: 0.05 | CA130: 0.05 | CC130: 0.05 | CD130: 0.05 | CE130: 0.05 | CF130: 0.05 | CH130: 0.05 | CI130: 0.05 | CJ130: 0.05 | CK130: 0.05 | CM130: 0.05 | CN130: 0.05 | CO130: 0.05 | CP130: 0.05 | CR130: 0.05 | CS130: 0.05 | CT130: 0.05 | CU130: 0.05 | CW130: 0.05 | CX130: 0.05 | CY130: 0.05 | CZ130: 0.05 | DB130: 0.05 | DC130: 0.05 | DD130: 0.05 | DE130: 0.05 | DG130: 0.05 | DH130: 0.05 | DI130: 0.05 | DJ130: 0.05
N132: GEOFLUID GATHERING SYSTEM & PUMPING
N133: Other Field Costs :
N134: How are surface equipment costs determined ? | R134: =LOOKUP($R$28,$V$28:$Y$28,V134:Y134) -> Calculated | S134: =IF(ISBLANK(AA134),LOOKUP($R$28,$V$28:$Y$28,V134:Y134),AA134) -> Calculated | V134: =IF($AV$25="Reference", IF($AV$26="Greenfield", AS134,IF($AV$26="Brownfield", BC134,"FAIL")), IF($AV$25="Improved", IF($AV$26="Greenfield", AX134,IF($AV$26="Brownfield", BH134,"FAIL")))) -> Calculated | W134: Calculated | X134: Calculated | Y134: Calculated | AD134: Fixed Cost | AE134: Fixed Cost | AF134: Fixed Cost | AG134: Fixed Cost | AH134: Fixed Cost | AJ134: Fixed Cost | AK134: Fixed Cost | AL134: Fixed Cost | AN134: Fixed Cost | AO134: Fixed Cost | AS134: Calculated | AT134: Calculated | AU134: Calculated | AV134: Calculated | AX134: =INDEX($BN134:$CZ134, 1, $BE$21+AX$28) -> Calculated | AY134: Calculated | AZ134: Calculated | BA134: Calculated | BC134: Calculated | BD134: Calculated | BE134: Calculated | BF134: Calculated | BH134: =INDEX($BN134:$CZ134, 1, 5+$BE$21+BH$28) -> Calculated | BI134: Calculated | BJ134: Calculated | BK134: Calculated | BN134: Calculated | BO134: Calculated | BP134: Calculated | BQ134: Calculated | BS134: Calculated | BT134: Calculated | BU134: Calculated | BV134: Calculated | BX134: Calculated | BY134: Calculated | BZ134: Calculated | CA134: Calculated | CC134: Calculated | CD134: Calculated | CE134: Calculated | CF134: Calculated | CH134: Calculated | CI134: Calculated | CJ134: Calculated | CK134: Calculated | CM134: Calculated | CN134: Calculated | CO134: Calculated | CP134: Calculated | CR134: Calculated | CS134: Calculated | CT134: Calculated | CU134: Calculated | CW134: Calculated | CX134: Calculated | CY134: Calculated | CZ134: Calculated | DB134: Calculated | DC134: Calculated | DD134: Calculated | DE134: Calculated | DG134: Calculated | DH134: Calculated | DI134: Calculated | DJ134: Calculated
N135: Average distance from well to plant | P135: meter | R135: =LOOKUP($R$28,$V$28:$Y$28,V135:Y135) -> 750 | S135: =IF(ISBLANK(AA135),LOOKUP($R$28,$V$28:$Y$28,V135:Y135),AA135) -> 750 | V135: 750 | W135: 750 | X135: 500 | Y135: 500 | AD135: 500 | AE135: 500 | AF135: 500 | AG135: 500 | AH135: 500 | AS135: 750 | AT135: 750 | AU135: 500 | AV135: 500 | AX135: 750 | AY135: 750 | AZ135: 500 | BA135: 500 | BC135: 750 | BD135: 750 | BE135: 500 | BF135: 500 | BH135: 750 | BI135: 750 | BJ135: 500 | BK135: 500 | BN135: 750 | BO135: 750 | BP135: 500 | BQ135: 500 | BS135: 750 | BT135: 750 | BU135: 500 | BV135: 500 | BX135: 750 | BY135: 750 | BZ135: 500 | CA135: 500 | CC135: 750 | CD135: 750 | CE135: 500 | CF135: 500 | CH135: 750 | CI135: 750 | CJ135: 500 | CK135: 500 | CM135: 750 | CN135: 750 | CO135: 500 | CP135: 500 | CR135: 750 | CS135: 750 | CT135: 500 | CU135: 500 | CW135: 750 | CX135: 750 | CY135: 500 | CZ135: 500 | DB135: 750 | DC135: 750 | DD135: 500 | DE135: 500 | DG135: 750 | DH135: 750 | DI135: 500 | DJ135: 500
N136: Maximum pressure drop in Surface Piping | P136: psi | R136: =LOOKUP($R$28,$V$28:$Y$28,V136:Y136) -> 5 | S136: =IF(ISBLANK(AA136),LOOKUP($R$28,$V$28:$Y$28,V136:Y136),AA136) -> 5 | V136: 10 | W136: 5 | X136: 10 | Y136: 5 | AD136: 5 | AE136: 5 | AF136: 5 | AG136: 5 | AH136: 5 | AS136: 10 | AT136: 5 | AU136: 10 | AV136: 5 | AX136: 10 | AY136: 5 | AZ136: 10 | BA136: 5 | BC136: 10 | BD136: 5 | BE136: 10 | BF136: 5 | BH136: 10 | BI136: 5 | BJ136: 10 | BK136: 5 | BN136: 10 | BO136: 5 | BP136: 10 | BQ136: 5 | BS136: 10 | BT136: 5 | BU136: 10 | BV136: 5 | BX136: 10 | BY136: 5 | BZ136: 10 | CA136: 5 | CC136: 10 | CD136: 5 | CE136: 10 | CF136: 5 | CH136: 10 | CI136: 5 | CJ136: 10 | CK136: 5 | CM136: 10 | CN136: 5 | CO136: 10 | CP136: 5 | CR136: 10 | CS136: 5 | CT136: 10 | CU136: 5 | CW136: 10 | CX136: 5 | CY136: 10 | CZ136: 5 | DB136: 10 | DC136: 5 | DD136: 10 | DE136: 5 | DG136: 10 | DH136: 5 | DI136: 10 | DJ136: 5
N137: Calculated Surface Equipment Cost | P137: $/well | R137: ='Field Gathering Sys'!H47 -> 512433.7424 | S137: =R137*IF(ISBLANK(AA137),1,AA137)*AB137 -> 539162.7962 | AB137: ='Tables (up)'!G65/'Tables (up)'!G64 -> 1.052160995 | AD137: Most Likely | AE137: Most Likely | AF137: Most Likely | AG137: Most Likely | AH137: Most Likely | AJ137: Most Likely | AK137: Most Likely | AL137: Most Likely | AN137: Most Likely | AO137: Most Likely
N138: Geothermal pumps:
N139: Pump & Driver Efficiency for Production and Injection Pump | R139: =LOOKUP($R$28,$V$28:$Y$28,V139:Y139) -> 0.675 | S139: =IF(ISBLANK(AA139),LOOKUP($R$28,$V$28:$Y$28,V139:Y139),AA139) -> 0.675 | V139: =IF($AV$25="Reference", IF($AV$26="Greenfield", AS139,IF($AV$26="Brownfield", BC139,"FAIL")), IF($AV$25="Improved", IF($AV$26="Greenfield", AX139,IF($AV$26="Brownfield", BH139,"FAIL")))) -> 0.675 | W139: =IF($AV$25="Reference", IF($AV$26="Greenfield", AT139,IF($AV$26="Brownfield", BD139,"FAIL")), IF($AV$25="Improved", IF($AV$26="Greenfield", AY139,IF($AV$26="Brownfield", BI139,"FAIL")))) -> 0.675 | X139: =IF($AV$25="Reference", IF($AV$26="Greenfield", AU139,IF($AV$26="Brownfield", BE139,"FAIL")), IF($AV$25="Improved", IF($AV$26="Greenfield", AZ139,IF($AV$26="Brownfield", BJ139,"FAIL")))) -> 0.675 | Y139: =IF($AV$25="Reference", IF($AV$26="Greenfield", AV139,IF($AV$26="Brownfield", BF139,"FAIL")), IF($AV$25="Improved", IF($AV$26="Greenfield", BA139,IF($AV$26="Brownfield", BK139,"FAIL")))) -> 0.675 | AD139: Most Likely | AE139: Most Likely | AF139: Most Likely | AG139: Most Likely | AH139: Most Likely | AJ139: Most Likely | AK139: Most Likely | AL139: Most Likely | AN139: Most Likely | AO139: Most Likely | AS139: 0.675 | AT139: 0.675 | AU139: 0.675 | AV139: 0.675 | AX139: =INDEX($BN139:$CZ139, 1, $BE$21+AX$28) -> 0.675 | AY139: =INDEX($BN139:$CZ139, 1, $BE$21+AY$28) -> 0.675 | AZ139: 0.675 | BA139: 0.675 | BC139: 0.675 | BD139: 0.675 | BE139: 0.675 | BF139: 0.675 | BH139: =INDEX($BN139:$CZ139, 1, 5+$BE$21+BH$28) -> 0.675 | BI139: =INDEX($BN139:$CZ139, 1, 5+$BE$21+BI$28) -> 0.675 | BJ139: =INDEX($BN139:$CZ139, 1, 5+$BE$21+BJ$28) -> 0.675 | BK139: =INDEX($BN139:$CZ139, 1, 5+$BE$21+BK$28) -> 0.675 | BN139: 0.675 | BO139: 0.675 | BP139: 0.675 | BQ139: 0.675 | BS139: 0.675 | BT139: 0.675 | BU139: 0.675 | BV139: 0.675 | BX139: 0.675 | BY139: 0.675 | BZ139: 0.675 | CA139: 0.675 | CC139: 0.675 | CD139: 0.675 | CE139: 0.675 | CF139: 0.675 | CH139: 0.675 | CI139: 0.675 | CJ139: 0.675 | CK139: 0.675 | CM139: 0.675 | CN139: 0.675 | CO139: 0.675 | CP139: 0.675 | CR139: 0.675 | CS139: 0.675 | CT139: 0.675 | CU139: 0.675 | CW139: 0.675 | CX139: 0.675 | CY139: 0.675 | CZ139: 0.675 | DB139: 0.75 | DC139: 0.75 | DD139: 0.85 | DE139: 0.85 | DG139: 0.75 | DH139: 0.75 | DI139: 0.85 | DJ139: 0.85
N140: Production Pump :
N141: Are Production Wells pumped ? | R141: =LOOKUP($R$28,$V$28:$Y$28,V141:Y141) -> No | S141: =IF(ISBLANK(AA141),LOOKUP($R$28,$V$28:$Y$28,V141:Y141),AA141) -> No | V141: =IF($AV$25="Reference", IF($AV$26="Greenfield", AS141,IF($AV$26="Brownfield", BC141,"FAIL")), IF($AV$25="Improved", IF($AV$26="Greenfield", AX141,IF($AV$26="Brownfield", BH141,"FAIL")))) -> Yes | W141: No | X141: Yes | Y141: No | AD141: Yes | AE141: No | AF141: Yes | AG141: No | AH141: Yes | AJ141: Yes | AK141: Yes | AL141: Yes | AN141: No | AO141: No | AS141: Yes | AT141: No | AU141: Yes | AV141: No | AX141: =INDEX($BN141:$CZ141, 1, $BE$21+AX$28) -> Yes | AY141: No | AZ141: Yes | BA141: No | BC141: Yes | BD141: No | BE141: Yes | BF141: No | BH141: =INDEX($BN141:$CZ141, 1, 5+$BE$21+BH$28) -> Yes | BI141: No | BJ141: Yes | BK141: No | BN141: Yes | BO141: No | BP141: Yes | BQ141: No | BS141: Yes | BT141: No | BU141: Yes | BV141: No | BX141: Yes | BY141: No | BZ141: Yes | CA141: No | CC141: Yes | CD141: No | CE141: Yes | CF141: No | CH141: Yes | CI141: No | CJ141: Yes | CK141: No | CM141: Yes | CN141: No | CO141: Yes | CP141: No | CR141: Yes | CS141: No | CT141: Yes | CU141: No | CW141: Yes | CX141: No | CY141: Yes | CZ141: No | DB141: Yes | DC141: No | DD141: Yes | DE141: No | DG141: Yes | DH141: No | DI141: Yes | DJ141: No
N142: Calculate or Input production pump depth? | R142: =LOOKUP($R$28,$V$28:$Y$28,V142:Y142) -> Calculate | S142: =IF(ISBLANK(AA142),LOOKUP($R$28,$V$28:$Y$28,V142:Y142),AA142) -> Calculate | V142: Calculate | W142: Calculate | X142: Calculate | Y142: Calculate | AD142: Calculate | AE142: Calculate | AF142: Calculate | AG142: Calculate | AH142: Calculate | AJ142: Calculate | AK142: Calculate | AL142: Calculate | AN142: Calculate | AO142: Calculate | AS142: Calculate | AT142: Calculate | AU142: Calculate | AV142: Calculate | AX142: Calculate | AY142: Calculate | AZ142: Calculate | BA142: Calculate | BC142: Calculate | BD142: Calculate | BE142: Calculate | BF142: Calculate | BH142: Calculate | BI142: Calculate | BJ142: Calculate | BK142: Calculate | BN142: Calculate | BO142: Calculate | BP142: Calculate | BQ142: Calculate | BS142: Calculate | BT142: Calculate | BU142: Calculate | BV142: Calculate | BX142: Calculate | BY142: Calculate | BZ142: Calculate | CA142: Calculate | CC142: Calculate | CD142: Calculate | CE142: Calculate | CF142: Calculate | CH142: Calculate | CI142: Calculate | CJ142: Calculate | CK142: Calculate | CM142: Calculate | CN142: Calculate | CO142: Calculate | CP142: Calculate | CR142: Calculate | CS142: Calculate | CT142: Calculate | CU142: Calculate | CW142: Calculate | CX142: Calculate | CY142: Calculate | CZ142: Calculate | DB142: Calculate | DC142: Calculate | DD142: Calculate | DE142: Calculate | DG142: Calculate | DH142: Calculate | DI142: Calculate | DJ142: Calculate
N143: Calculation Pump Depth :
N144: Excess Pressure at pump Suction and/or well head | P144: psi | R144: =LOOKUP($R$28,$V$28:$Y$28,V144:Y144) -> 50 | S144: =IF(ISBLANK(AA144),LOOKUP($R$28,$V$28:$Y$28,V144:Y144),AA144) -> 50 | V144: =IF($AV$25="Reference", IF($AV$26="Greenfield", AS144,IF($AV$26="Brownfield", BC144,"FAIL")), IF($AV$25="Improved", IF($AV$26="Greenfield", AX144,IF($AV$26="Brownfield", BH144,"FAIL")))) -> 50 | W144: 50 | X144: 50 | Y144: 50 | AD144: 50 | AE144: 50 | AF144: 50 | AG144: 50 | AH144: 50 | AJ144: 50 | AK144: 50 | AL144: 50 | AN144: 50 | AO144: 50 | AS144: 50 | AT144: 50 | AU144: 50 | AV144: 50 | AX144: =INDEX($BN144:$CZ144, 1, $BE$21+AX$28) -> 50 | AY144: 50 | AZ144: 50 | BA144: 50 | BC144: 50 | BD144: 50 | BE144: 50 | BF144: 50 | BH144: =INDEX($BN144:$CZ144, 1, 5+$BE$21+BH$28) -> 50 | BI144: 50 | BJ144: 50 | BK144: 50 | BN144: 50 | BO144: 50 | BP144: 50 | BQ144: 50 | BS144: 50 | BT144: 50 | BU144: 50 | BV144: 50 | BX144: 50 | BY144: 50 | BZ144: 50 | CA144: 50 | CC144: 50 | CD144: 50 | CE144: 50 | CF144: 50 | CH144: 50 | CI144: 50 | CJ144: 50 | CK144: 50 | CM144: 50 | CN144: 50 | CO144: 50 | CP144: 50 | CR144: 50 | CS144: 50 | CT144: 50 | CU144: 50 | CW144: 50 | CX144: 50 | CY144: 50 | CZ144: 50 | DB144: 50 | DC144: 50 | DD144: 50 | DE144: 50 | DG144: 50 | DH144: 50 | DI144: 50 | DJ144: 50
N145: Diameter of production pump casing | P145: inch | R145: =LOOKUP($R$28,$V$28:$Y$28,V145:Y145) -> 9.625 | S145: =IF(ISBLANK(AA145),LOOKUP($R$28,$V$28:$Y$28,V145:Y145),AA145) -> 9.625 | V145: 9.625 | W145: 9.625 | X145: 9.625 | Y145: 9.625 | AD145: 9.625 | AE145: 9.625 | AF145: 9.625 | AG145: 9.625 | AH145: 9.625 | AJ145: 9.625 | AK145: 9.625 | AL145: 9.625 | AN145: 9.625 | AO145: 9.625 | AS145: 9.625 | AT145: 9.625 | AU145: 9.625 | AV145: 9.625 | AX145: 9.625 | AY145: 9.625 | AZ145: 9.625 | BA145: 9.625 | BC145: 9.625 | BD145: 9.625 | BE145: 9.625 | BF145: 9.625 | BH145: 9.625 | BI145: 9.625 | BJ145: 9.625 | BK145: 9.625 | BN145: 9.625 | BO145: 9.625 | BP145: 9.625 | BQ145: 9.625 | BS145: 9.625 | BT145: 9.625 | BU145: 9.625 | BV145: 9.625 | BX145: 9.625 | BY145: 9.625 | BZ145: 9.625 | CA145: 9.625 | CC145: 9.625 | CD145: 9.625 | CE145: 9.625 | CF145: 9.625 | CH145: 9.625 | CI145: 9.625 | CJ145: 9.625 | CK145: 9.625 | CM145: 9.625 | CN145: 9.625 | CO145: 9.625 | CP145: 9.625 | CR145: 9.625 | CS145: 9.625 | CT145: 9.625 | CU145: 9.625 | CW145: 9.625 | CX145: 9.625 | CY145: 9.625 | CZ145: 9.625 | DB145: 9.625 | DC145: 9.625 | DD145: 9.625 | DE145: 9.625 | DG145: 9.625 | DH145: 9.625 | DI145: 9.625 | DJ145: 9.625
N146: Calculate or Input production pump cost? | R146: =LOOKUP($R$28,$V$28:$Y$28,V146:Y146) -> Calculate | S146: =IF(ISBLANK(AA146),LOOKUP($R$28,$V$28:$Y$28,V146:Y146),AA146) -> Calculate | V146: Calculate | W146: Calculate | X146: Calculate | Y146: Calculate | AD146: Calculate | AE146: Calculate | AF146: Calculate | AG146: Calculate | AH146: Calculate | AJ146: Calculate | AK146: Calculate | AL146: Calculate | AN146: Calculate | AO146: Calculate | AS146: Calculate | AT146: Calculate | AU146: Calculate | AV146: Calculate | AX146: Calculate | AY146: Calculate | AZ146: Calculate | BA146: Calculate | BC146: Calculate | BD146: Calculate | BE146: Calculate | BF146: Calculate | BH146: Calculate | BI146: Calculate | BJ146: Calculate | BK146: Calculate | BN146: Calculate | BO146: Calculate | BP146: Calculate | BQ146: Calculate | BS146: Calculate | BT146: Calculate | BU146: Calculate | BV146: Calculate | BX146: Calculate | BY146: Calculate | BZ146: Calculate | CA146: Calculate | CC146: Calculate | CD146: Calculate | CE146: Calculate | CF146: Calculate | CH146: Calculate | CI146: Calculate | CJ146: Calculate | CK146: Calculate | CM146: Calculate | CN146: Calculate | CO146: Calculate | CP146: Calculate | CR146: Calculate | CS146: Calculate | CT146: Calculate | CU146: Calculate | CW146: Calculate | CX146: Calculate | CY146: Calculate | CZ146: Calculate | DB146: Calculate | DC146: Calculate | DD146: Calculate | DE146: Calculate | DG146: Calculate | DH146: Calculate | DI146: Calculate | DJ146: Calculate
N147: Calculate Pump Cost :
N148: Other Costs | R148: =LOOKUP($R$28,$V$28:$Y$28,V148:Y148) -> 10000 | S148: =LOOKUP($R$28,$V$28:$Y$28,V148:Y148)*AB148*(IF(ISBLANK(AA148),1,AA148)) -> 8941.335113 | V148: =IF($AV$25="Reference", IF($AV$26="Greenfield", AS148,IF($AV$26="Brownfield", BC148,"FAIL")), IF($AV$25="Improved", IF($AV$26="Greenfield", AX148,IF($AV$26="Brownfield", BH148,"FAIL")))) -> 10000 | W148: 10000 | X148: 10000 | Y148: 10000 | AB148: ='Tables (up)'!N65/'Tables (up)'!N64 -> 0.8941335113 | AD148: 10000 | AE148: 10000 | AF148: 10000 | AG148: 10000 | AH148: 10000 | AJ148: 10000 | AK148: 10000 | AL148: 10000 | AN148: 10000 | AO148: 10000 | AS148: 10000 | AT148: 10000 | AU148: 10000 | AV148: 10000 | AX148: =INDEX($BN148:$CZ148, 1, $BE$21+AX$28) -> 10000 | AY148: 10000 | AZ148: 10000 | BA148: 10000 | BC148: 10000 | BD148: 10000 | BE148: 10000 | BF148: 10000 | BH148: =INDEX($BN148:$CZ148, 1, 5+$BE$21+BH$28) -> 10000 | BI148: 10000 | BJ148: 10000 | BK148: 10000 | BN148: 10000 | BO148: 10000 | BP148: 10000 | BQ148: 10000 | BS148: 10000 | BT148: 10000 | BU148: 10000 | BV148: 10000 | BX148: 10000 | BY148: 10000 | BZ148: 10000 | CA148: 10000 | CC148: 10000 | CD148: 10000 | CE148: 10000 | CF148: 10000 | CH148: 10000 | CI148: 10000 | CJ148: 10000 | CK148: 10000 | CM148: 10000 | CN148: 10000 | CO148: 10000 | CP148: 10000 | CR148: 10000 | CS148: 10000 | CT148: 10000 | CU148: 10000 | CW148: 10000 | CX148: 10000 | CY148: 10000 | CZ148: 10000 | DB148: 10000 | DC148: 10000 | DD148: 10000 | DE148: 10000 | DG148: 10000 | DH148: 10000 | DI148: 10000 | DJ148: 10000
N149: Installation Cost | P149: $/ft | R149: =LOOKUP($R$28,$V$28:$Y$28,V149:Y149) -> 5 | S149: =LOOKUP($R$28,$V$28:$Y$28,V149:Y149)*AB149*(IF(ISBLANK(AA149),1,AA149)) -> 4.470667557 | V149: 5 | W149: 5 | X149: 5 | Y149: 5 | AB149: ='Tables (up)'!N65/'Tables (up)'!N64 -> 0.8941335113 | AD149: 5 | AE149: 5 | AF149: 5 | AG149: 5 | AH149: 5 | AJ149: 5 | AK149: 5 | AL149: 5 | AN149: 5 | AO149: 5 | AS149: 5 | AT149: 5 | AU149: 5 | AV149: 5 | AX149: 5 | AY149: 5 | AZ149: 5 | BA149: 5 | BC149: 5 | BD149: 5 | BE149: 5 | BF149: 5 | BH149: 5 | BI149: 5 | BJ149: 5 | BK149: 5 | BN149: 5 | BO149: 5 | BP149: 5 | BQ149: 5 | BS149: 5 | BT149: 5 | BU149: 5 | BV149: 5 | BX149: 5 | BY149: 5 | BZ149: 5 | CA149: 5 | CC149: 5 | CD149: 5 | CE149: 5 | CF149: 5 | CH149: 5 | CI149: 5 | CJ149: 5 | CK149: 5 | CM149: 5 | CN149: 5 | CO149: 5 | CP149: 5 | CR149: 5 | CS149: 5 | CT149: 5 | CU149: 5 | CW149: 5 | CX149: 5 | CY149: 5 | CZ149: 5 | DB149: 5 | DC149: 5 | DD149: 5 | DE149: 5 | DG149: 5 | DH149: 5 | DI149: 5 | DJ149: 5
N150: Casing cost | P150: $/ft | R150: =LOOKUP($R$28,$V$28:$Y$28,V150:Y150) -> 44.74047979 | S150: =LOOKUP($R$28,$V$28:$Y$28,V150:Y150)*AB150*(IF(ISBLANK(AA150),1,AA150)) -> 47.07418773 | V150: 44.74047979 | W150: 44.74047979 | X150: 44.74047979 | Y150: 44.74047979 | AB150: ='Tables (up)'!G65/'Tables (up)'!G64 -> 1.052160995 | AD150: =$V150 -> 44.74047979 | AE150: =$V150 -> 44.74047979 | AF150: =$V150 -> 44.74047979 | AG150: =$V150 -> 44.74047979 | AH150: =$V150 -> 44.74047979 | AJ150: =$V150 -> 44.74047979 | AK150: =$V150 -> 44.74047979 | AL150: =$V150 -> 44.74047979 | AN150: =$V150 -> 44.74047979 | AO150: =$V150 -> 44.74047979 | AS150: 44.74047979 | AT150: =$V150 -> 44.74047979 | AU150: =$V150 -> 44.74047979 | AV150: 44.74047979 | AX150: 44.74047979 | AY150: 44.74047979 | AZ150: 44.74047979 | BA150: 44.74047979 | BC150: 44.74047979 | BD150: =$V150 -> 44.74047979 | BE150: =$V150 -> 44.74047979 | BF150: 44.74047979 | BH150: 44.74047979 | BI150: 44.74047979 | BJ150: 44.74047979 | BK150: 44.74047979 | BN150: 44.74047979 | BO150: =$V150 -> 44.74047979 | BP150: =$V150 -> 44.74047979 | BQ150: 44.74047979 | BS150: 44.74047979 | BT150: =$V150 -> 44.74047979 | BU150: =$V150 -> 44.74047979 | BV150: 44.74047979 | BX150: 44.74047979 | BY150: =$V150 -> 44.74047979 | BZ150: =$V150 -> 44.74047979 | CA150: 44.74047979 | CC150: 44.74047979 | CD150: =$V150 -> 44.74047979 | CE150: =$V150 -> 44.74047979 | CF150: 44.74047979 | CH150: 44.74047979 | CI150: =$V150 -> 44.74047979 | CJ150: =$V150 -> 44.74047979 | CK150: 44.74047979 | CM150: 44.74047979 | CN150: =$V150 -> 44.74047979 | CO150: =$V150 -> 44.74047979 | CP150: 44.74047979 | CR150: 44.74047979 | CS150: =$V150 -> 44.74047979 | CT150: =$V150 -> 44.74047979 | CU150: 44.74047979 | CW150: 44.74047979 | CX150: =$V150 -> 44.74047979 | CY150: =$V150 -> 44.74047979 | CZ150: 44.74047979 | DB150: 44.74047979 | DC150: 44.74047979 | DD150: 44.74047979 | DE150: 44.74047979 | DG150: 0 | DH150: 44.74047979 | DI150: 44.74047979 | DJ150: 44.74047979
N151: Production Pump Cost | P151: $/well | R151: ='GF Pumping'!G442 -> 0 | S151: =OUT!H605*IF(ISBLANK(AA151),1,AA151) -> 0 | AB151: ='Tables (up)'!K65/'Tables (up)'!K64 -> 1.115741393
N152: Injection Pump :
N153: Surface Equipment ΔP for binary conversion system | P153: psi | R153: =LOOKUP($R$28,$V$28:$Y$28,V153:Y153) -> 40 | S153: =IF(ISBLANK(AA153),LOOKUP($R$28,$V$28:$Y$28,V153:Y153),AA153) -> 40 | V153: =IF($AV$25="Reference", IF($AV$26="Greenfield", AS153,IF($AV$26="Brownfield", BC153,"FAIL")), IF($AV$25="Improved", IF($AV$26="Greenfield", AX153,IF($AV$26="Brownfield", BH153,"FAIL")))) -> 40 | W153: 40 | X153: 40 | Y153: 40 | AD153: 40 | AE153: 40 | AF153: 40 | AG153: 40 | AH153: 40 | AJ153: 40 | AK153: 40 | AL153: 40 | AN153: 40 | AO153: 40 | AS153: 40 | AT153: 40 | AU153: 40 | AV153: 40 | AX153: =INDEX($BN153:$CZ153, 1, $BE$21+AX$28) -> 40 | AY153: 40 | AZ153: 40 | BA153: 40 | BC153: 40 | BD153: 40 | BE153: 40 | BF153: 40 | BH153: =INDEX($BN153:$CZ153, 1, 5+$BE$21+BH$28) -> 40 | BI153: 40 | BJ153: 40 | BK153: 40 | BN153: 40 | BO153: 40 | BP153: 40 | BQ153: 40 | BS153: 40 | BT153: 40 | BU153: 40 | BV153: 40 | BX153: 40 | BY153: 40 | BZ153: 40 | CA153: 40 | CC153: 40 | CD153: 40 | CE153: 40 | CF153: 40 | CH153: 40 | CI153: 40 | CJ153: 40 | CK153: 40 | CM153: 40 | CN153: 40 | CO153: 40 | CP153: 40 | CR153: 40 | CS153: 40 | CT153: 40 | CU153: 40 | CW153: 40 | CX153: 40 | CY153: 40 | CZ153: 40 | DB153: 40 | DC153: 40 | DD153: 40 | DE153: 40 | DG153: 40 | DH153: 40 | DI153: 40 | DJ153: 40
N154: Calculations determine pumping to provide 1 psi excess pressure - Is Additional Injection Pressure Required?? | R154: =LOOKUP($R$28,$V$28:$Y$28,V154:Y154) -> No | S154: =IF(ISBLANK(AA154),LOOKUP($R$28,$V$28:$Y$28,V154:Y154),AA154) -> No | V154: No | W154: No | X154: No | Y154: No | AD154: No | AE154: No | AF154: No | AG154: No | AH154: No | AJ154: No | AK154: No | AL154: No | AN154: No | AO154: No | AS154: No | AT154: No | AU154: No | AV154: No | AX154: No | AY154: No | AZ154: No | BA154: No | BC154: No | BD154: No | BE154: No | BF154: No | BH154: No | BI154: No | BJ154: No | BK154: No | BN154: No | BO154: No | BP154: No | BQ154: No | BS154: No | BT154: No | BU154: No | BV154: No | BX154: No | BY154: No | BZ154: No | CA154: No | CC154: No | CD154: No | CE154: No | CF154: No | CH154: No | CI154: No | CJ154: No | CK154: No | CM154: No | CN154: No | CO154: No | CP154: No | CR154: No | CS154: No | CT154: No | CU154: No | CW154: No | CX154: No | CY154: No | CZ154: No | DB154: No | DC154: No | DD154: No | DE154: No | DG154: No | DH154: No | DI154: No | DJ154: No
N155: Additional Injection Pressure | P155: psi | R155: 1 | S155: =IF(ISBLANK(AA155),LOOKUP($R$28,$V$28:$Y$28,V155:Y155),AA155) -> 1 | V155: 1 | W155: 1 | X155: 1 | Y155: 1 | AS155: 1 | AT155: 1 | AU155: 1 | AV155: 1 | AX155: 1 | AY155: 1 | AZ155: 1 | BA155: 1 | BC155: 1 | BD155: 1 | BE155: 1 | BF155: 1 | BH155: 1 | BI155: 1 | BJ155: 1 | BK155: 1 | BN155: 1 | BO155: 1 | BP155: 1 | BQ155: 1 | BS155: 1 | BT155: 1 | BU155: 1 | BV155: 1 | BX155: 1 | BY155: 1 | BZ155: 1 | CA155: 1 | CC155: 1 | CD155: 1 | CE155: 1 | CF155: 1 | CH155: 1 | CI155: 1 | CJ155: 1 | CK155: 1 | CM155: 1 | CN155: 1 | CO155: 1 | CP155: 1 | CR155: 1 | CS155: 1 | CT155: 1 | CU155: 1 | CW155: 1 | CX155: 1 | CY155: 1 | CZ155: 1 | DB155: 1 | DC155: 1 | DD155: 1 | DE155: 1 | DG155: 1 | DH155: 1 | DI155: 1 | DJ155: 1
N156: Injection Pump Cost | R156: ='GF Pumping'!G447 -> 897917.9811 | S156: =R156*IF(ISBLANK(AA156),1,AA156)*AB156 -> 1001844.259 | AB156: ='Tables (up)'!K65/'Tables (up)'!K64 -> 1.115741393
N157: Injection Pump Cost Multiplier | S157: =IF(ISBLANK(AA157),LOOKUP($R$28,$V$28:$Y$28,V157:Y157),AA157) -> 1 | V157: =IF($AV$25="Reference", IF($AV$26="Greenfield", AS157,IF($AV$26="Brownfield", BC157,"FAIL")), IF($AV$25="Improved", IF($AV$26="Greenfield", AX157,IF($AV$26="Brownfield", BH157,"FAIL")))) -> 1 | W157: 1 | X157: 1 | Y157: 1 | AS157: 1 | AT157: 1 | AU157: 1 | AV157: 1 | AX157: =INDEX($BN157:$CZ157, 1, $BE$21+AX$28) -> 1 | AY157: 1 | AZ157: 1 | BA157: 1 | BC157: 1 | BD157: 1 | BE157: 1 | BF157: 1 | BH157: =INDEX($BN157:$CZ157, 1, 5+$BE$21+BH$28) -> 1 | BI157: 1 | BJ157: 1 | BK157: 1 | BN157: 1 | BO157: 1 | BP157: 1 | BQ157: 1 | BS157: 1 | BT157: 1 | BU157: 1 | BV157: 1 | BX157: 1 | BY157: 1 | BZ157: 1 | CA157: 1 | CC157: 1 | CD157: 1 | CE157: 1 | CF157: 1 | CH157: 1 | CI157: 1 | CJ157: 1 | CK157: 1 | CM157: 1 | CN157: 1 | CO157: 1 | CP157: 1 | CR157: 1 | CS157: 1 | CT157: 1 | CU157: 1 | CW157: 1 | CX157: 1 | CY157: 1 | CZ157: 1 | DB157: 0.93 | DC157: 0.93 | DD157: 0.9 | DE157: 0.9 | DG157: 0.93 | DH157: 0.93 | DI157: 0.9 | DJ157: 0.9
N158: Other Costs (% of GF Gathering System & Pump Costs) | R158: =LOOKUP($R$28,$V$28:$Y$28,V158:Y158) -> 0.12 | S158: =IF(ISBLANK(AA158),LOOKUP($R$28,$V$28:$Y$28,V158:Y158),AA158) -> 0.12 | V158: 0.12 | W158: 0.12 | X158: 0.12 | Y158: 0.12 | AS158: 0.12 | AT158: 0.12 | AU158: 0.12 | AV158: 0.12 | AX158: 0.12 | AY158: 0.12 | AZ158: 0.12 | BA158: 0.12 | BC158: 0.12 | BD158: 0.12 | BE158: 0.12 | BF158: 0.12 | BH158: 0.12 | BI158: 0.12 | BJ158: 0.12 | BK158: 0.12 | BN158: 0.12 | BO158: 0.12 | BP158: 0.12 | BQ158: 0.12 | BS158: 0.12 | BT158: 0.12 | BU158: 0.12 | BV158: 0.12 | BX158: 0.12 | BY158: 0.12 | BZ158: 0.12 | CA158: 0.12 | CC158: 0.12 | CD158: 0.12 | CE158: 0.12 | CF158: 0.12 | CH158: 0.12 | CI158: 0.12 | CJ158: 0.12 | CK158: 0.12 | CM158: 0.12 | CN158: 0.12 | CO158: 0.12 | CP158: 0.12 | CR158: 0.12 | CS158: 0.12 | CT158: 0.12 | CU158: 0.12 | CW158: 0.12 | CX158: 0.12 | CY158: 0.12 | CZ158: 0.12 | DB158: 0.12 | DC158: 0.12 | DD158: 0.12 | DE158: 0.12 | DG158: 0.12 | DH158: 0.12 | DI158: 0.12 | DJ158: 0.12
N160: RESERVOIR DEFINITION
N161: Well Flow Rate
N162: Production Well Flow Rate | P162: kg/s | R162: =LOOKUP($R$28,$V$28:$Y$28,V162:Y162) -> 80 | S162: =IF(ISBLANK(AA162),LOOKUP($R$28,$V$28:$Y$28,V162:Y162),AA162) -> 80 | T162: x | V162: =IF($AV$25="Reference", IF($AV$26="Greenfield", AS162,IF($AV$26="Brownfield", BC162,"FAIL")), IF($AV$25="Improved", IF($AV$26="Greenfield", AX162,IF($AV$26="Brownfield", BH162,"FAIL")))) -> 110 | W162: =IF($AV$25="Reference", IF($AV$26="Greenfield", AT162,IF($AV$26="Brownfield", BD162,"FAIL")), IF($AV$25="Improved", IF($AV$26="Greenfield", AY162,IF($AV$26="Brownfield", BI162,"FAIL")))) -> 80 | X162: =IF($AV$25="Reference", IF($AV$26="Greenfield", AU162,IF($AV$26="Brownfield", BE162,"FAIL")), IF($AV$25="Improved", IF($AV$26="Greenfield", AZ162,IF($AV$26="Brownfield", BJ162,"FAIL")))) -> 110 | Y162: =IF($AV$25="Reference", IF($AV$26="Greenfield", AV162,IF($AV$26="Brownfield", BF162,"FAIL")), IF($AV$25="Improved", IF($AV$26="Greenfield", BA162,IF($AV$26="Brownfield", BK162,"FAIL")))) -> 80 | AD162: Most Likely | AE162: Most Likely | AF162: Most Likely | AG162: Most Likely | AH162: Most Likely | AJ162: Most Likely | AK162: Most Likely | AL162: Most Likely | AN162: Most Likely | AO162: Most Likely | AS162: 110 | AT162: 80 | AU162: 40 | AV162: 40 | AX162: =INDEX($BN162:$CZ162, 1, $BE$21+AX$28) -> 110 | AY162: =INDEX($BN162:$CZ162, 1, $BE$21+AY$28) -> 80 | AZ162: 110 | BA162: 80 | BC162: 110 | BD162: 80 | BE162: 40 | BF162: 40 | BH162: =INDEX($BN162:$CZ162, 1, 5+$BE$21+BH$28) -> 110 | BI162: =INDEX($BN162:$CZ162, 1, 5+$BE$21+BI$28) -> 80 | BJ162: =INDEX($BN162:$CZ162, 1, 5+$BE$21+BJ$28) -> 110 | BK162: =INDEX($BN162:$CZ162, 1, 5+$BE$21+BK$28) -> 80 | BN162: 110 | BO162: 80 | BP162: 110 | BQ162: 80 | BS162: 110 | BT162: 80 | BU162: 110 | BV162: 80 | BX162: 110 | BY162: 80 | BZ162: 110 | CA162: 80 | CC162: 110 | CD162: 80 | CE162: 110 | CF162: 80 | CH162: 110 | CI162: 80 | CJ162: 110 | CK162: 80 | CM162: 110 | CN162: 80 | CO162: 110 | CP162: 80 | CR162: 110 | CS162: 80 | CT162: 110 | CU162: 80 | CW162: 110 | CX162: 80 | CY162: 110 | CZ162: 80 | DB162: 110 | DC162: 80 | DD162: 100 | DE162: 80 | DG162: 110 | DH162: 80 | DI162: 100 | DJ162: 80
N163: Hydraulic Drawdown
N164: Input Production Well Drawdown | P164: psi-h/1000lb | R164: =LOOKUP($R$28,$V$28:$Y$28,V164:Y164) -> 0.4 | S164: =IF(ISBLANK(AA164),LOOKUP($R$28,$V$28:$Y$28,V164:Y164),AA164) -> 0.4 | T164: x | V164: =IF($AV$25="Reference", IF($AV$26="Greenfield", AS164,IF($AV$26="Brownfield", BC164,"FAIL")), IF($AV$25="Improved", IF($AV$26="Greenfield", AX164,IF($AV$26="Brownfield", BH164,"FAIL")))) -> 0.4 | W164: 0.4 | X164: 0.4 | Y164: 0.4 | AD164: Most Likely | AE164: Most Likely | AF164: Most Likely | AG164: Most Likely | AH164: Most Likely | AJ164: Most Likely | AK164: Most Likely | AL164: Most Likely | AN164: Most Likely | AO164: Most Likely | AS164: 0.4 | AT164: 0.4 | AU164: 4 | AV164: 4 | AX164: =INDEX($BN164:$CZ164, 1, $BE$21+AX$28) -> 0.4 | AY164: 0.4 | AZ164: 0.4 | BA164: 0.4 | BC164: 0.4 | BD164: 0.4 | BE164: 4 | BF164: 4 | BH164: =INDEX($BN164:$CZ164, 1, 5+$BE$21+BH$28) -> 0.4 | BI164: 0.4 | BJ164: 0.4 | BK164: 0.4 | BN164: 0.4 | BO164: 0.4 | BP164: 0.4 | BQ164: 0.4 | BS164: 0.4 | BT164: 0.4 | BU164: 0.4 | BV164: 0.4 | BX164: 0.4 | BY164: 0.4 | BZ164: 0.4 | CA164: 0.4 | CC164: 0.4 | CD164: 0.4 | CE164: 0.4 | CF164: 0.4 | CH164: 0.4 | CI164: 0.4 | CJ164: 0.4 | CK164: 0.4 | CM164: 0.4 | CN164: 0.4 | CO164: 0.4 | CP164: 0.4 | CR164: 0.4 | CS164: 0.4 | CT164: 0.4 | CU164: 0.4 | CW164: 0.4 | CX164: 0.4 | CY164: 0.4 | CZ164: 0.4 | DB164: 0.4 | DC164: 0.4 | DD164: 2 | DE164: 2 | DG164: 0.4 | DH164: 0.4 | DI164: 2 | DJ164: 2
N165: Ratio of Injection Well Buildup to Production Well Drawdown | R165: =LOOKUP($R$28,$V$28:$Y$28,V165:Y165) -> 1 | S165: =IF(ISBLANK(AA165),LOOKUP($R$28,$V$28:$Y$28,V165:Y165),AA165) -> 1 | V165: 1 | W165: 1 | X165: 1 | Y165: 1 | AD165: 1 | AE165: 1 | AF165: 1 | AG165: 1 | AH165: 1 | AJ165: 1 | AK165: 1 | AL165: 1 | AN165: 1 | AO165: 1 | AS165: 1 | AT165: 1 | AU165: 1 | AV165: 1 | AX165: 1 | AY165: 1 | AZ165: 1 | BA165: 1 | BC165: 1 | BD165: 1 | BE165: 1 | BF165: 1 | BH165: 1 | BI165: 1 | BJ165: 1 | BK165: 1 | BN165: 1 | BO165: 1 | BP165: 1 | BQ165: 1 | BS165: 1 | BT165: 1 | BU165: 1 | BV165: 1 | BX165: 1 | BY165: 1 | BZ165: 1 | CA165: 1 | CC165: 1 | CD165: 1 | CE165: 1 | CF165: 1 | CH165: 1 | CI165: 1 | CJ165: 1 | CK165: 1 | CM165: 1 | CN165: 1 | CO165: 1 | CP165: 1 | CR165: 1 | CS165: 1 | CT165: 1 | CU165: 1 | CW165: 1 | CX165: 1 | CY165: 1 | CZ165: 1 | DB165: 1 | DC165: 1 | DD165: 1 | DE165: 1 | DG165: 1 | DH165: 1 | DI165: 1 | DJ165: 1
N166: Thermal Drawdown
N167: Annual Rate of Decline | P167: %/yr | R167: =LOOKUP($R$28,$V$28:$Y$28,V167:Y167) -> 0.005 | S167: =IF(ISBLANK(AA167),LOOKUP($R$28,$V$28:$Y$28,V167:Y167),AA167) -> 0.005 | T167: x | V167: =IF($AV$25="Reference", IF($AV$26="Greenfield", AS167,IF($AV$26="Brownfield", BC167,"FAIL")), IF($AV$25="Improved", IF($AV$26="Greenfield", AX167,IF($AV$26="Brownfield", BH167,"FAIL")))) -> 0.005 | W167: 0.005 | X167: 0.005 | Y167: 0.005 | AD167: Most Likely | AE167: Most Likely | AF167: Most Likely | AG167: Most Likely | AH167: Most Likely | AJ167: Most Likely | AK167: Most Likely | AL167: Most Likely | AN167: Most Likely | AO167: Most Likely | AS167: 0.005 | AT167: 0.005 | AU167: 0.005 | AV167: 0.005 | AX167: =INDEX($BN167:$CZ167, 1, $BE$21+AX$28) -> 0.005 | AY167: 0.005 | AZ167: 0.005 | BA167: 0.005 | BC167: 0.005 | BD167: 0.006 | BE167: 0.005 | BF167: 0.005 | BH167: =INDEX($BN167:$CZ167, 1, 5+$BE$21+BH$28) -> 0.005 | BI167: 0.006 | BJ167: 0.005 | BK167: 0.005 | BN167: 0.005 | BO167: 0.005 | BP167: 0.005 | BQ167: 0.005 | BS167: 0.005 | BT167: 0.006 | BU167: 0.005 | BV167: 0.005 | BX167: 0.005 | BY167: 0.005 | BZ167: 0.005 | CA167: 0.005 | CC167: 0.005 | CD167: 0.006 | CE167: 0.005 | CF167: 0.005 | CH167: 0.005 | CI167: 0.005 | CJ167: 0.005 | CK167: 0.005 | CM167: 0.005 | CN167: 0.006 | CO167: 0.005 | CP167: 0.005 | CR167: 0.005 | CS167: 0.005 | CT167: 0.005 | CU167: 0.005 | CW167: 0.005 | CX167: 0.006 | CY167: 0.005 | CZ167: 0.005 | DB167: 0.005 | DC167: 0.006 | DD167: 0.0025 | DE167: 0.0025 | DG167: 0.005 | DH167: 0.006 | DI167: 0.0025 | DJ167: 0.0025
N168: Use Calc Maximum Allowable Temperature Decline? | R168: =LOOKUP($R$28,$V$28:$Y$28,V168:Y168) -> Yes | S168: =IF(ISBLANK(AA168),LOOKUP($R$28,$V$28:$Y$28,V168:Y168),AA168) -> Yes | V168: Yes | W168: Yes | X168: Yes | Y168: Yes | AD168: Yes | AE168: Yes | AF168: Yes | AG168: Yes | AH168: Yes | AJ168: Yes | AK168: Yes | AL168: Yes | AN168: Yes | AO168: Yes | AS168: Yes | AT168: Yes | AU168: Yes | AV168: Yes | AX168: Yes | AY168: Yes | AZ168: Yes | BA168: Yes | BC168: Yes | BD168: Yes | BE168: Yes | BF168: Yes | BH168: Yes | BI168: Yes | BJ168: Yes | BK168: Yes | BN168: Yes | BO168: Yes | BP168: Yes | BQ168: Yes | BS168: Yes | BT168: Yes | BU168: Yes | BV168: Yes | BX168: Yes | BY168: Yes | BZ168: Yes | CA168: Yes | CC168: Yes | CD168: Yes | CE168: Yes | CF168: Yes | CH168: Yes | CI168: Yes | CJ168: Yes | CK168: Yes | CM168: Yes | CN168: Yes | CO168: Yes | CP168: Yes | CR168: Yes | CS168: Yes | CT168: Yes | CU168: Yes | CW168: Yes | CX168: Yes | CY168: Yes | CZ168: Yes | DB168: Yes | DC168: Yes | DD168: Yes | DE168: Yes | DG168: Yes | DH168: Yes | DI168: Yes | DJ168: Yes
N169: Water Loss
N170: Subsurface Water loss as % of injected flow (> 0) | R170: =LOOKUP($R$28,$V$28:$Y$28,V170:Y170) -> 0 | S170: =IF(ISBLANK(AA170),LOOKUP($R$28,$V$28:$Y$28,V170:Y170),AA170) -> 0 | T170: x | V170: =IF($AV$25="Reference", IF($AV$26="Greenfield", AS170,IF($AV$26="Brownfield", BC170,"FAIL")), IF($AV$25="Improved", IF($AV$26="Greenfield", AX170,IF($AV$26="Brownfield", BH170,"FAIL")))) -> 0 | W170: 0 | X170: 0.05 | Y170: 0.05 | AD170: Most Likely | AE170: Most Likely | AF170: Most Likely | AG170: Most Likely | AH170: Most Likely | AJ170: Most Likely | AK170: Most Likely | AL170: Most Likely | AN170: Most Likely | AO170: Most Likely | AS170: 0 | AT170: 0 | AU170: 0.05 | AV170: 0.05 | AX170: =INDEX($BN170:$CZ170, 1, $BE$21+AX$28) -> 0 | AY170: 0 | AZ170: 0.05 | BA170: 0.05 | BC170: 0 | BD170: 0 | BE170: 0.05 | BF170: 0.05 | BH170: =INDEX($BN170:$CZ170, 1, 5+$BE$21+BH$28) -> 0 | BI170: 0 | BJ170: 0.05 | BK170: 0.05 | BN170: 0 | BO170: 0 | BP170: 0.05 | BQ170: 0.05 | BS170: 0 | BT170: 0 | BU170: 0.05 | BV170: 0.05 | BX170: 0 | BY170: 0 | BZ170: 0.05 | CA170: 0.05 | CC170: 0 | CD170: 0 | CE170: 0.05 | CF170: 0.05 | CH170: 0 | CI170: 0 | CJ170: 0.05 | CK170: 0.05 | CM170: 0 | CN170: 0 | CO170: 0.05 | CP170: 0.05 | CR170: 0 | CS170: 0 | CT170: 0.05 | CU170: 0.05 | CW170: 0 | CX170: 0 | CY170: 0.05 | CZ170: 0.05 | DB170: 0 | DC170: 0 | DD170: 0.01 | DE170: 0.01 | DG170: 0 | DH170: 0 | DI170: 0.01 | DJ170: 0.01
N171: Is water loss for Flash Cooling system to be made-up? | R171: =LOOKUP($R$28,$V$28:$Y$28,V171:Y171) -> No | S171: =IF(ISBLANK(AA171),LOOKUP($R$28,$V$28:$Y$28,V171:Y171),AA171) -> No | V171: No | W171: No | X171: No | Y171: Yes | AD171: No | AE171: No | AF171: No | AG171: No | AH171: No | AJ171: Yes | AK171: Yes | AL171: Yes | AN171: Yes | AO171: Yes | AS171: No | AT171: No | AU171: No | AV171: Yes | AX171: No | AY171: No | AZ171: No | BA171: Yes | BC171: No | BD171: No | BE171: No | BF171: Yes | BH171: No | BI171: No | BJ171: No | BK171: Yes | BN171: No | BO171: No | BP171: No | BQ171: Yes | BS171: No | BT171: No | BU171: No | BV171: Yes | BX171: No | BY171: No | BZ171: No | CA171: Yes | CC171: No | CD171: No | CE171: No | CF171: Yes | CH171: No | CI171: No | CJ171: No | CK171: Yes | CM171: No | CN171: No | CO171: No | CP171: Yes | CR171: No | CS171: No | CT171: No | CU171: Yes | CW171: No | CX171: No | CY171: No | CZ171: Yes | DB171: No | DC171: No | DD171: No | DE171: Yes | DG171: No | DH171: No | DI171: No | DJ171: Yes
N172: Makeup Water cost | P172: $/acre-ft | R172: =LOOKUP($R$28,$V$28:$Y$28,V172:Y172) -> 300 | S172: =LOOKUP($R$28,$V$28:$Y$28,V172:Y172)*AB172*(IF(ISBLANK(AA172),1,AA172)) -> 300 | T172: x | V172: 300 | W172: 300 | X172: 300 | Y172: 300 | AB172: 1 | AD172: Most Likely | AE172: Most Likely | AF172: Most Likely | AG172: Most Likely | AH172: Most Likely | AJ172: Most Likely | AK172: Most Likely | AL172: Most Likely | AN172: Most Likely | AO172: Most Likely | AS172: 300 | AT172: 300 | AU172: 300 | AV172: 300 | AX172: 300 | AY172: 300 | AZ172: 300 | BA172: 300 | BC172: 300 | BD172: 300 | BE172: 300 | BF172: 300 | BH172: 300 | BI172: 300 | BJ172: 300 | BK172: 300 | BN172: 300 | BO172: 300 | BP172: 300 | BQ172: 300 | BS172: 300 | BT172: 300 | BU172: 300 | BV172: 300 | BX172: 300 | BY172: 300 | BZ172: 300 | CA172: 300 | CC172: 300 | CD172: 300 | CE172: 300 | CF172: 300 | CH172: 300 | CI172: 300 | CJ172: 300 | CK172: 300 | CM172: 300 | CN172: 300 | CO172: 300 | CP172: 300 | CR172: 300 | CS172: 300 | CT172: 300 | CU172: 300 | CW172: 300 | CX172: 300 | CY172: 300 | CZ172: 300 | DB172: 0 | DC172: 300 | DD172: 300 | DE172: 2000 | DG172: 0 | DH172: 300 | DI172: 300 | DJ172: 2000
N173: Flow into/out of multiple zones in production/injection interval? | R173: =LOOKUP($R$28,$V$28:$Y$28,V173:Y173) -> No | S173: =IF(ISBLANK(AA173),LOOKUP($R$28,$V$28:$Y$28,V173:Y173),AA173) -> No | V173: No | W173: No | X173: Yes | Y173: Yes | AS173: No | AT173: No | AU173: Yes | AV173: Yes | AX173: No | AY173: No | AZ173: Yes | BA173: Yes | BC173: No | BD173: No | BE173: Yes | BF173: Yes | BH173: No | BI173: No | BJ173: Yes | BK173: Yes | BN173: No | BO173: No | BP173: Yes | BQ173: Yes | BS173: No | BT173: No | BU173: Yes | BV173: Yes | BX173: Yes | BY173: Yes | BZ173: Yes | CA173: Yes | CC173: Yes | CD173: Yes | CE173: Yes | CF173: Yes | CH173: No | CI173: No | CJ173: Yes | CK173: Yes | CM173: No | CN173: No | CO173: Yes | CP173: Yes | CR173: No | CS173: No | CT173: Yes | CU173: Yes | CW173: No | CX173: No | CY173: Yes | CZ173: Yes | DB173: No | DC173: No | DD173: Yes | DE173: Yes | DG173: No | DH173: No | DI173: Yes | DJ173: Yes
N175: OPERATION & MAINTENANCE
N176: Input Annual O&M Costs or Calculate? | R176: =LOOKUP($R$28,$V$28:$Y$28,V176:Y176) -> Calculate | S176: =IF(ISBLANK(AA176),LOOKUP($R$28,$V$28:$Y$28,V176:Y176),AA176) -> Calculate | V176: =IF($AV$25="Reference", IF($AV$26="Greenfield", AS176,IF($AV$26="Brownfield", BC176,"FAIL")), IF($AV$25="Improved", IF($AV$26="Greenfield", AX176,IF($AV$26="Brownfield", BH176,"FAIL")))) -> Calculate | W176: =IF($AV$25="Reference", IF($AV$26="Greenfield", AT176,IF($AV$26="Brownfield", BD176,"FAIL")), IF($AV$25="Improved", IF($AV$26="Greenfield", AY176,IF($AV$26="Brownfield", BI176,"FAIL")))) -> Calculate | X176: =IF($AV$25="Reference", IF($AV$26="Greenfield", AU176,IF($AV$26="Brownfield", BE176,"FAIL")), IF($AV$25="Improved", IF($AV$26="Greenfield", AZ176,IF($AV$26="Brownfield", BJ176,"FAIL")))) -> Calculate | Y176: =IF($AV$25="Reference", IF($AV$26="Greenfield", AV176,IF($AV$26="Brownfield", BF176,"FAIL")), IF($AV$25="Improved", IF($AV$26="Greenfield", BA176,IF($AV$26="Brownfield", BK176,"FAIL")))) -> Calculate | AD176: Calculate | AE176: Calculate | AF176: Calculate | AG176: Calculate | AH176: Calculate | AJ176: Calculate | AK176: Calculate | AL176: Calculate | AN176: Calculate | AO176: Calculate | AS176: Calculate | AT176: Calculate | AU176: Calculate | AV176: Calculate | AX176: =INDEX($BN176:$CZ176, 1, $BE$21+AX$28) -> Calculate | AY176: =INDEX($BN176:$CZ176, 1, $BE$21+AY$28) -> Calculate | AZ176: Calculate | BA176: Calculate | BC176: Calculate | BD176: Calculate | BE176: Calculate | BF176: Calculate | BH176: =INDEX($BN176:$CZ176, 1, 5+$BE$21+BH$28) -> Calculate | BI176: =INDEX($BN176:$CZ176, 1, 5+$BE$21+BI$28) -> Calculate | BJ176: =INDEX($BN176:$CZ176, 1, 5+$BE$21+BJ$28) -> Calculate | BK176: =INDEX($BN176:$CZ176, 1, 5+$BE$21+BK$28) -> Calculate | BN176: Calculate | BO176: Calculate | BP176: Calculate | BQ176: Calculate | BS176: Calculate | BT176: Calculate | BU176: Calculate | BV176: Calculate | BX176: Calculate | BY176: Calculate | BZ176: Calculate | CA176: Calculate | CC176: Calculate | CD176: Calculate | CE176: Calculate | CF176: Calculate | CH176: Calculate | CI176: Calculate | CJ176: Calculate | CK176: Calculate | CM176: Calculate | CN176: Calculate | CO176: Calculate | CP176: Calculate | CR176: Calculate | CS176: Calculate | CT176: Calculate | CU176: Calculate | CW176: Calculate | CX176: Calculate | CY176: Calculate | CZ176: Calculate | DB176: Calculate | DC176: Calculate | DD176: Calculate | DE176: Calculate | DG176: Calculate | DH176: Calculate | DI176: Calculate | DJ176: Calculate
N177: Operating Cost Calculation
N178: Labor Costs
N179: Fraction of operator labor assigned to field | R179: =LOOKUP($R$28,$V$28:$Y$28,V179:Y179) -> 0.25 | S179: =IF(ISBLANK(AA179),LOOKUP($R$28,$V$28:$Y$28,V179:Y179),AA179) -> 0.25 | V179: =IF($AV$25="Reference", IF($AV$26="Greenfield", AS179,IF($AV$26="Brownfield", BC179,"FAIL")), IF($AV$25="Improved", IF($AV$26="Greenfield", AX179,IF($AV$26="Brownfield", BH179,"FAIL")))) -> 0.25 | W179: 0.25 | X179: 0.25 | Y179: 0.25 | AD179: 0.25 | AE179: 0.25 | AF179: 0.25 | AG179: 0.25 | AH179: 0.25 | AJ179: 0.25 | AK179: 0.25 | AL179: 0.25 | AN179: 0.25 | AO179: 0.25 | AS179: 0.25 | AT179: 0.25 | AU179: 0.25 | AV179: 0.25 | AX179: =INDEX($BN179:$CZ179, 1, $BE$21+AX$28) -> 0.25 | AY179: 0.25 | AZ179: 0.25 | BA179: 0.25 | BC179: 0.25 | BD179: 0.25 | BE179: 0.25 | BF179: 0.25 | BH179: =INDEX($BN179:$CZ179, 1, 5+$BE$21+BH$28) -> 0.25 | BI179: 0.25 | BJ179: 0.25 | BK179: 0.25 | BN179: 0.25 | BO179: 0.25 | BP179: 0.25 | BQ179: 0.25 | BS179: 0.25 | BT179: 0.25 | BU179: 0.25 | BV179: 0.25 | BX179: 0.25 | BY179: 0.25 | BZ179: 0.25 | CA179: 0.25 | CC179: 0.25 | CD179: 0.25 | CE179: 0.25 | CF179: 0.25 | CH179: 0.25 | CI179: 0.25 | CJ179: 0.25 | CK179: 0.25 | CM179: 0.25 | CN179: 0.25 | CO179: 0.25 | CP179: 0.25 | CR179: 0.25 | CS179: 0.25 | CT179: 0.25 | CU179: 0.25 | CW179: 0.25 | CX179: 0.25 | CY179: 0.25 | CZ179: 0.25 | DB179: 0.25 | DC179: 0.25 | DD179: 0.25 | DE179: 0.25 | DG179: 0.25 | DH179: 0.25 | DI179: 0.25 | DJ179: 0.25
N180: Labor multiplier (burdened labor cost) | P180: enter multiplier | R180: =LOOKUP($R$28,$V$28:$Y$28,V180:Y180) -> 1.8 | S180: =IF(ISBLANK(AA181),LOOKUP($R$28,$V$28:$Y$28,V180:Y180),AA181) -> 1.8 | T180: x | V180: 1.8 | W180: 1.8 | X180: 1.8 | Y180: 1.8 | AS180: 1.8 | AT180: 1.8 | AU180: 1.8 | AV180: 1.8 | AX180: 1.8 | AY180: 1.8 | AZ180: 1.8 | BA180: 1.8 | BC180: 1.8 | BD180: 1.8 | BE180: 1.8 | BF180: 1.8 | BH180: 1.8 | BI180: 1.8 | BJ180: 1.8 | BK180: 1.8 | BN180: 1.8 | BO180: 1.8 | BP180: 1.8 | BQ180: 1.8 | BS180: 1.8 | BT180: 1.8 | BU180: 1.8 | BV180: 1.8 | BX180: 1.8 | BY180: 1.8 | BZ180: 1.8 | CA180: 1.8 | CC180: 1.8 | CD180: 1.8 | CE180: 1.8 | CF180: 1.8 | CH180: 1.8 | CI180: 1.8 | CJ180: 1.8 | CK180: 1.8 | CM180: 1.8 | CN180: 1.8 | CO180: 1.8 | CP180: 1.8 | CR180: 1.8 | CS180: 1.8 | CT180: 1.8 | CU180: 1.8 | CW180: 1.8 | CX180: 1.8 | CY180: 1.8 | CZ180: 1.8 | DB180: 1.8 | DC180: 1.8 | DD180: 1.8 | DE180: 1.8 | DG180: 1.8 | DH180: 1.8 | DI180: 1.8 | DJ180: 1.8
N181: Staff Count | R181: =OUT!G350 -> 14.69181051 | S181: =OUT!H350 -> 14.69181051 | AD181: Most Likely | AE181: Most Likely | AF181: Most Likely | AG181: Most Likely | AH181: Most Likely | AJ181: Most Likely | AK181: Most Likely | AL181: Most Likely | AN181: Most Likely | AO181: Most Likely
N182: Field Maintenance | P182: Staff Count Multiplier | S182: =IF(ISBLANK(AA182),LOOKUP($R$28,$V$28:$Y$28,V182:Y182),AA182) -> 1 | V182: =IF($AV$25="Reference", IF($AV$26="Greenfield", AS182,IF($AV$26="Brownfield", BC182,"FAIL")), IF($AV$25="Improved", IF($AV$26="Greenfield", AX182,IF($AV$26="Brownfield", BH182,"FAIL")))) -> 1 | W182: 1 | X182: 1 | Y182: 1 | AS182: 1 | AT182: 1 | AU182: 1 | AV182: 1 | AX182: 1 | AY182: 1 | AZ182: 1 | BA182: 1 | BC182: 1 | BD182: 1 | BE182: 1 | BF182: 1 | BH182: =INDEX($BN182:$CZ182, 1, 5+$BE$21+BH$28) -> 1 | BI182: 1 | BJ182: 1 | BK182: 1 | BN182: 1 | BO182: 1 | BP182: 1 | BQ182: 1 | BS182: 1 | BT182: 1 | BU182: 1 | BV182: 1 | BX182: 1 | BY182: 1 | BZ182: 1 | CA182: 1 | CC182: 1 | CD182: 1 | CE182: 1 | CF182: 1 | CH182: 1 | CI182: 1 | CJ182: 1 | CK182: 1 | CM182: 1 | CN182: 1 | CO182: 1 | CP182: 1 | CR182: 1 | CS182: 1 | CT182: 1 | CU182: 1 | CW182: 1 | CX182: 1 | CY182: 1 | CZ182: 1 | DB182: 0.8 | DC182: 0.8 | DD182: 0.7 | DE182: 0.7 | DG182: 0.8 | DH182: 0.8 | DI182: 0.7 | DJ182: 0.7
N183: Annual Maintenance non-labor (fraction of field cost) | P183: % | R183: =LOOKUP($R$28,$V$28:$Y$28,V183:Y183) -> 0.015 | S183: =IF(ISBLANK(AA183),LOOKUP($R$28,$V$28:$Y$28,V183:Y183),AA183) -> 0.015 | T183: x | V183: 0.015 | W183: 0.015 | X183: 0.015 | Y183: 0.015 | AD183: Most Likely | AE183: Most Likely | AF183: Most Likely | AG183: Most Likely | AH183: Most Likely | AJ183: Most Likely | AK183: Most Likely | AL183: Most Likely | AN183: Most Likely | AO183: Most Likely | AS183: 0.015 | AT183: 0.015 | AU183: 0.015 | AV183: 0.015 | AX183: 0.015 | AY183: 0.015 | AZ183: 0.015 | BA183: 0.015 | BC183: 0.015 | BD183: 0.015 | BE183: 0.015 | BF183: 0.015 | BH183: 0.015 | BI183: 0.015 | BJ183: 0.015 | BK183: 0.015 | BN183: 0.015 | BO183: 0.015 | BP183: 0.015 | BQ183: 0.015 | BS183: 0.015 | BT183: 0.015 | BU183: 0.015 | BV183: 0.015 | BX183: 0.015 | BY183: 0.015 | BZ183: 0.015 | CA183: 0.015 | CC183: 0.015 | CD183: 0.015 | CE183: 0.015 | CF183: 0.015 | CH183: 0.015 | CI183: 0.015 | CJ183: 0.015 | CK183: 0.015 | CM183: 0.015 | CN183: 0.015 | CO183: 0.015 | CP183: 0.015 | CR183: 0.015 | CS183: 0.015 | CT183: 0.015 | CU183: 0.015 | CW183: 0.015 | CX183: 0.015 | CY183: 0.015 | CZ183: 0.015 | DB183: 0.012 | DC183: 0.012 | DD183: 0.01 | DE183: 0.01 | DG183: 0.012 | DH183: 0.012 | DI183: 0.01 | DJ183: 0.01
N184: Geothermal fluid treatment - chemical dosage | P184: ppm | R184: =LOOKUP($R$28,$V$28:$Y$28,V184:Y184) -> 0 | S184: =IF(ISBLANK(AA184),LOOKUP($R$28,$V$28:$Y$28,V184:Y184),AA184) -> 0 | V184: 0 | W184: 0 | X184: 0 | Y184: 0 | AD184: 0.5 | AE184: 0.5 | AF184: 0.5 | AG184: 0.5 | AH184: 0.5 | AJ184: 0.5 | AK184: 0.5 | AL184: 0.5 | AN184: 0.5 | AO184: 0.5 | DB184: 0 | DC184: 0 | DD184: 0 | DE184: 0
N185: Chemical cost | P185: $/gal | R185: =LOOKUP($R$28,$V$28:$Y$28,V185:Y185) -> 22.5 | S185: =IF(ISBLANK(AA185),LOOKUP($R$28,$V$28:$Y$28,V185:Y185),AA185)*AB185 -> 22.5 | V185: 0 | W185: 22.5 | X185: 0 | Y185: 22.5 | AB185: 1 | AD185: 0 | AE185: 10 | AF185: 0 | AG185: 10 | AH185: 0 | AJ185: 0 | AK185: 0 | AL185: 0 | AN185: 10 | AO185: 10 | AT185: 22.5 | AV185: 22.5 | AY185: 22.5 | BA185: 22.5 | BD185: 22.5 | BF185: 22.5 | BI185: =INDEX($BN185:$CZ185, 1, 5+$BE$21+BI$28) -> 22.5 | BK185: =INDEX($BN185:$CZ185, 1, 5+$BE$21+BK$28) -> 22.5 | BO185: 22.5 | BQ185: 22.5 | BT185: 22.5 | BV185: 22.5 | BY185: 22.5 | CA185: 22.5 | CD185: 22.5 | CF185: 22.5 | CI185: 22.5 | CK185: 22.5 | CN185: 22.5 | CP185: 22.5 | CS185: 22.5 | CU185: 22.5 | CX185: 22.5 | CZ185: 22.5 | DB185: 0 | DC185: 22.5 | DD185: 0 | DE185: 22.5 | DH185: 22.5 | DJ185: 22.5
N186: Power Plant Maintenance
N187: Annual O&M non-labor (fraction of plant cost) | P187: % | R187: =LOOKUP($R$28,$V$28:$Y$28,V187:Y187) -> 0.018 | S187: =LOOKUP($R$28,$V$28:$Y$28,V187:Y187) -> 0.018 | T187: x | V187: =IF($AV$25="Reference", IF($AV$26="Greenfield", AS187,IF($AV$26="Brownfield", BC187,"FAIL")), IF($AV$25="Improved", IF($AV$26="Greenfield", AX187,IF($AV$26="Brownfield", BH187,"FAIL")))) -> 0.018 | W187: 0.018 | X187: 0.018 | Y187: 0.018 | AD187: Most Likely | AE187: Most Likely | AF187: Most Likely | AG187: Most Likely | AH187: Most Likely | AJ187: Most Likely | AK187: Most Likely | AL187: Most Likely | AN187: Most Likely | AO187: Most Likely | AS187: 0.018 | AT187: 0.018 | AU187: 0.018 | AV187: 0.018 | AX187: 0.018 | AY187: 0.018 | AZ187: 0.018 | BA187: 0.018 | BC187: 0.018 | BD187: 0.018 | BE187: 0.018 | BF187: 0.018 | BH187: =INDEX($BN187:$CZ187, 1, 5+$BE$21+BH$28) -> 0.018 | BI187: =INDEX($BN187:$CZ187, 1, 5+$BE$21+BI$28) -> 0.018 | BJ187: =INDEX($BN187:$CZ187, 1, 5+$BE$21+BJ$28) -> 0.018 | BK187: =INDEX($BN187:$CZ187, 1, 5+$BE$21+BK$28) -> 0.018 | BN187: 0.018 | BO187: 0.018 | BP187: 0.018 | BQ187: 0.018 | BS187: 0.018 | BT187: 0.018 | BU187: 0.018 | BV187: 0.018 | BX187: 0.018 | BY187: 0.018 | BZ187: 0.018 | CA187: 0.018 | CC187: 0.018 | CD187: 0.018 | CE187: 0.018 | CF187: 0.018 | CH187: 0.018 | CI187: 0.018 | CJ187: 0.018 | CK187: 0.018 | CM187: 0.018 | CN187: 0.018 | CO187: 0.018 | CP187: 0.018 | CR187: 0.018 | CS187: 0.018 | CT187: 0.018 | CU187: 0.018 | CW187: 0.018 | CX187: 0.018 | CY187: 0.018 | CZ187: 0.018 | DB187: 0.0165 | DC187: 0.0165 | DD187: 0.015 | DE187: 0.015 | DG187: 0.0165 | DH187: 0.0165 | DI187: 0.015 | DJ187: 0.015
N188: Cooling water treatment chemical dosage | P188: ppm | R188: =LOOKUP($R$28,$V$28:$Y$28,V188:Y188) -> 0 | S188: =IF(ISBLANK(AA188),LOOKUP($R$28,$V$28:$Y$28,V188:Y188),AA188) -> 0 | V188: 0 | W188: 0 | X188: 0 | Y188: 0 | AD188: 10 | AE188: 10 | AF188: 10 | AG188: 10 | AH188: 10 | AJ188: 10 | AK188: 10 | AL188: 10 | AN188: 10 | AO188: 10 | DB188: 0 | DC188: 0 | DD188: 0 | DE188: 0
N189: Chemical cost | P189: $/gal | R189: =LOOKUP($R$28,$V$28:$Y$28,V189:Y189) -> 1.7 | S189: =IF(ISBLANK(AA189),LOOKUP($R$28,$V$28:$Y$28,V189:Y189),AA189)*AB189 -> 1.7 | V189: 0 | W189: 1.7 | X189: 0 | Y189: 1.7 | AB189: 1 | AD189: 0 | AE189: 1 | AF189: 0 | AG189: 1 | AH189: 0 | AN189: 1 | AO189: 1 | AT189: =1*0+1.7 -> 1.7 | AV189: =1*0+1.7 -> 1.7 | AY189: 1.7 | BA189: 1.7 | BD189: =1*0+1.7 -> 1.7 | BF189: =1*0+1.7 -> 1.7 | BI189: =INDEX($BN189:$CZ189, 1, 5+$BE$21+BI$28) -> 1.7 | BK189: =INDEX($BN189:$CZ189, 1, 5+$BE$21+BK$28) -> 1.7 | BO189: =1*0+1.7 -> 1.7 | BQ189: =1*0+1.7 -> 1.7 | BT189: =1*0+1.7 -> 1.7 | BV189: =1*0+1.7 -> 1.7 | BY189: =1*0+1.7 -> 1.7 | CA189: =1*0+1.7 -> 1.7 | CD189: =1*0+1.7 -> 1.7 | CF189: =1*0+1.7 -> 1.7 | CI189: =1*0+1.7 -> 1.7 | CK189: =1*0+1.7 -> 1.7 | CN189: =1*0+1.7 -> 1.7 | CP189: =1*0+1.7 -> 1.7 | CS189: =1*0+1.7 -> 1.7 | CU189: =1*0+1.7 -> 1.7 | CX189: =1*0+1.7 -> 1.7 | CZ189: =1*0+1.7 -> 1.7 | DB189: 0 | DC189: 1.7 | DD189: 0 | DE189: 1.7 | DH189: 1.7 | DJ189: 1.7
N190: Geothermal Production Pump Maintenance
N191: Type of production pump used | R191: =LOOKUP($R$28,$V$28:$Y$28,V191:Y191) -> Lineshaft | S191: =IF(ISBLANK(AA191),LOOKUP($R$28,$V$28:$Y$28,V191:Y191),AA191) -> Lineshaft | V191: =IF($AV$25="Reference", IF($AV$26="Greenfield", AS191,IF($AV$26="Brownfield", BC191,"FAIL")), IF($AV$25="Improved", IF($AV$26="Greenfield", AX191,IF($AV$26="Brownfield", BH191,"FAIL")))) -> Lineshaft | W191: Lineshaft | X191: Lineshaft | Y191: Lineshaft | AD191: Lineshaft | AE191: Lineshaft | AF191: Lineshaft | AG191: Lineshaft | AH191: Lineshaft | AJ191: Lineshaft | AK191: Lineshaft | AL191: Lineshaft | AN191: Lineshaft | AO191: Lineshaft | AS191: Lineshaft | AT191: Lineshaft | AU191: Lineshaft | AV191: Lineshaft | AX191: Lineshaft | AY191: Lineshaft | AZ191: Lineshaft | BA191: Lineshaft | BC191: Lineshaft | BD191: Lineshaft | BE191: Lineshaft | BF191: Lineshaft | BH191: =INDEX($BN191:$CZ191, 1, 5+$BE$21+BH$28) -> Lineshaft | BI191: Lineshaft | BJ191: Lineshaft | BK191: Lineshaft | BN191: Lineshaft | BO191: Lineshaft | BP191: Lineshaft | BQ191: Lineshaft | BS191: Lineshaft | BT191: Lineshaft | BU191: Lineshaft | BV191: Lineshaft | BX191: Lineshaft | BY191: Lineshaft | BZ191: Lineshaft | CA191: Lineshaft | CC191: Lineshaft | CD191: Lineshaft | CE191: Lineshaft | CF191: Lineshaft | CH191: Lineshaft | CI191: Lineshaft | CJ191: Lineshaft | CK191: Lineshaft | CM191: Lineshaft | CN191: Lineshaft | CO191: Lineshaft | CP191: Lineshaft | CR191: Lineshaft | CS191: Lineshaft | CT191: Lineshaft | CU191: Lineshaft | CW191: Lineshaft | CX191: Lineshaft | CY191: Lineshaft | CZ191: Lineshaft | DB191: Lineshaft | DC191: Lineshaft | DD191: Lineshaft | DE191: Lineshaft | DG191: Lineshaft | DH191: Lineshaft | DI191: Lineshaft | DJ191: Lineshaft
N192: Lineshaft pump operating life [p] | P192: yr | R192: 3 | S192: 3 | T192: x | V192: 3 | W192: 3 | X192: 3 | Y192: 3 | AD192: Most Likely | AE192: Most Likely | AF192: Most Likely | AG192: Most Likely | AH192: Most Likely | AJ192: Most Likely | AK192: Most Likely | AL192: Most Likely | AN192: Most Likely | AO192: Most Likely | AS192: 3 | AT192: 3 | AU192: 3 | AV192: 3 | AX192: 3 | AY192: 3 | AZ192: 3 | BA192: 3 | BC192: 3 | BD192: 3 | BE192: 3 | BF192: 3 | BH192: 3 | BI192: 3 | BJ192: 3 | BK192: 3 | BN192: 3 | BO192: 3 | BP192: 3 | BQ192: 3 | BS192: 3 | BT192: 3 | BU192: 3 | BV192: 3 | BX192: 3 | BY192: 3 | BZ192: 3 | CA192: 3 | CC192: 3 | CD192: 3 | CE192: 3 | CF192: 3 | CH192: 3 | CI192: 3 | CJ192: 3 | CK192: 3 | CM192: 3 | CN192: 3 | CO192: 3 | CP192: 3 | CR192: 3 | CS192: 3 | CT192: 3 | CU192: 3 | CW192: 3 | CX192: 3 | CY192: 3 | CZ192: 3 | DB192: 6 | DC192: 3 | DD192: 6 | DE192: 3 | DG192: 6 | DH192: 3 | DI192: 6 | DJ192: 3
N193: Reference Pump Depth | P193: ft | R193: 500 | S193: 500 | V193: 500 | W193: 500 | X193: 500 | Y193: 500 | AD193: 1 | AE193: 1 | AF193: 1 | AG193: 1 | AH193: 1 | AJ193: 1 | AK193: 1 | AL193: 1 | AN193: 1 | AO193: 1 | AS193: 500 | AT193: 500 | AU193: 500 | AV193: 500 | AX193: 500 | AY193: 500 | AZ193: 500 | BA193: 500 | BC193: 500 | BD193: 500 | BE193: 500 | BF193: 500 | BH193: 500 | BI193: 500 | BJ193: 500 | BK193: 500 | BN193: 500 | BO193: 500 | BP193: 500 | BQ193: 500 | BS193: 500 | BT193: 500 | BU193: 500 | BV193: 500 | BX193: 500 | BY193: 500 | BZ193: 500 | CA193: 500 | CC193: 500 | CD193: 500 | CE193: 500 | CF193: 500 | CH193: 500 | CI193: 500 | CJ193: 500 | CK193: 500 | CM193: 500 | CN193: 500 | CO193: 500 | CP193: 500 | CR193: 500 | CS193: 500 | CT193: 500 | CU193: 500 | CW193: 500 | CX193: 500 | CY193: 500 | CZ193: 500 | DB193: 500 | DC193: 500 | DD193: 500 | DE193: 500 | DG193: 500 | DH193: 500 | DI193: 500 | DJ193: 500
N194: Annual Lube Oil Cost | P194: $/yr | R194: =LOOKUP($R$28,$V$28:$Y$28,V194:Y194) -> 4300 | S194: 4300 | V194: 4300 | W194: 4300 | X194: 4300 | Y194: 4300 | AD194: 4 | AE194: 4 | AF194: 4 | AG194: 4 | AH194: 4 | AJ194: 4 | AK194: 4 | AL194: 4 | AN194: 4 | AO194: 4 | AS194: 4300 | AT194: 4300 | AU194: 4300 | AV194: 4300 | AX194: 4300 | AY194: 4300 | AZ194: 4300 | BA194: 4300 | BC194: 4300 | BD194: 4300 | BE194: 4300 | BF194: 4300 | BH194: 4300 | BI194: 4300 | BJ194: 4300 | BK194: 4300 | BN194: 4300 | BO194: 4300 | BP194: 4300 | BQ194: 4300 | BS194: 4300 | BT194: 4300 | BU194: 4300 | BV194: 4300 | BX194: 4300 | BY194: 4300 | BZ194: 4300 | CA194: 4300 | CC194: 4300 | CD194: 4300 | CE194: 4300 | CF194: 4300 | CH194: 4300 | CI194: 4300 | CJ194: 4300 | CK194: 4300 | CM194: 4300 | CN194: 4300 | CO194: 4300 | CP194: 4300 | CR194: 4300 | CS194: 4300 | CT194: 4300 | CU194: 4300 | CW194: 4300 | CX194: 4300 | CY194: 4300 | CZ194: 4300 | DB194: 4300 | DC194: 4300 | DD194: 4300 | DE194: 4300 | DG194: 4300 | DH194: 4300 | DI194: 4300 | DJ194: 4300
N195: Submersible pump operating life [p] | P195: yr | R195: 2 | S195: 2 | V195: 2 | W195: 2 | X195: 2 | Y195: 2 | AD195: 2 | AE195: 2 | AF195: 2 | AG195: 2 | AH195: 2 | AJ195: 2 | AK195: 2 | AL195: 2 | AN195: 2 | AO195: 2 | AS195: 2 | AT195: 2 | AU195: 2 | AV195: 2 | AX195: =INDEX($BN195:$CZ195, 1, $BE$21+AX$28) -> 2 | AY195: 2 | AZ195: 2 | BA195: 2 | BC195: 2 | BD195: 2 | BE195: 2 | BF195: 2 | BH195: 2 | BI195: 2 | BJ195: 2 | BK195: 2 | BN195: 2 | BO195: 2 | BP195: 2 | BQ195: 2 | BS195: 2 | BT195: 2 | BU195: 2 | BV195: 2 | BX195: 2 | BY195: 2 | BZ195: 2 | CA195: 2 | CC195: 2 | CD195: 2 | CE195: 2 | CF195: 2 | CH195: 2 | CI195: 2 | CJ195: 2 | CK195: 2 | CM195: 2 | CN195: 2 | CO195: 2 | CP195: 2 | CR195: 2 | CS195: 2 | CT195: 2 | CU195: 2 | CW195: 2 | CX195: 2 | CY195: 2 | CZ195: 2 | DB195: 2 | DC195: 2 | DD195: 2 | DE195: 2 | DG195: 2 | DH195: 2 | DI195: 2 | DJ195: 2
N196: Taxes and Insurance (Plant & Well Field Capital Costs) | R196: 0.0075 | S196: 0.0075 | V196: 0.0075 | W196: 0.0075 | X196: 0.0075 | Y196: 0.0075 | AD196: 0.0075 | AE196: 0.0075 | AF196: 0.0075 | AG196: 0.0075 | AH196: 0.0075 | AJ196: 0.0075 | AK196: 0.0075 | AL196: 0.0075 | AN196: 0.0075 | AO196: 0.0075 | AS196: 0.0075 | AT196: 0.0075 | AU196: 0.0075 | AV196: 0.0075 | AX196: 0.0075 | AY196: 0.0075 | AZ196: 0.0075 | BA196: 0.0075 | BC196: 0.0075 | BD196: 0.0075 | BE196: 0.0075 | BF196: 0.0075 | BH196: 0.0075 | BI196: 0.0075 | BJ196: 0.0075 | BK196: 0.0075 | BN196: 0.0075 | BO196: 0.0075 | BP196: 0.0075 | BQ196: 0.0075 | BS196: 0.0075 | BT196: 0.0075 | BU196: 0.0075 | BV196: 0.0075 | BX196: 0.0075 | BY196: 0.0075 | BZ196: 0.0075 | CA196: 0.0075 | CC196: 0.0075 | CD196: 0.0075 | CE196: 0.0075 | CF196: 0.0075 | CH196: 0.0075 | CI196: 0.0075 | CJ196: 0.0075 | CK196: 0.0075 | CM196: 0.0075 | CN196: 0.0075 | CO196: 0.0075 | CP196: 0.0075 | CR196: 0.0075 | CS196: 0.0075 | CT196: 0.0075 | CU196: 0.0075 | CW196: 0.0075 | CX196: 0.0075 | CY196: 0.0075 | CZ196: 0.0075 | DB196: 0.0075 | DC196: 0.0075 | DD196: 0.0075 | DE196: 0.0075 | DG196: 0.0075 | DH196: 0.0075 | DI196: 0.0075 | DJ196: 0.0075
N198: POWER PLANT
N199: Transmission Cost (included in plant cost)
N200: Are transmission line costs to be included? | R200: =LOOKUP($R$28,$V$28:$Y$28,V200:Y200) -> No | S200: =IF(ISBLANK(AA200),LOOKUP($R$28,$V$28:$Y$28,V200:Y200),AA200) -> No | V200: =IF($AV$25="Reference", IF($AV$26="Greenfield", AS200,IF($AV$26="Brownfield", BC200,"FAIL")), IF($AV$25="Improved", IF($AV$26="Greenfield", AX200,IF($AV$26="Brownfield", BH200,"FAIL")))) -> No | W200: No | X200: No | Y200: No | AD200: Yes | AE200: Yes | AF200: Yes | AG200: Yes | AH200: Yes | AJ200: Yes | AK200: Yes | AL200: Yes | AN200: Yes | AO200: Yes | AS200: No | AT200: No | AU200: No | AV200: No | AX200: =INDEX($BN200:$CZ200, 1, $BE$21+AX$28) -> No | AY200: No | AZ200: No | BA200: No | BC200: No | BD200: No | BE200: No | BF200: No | BH200: =INDEX($BN200:$CZ200, 1, 5+$BE$21+BH$28) -> No | BI200: No | BJ200: No | BK200: No | BN200: No | BO200: No | BP200: No | BQ200: No | BS200: No | BT200: No | BU200: No | BV200: No | BX200: No | BY200: No | BZ200: No | CA200: No | CC200: No | CD200: No | CE200: No | CF200: No | CH200: No | CI200: No | CJ200: No | CK200: No | CM200: No | CN200: No | CO200: No | CP200: No | CR200: No | CS200: No | CT200: No | CU200: No | CW200: No | CX200: No | CY200: No | CZ200: No | DB200: No | DC200: No | DD200: No | DE200: No | DG200: No | DH200: No | DI200: No | DJ200: No
N201: Transmission Line Voltage | R201: =LOOKUP($R$28,$V$28:$Y$28,V201:Y201) -> ≤115kV | S201: =IF(ISBLANK(AA201),LOOKUP($R$28,$V$28:$Y$28,V201:Y201),AA201) -> ≤115kV | V201: ≤115kV | W201: ≤115kV | X201: ≤115kV | Y201: ≤115kV | AD201: ≤115kV | AE201: ≤115kV | AF201: ≤115kV | AG201: ≤115kV | AH201: ≤115kV | AJ201: ≤115kV | AK201: ≤115kV | AL201: ≤115kV | AN201: ≤115kV | AO201: ≤115kV | AS201: ≤115kV | AT201: ≤115kV | AU201: ≤115kV | AV201: ≤115kV | AX201: ≤115kV | AY201: ≤115kV | AZ201: ≤115kV | BA201: ≤115kV | BC201: ≤115kV | BD201: ≤115kV | BE201: ≤115kV | BF201: ≤115kV | BH201: ≤115kV | BI201: ≤115kV | BJ201: ≤115kV | BK201: ≤115kV | BN201: ≤115kV | BO201: ≤115kV | BP201: ≤115kV | BQ201: ≤115kV | BS201: ≤115kV | BT201: ≤115kV | BU201: ≤115kV | BV201: ≤115kV | BX201: ≤115kV | BY201: ≤115kV | BZ201: ≤115kV | CA201: ≤115kV | CC201: ≤115kV | CD201: ≤115kV | CE201: ≤115kV | CF201: ≤115kV | CH201: ≤115kV | CI201: ≤115kV | CJ201: ≤115kV | CK201: ≤115kV | CM201: ≤115kV | CN201: ≤115kV | CO201: ≤115kV | CP201: ≤115kV | CR201: ≤115kV | CS201: ≤115kV | CT201: ≤115kV | CU201: ≤115kV | CW201: ≤115kV | CX201: ≤115kV | CY201: ≤115kV | CZ201: ≤115kV | DB201: ≤115kV | DC201: ≤115kV | DD201: ≤115kV | DE201: ≤115kV | DG201: ≤115kV | DH201: ≤115kV | DI201: ≤115kV | DJ201: ≤115kV
N202: Terrain Conditions | R202: =LOOKUP($R$28,$V$28:$Y$28,V202:Y202) -> Flat | S202: =IF(ISBLANK(AA202),LOOKUP($R$28,$V$28:$Y$28,V202:Y202),AA202) -> Flat | V202: Flat | W202: Flat | X202: Flat | Y202: Flat | AD202: Flat | AE202: Flat | AF202: Flat | AG202: Flat | AH202: Flat | AJ202: Flat | AK202: Flat | AL202: Flat | AN202: Flat | AO202: Flat | AS202: Flat | AT202: Flat | AU202: Flat | AV202: Flat | AX202: Flat | AY202: Flat | AZ202: Flat | BA202: Flat | BC202: Flat | BD202: Flat | BE202: Flat | BF202: Flat | BH202: Flat | BI202: Flat | BJ202: Flat | BK202: Flat | BN202: Flat | BO202: Flat | BP202: Flat | BQ202: Flat | BS202: Flat | BT202: Flat | BU202: Flat | BV202: Flat | BX202: Flat | BY202: Flat | BZ202: Flat | CA202: Flat | CC202: Flat | CD202: Flat | CE202: Flat | CF202: Flat | CH202: Flat | CI202: Flat | CJ202: Flat | CK202: Flat | CM202: Flat | CN202: Flat | CO202: Flat | CP202: Flat | CR202: Flat | CS202: Flat | CT202: Flat | CU202: Flat | CW202: Flat | CX202: Flat | CY202: Flat | CZ202: Flat | DB202: Flat | DC202: Flat | DD202: Flat | DE202: Flat | DG202: Flat | DH202: Flat | DI202: Flat | DJ202: Flat
N203: Population Density | R203: =LOOKUP($R$28,$V$28:$Y$28,V203:Y203) -> Rural | S203: =IF(ISBLANK(AA203),LOOKUP($R$28,$V$28:$Y$28,V203:Y203),AA203) -> Rural | V203: Rural | W203: Rural | X203: Rural | Y203: Rural | AD203: Rural | AE203: Rural | AF203: Rural | AG203: Rural | AH203: Rural | AJ203: Rural | AK203: Rural | AL203: Rural | AN203: Rural | AO203: Rural | AS203: Rural | AT203: Rural | AU203: Rural | AV203: Rural | AX203: Rural | AY203: Rural | AZ203: Rural | BA203: Rural | BC203: Rural | BD203: Rural | BE203: Rural | BF203: Rural | BH203: Rural | BI203: Rural | BJ203: Rural | BK203: Rural | BN203: Rural | BO203: Rural | BP203: Rural | BQ203: Rural | BS203: Rural | BT203: Rural | BU203: Rural | BV203: Rural | BX203: Rural | BY203: Rural | BZ203: Rural | CA203: Rural | CC203: Rural | CD203: Rural | CE203: Rural | CF203: Rural | CH203: Rural | CI203: Rural | CJ203: Rural | CK203: Rural | CM203: Rural | CN203: Rural | CO203: Rural | CP203: Rural | CR203: Rural | CS203: Rural | CT203: Rural | CU203: Rural | CW203: Rural | CX203: Rural | CY203: Rural | CZ203: Rural | DB203: Rural | DC203: Rural | DD203: Rural | DE203: Rural | DG203: Rural | DH203: Rural | DI203: Rural | DJ203: Rural
N204: Length of Transmission Line | P204: miles | R204: =LOOKUP($R$28,$V$28:$Y$28,V204:Y204) -> 0 | S204: =IF(ISBLANK(AA204),LOOKUP($R$28,$V$28:$Y$28,V204:Y204),AA204) -> 0 | V204: 0 | W204: 0 | X204: 0 | Y204: 0 | AD204: 0 | AE204: 0 | AF204: 0 | AG204: 0 | AH204: 0 | AJ204: 0 | AK204: 0 | AL204: 0 | AN204: 0 | AO204: 0 | AS204: 0 | AT204: 0 | AU204: 0 | AV204: 0 | AX204: 0 | AY204: 0 | AZ204: 0 | BA204: 0 | BC204: 0 | BD204: 0 | BE204: 0 | BF204: 0 | BH204: 0 | BI204: 0 | BJ204: 0 | BK204: 0 | BN204: 0 | BO204: 0 | BP204: 0 | BQ204: 0 | BS204: 0 | BT204: 0 | BU204: 0 | BV204: 0 | BX204: 0 | BY204: 0 | BZ204: 0 | CA204: 0 | CC204: 0 | CD204: 0 | CE204: 0 | CF204: 0 | CH204: 0 | CI204: 0 | CJ204: 0 | CK204: 0 | CM204: 0 | CN204: 0 | CO204: 0 | CP204: 0 | CR204: 0 | CS204: 0 | CT204: 0 | CU204: 0 | CW204: 0 | CX204: 0 | CY204: 0 | CZ204: 0 | DB204: 0 | DC204: 0 | DD204: 0 | DE204: 0 | DG204: 0 | DH204: 0 | DI204: 0 | DJ204: 0
N206: Permitting Process Costs for Power Plant Construction | R206: =LOOKUP($R$28,$V$28:$Y$28,V206:Y206) -> 0 | S206: =IF(ISBLANK(AA206),LOOKUP($R$28,$V$28:$Y$28,V206:Y206),AA206) -> 0 | V206: =IF($AV$25="Reference", IF($AV$26="Greenfield", AS206,IF($AV$26="Brownfield", BC206,"FAIL")), IF($AV$25="Improved", IF($AV$26="Greenfield", AX206,IF($AV$26="Brownfield", BH206,"FAIL")))) -> 0 | W206: =IF($AV$25="Reference", IF($AV$26="Greenfield", AT206,IF($AV$26="Brownfield", BD206,"FAIL")), IF($AV$25="Improved", IF($AV$26="Greenfield", AY206,IF($AV$26="Brownfield", BI206,"FAIL")))) -> 0 | X206: =IF($AV$25="Reference", IF($AV$26="Greenfield", AU206,IF($AV$26="Brownfield", BE206,"FAIL")), IF($AV$25="Improved", IF($AV$26="Greenfield", AZ206,IF($AV$26="Brownfield", BJ206,"FAIL")))) -> 0 | Y206: =IF($AV$25="Reference", IF($AV$26="Greenfield", AV206,IF($AV$26="Brownfield", BF206,"FAIL")), IF($AV$25="Improved", IF($AV$26="Greenfield", BA206,IF($AV$26="Brownfield", BK206,"FAIL")))) -> 0 | AD206: 0 | AE206: 0 | AF206: 0 | AG206: 0 | AH206: 0 | AJ206: 0 | AK206: 0 | AL206: 0 | AN206: 0 | AO206: 0 | AS206: 0 | AT206: 0 | AU206: 0 | AV206: 0 | AX206: =INDEX($BN206:$CZ206, 1, $BE$21+AX$28) -> 0 | AY206: 0 | AZ206: 0 | BA206: 0 | BC206: 0 | BD206: 0 | BE206: 0 | BF206: 0 | BH206: =INDEX($BN206:$CZ206, 1, 5+$BE$21+BH$28) -> 0 | BI206: =INDEX($BN206:$CZ206, 1, 5+$BE$21+BI$28) -> 0 | BJ206: =INDEX($BN206:$CZ206, 1, 5+$BE$21+BJ$28) -> 0 | BK206: =INDEX($BN206:$CZ206, 1, 5+$BE$21+BK$28) -> 0 | BN206: 0 | BO206: 0 | BP206: 0 | BQ206: 0 | BS206: 0 | BT206: 0 | BU206: 0 | BV206: 0 | BX206: 0 | BY206: 0 | BZ206: 0 | CA206: 0 | CC206: 0 | CD206: 0 | CE206: 0 | CF206: 0 | CH206: 0 | CI206: 0 | CJ206: 0 | CK206: 0 | CM206: 0 | CN206: 0 | CO206: 0 | CP206: 0 | CR206: 0 | CS206: 0 | CT206: 0 | CU206: 0 | CW206: 0 | CX206: 0 | CY206: 0 | CZ206: 0 | DB206: 0 | DC206: 0 | DD206: 0 | DE206: 0 | DG206: 0 | DH206: 0 | DI206: 0 | DJ206: 0
N207: Power Plant Parameters
N208: Are calculations to be based upon Fixed Power Sales or Fixed Number of Production Wells? | R208: =LOOKUP($R$28,$V$28:$Y$28,V208:Y208) -> Power Sales | S208: =IF(ISBLANK(AA208),LOOKUP($R$28,$V$28:$Y$28,V208:Y208),AA208) -> Power Sales | V208: =IF($AV$25="Reference", IF($AV$26="Greenfield", AS208,IF($AV$26="Brownfield", BC208,"FAIL")), IF($AV$25="Improved", IF($AV$26="Greenfield", AX208,IF($AV$26="Brownfield", BH208,"FAIL")))) -> Power Sales | W208: Power Sales | X208: Power Sales | Y208: Power Sales | AD208: Power Sales | AE208: Power Sales | AF208: Power Sales | AG208: Power Sales | AH208: Power Sales | AJ208: Power Sales | AK208: Power Sales | AL208: Power Sales | AN208: Power Sales | AO208: Power Sales | AS208: Power Sales | AT208: Power Sales | AU208: Power Sales | AV208: Power Sales | AX208: =INDEX($BN208:$CZ208, 1, $BE$21+AX$28) -> Power Sales | AY208: Power Sales | AZ208: Power Sales | BA208: Power Sales | BC208: Power Sales | BD208: Power Sales | BE208: Power Sales | BF208: Power Sales | BH208: =INDEX($BN208:$CZ208, 1, 5+$BE$21+BH$28) -> Power Sales | BI208: Power Sales | BJ208: Power Sales | BK208: Power Sales | BN208: Power Sales | BO208: Power Sales | BP208: Power Sales | BQ208: Power Sales | BS208: Power Sales | BT208: Power Sales | BU208: Power Sales | BV208: Power Sales | BX208: Power Sales | BY208: Power Sales | BZ208: Power Sales | CA208: Power Sales | CC208: Power Sales | CD208: Power Sales | CE208: Power Sales | CF208: Power Sales | CH208: Power Sales | CI208: Power Sales | CJ208: Power Sales | CK208: Power Sales | CM208: Power Sales | CN208: Power Sales | CO208: Power Sales | CP208: Power Sales | CR208: Power Sales | CS208: Power Sales | CT208: Power Sales | CU208: Power Sales | CW208: Power Sales | CX208: Power Sales | CY208: Power Sales | CZ208: Power Sales | DB208: Power Sales | DC208: Power Sales | DD208: Power Sales | DE208: Power Sales | DG208: Power Sales | DH208: Power Sales | DI208: Power Sales | DJ208: Power Sales
N209: Power Sales | P209: MW | R209: =LOOKUP($R$28,$V$28:$Y$28,V209:Y209) -> 40 | S209: =IF(ISBLANK(AA209),LOOKUP($R$28,$V$28:$Y$28,V209:Y209),AA209) -> 40 | T209: x | V209: 30 | W209: 40 | X209: 25 | Y209: 30 | AD209: Most Likely | AE209: Most Likely | AF209: Most Likely | AG209: Most Likely | AH209: Most Likely | AJ209: Most Likely | AK209: Most Likely | AL209: Most Likely | AN209: Most Likely | AO209: Most Likely | AS209: 30 | AT209: 40 | AU209: 25 | AV209: 30 | AX209: 30 | AY209: 40 | AZ209: 25 | BA209: 30 | BC209: 30 | BD209: 40 | BE209: 25 | BF209: 30 | BH209: 30 | BI209: 40 | BJ209: 25 | BK209: 30 | BN209: 30 | BO209: 40 | BP209: 25 | BQ209: 30 | BS209: 30 | BT209: 40 | BU209: 25 | BV209: 30 | BX209: 30 | BY209: 40 | BZ209: 25 | CA209: 30 | CC209: 30 | CD209: 40 | CE209: 25 | CF209: 30 | CH209: 30 | CI209: 40 | CJ209: 25 | CK209: 30 | CM209: 30 | CN209: 40 | CO209: 25 | CP209: 30 | CR209: 10 | CS209: 13 | CT209: 8 | CU209: 10 | CW209: 10 | CX209: 13 | CY209: 8 | CZ209: 10 | DB209: 50 | DC209: 50 | DD209: 50 | DE209: 60 | DG209: 50 | DH209: 50 | DI209: 50 | DJ209: 60
N210: Enter Number of Wells | P210: well count | R210: =LOOKUP($R$28,$V$28:$Y$28,V210:Y210) -> 4 | S210: =IF(ISBLANK(AA210),LOOKUP($R$28,$V$28:$Y$28,V210:Y210),AA210) -> 4 | V210: =IF($AV$25="Reference", IF($AV$26="Greenfield", AS210,IF($AV$26="Brownfield", BC210,"FAIL")), IF($AV$25="Improved", IF($AV$26="Greenfield", AX210,IF($AV$26="Brownfield", BH210,"FAIL")))) -> 4 | W210: 4 | X210: 4 | Y210: 4 | AD210: 4 | AE210: 4 | AF210: 4 | AG210: 4 | AH210: 4 | AS210: 4 | AT210: 4 | AU210: 4 | AV210: 4 | AX210: 4 | AY210: 4 | AZ210: 4 | BA210: 4 | BC210: 4 | BD210: 4 | BE210: 4 | BF210: 4 | BH210: 4 | BI210: 4 | BJ210: 4 | BK210: 4 | BN210: 4 | BO210: 4 | BP210: 4 | BQ210: 4 | BS210: 4 | BT210: 4 | BU210: 4 | BV210: 4 | BX210: 4 | BY210: 4 | BZ210: 4 | CA210: 4 | CC210: 4 | CD210: 4 | CE210: 4 | CF210: 4 | CH210: 4 | CI210: 4 | CJ210: 4 | CK210: 4 | CM210: 4 | CN210: 4 | CO210: 4 | CP210: 4 | CR210: 4 | CS210: 4 | CT210: 4 | CU210: 4 | CW210: 4 | CX210: 4 | CY210: 4 | CZ210: 4 | DB210: 4 | DC210: 4 | DD210: 4 | DE210: 4 | DG210: 4 | DH210: 4 | DI210: 4 | DJ210: 4
N211: Number of independent power units | R211: =LOOKUP($R$28,$V$28:$Y$28,V211:Y211) -> 1 | S211: =IF(ISBLANK(AA211),LOOKUP($R$28,$V$28:$Y$28,V211:Y211),AA211) -> 1 | V211: 1 | W211: 1 | X211: 1 | Y211: 1 | AS211: 1 | AT211: 1 | AU211: 1 | AV211: 1 | AX211: 1 | AY211: 1 | AZ211: 1 | BA211: 1 | BC211: 1 | BD211: 1 | BE211: 1 | BF211: 1 | BH211: 1 | BI211: 1 | BJ211: 1 | BK211: 1 | BN211: 1 | BO211: 1 | BP211: 1 | BQ211: 1 | BS211: 1 | BT211: 1 | BU211: 1 | BV211: 1 | BX211: 1 | BY211: 1 | BZ211: 1 | CA211: 1 | CC211: 1 | CD211: 1 | CE211: 1 | CF211: 1 | CH211: 1 | CI211: 1 | CJ211: 1 | CK211: 1 | CM211: 1 | CN211: 1 | CO211: 1 | CP211: 1 | CR211: 1 | CS211: 1 | CT211: 1 | CU211: 1 | CW211: 1 | CX211: 1 | CY211: 1 | CZ211: 1 | DB211: 1 | DC211: 1 | DD211: 1 | DE211: 1 | DG211: 1 | DH211: 1 | DI211: 1 | DJ211: 1
N212: Binary Power Plant
N213: Use the calculated performance or input brine effectiveness? | R213: Calculate | S213: Calculate
N214: Default Scenario Plant Cost
N215: Major Component Costs
... 65 more rows

Sheet Scenario Definition
D1: filter
A3: =IN!A4 -> 0 | J3: Revised Scenario | K3: GETEM Default | AG3: Power Sales | AH3: Fixed Charge Rate | AI3: Yes | AJ3: Greenfield | AK3: Smaller Diameter | AL3: Perforated / Slotted Liner | AM3: Cost Curves | AN3: % of Costs | AO3: Fixed Cost | AP3: Calculate | AQ3: =IF(A3=1,"No","Yes") -> Yes | AR3: Well Count | AS3: Injection | AT3: 1 | AU3: Submersible | AV3: surface | AW3: Lineshaft | AX3: Yes | BA3: $/acre | BB3: acre | BC3: ft | BD3: psi | BE3: inch | BF3: $/ft | BG3: kg/s | BH3: kg/s-bar | BI3: C | BJ3: $/acre-ft | BL3: mile | BM3: $/mile | BN3: w-hr/lb,gf | BO3: psi | BQ3: $/gal | BR3: F
A4: =IN!A9 -> 0 | H4: Estimated LCOE | I4: ₵/kW-hr | J4: ='Start Here'!E2 -> 7.009738834 | K4: ='Start Here'!H2 -> 6.99391475 | AG4: Production Wells | AH4: EERE - Simple Discounted Cash Flow | AI4: =IF(A3=1,"Yes","No") -> No | AJ4: Field Expansion | AK4: Larger Diameter | AL4: Open Hole | AM4: GETEM Estimate | AN4: Lump Sum | AO4: Calculated | AP4: Input | AQ4: No | AR4: Confirmed Capacity | AS4: Production | AT4: 2 | AU4: Lineshaft | AV4: direct contact | AW4: Submersible | AX4: No | BA4: $/hectare | BB4: hectare | BC4: meter | BD4: bar | BE4: cm | BF4: $/m | BG4: lb/hr | BH4: lb/hr-psi | BI4: F | BJ4: $/m^3 | BL4: km | BM4: $/km | BN4: kW-s/kg,gf | BO4: bar | BQ4: $/liter | BR4: C
H5: Power Sales | I5: kW | J5: ='Start Here'!E3 -> 40000 | K5: ='Start Here'!H3 -> 40000 | AS5: Both | BG5: gpm | BH5: gpm/psi
H6: Power Plant Output | I6: kW | J6: =OUT!H437*1000 -> 41602.68237 | K6: =OUT!G437*1000 -> 41602.68237
H7: Errors/Warnings | J7: ='Error-Warnings'!E3 -> 3
H8: If you wish to change any of the parameters for the evaluated scenario, enter the value in the cell with yellow background. If the default is acceptable, leave the cell blank. If not blank, GETEM will use the value in the cell, even if 0 or negative.
D10: =SUM(D11:D16) -> 0 | J10: Revised Value | K10: GETEM Default
C11: x | D11: =IF(ISBLANK(J11),0,IF(J11=AG3,0,1)) -> 0 | H11: Is Project Evaluated Based on Power Sales or Production Well Count | J11: Power Sales | K11: =IN!H210 -> Power Sales | N11: =IF(AND(IN!B210=0,B13=1),"The power sales specified exceeds the resource potential identified (see Exploration Input)"," ") -> 
B13: =IF(J13>IN!I46,1,0) -> 0 | C13: x | D13: =IF(ISBLANK(J13),0,IF(J13=K13,0,1)) -> 0 | H13: Power Sales | I13: MW | K13: =IN!H10 -> 40
M14: =IF(IN!I11<'Well Count'!A15,"The input exceeds the number of successful exploration wells drilled - if you wisht to use this input, revise (reduce) the number of successful exploration wells drilled"," ") -> 
H15: Number of Production Wells | I15: count | J15: 1
D50: =SUM(D53:D78) -> 0 | E50: =COUNT(D51:D78) -> 19 | H50: ECONOMIC | J50: Revised Value | K50: GETEM Default
H51: General Project Variables :
H52: Year of Estimate (PPI's) | I52: =IF(K53>K52,"The PPI's for year inputted are not finalized"," ") ->  | K52: ='Tables (up)'!A8 -> 2019 | M52: This is default - the most current year with final PPI's.
D53: =IF(ISBLANK(K53),0,IF(K53=K52,0,1)) -> 0 | M53: This is the year to be evaluated. PPI's for this year will be used, along with any technology improvements that have been defined since 2012.
H54: Technology Reference Year | K54: =K53 -> 0
D55: =IF(ISBLANK(J55),0,IF(J55=K55,0,1)) -> 0 | H55: Contingency | I55: % | K55: =IN!H17 -> 0.15
D56: 0 | H56: Royalty (thru Yr 10) | I56: % | K56: =IN!H18 -> 0.0175 | M56: These are BLM royalty rates
D57: 0 | H57: Royalty (after Yr 10) | K57: =IN!H19 -> 0.035
D58: 0 | H58: Discount Rate During Operation | I58: % | K58: =IN!H20 -> 0.07 | M58: The discount and tax rates are consistent with those utilized by DOE EERE
D59: 0 | H59: Effective Tax Rate | I59: % | K59: =IN!H21 -> 0.392
D60: 0 | H60: Net Capacity Factor | K60: =IN!H22 -> 0.95
D61: 0 | H61: Project Life (Period of Operation) | I61: yr(s) | K61: =IN!H23 -> 30 | M61: The model allows for evaluation with a project life up to 40 yr.
M62: A simplified cash flow analysis to determine GETEM's LCOE. The prior approach that used a Fixed Charge Rate is retained and can be used, but those estimates are not used in the results summaries. (They are shown on Flash/Binary Output Sheets)
A63: =IF(J63=AH3,1,0) -> 0 | H63: Method used to Calculate Cost of Electricity | J63: EERE - Simple Discounted Cash Flow
D64: =IF(ISBLANK(J64),0,IF(J64=K64,0,1)) -> 0 | H64: Calculations based on Fixed Charge Rate (FCR) of | K64: =IN!H24 -> 0.108
H65: Pre-Operation Discount Rates
D66: =IF(ISBLANK(J66),0,IF(J66=K66,0,1)) -> 0 | H66: Discount Rate for Exploration | K66: =IN!H36 -> 0.07
D67: =IF(ISBLANK(J67),0,IF(J67=K67,0,1)) -> 0 | H67: Discount Rate for Drilling (including Stimulation) | K67: =IN!H37 -> 0.07
D68: =IF(ISBLANK(J68),0,IF(J68=K68,0,1)) -> 0 | H68: Discount Rate for Field Gathering System | K68: =IN!H38 -> 0.07 | M68: Install surface equipment (exclusive of plant) & geothermal pumps
D69: =IF(ISBLANK(J69),0,IF(J69=K69,0,1)) -> 0 | H69: Discount Rate for Plant Construction & Startup | K69: =IN!H39 -> 0.07
D70: =IF(OR(D66=1,D67=1),IF(ISBLANK(J70),0,IF(J70=K70,0,1)),0) -> 0 | H70: Re-finance Exploration & Drilling Costs When PPA Obtained | K70: =IN!H40 -> No | M70: If yes, all prior exploration & drilling costs are discounted at same rate as power plant during period of plant construction
H72: Project Schedule & Durations : | J72: SCHEDULE | K72: Use this link to view revised schedule (or default if no changes made)
D73: =IF(ISBLANK(J73),0,IF(J73=K73,0,1)) -> 0 | H73: Duration of Exploration Phase | I73: yr(s) | K73: =IN!H28 -> 1 | M73: Once the exploration is completed, the model assumes that remaining activities are staged with some occurring concurrently. That is why the total project duration does not equal the sum of the time allotted for each phase.
D74: =IF(ISBLANK(J74),0,IF(J74=K74,0,1)) -> 0 | H74: Duration of Drilling Phase | I74: yr(s) | K74: =IN!H29 -> 1
D75: =IF(ISBLANK(J75),0,IF(J75=K75,0,1)) -> 0 | H75: Duration of Field Gathering System (exclusive of geothermal pumps) | I75: yr(s) | K75: =IN!H31 -> 0.5
D76: =IF(ISBLANK(J76),0,IF(J76=K76,0,1)) -> 0 | H76: Duration of Plant Design & Finalizing PPA | K76: =IN!H32 -> 1
D77: =IF(ISBLANK(J77),0,IF(J77=K77,0,1)) -> 0 | H77: Duration of Plant Construction & Startup | I77: yr(s) | K77: =IN!H33 -> 1.5
H78: Total Time for Project to Startup | I78: yr(s) | J78: =OUT!H61 -> 4.5 | K78: =OUT!G61 -> 4.5
D100: =SUM(D101:D105) -> 0 | E100: =COUNT(D101:D105) -> 5 | H100: PERMITTING | J100: Revised Value | K100: GETEM Default
D101: =IF(ISBLANK(J101),0,IF(J101=K101,0,1)) -> 0 | H101: Duration of Permitting for Exploration & Early Drilling Activities | I101: yr(s) | K101: =IN!H27 -> 1 | L101: Default assumes exploration drilling and initial field drilling are under the same permit (obtained for each exploration site drilled). Model assumes that permitting occurs prior to any exploration activity.
D102: =IF(ISBLANK(J102),0,IF(J102=K102,0,1)) -> 0 | H102: Permitting Costs for Pre-Drilling Activities | I102: per site | K102: =IN!H50 -> 67347.36842
D103: =IF(ISBLANK(J103),0,IF(J103=K103,0,1)) -> 0 | H103: Permitting Costs for Drilling - Exploration & Early Drilling | I103: per site | K103: =IN!H64 -> 280614.0351
D104: =IF(ISBLANK(J104),0,IF(J104=K104,0,1)) -> 0 | H104: Duration of Permitting for Plant/Field (Utilization Permit) | I104: yr(s) | K104: =IN!H30 -> 1 | L104: Model assumes that plant and well field are permitted at same time. This permitting occurs prior to obtaining a PPA.
D105: =IF(ISBLANK(J105),0,IF(J105=K105,0,1)) -> 0 | H105: Permitting (Utilization Permit) Cost for Well Field & Power Plant | K105: =IN!H99 -> 1122456.14
D150: =SUM(D151:D173) -> 0 | E150: =COUNT(D151:D173) -> 17 | H150: EXPLORATION | J150: Revised Value | K150: GETEM Default
D151: =IF(ISBLANK(J151),0,IF(J151=K151,0,1)) -> 0 | H151: Resource type being developed | K151: =IN!H45 -> Greenfield | L151: Input only used in checking consistency of inputs provided
A152: =IN!B53 -> 0 | D152: 0 | H152: Will the Project have Exploration Drilling? | K152: =IN!H53 -> Yes
H153: Exploration - Pre-Drilling Costs :
D154: 0 | H154: Number of Locations Evaluated Before Exploration Drilling Begins | I154: per project | K154: =IN!H49 -> 1
D155: 0 | H155: Lump Sum Cost for Pre-Drilling Exploration Activities at each site | I155: per site | K155: =IN!H51 -> 1049016.453 | L155: =IF(IN!I49<IN!I54,"The number of sites evaluated should equal or exceed the number of sites having drilling"," ") -> 
H156: Exploration - Drilling Costs :
A157: #wells drilled | B157: =OUT!H93 -> 4 | D157: 0 | H157: Number of Sites where Exploration Drilling Occurs | I157: per project | K157: =IN!H54 -> 1 | L157: Small diameter wells are drilled are all sites having drilling; sites also having full-sized drilling are identified below
A158: # suc wells | B158: =OUT!H95 -> 3 | D158: 0 | H158: Site Exploration Drilling Cost - small diameter wells (includes all temperature gradient, slim hole, core hole) | I158: per site | K158: =IN!H55 -> 3233825.052 | L158: =IF(IN!I54<IN!I56,"The number of sites with small diameter drilling should equal or exceed the number of sites where full-sized wells are drilled"," ") -> 
D159: =IF(ISBLANK(J159),0,IF(J159=K159,0,1)) -> 0 | H159: Number of sites with full-sized wells drilled | K159: =IN!H56 -> 1 | L159: Number of sites with full-size diameter wells drilled
D160: =IF(ISBLANK(J160),0,IF(J160=K160,0,1)) -> 0 | H160: Number of full-size wells drilled at each unsuccessful site | I160: wells/site | K160: =IN!H57 -> 1 | L160: Wells at unsuccessful site not used to support plant - no cost to abandon
H161: Exploration Drilling at Developed Site
A162: # stim | B162: =IN!I62 -> 2 | D162: 0 | H162: Number of full-sized wells drilled to get each successful well | K162: =IN!H59 -> 1.333333333 | L162: It is assumed that full-sized wells will be drilled. The number drilled to get success is effectively the drilling success rate.
A163: well stim | B163: =IN!B94 -> 3 | D163: 0 | H163: Cost multiplier for full-sized test wells (> 1) | K163: =IN!H60 -> 1
A164: =IF(AND(A3=1,A152=0,B158<2),1,0) -> 0 | D164: 0 | H164: =IF(AND(A152=0,A3=1,B158<2),"Two or more successful EGS wells Required",IF(OR(ISBLANK(J164),J164>0,A152=1),"Number of successful full-sized wells required to move to Drilling Phase","Successful Full Size wells required")) -> Number of successful full-sized wells required to move to Drilling Phase | K164: =IN!H61 -> 3 | L164: =IF('Error-Warnings'!D5>0,"Need to revise # successful wells to be < inputted number of production wells"," ") -> 
H165: Default # wells stimulated for input provided | J165: ='DEFAULT Inputs'!S95 -> 2 | K165: Link: Well Type Stimulated | L165: Type of well stimulated is identified as input for 'Drilling' phase. If input is provided to stimulate both production and injection wells during the Drilling Phase, then all successful wells drilled during this phase will be successfully stimulated. The default is one stimulation fails.
A166: =IF(ISBLANK(J166),0,IF(AND(J166=0,A3=1),1,IF(AND(A152=1,B163>0),1,IF(B162>B157,1,IF(AND(B162=1,OR(B163=1,B163=2)),1,IF(AND(B163=3,B162<=B158),1,0)))))) -> 0 | D166: 0 | H166: =IF(ISBLANK(J166),"Number of full-sized wells stimulated during Exploration Phase",IF(AND(J166=0,A3=1),"One well must be successfully stimulated",IF(A152=1,"Input ignored - no wells drilled",IF(B162>B157,"More Wells Stimulated than Drilled",IF(OR(AND(B162=1,OR(B163=1,B163=2)),AND(B163=3,B162=B158)),"No Stimulation Failures",IF(AND(B163=3,B162<B158),"Both well types stimulated, # stimulations < # successful wells","Number of full-sized wells stimulated during Exploration Phase")))))) -> Number of full-sized wells stimulated during Exploration Phase | K166: =IN!H62 -> 2
H167: Leasing Cost
B168: =IF(I168=BB3,0,1) -> 0 | D168: =IF(ISBLANK(J168),0,IF(J168=K168,0,1)) -> 0 | H168: land area per well | I168: acre | K168: =IF('Scenario Definition'!B168=0,IN!H65,IN!H66) -> 2600
B169: =IF(I169=BA3,1,0) -> 1 | D169: 0 | H169: lease cost | I169: $/acre | K169: =IF(B169=0,IN!H68,IN!H67) -> 35
D170: =IF(ISBLANK(J170),0,IF(J170=K170,0,1)) -> 0 | H170: Additional costs Incurred during Exploration Drilling (% of total drilling/stimulation costs) | K170: =IN!H69 -> 0.036 | L170: Cost for technical support, testing, and indirect costs incurred
H171: Default potential for Revised Scenario | J171: =2*OUT!H437+1 -> 84.20536474 | L171: Used to determine whether makeup drilling is possible. Default values allow for 1 re-drill of well field
D172: =IF(ISBLANK(J172),0,IF(J172=J171,0,1)) -> 0 | H172: Potential Resource found by Exploration activities | I172: MW | K172: =IN!H46 -> 84.20536474
D173: =IF(ISBLANK(J173),0,IF(J173=K173,0,1)) -> 0 | H173: Are Exploration costs to be proportioned based on Potential Resource? | K173: =IN!H47 -> No | L173: Not recommended for EGS resources
H177: TOTAL COST FOR EXPLORATION PHASE | J177: =OUT!H115 -> 19803762.9 | K177: =OUT!G115 -> 19803762.9 | L177: This cost includes permitting
J199: Revised Value | K199: GETEM Default
D200: =SUM(D201:D237) -> 0 | E200: =COUNT(D159:D237) -> 35 | H200: DRILLING ACTIVITIES
H201: Well Field Details:
D202: =IF(ISBLANK(J202),0,IF(J202=K202,0,1)) -> 0 | H202: Drilling Success Rate | K202: =IN!H75 -> 0.9 | M202: =IF(IN!A4=0,"Hydrothermal default from Sanyal Stanford paper (2012)"," ") -> Hydrothermal default from Sanyal Stanford paper (2012)
A203: =IN!A76 -> 1 | D203: 0 | H203: Will new wells be required for fluid disposal (injection)? | K203: =IN!H76 -> Yes | M203: Unless the project is utilizing existing injection disposal system, use default
A204: =IN!A77 -> 1 | D204: 0 | H204: Are unsuccessful wells to be used to supplement injection? | K204: =IN!H77 -> Yes | M204: =IF(AND(A3=1,A204=1),"Is not used with EGS resources","Used with hydrothermal resources that do not have well stimulation.") -> Used with hydrothermal resources that do not have well stimulation.
D205: =IF(ISBLANK(J205),0,IF(J205=K205,0,1)) -> 0 | H205: Productivity of unsuccessful wells relative to successful wells | K205: =IN!H78 -> 0.3 | M205: =IF(A204=1,"Larger value will result in fewer successful injeciton wells required"," ") -> Larger value will result in fewer successful injeciton wells required
D206: =IF(ISBLANK(J206),0,IF(J206=K206,0,1)) -> 0 | H206: Production to Injection Flow Ratio for Successful Wells | K206: =IN!H79 -> 0.75 | M206: If ratio too small (injection flow too high), pumping power may exceed plant power. (If failed wells not used this is ratio of injection to production wells.)
D207: =IF(ISBLANK(J207),0,IF(J207=K207,0,1)) -> 0 | H207: Number of Spare Production Wells | I207: count | K207: =IN!H80 -> 0 | M207: These are assumed to be successful Production wells that are not used.
D208: =IF(ISBLANK(J208),0,IF(J208=K208,0,1)) -> 0 | H208: Injection Well Depth | I208: meter | K208: =IF(I208=BC3,IN!G8,IN!G7) -> 5000 | M208: With EGS resources, default depth (production well depth) should be used
D209: =IF(ISBLANK(J209),0,IF(J209=K209,0,1)) -> 0 | H209: Well Field Capacity Needed to Obtain PPA | K209: =IN!H82 -> 0.6 | M209: Fraction of production and injection capacity needed to get a PPA
H210: Drilling Costs
H211: Well Configuration
D212: 0 | H212: Production Well size | K212: =IN!H84 -> Smaller Diameter | M212: The cost curves that are used to estimate drilling costs are dependent upon which of the well sizes is selected. The production/injection interval configuration is used in estimating friction losses in well - does not impact cost
D213: 0 | H213: Injection Well size | K213: =IN!H85 -> Smaller Diameter
D214: 0 | H214: Production Interval Configuration | K214: =IN!H86 -> Open Hole
D215: 0 | H215: Injection Interval Configuration | K215: =IN!H87 -> Open Hole
H216: Well Cost Estimates
H217: Cost estimate for revised production well configuration | J217: =OUT!H194 -> 2850868.115 | M217: Values above the input cells are the default costs for the revised well configuration. Note that GETEM's well costs have built in contingency and no additional contingency is added. Any inputted costs should also include a level of contingency the User deems appropriate.
D218: =IF(ISBLANK(J218),0,IF(J218=J217,0,1)) -> 0 | H218: Production Well | I218: per well | J218: =J217*'DEFAULT Inputs'!$S$120 -> 2850868.115 | K218: =IN!H89 -> 2850868.115
H219: Cost estimate for revised injection well configuration | J219: =OUT!H201 -> 2850868.115
D220: =IF(ISBLANK(J220),0,IF(J220=J219,0,1)) -> 0 | H220: Injection Well | I220: per well | J220: =J219*'DEFAULT Inputs'!$S$120 -> 2850868.115 | K220: =IN!H90 -> 2850868.115
D222: =IF(ISBLANK(J222),0,IF(J222=K222,0,1)) -> 0 | H222: How are Revised Scenario costs for drilling wells determined ? | K222: =IN!H91 -> Cost Curves | M222: This alternative method is not recommended unless examining the relative benefits of specific drilling technology improvements. To use "Unhide" the following work sheets - 'Well Cost Input', 'Well Default Calculations', 'Well Revised Calculations' & ' Well Cost Summary'
H223: If GETEM Estimate is Used click on this hyperlink to go to input for that model | J223: GETEM Estimate
H224: Stimulation Costs | K224: Link: Exploration Stimulation
A225: =IN!B93 -> 1 | D225: =IF(ISBLANK(J225),0,IF(J225=K225,0,1)) -> 0 | H225: Are Wells Stimulated | K225: =IN!H93 -> Yes | M225: The total cost estimates for well stimulation are based on a inputted cost per well stimulated. The model default is only EGS injection wells are stimulated.
A226: =IF(AND(A225=1,A3=0,ISBLANK(J226)),1,0) -> 1 | D226: =IF(ISBLANK(J226),0,IF(J226=K226,0,1)) -> 0 | H226: =IF(A226=1,"You must identify which wells will be stimualted with Hydrothermal","If yes, which wells are to be stimulated?") -> You must identify which wells will be stimualted with Hydrothermal | K226: =IF(IN!H94=0,"NA",IN!H94) -> Both
H227: If wells are stimulated, the model default for injection well simulation | J227: =IF(IN!B93=1,'DEFAULT Inputs'!X124,0)*'DEFAULT Inputs'!AB124*IF(ISBLANK('DEFAULT Inputs'!AA124),1,'DEFAULT Inputs'!AA124) -> 1117666.889
D228: =IF(ISBLANK(J228),0,IF(J228=J227,0,1)) -> 0 | H228: Well Stimulation Cost | I228: $/well | K228: =IN!H95 -> 1117666.889
H229: If wells are stimulated, the model default for stimulation success rate | J229: =IF(IN!B93=1,'DEFAULT Inputs'!X125,0)*IF(ISBLANK('DEFAULT Inputs'!AA125),1,'DEFAULT Inputs'!AA125) -> 0.9 | M229: This success rate multiplied by the default EGS drilling success rate produces a combined value that is equivalent to that for Hydrothermal (Sanyal, Stanford 2012)
D230: =IF(ISBLANK(J230),0,IF(J230=J229,0,1)) -> 0 | H230: Stimulation Success Rate | K230: =IN!H96 -> 0.9
H231: Other Costs
H232: Well Testing
D233: =IF(ISBLANK(J233),0,IF(J233=K233,0,1)) -> 0 | H233: Well Testing Cost at each site | I233: per site | K233: =IN!H98 -> 162591.2352
H234: Indirect Costs (non-drilling costs)
A235: =IN!B100 -> 1 | D235: =IF(ISBLANK(J235),0,IF(J235=K235,0,1)) -> 0 | H235: How are indirect drilling costs to be determined ? | K235: =IN!H100 -> % of Costs
D236: =IF(ISBLANK(J236),0,IF(J236=K236,0,1)) -> 0 | H236: Percentage of Drilling Phase costs | K236: =IN!H101 -> 0.05
D237: =IF(ISBLANK(J237),0,IF(J237=K237,0,1)) -> 0 | H237: Lump Sum (for all sites)
H239: TOTAL COST FOR DRILLING PHASE | J239: =OUT!H235 -> 26351939.81 | K239: =OUT!G235 -> 25962236.86 | M239: This cost includes permitting cost for well field completion and power plant
D250: =SUM(D251:D281) -> 0 | E250: =COUNT(D251:D281) -> 17 | H250: GEOFLUID GATHERING SYSTEM & PUMPING | J250: Revised Value | K250: GETEM Default | M250: The input in this section is used to estimate the costs for the surface equipment, including the geothermal pumps
H251: Surface Equipment Costs
A252: =IF(OR(ISBLANK(J252),J252=K252),1,0) -> 1 | D252: =IF(ISBLANK(J252),0,IF(J252=K252,0,1)) -> 0 | H252: How are surface equipment costs determined? | K252: =IN!H106 -> Calculated
H253: If Calculated, provide the following
D254: =IF(ISBLANK(J254),0,IF(J254=K254,0,1)) -> 0 | H254: Average distance from well to plant | I254: meter | K254: =IF(I254=IN!F110,IN!H110,IN!H111) -> 750 | M254: Values are used to estimate the diameter of pipe needed. This diameter (and length) used to estimate cost.
D255: =IF(ISBLANK(J255),0,IF(J255=K255,0,1)) -> 0 | H255: Maximum pressure drop in Surface Piping | I255: psi | K255: =IF(I255=IN!F112,IN!H112,IN!H113) -> 5
H256: Estimated surface equipment cost | I256: $/well | J256: =OUT!H244 -> 539162.7962
D257: =IF(ISBLANK(J257),0,IF(J257=J256,0,1)) -> 0 | H257: Enter surface equipment costs to be used | I257: $/well | K257: =IN!H114 -> 539162.7962
H258: Total surface equipment costs (exclusive of geothermal pumps) | J258: =OUT!G248 -> 5493609.885 | K258: =OUT!H248 -> 5493609.885
H259: Geothermal Pumping Costs
D260: =IF(ISBLANK(J260),0,IF(J260=K260,0,1)) -> 0 | H260: Pump & Driver Efficiency for Production and Injection Pump | K260: =IN!H117 -> 0.675
H261: Production Pump :
A262: =IF(OR(ISBLANK(J262),J262=AI3),1,0) -> 1 | C262: ='GF Pumping'!A364 -> 1 | D262: =IF(ISBLANK(J262),0,IF(J262=K262,0,1)) -> 0 | H262: Are Production Wells pumped ? | K262: =IN!H118 -> No | M262: =IF(C262,"Estimate flashing is occuring in production well",IF(AND(A4=1,A262=0),"Input indicates no pumping with Binary Plant?"," ")) -> Estimate flashing is occuring in production well
H263: Calculation Pump Depth :
B264: =IF(I264=BD3,1,0) -> 1 | D264: =IF(ISBLANK(J264),0,IF(J264=K264,0,1)) -> 0 | H264: Excess Pressure at pump Suction and/or well head | I264: psi | K264: =IF(B264=1,IN!H121,IN!H122) -> 50 | M264: Provides NPSH for pump, keeps ngc's in solution & ΔP allowance between well and plant
B265: =IF(I265=BE3,1,0) -> 1 | D265: =IF(ISBLANK(J265),0,IF(J265=K265,0,1)) -> 0 | H265: Diameter of production pump casing | I265: inch | K265: =IF(B265=1,IN!H124,IN!H125) -> 9.625 | M265: =IF(J265>K265,"Inputted diamter too large for well configuration defined"," ") -> 
H266: Pump Depth Calculated Based on Revised Input | J266: =IF(B267=1,'GF Pumping'!M342,'GF Pumping'!J342) -> 366.6050201 | M266: The calculated depth is based on Revised Input
B267: =IF(I267=BC3,1,0) -> 1 | D267: =IF(ISBLANK(J267),0,IF(J267=J266,0,1)) -> 0 | H267: =IF(A3=1,"Can not change calculated set depth with EGS","Production Pump setting depth") -> Production Pump setting depth | I267: ft | K267: =IF(B267=1,IN!H127,IN!H128) -> 0 | M267: =IF(IN!I127>IN!G8,"Inputted/calculated depth exceeds resource depth",IF(ISBLANK(J267)," ",IF(J267<J266,"The inputted depth likely to produce flashing in production casing"," "))) -> 
H268: Installation Cost
D269: =IF(ISBLANK(J269),0,IF(J269=K269,0,1)) -> 0 | H269: Work over Rig | I269: $/day | K269: =IN!H136 -> 0 | M269: Default costs will be shown if one of two scenarios is 'pumped'
B270: =IF(I270=BF3,1,0) -> 1 | D270: =IF(ISBLANK(J270),0,IF(J270=K270,0,1)) -> 0 | H270: Installation Cost | I270: $/ft | K270: =IF(B270=1,IN!H134,IN!H135) -> 0
B271: =IF(I271=BF3,1,0) -> 1 | D271: =IF(ISBLANK(J271),0,IF(J271=K271,0,1)) -> 0 | H271: Casing Cost | I271: $/ft | K271: =IF(B271=1,IN!H132,IN!H133) -> 0 | M271: Default assumes K55 grade casing
H272: Installed Pump Cost Calculated Based on Revised Input | J272: =OUT!H605 -> 0 | M272: =IF(J272=K273," ","The calculated cost based on the Revised Input will be used unless value is entered") -> 
D273: =IF(ISBLANK(J273),0,IF(J273=J272,0,1)) -> 0 | H273: Installed Production Pump Cost | I273: per well | K273: =OUT!G605 -> 0
H274: Injection Pump :
D275: =IF(ISBLANK(J275),0,IF(J275=K275,0,1)) -> 0 | H275: Surface Equipment ΔP for binary conversion system | I275: psi | K275: =IF(I275=BD3,IN!H141,IN!H142) -> 40 | M275: =IF(IN!I141>IN!I121,"Warning - ΔP in plant exceeds excess well head pressure"," ") -> 
D276: =IF(ISBLANK(J276),0,IF(J276=K276,0,1)) -> 0 | H276: Excess Pressure in Injection Well | I276: psi | K276: =IF(I276=BD3,IN!H144,IN!H145) -> 1 | M276: This is pressure in excess of the model's calculation of that needed to overcome hydrostatic and reservoir buildup
H277: Estimated cost based on Revised Scenario Input | J277: =OUT!H630 -> 1001844.259 | N277: =IF(J277=K278," ","The calculated cost based on the Revised Input will be used unless value is entered") -> 
D278: =IF(ISBLANK(J278),0,IF(J278=J277,0,1)) -> 0 | H278: Installed Injection Pump Cost | I278: total | J278: =J277*'DEFAULT Inputs'!S157 -> 1001844.259 | K278: =IN!H146 -> 1001844.259
H279: Total geothermal pump costs | J279: =OUT!H257 -> 1001844.259 | K279: =OUT!G257 -> 1001844.259
D281: =IF(ISBLANK(J281),0,IF(J281=K281,0,1)) -> 0 | H281: Other Costs (% of GF Gathering System & Pump Costs) | K281: =IN!H148 -> 0.12 | M281: Same value as used for Plant Construction
H283: TOTAL COST FOR GATHERING SYSTEM | J283: =OUT!H267 -> 7381197.891 | K283: =OUT!G267 -> 7381197.891
D300: =SUM(D301:D314) -> 0 | E300: =COUNT(D301:D314) -> 9 | H300: RESERVOIR PERFORMANCE | J300: Revised Value | K300: GETEM Default
H301: Well Flow Rate
D302: =IF(ISBLANK(J302),0,IF(J302=K302,0,1)) -> 0 | H302: Production Well Flow Rate | I302: gpm | K302: =IF(I302=IN!F153,IN!H153,IF('Scenario Definition'!I302=IN!F154,IN!H154,IN!H155)) -> 1520.975926
H303: Hydraulic Drawdown
D304: =IF(ISBLANK(J304),0,IF(J304=K304,0,1)) -> 0 | H304: Productivity Index | I304: lb/hr-psi | K304: =IF(I304=IN!F158,IN!H158,IF('Scenario Definition'!I304=IN!F159,IN!H159,IN!H160)) -> 2500
D305: 0 | H305: Injectivity Index | I305: lb/hr-psi | K305: =IF(I305=IN!F161,IN!H161,IF('Scenario Definition'!I305=IN!F162,IN!H162,IN!H163)) -> 2500 | M305: This value for wells drilled specifically as injection wells
H306: Thermal Drawdown | M306: If the temperature decline exceeds the maximum indicated, the model replaces the well field (is sufficient potential was found and does not occur in last 5 yr of project life).
D307: 0 | H307: Annual Rate of Decline | I307: %/yr | K307: =IN!H170 -> 0.005
D308: 0 | H308: Maximum Temperature Decline Allowed | I308: C | K308: =IF(I308=BI3,IN!H167,IN!H168) -> 35.05
H309: Makeup Water | M309: EGS always has makeup for subsurface and surface water losses (surface water losses are those associated with cooling towers.)
D310: 0 | H310: Is water loss for Flash plant cooling system to be made-up? | K310: =IN!H172 -> No | M310: Default will be no when Binary plants used. Provides option to makeup water with Hydrothermal Flash systems.
D311: 0 | H311: EGS: Subsurface Water loss as % of injected flow (> 0) | K311: =IN!H173 -> 0 | M311: =IF(AND(A3=0,A4=1),"Any input given for water loss or makeup cost is ignored for hydrothermal Hydrothermal air-cooled binary plants","Default makeup water costs are lower for EGS binary and Hydrothermal flash plants. It is assumed higher quality water is required for EGS flash") -> Default makeup water costs are lower for EGS binary and Hydrothermal flash plants. It is assumed higher quality water is required for EGS flash
D312: =IF(ISBLANK(J312),0,IF(J312=K312,0,1)) -> 0 | H312: Makeup Water cost | I312: $/acre-ft | K312: =IF(I312=BJ3,IN!H174,IN!H175) -> 300
J313: Water Loss | K313: Use link on this row to return to O&M Cost input
D314: =IF(ISBLANK(J314),0,IF(J314=K314,0,1)) -> 0 | H314: Flow into/out of multiple zones in production/injection interval? | K314: =IN!H156 -> No | M314: If yes, it is assumed that flow enters/leaves along entire length of production/injection interval (sedimentary reservoirs)
D350: =SUM(D351:D369) -> 0 | E350: =COUNT(D351:D369) -> 9 | H350: OPERATIONS & MAINTENANCE | J350: Revised Value | K350: GETEM Default
D351: =IF(ISBLANK(J351),0,IF(J351=K351,0,1)) -> 0 | H351: Input or calculate O&M contribution | K351: =IN!H180 -> Calculate | M351: The default values shown are calculated costs that include the GF pump O&M and taxes & insurance, but not Royalties. Input provided for Revised Scenario will be used to calculate costs, unless User opts to input LCOE contribution for O&M.
D352: =IF(ISBLANK(J352),0,IF(J352=K352,0,1)) -> 0 | H352: LCOE contribution for Power Plant O&M | I352: ₵/kW-hr | K352: =OUT!G415 -> 1.846091283
D353: =IF(ISBLANK(J353),0,IF(J353=K353,0,1)) -> 0 | H353: LCOE Contribution for Well Field O&M (including production pumps) | I353: ₵/kW-hr
H354: Total LCOE Contribution being used for Revised Scenario | I354: ₵/kW-hr | J354: =OUT!H415 -> 1.847188999 | K354: The O&M LCOE contribution used may differ from inputted values because of effect resource temperature decline on power output
H355: Labor:
H356: Estimated Staff Requirements for Revised Scenario | I356: FTE | J356: =OUT!H350 -> 14.69181051 | M356: If the power sales is revised, the staff requirements for the corresponding facility is estimated and used, unless the User identifies another value.
D357: =IF(ISBLANK(J357),0,IF(J357=J356,0,1)) -> 0 | H357: Staff Requirements for Plant and Well Field | I357: FTE | J357: =J356*'DEFAULT Inputs'!S182 -> 14.69181051 | K357: =IN!H185 -> 14.69181051
H358: Estimated Annual Labor Cost (fully burdened) | I358: per yr | J358: =OUT!H352 -> 1500358.752 | K358: =OUT!G352 -> 1500358.752
H359: Maintenance:
D360: =IF(ISBLANK(J360),0,IF(J360=K360,0,1)) -> 0 | H360: Well Field Maintenance - % of Well Field Capital Cost | K360: =IN!H187 -> 0.015
H361: Estimated Annual Well Field Maintenance Cost | I361: per yr | J361: =OUT!H359 -> 703971.7093 | K361: =OUT!G359 -> 703971.7093 | L361: Total cost shown includes geothermal pump maintenance
D362: =IF(ISBLANK(J362),0,IF(J362=K362,0,1)) -> 0 | H362: Plant Maintenance - % of Plant Capital Cost | K362: =IN!H189 -> 0.018
H363: Estimated Annual Plant Maintenance Cost | I363: per yr | J363: =OUT!H374 -> 1550403.851 | K363: =OUT!G374 -> 1550403.851
H364: Water Cost | I364: per yr | J364: =OUT!H368 -> 0 | K364: =OUT!G368 -> 0 | M364: Use link to Reservoir Performance Input to change water costs
H365: Production Pump | N365: =IF(AND(IN!B118=0,IN!A118=1),"No production pump has been specified"," ") -> 
D366: =IF(ISBLANK(J366),0,IF(J366=K366,0,1)) -> 0 | H366: Type of production pump used | K366: =IN!H191 -> Lineshaft | M366: This pump type is used only for O&M cost estimate (determines pump life)
H367: default pump life for the pump type selected | J367: =IN!H192 -> 3
D368: =IF(ISBLANK(J368),0,IF(J368=J367,0,1)) -> 0 | H368: Pump Life | K368: =IN!H193 -> 3 | M368: =IF(J367=K368," ","The pump life based on the Revised Input will be used unless value is entered") -> 
D369: =IF(ISBLANK(J369),0,IF(J369=K369,0,1)) -> 0 | H369: Taxes and Insurance (% of Capital Costs) | K369: =IN!H195 -> 0.0075
I370: per yr | J370: =OUT!H413 -> 1043064.538 | K370: =OUT!G413 -> 1039871.409
H372: TOTAL ANNUAL O&M Cost | J372: =OUT!H414 -> 5373262.066 | K372: =OUT!G414 -> 5370068.937
D400: =SUM(D401:D446) -> 1 | E400: =COUNT(D401:D446) -> 18 | H400: POWER PLANT | J400: Revised Value | K400: GETEM Default
H401: Transmission Cost
D402: =IF(ISBLANK(J402),0,IF(J402=K402,0,1)) -> 0 | H402: Are transmission line costs to be included? | K402: =IN!H200 -> No
D403: =IF(ISBLANK(J403),0,IF(J403=K403,0,1)) -> 0 | H403: Length Transmission Line | I403: mile | K403: =IF(I403=IN!F202,IN!H202,IN!H201) -> 0 | N403: =IF(AND(IN!I200="No",ISBLANK('Scenario Definition'!J403),ISBLANK('Scenario Definition'!J405))," ",IF(IN!I200="Yes","Model's estimates do not have PPI applied - they are in 2012$","If values entered for distance and cost are to be used, opt to include transmission costs. Estimated cost is based on length of line")) -> 
H404: Model Estimated cost | I404: =I405 -> $/mile | J404: =IF(I404=IN!F203,IN!H203,IN!H204)*IN!B199 -> 0
D405: =IF(ISBLANK(J405),0,IF(J405=K405,0,1)) -> 0 | H405: Transmission Line Cost | I405: $/mile | K405: =IF(I405=IN!F203,IN!H203,IN!H204)*IN!A199 -> 0
N406: =IF(ISBLANK('Start Here'!E19)," ",IF('Start Here'!E19="Binary",IF(IN!G5>200,"Binary conversion systems not recommended for higher temperatures"," "),IF(IN!G5<101,"STOP - Flash plant calculations won't work at specified resource temperature",IF(IN!G5<150,"Flash conversion systems not recommended at specified resource temperature"," ")))) -> 
H407: Conversion System Used | J407: =IN!G9 -> Flash
D409: =IF(ISBLANK(J409),0,IF(J409=K409,0,1)) -> 0 | H409: Indirect Plant Construction Costs (Fraction of Direct Construction Costs) for both plant types | K409: =IN!H237 -> 0.12 | M409: Accounts for Engineering, project management, home office, …
H411: BINARY POWER PLANT
D412: =IF(ISBLANK(J412),0,IF(J412=K412,0,1)) -> 0 | H412: Number of Binary Modular Units Used to Meet Specified Sales | K412: =IN!H211 -> 1
H414: Maximum Level of performance used in model | I414: =I417 -> w-hr/lb,gf | J414: =IF(I414=OUT!F450,OUT!G450,OUT!G451) -> 12.5640356 | K414: =J414 -> 12.5640356
H415: If changes have been made to REVISED Scenario and a binary conversion system is being used, use this link to optimize the binary plant performance for the scenario. | J415: OPTIMIZE REVISED BINARY PLANT PERFORMANCE
H416: Optimized performance for REVISED Scenario | I416: =I417 -> w-hr/lb,gf | J416: =IF(I416=IN!F214,IN!I214,IN!I215) -> 10.43480689
D417: =IF(ISBLANK(J417),0,IF(J417=J416,0,1)) -> 0 | H417: Performance Metric - net power per unit brine flow | I417: w-hr/lb,gf | K417: =IF(I417=IN!F216,IN!H216,IN!H217) -> 8.668220356 | N417: =IF(J417>K414,"Stop - level of performance exceeds maximum model uses - cost estimates not valid"," ") -> 
H419: Estimated equipment costs | I419: $/kW,net
H420: Direct Construction Multiplier calculated for Revised Scenario | J420: =OUT!H542 -> 2.74783972 | M420: This multiplier is applied to the estimated equipment costs to determine the Plant's direct construction cost
D421: =IF(ISBLANK(J421),0,IF(J421=J420,0,1)) -> 0 | H421: Direct Construction Multiplier Binary | K421: =OUT!G542 -> 2.750814815
H422: Estimated plant cost at level of performance defined | I422: $/kW,net | J422: =OUT!H546 -> 1949.485443 | M422: Plant costs are expressed in terms of net plant output - not power sales
D423: =IF(ISBLANK(J423),0,IF(J423=J422,0,1)) -> 1 | H423: Air Cooled Binary Power Plant Cost | I423: $/kW | J423: =J422*'DEFAULT Inputs'!S222 -> 0 | K423: =OUT!G546 -> 1926.180808
H425: FLASH STEAM POWER PLANT
... 20 more rows

Sheet Results
B2: Scenario
B3: Resource Type | D3: =IN!G4 -> Hydrothermal
B4: Resource Temperature | C4: C | D4: =IN!G5 -> 225
B5: Resource Depth | C5: km | D5: =IN!G7/1000 -> 5
B6: Conversion System | D6: =IN!G9 -> Flash
D7: GETEM Default | E7: Revised Scenario
B8: LCOE Contributors - EERE Methodology
B9: LCOE | C9: ₵/ kWh | D9: =D10+D18 -> 6.99391475 | E9: =E10+E18 -> 7.009738834
B10: Capital Cost Recovery | C10: ₵/ kWh | D10: =SUM(D11:D17) -> 4.977973291 | E10: =SUM(E11:E17) -> 4.992315365
B11: Exploration | C11: ₵/ kWh | D11: =OUT!G14*100 -> 0.6561891569 | E11: =OUT!H14*100 -> 0.6561891569
B12: Drilling | C12: ₵/ kWh | D12: =OUT!G15*100 -> 0.7172659617 | E12: =OUT!H15*100 -> 0.7172659617
B13: Field Gathering System | C13: ₵/ kWh | D13: =OUT!G16*100 -> 0.274600752 | E13: =OUT!H16*100 -> 0.274600752
B14: Stimulation | C14: ₵/ kWh | D14: =OUT!G17*100 -> 0.1036957063 | E14: =OUT!H17*100 -> 0.11803778
B15: Power Plant | C15: ₵/ kWh | D15: =OUT!G18*100 -> 3.121905379 | E15: =OUT!H18*100 -> 3.121905379
B16: Permitting | C16: ₵/ kWh | D16: =OUT!G19*100 -> 0.1043163353 | E16: =OUT!H19*100 -> 0.1043163353
B17: Makeup Well Costs | C17: ₵/ kWh | D17: =OUT!G20*100 -> 0 | E17: =OUT!H20*100 -> 0
B18: O&M Costs | C18: ₵/ kWh | D18: =SUM(D19:D26) -> 2.015941459 | E18: =SUM(E19:E26) -> 2.017423469
B19: O&M - Labor | C19: ₵/ kWh | D19: =OUT!G22*100 -> 0.515784666 | E19: ='EERE COE'!D299*100 -> 0.515784666
B20: Maintenance - Plant | C20: ₵/ kWh | D20: =OUT!G23*100 -> 0.5748084735 | E20: ='EERE COE'!D300*100 -> 0.5748084735
B21: Maintenance- Wells/Reservoir | C21: ₵/ kWh | D21: =OUT!G24*100 -> 0.3645226112 | E21: ='EERE COE'!D301*100 -> 0.3645226112
B22: Maintenance- Gathering System | C22: ₵/ kWh | D22: =OUT!G25*100 -> 0.03349454565 | E22: ='EERE COE'!D302*100 -> 0.03349454565
B23: Water Makeup Costs | C23: ₵/ kWh | D23: =OUT!G26*100 -> 0 | E23: ='EERE COE'!D303*100 -> 0
B24: Production Pump Maintenance | C24: ₵/ kWh | D24: =OUT!G27*100 -> 0 | E24: ='EERE COE'!D304*100 -> 0
B25: Taxes & Insurance | C25: ₵/ kWh | D25: =OUT!G28*100 -> 0.357480987 | E25: ='EERE COE'!D305*100 -> 0.3585787023
B26: Royalties | C26: ₵/ kWh | D26: =OUT!G29*100 -> 0.1698501758 | E26: ='EERE COE'!D306*100 -> 0.1702344704
B28: OVERNIGHT CAPITAL COST & PERFORMANCE SUMMARY
B29: Power Sales | C29: kW | D29: ='Power Plant Cost'!E6*1000 -> 40000 | E29: ='Power Plant Cost'!G6*1000 -> 40000
B30: Period to Bring Project On-Line | C30: yr | D30: ='EERE COE'!E32 -> 4.5 | E30: ='EERE COE'!E186 -> 4.5
B31: Year Project Comes On-Line | C31: yr | D31: =IN!H34 -> 2022 | E31: =IN!I34 -> 2022
B32: Project Life | C32: yr | D32: =OUT!G10 -> 30 | E32: =OUT!H10 -> 30
B33: Net Capacity Factor | D33: =OUT!G52 -> 0.95 | E33: =OUT!H52 -> 0.95
B34: Total Capital Cost (w/o Contingency) | D34: =D43+D64+D76+D85 -> 139280745 | E34: =E43+E64+E76+E85 -> 139670447.9
B35: TOTAL CAPITAL COST (with Contingency) | D35: ='EERE COE'!D32 -> 155356985.1 | E35: ='EERE COE'!D186 -> 155805143.5
B36: Exploration
B37: Exploration Drilling Costs (full-sized) | D37: =OUT!G108 -> 11403472.46 | E37: =OUT!H108 -> 11403472.46
B38: Exploration Stimulation Costs | D38: =OUT!G110 -> 2235333.778 | E38: =OUT!H110 -> 2235333.778
B39: Small Diameter Exploration Drilling | D39: =OUT!G107 -> 3233825.052 | E39: =OUT!H107 -> 3233825.052
B40: Non-Drilling Exploration Costs | D40: =Exploration!E19 -> 1049016.453 | E40: =Exploration!F19 -> 1049016.453
B41: Permitting & Leasing Costs | D41: =Exploration!E20+Exploration!E36+Exploration!E56 -> 1372782.139 | E41: =Exploration!F20+Exploration!F36+Exploration!F56 -> 1372782.139
B42: Other Indirect Costs | D42: =OUT!G111 -> 509333.0131 | E42: =OUT!H111 -> 509333.0131
B43: TOTAL EXPLORATION COST (w/o Contingency) | D43: =SUM(D37:D42) -> 19803762.9 | E43: =SUM(E37:E42) -> 19803762.9
B44: Drilling
B45: Well Count
B46: Number Production Wells Required | D46: =OUT!G133 -> 6.279292103 | E46: =OUT!H133 -> 6.279292103
B47: Number Injection Wells Required | D47: =OUT!G142 -> 3.909856562 | E47: =OUT!H142 -> 3.909856562
B48: Number of Wells Drilled to Complete Field | D48: =OUT!G152 -> 7.261766328 | E48: =OUT!H152 -> 7.261766328
B49: # Undeveloped Sites Drilled | D49: =IF(OUT!G88=0,0,OUT!G88-1) -> 0 | E49: =IF(OUT!H88=0,0,OUT!H88-1) -> 0
B50: Total Wells Drilled at Other Sites | D50: =OUT!G90 -> 0 | E50: =OUT!H90 -> 0
B51: # Wells Stimulated | D51: =SUM('Well Count'!I96:I97) -> 2.394935006 | E51: =SUM('Well Count'!K96:K97) -> 2.726176633
B52: Well Cost
B53: Production Well Cost | D53: =OUT!G195 -> 2850868.115 | E53: =OUT!H195 -> 2850868.115
B54: Injection Well Cost | D54: =OUT!G202 -> 2850868.115 | E54: =OUT!H202 -> 2850868.115
B55: Stimulation Cost per Well | D55: =OUT!G211 -> 1117666.889 | E55: =OUT!H211 -> 1117666.889
B56: Drilling Costs
B57: Failed Wells Supplement Injection | D57: =OUT!G129 -> Yes | E57: =OUT!H129 -> Yes
B58: Production Capacity Drilled before PPA | D58: =OUT!G166 -> 0.6 | E58: =OUT!H166 -> 0.6
B59: Permitting Costs | D59: =OUT!G215 -> 1122456.14 | E59: =OUT!H215 -> 1122456.14
B60: Production Well Costs | D60: =OUT!G203 -> 9443261.918 | E60: =OUT!H203 -> 9443261.918
B61: Injection Well Costs | D61: =OUT!G204 -> 11259076.17 | E61: =OUT!H204 -> 11259076.17
B62: Stimulation Costs | D62: =OUT!G212 -> 2676739.558 | E62: =OUT!H212 -> 3046957.357
B63: Non-Drilling Costs | D63: =OUT!G219+OUT!G217 -> 1460703.078 | E63: =OUT!H219+OUT!H217 -> 1480188.226
B64: TOTAL DRILLING COST (w/o contingency) | D64: =SUM(D59:D63) -> 25962236.86 | E64: =SUM(E59:E63) -> 26351939.81
B65: Field Gathering System & GF Pumping
B66: Total Production Flow | C66: kg/s | D66: =OUT!G119 -> 502.3433683 | E66: =OUT!H119 -> 502.3433683
B67: Flow per well | C67: kg/s | D67: =OUT!G272 -> 80 | E67: =OUT!H272 -> 80
B68: Production Pumping | C68: kW | D68: =OUT!G607 -> 0 | E68: =OUT!H607 -> 0
B69: Total Injection Flow | C69: kg/s | D69: =OUT!G122 -> 417.0513666 | E69: =OUT!H122 -> 417.0513666
B70: Injection Pumping | C70: kW | D70: =OUT!G629 -> 1602.682369 | E70: =OUT!H629 -> 1602.682369
B71: Wells Used for Injection | D71: =OUT!G142+OUT!G138+OUT!G144 -> 3.909856562 | E71: =OUT!H142+OUT!H138+OUT!H144 -> 3.909856562
B72: Surface Equipment Costs | D72: =OUT!G248 -> 5493609.885 | E72: =OUT!H248 -> 5493609.885
B73: Total Production Pump Costs | D73: =OUT!G253 -> 0 | E73: =OUT!H253 -> 0
B74: Total Injection Pump Costs | D74: =OUT!G255 -> 1001844.259 | E74: =OUT!H255 -> 1001844.259
B75: Indirect Costs | D75: =OUT!G260 -> 885743.747 | E75: =OUT!H260 -> 885743.747
B76: TOTAL FIELD GATHERING SYSTEM COST (w/o contingency) | D76: =SUM(D72:D75) -> 7381197.891 | E76: =SUM(E72:E75) -> 7381197.891
B77: Power Plant Costs
B78: Transmission Line | C78: miles | D78: =OUT!G420 -> 0 | E78: =OUT!H420 -> 0
B79: Estimated Generator Nameplate | C79: kW | D79: ='Power Plant Cost'!E20 -> 43852.54208 | E79: ='Power Plant Cost'!G20 -> 43852.54208
B80: Power Plant Net Output | C80: kW | D80: =OUT!G437*1000 -> 41602.68237 | E80: =OUT!H437*1000 -> 41602.68237
B81: Geothermal Pumping Power | C81: kW | D81: =D68+D70 -> 1602.682369 | E81: =E68+E70 -> 1602.682369
B82: Transmission Cost | D82: =OUT!G428 -> 0 | E82: =OUT!H428 -> 0
B83: Power Plant Cost (per net KW) | C83: $/kW | D83: =OUT!G445 -> 2070.384465 | E83: =OUT!H445 -> 2070.384465
B84: Power Plant Cost | D84: =OUT!G447 -> 86133547.3 | E84: =OUT!H447 -> 86133547.3
B85: TOTAL POWER PLANT & TRANSMISSION COST (w/o contingency) | D85: =D84+D82 -> 86133547.3 | E85: =E84+E82 -> 86133547.3
B87: O&M COST SUMMARY
B88: Facility Staff | D88: =OUT!G351 -> 14.69181051 | E88: =OUT!H351 -> 14.69181051
B89: Labor Cost | C89: per yr | D89: =OUT!G352 -> 1500358.752 | E89: =OUT!H352 -> 1500358.752
B90: Plant Maintenance | C90: per yr | D90: =OUT!G380 -> 1672052.274 | E90: =OUT!H380 -> 1672052.274
B91: Field Maintenance | C91: per yr | D91: =OUT!G359+OUT!G367 -> 1157786.503 | E91: =OUT!H359+OUT!H367 -> 1157786.503
B92: Geothermal Pump Maintenance/Replacement | C92: per yr | D92: =OUT!G393 -> 0 | E92: =OUT!H393 -> 0
B93: Make-up Water Cost | C93: per yr | D93: =OUT!G396 -> 0 | E93: =OUT!H396 -> 0
B94: Taxes & Insurance | C94: per yr | D94: =OUT!G413 -> 1039871.409 | E94: =OUT!H413 -> 1043064.538
B95: TOTAL ANNUAL O&M COST | D95: =SUM(D89:D94) -> 5370068.937 | E95: =SUM(E89:E94) -> 5373262.066
B96: RESERVOIR
B97: Decline Rate | C97: %/yr | D97: =OUT!G290 -> 0.005 | E97: =OUT!H290 -> 0.005
B98: Temperature Decline at Replacement | C98: C | D98: =OUT!G292 -> 35.05 | E98: =OUT!H292 -> 35.05
B99: # Well Field/Reservoir Replacements | D99: =OUT!G299 -> 0 | E99: =OUT!H299 -> 0
B100: Year of 1st Replacement | D100: =OUT!G300 -> NA | E100: =OUT!H300 -> NA
B101: Temperature at End of Project | C101: C | D101: =OUT!G308 -> 193.5725524 | E101: =OUT!H308 -> 193.5725524
B102: Sales @ End of Project Life | C102: MW | D102: =OUT!G310 -> 25.90843525 | E102: =OUT!H310 -> 25.90843525

Sheet Error-Warnings
B1: This sheet displays error and/or warning messages that occur when there is question regarding the user input. Check these messages to see if input needs to be revised. If the macro was used to minimize the binary plant LCOE by varying plant performance, run it again after any input changes.
C2: Return to Start Page
C3: Number of Errors/Messages (See Below for Specific Error and Link to Input Causing Error) | E3: =SUM(D5:D108) -> 3
B4: Location | C4: Message
A5: =IN!A10 -> 0 | B5: Input: | C5: =IF(AND(A5=1,A6<A7),"The number of production wells inputted is less than the number of successful production wells drilled during exploration", " ") ->  | D5: =IF(AND(A5=1,A6<A7),1,0) -> 0
A6: =OUT!H133 -> 6.279292103 | B6: POWER SALES
A7: =OUT!H96 -> 3 | B7: EXPLORATION
A8: =OUT!G637 -> 437 | B8: Input: | C8: =IF(A8<705," ","The model can not calculate using a defined Resource Temperature that exceeds the Critical Temperature of Water") ->  | D8: =IF(A8<705,0,1) -> 0
B9: RESOURCE DEFINITION
B10: Input: | C10: =IF(OR(A11>6000,A12>6000),"The resource depth exceeds the maximum for using the GETEM methodology for well cost"," ") ->  | D10: =IF(OR(A11>6000,A12>6000),1,0) -> 0 | F10: =IF(D10=1,"The model will contine to estimate for greater depths, however they exceed the 6 km maximum used when developing estimating methods"," ") -> 
A11: =OUT!G634 -> 5000 | B11: RESOURCE DEFINITION
A12: =OUT!H694 -> 5000 | B12: DRILLING
A13: =OUT!H9 -> 40 | B13: Input: | C13: =IF(A16=1," ",IF(AND(A15>0,A13<A14*A15),"The power sales specified requires fewer production wells than were successfully drilled during Exploration. Increase sales or reduce number of successful exploration wells, the flow per well and/or the plant performance","")) ->  | D13: =IF(A16=1,0,IF(AND(A15>0,A13<A14*A15),1,0)) -> 0
A14: =OUT!H167 -> 6.37014481 | B14: POWER SALES
A15: =OUT!H96 -> 3 | B15: EXPLORATION
A16: =IN!A10 -> 0 | B16: RESERVOIR PERFORMANCE
B17: POWER PLANT
A18: =MAX(OUT!G61,OUT!H61) -> 4.5 | B18: Input: | C18: =IF(A18<14," ","The duration of pre-startup activities exceeds that allowed in GETEM when using the EERE/DCF methodology") ->  | D18: =IF(AND(A18<14),0,1) -> 0 | F18: =IF(A18>15,"The Discounted Cash Flow Sheet allows for up to 15 yrs for pre-startup activities"," ") -> 
B19: ECONOMIC PARAMETERS
B20: Input: | C20: =IF(A21>40,"Model can not evaluate projects operating longer than 40 years"," ") ->  | D20: =IF(AND(A21<=40),0,1) -> 0
A21: =MAX(OUT!G10:H10) -> 30 | B21: ECONOMIC PARAMETERS
A22: =OUT!A72 -> 0 | B22: Input: | C22: =IF(A23=30," ","When using Fixed Charge Rate Method, project life for all cases = 30 yr") ->  | D22: =IF(A22=0,0,1) -> 0
A23: =MIN(OUT!G10,OUT!H10) -> 30 | B23: ECONOMIC PARAMETERS
B24: Input: | C24: =IF(AND(A25>0,A26>0)," ","For the scenario defined, the plant output will go to 0 before the end of project life. Clear the warning by either defining more resource potential found during Exploration, decreasing project life, or decreasing temperature decline rate") ->  | D24: =IF(AND(A25>0,A26>0),0,1) -> 0 | F24: =IF(D24=1,"The scenario can not be evaluated as defined. Increase the resource potential found during exploration or decrease the annual thermal decline rate."," ") -> 
A25: =OUT!G310 -> 25.90843525 | B25: EXPLORATION
A26: =OUT!H310 -> 25.90843525 | B26: ECONOMIC PARAMETERS
B27: RESERVOIR PERFORMANCE
A28: =OUT!H112 -> 84.20536474 | B28: Input: | C28: =IF(A29<A28," ","The plant net plant output exceeds the potential resource found") ->  | D28: =IF(A29<A28,0,1) -> 0 | F28: =IF(D28=1,"Plant output includes Geothermal Pumping"," ") -> 
A29: =OUT!H437 -> 41.60268237 | B29: EXPLORATION
A30: =IN!A4 -> 0 | B30: Input: | C30: =IF(AND(A30=1,A31=0),"Recommend not Proportioning EGS Exploration Costs with Resource Potential Found"," ") ->  | D30: =IF(AND(A30=1,A31=0),1,0) -> 0
A31: =IN!B47 -> 1 | B31: EXPLORATION
A32: =IN!A4 -> 0 | B32: Input: | C32: =IF(A32+A33+A34=0,"No Exploration drilling specified for Hydrothermal Greenfield Project"," ") ->  | D32: =IF(A32+A33+A34=0,1,0) -> 0
A33: =IF(IN!B45=1,0,1) -> 0 | B33: EXPLORATION
A34: =IF(IN!B53=0,1,0) -> 1
A35: =IN!I49 -> 1 | B35: Input: | C35: =IF(A37>A35,"Exploration drilling is occurring at more sites than were examined during pre-drilling evaluation"," ") ->  | D35: =IF(A37>A35,1,0) -> 0
B36: EXPLORATION
A37: =OUT!H86 -> 1
A38: =IN!I54 -> 1 | B38: Input: | C38: =IF(A38<A39,"Full-sized Exploration wells are drilled at more sites than have small-diameter well drilling"," ") ->  | D38: =IF(A38<A39,1,0) -> 0
A39: =IN!I56 -> 1 | B39: EXPLORATION
A40: =IN!B45 -> 1 | B40: Input: | C40: =IF(AND(A40=1,A41<=0),"No full-sized wells are drilled during Exploration of 'Greenfield' project"," ") ->  | D40: =IF(AND(A40=1,A41<=0),1,0) -> 0
A41: =OUT!H93 -> 4 | B41: EXPLORATION
A42: =IN!A4 -> 0 | B42: Input: | C42: =IF(AND(A42=0,A43>0),"Exploration Wells for a Hydrothermal Resource are to be stimulated. If Exploration stimulation required, evaluate as EGS resource",IF(AND(A42=1,A43<=0),"The successful Exploration wells for an EGS Resource are not being stimulated. If no Exploration stimulation is required, evaluate as a Hydrothermal Resource"," ")) -> Exploration Wells for a Hydrothermal Resource are to be stimulated. If Exploration stimulation required, evaluate as EGS resource | D42: =IF(AND(A42=0,A43>0),1,IF(AND(A42=1,A43<=0),1,0)) -> 1
A43: =OUT!H94 -> 2 | B43: EXPLORATION
A44: =OUT!A4 -> 0 | B44: Input: | C44: =IF(AND(A44=1,A45<2),"Two successful full-size Exploration wells required for EGS "," ") ->  | D44: =IF(AND(A44=1,A45<2),1,0) -> 0
A45: =OUT!H95 -> 3 | B45: EXPLORATION
A46: =OUT!A4 -> 0 | B46: Input: | C46: =IF(A46=0," ",IF(A47<3," ",IF(A48=A49,"No stimulation failures for exploration wells",IF(A48<A49,"#Stimulations specified < #successful wells stimulated - Increase number of stimulations and/or revise well type stimulated"," ")))) ->  | D46: =IF(A46=0,0,IF(A47<3,0,IF(A48=A49,1,IF(A48<A49,1,0)))) -> 0
A47: =OUT!B209 -> 3 | B47: EXPLORATION
A48: =OUT!H94 -> 2 | B48: DRILLING
A49: =OUT!H98 -> 2
B50: Input: | C50: =IF(A51<1,"The defined scenario has no injection wells being drilled"," ") ->  | D50: =IF(A51<1,1,0) -> 0
A51: =IN!A76 -> 1 | B51: DRILLING
B52: Input: | C52: =IF(OR(,A53<=0,A53>1),"Drilling Success Rate should be >0% and <=100%"," ") ->  | D52: =IF(OR(A53>1,A53<=0),1,0) -> 0
A53: =OUT!H187 -> 0.9 | B53: DRILLING
A54: =IN!A4 -> 0 | B54: Input: | C54: =IF(AND(OR(A55=1,A54=1),A56=1),"When wells are stimulated, unsuccessful wells are not used to supplement injection. This applied to Hydrothermal as well as EGS resources. If Hydrothermal resource, must indicate which well type is stimulated."," ") -> When wells are stimulated, unsuccessful wells are not used to supplement injection. This applied to Hydrothermal as well as EGS resources. If Hydrothermal resource, must indicate which well type is stimulated. | D54: =IF(AND(OR(A55=1,A54=1),A56=1),1,0) -> 1
A55: =IN!B93 -> 1
A56: =IN!A77 -> 1 | B56: DRILLING
A57: =OUT!H130 -> 0.3 | B57: Input: | C57: =IF(A58=0," ",IF(AND(A57<1,A57>0)," ","When failed wells are used to supplement injection, their relative productivity should be between 0 and 1")) ->  | D57: =IF(A57=0,0,IF(AND(A57<1,A57>0),0,1)) -> 0
A58: =IN!A77 -> 1 | B58: DRILLING
A59: =OUT!H624 -> 6681.888525 | B59: Input: | C59: =IF(A60/A59>1.5,"With pumping, the bottom-hole pressure in the injection well is 50%+ higher than the estimated hydrostatic pressure. Consider reducing the flow rate per injection well, and/or increase the injectivity index"," ") ->  | D59: =IF(A60/A59>1.5,1,0) -> 0 | F59: =IF(D59=1,"Increased potential for subsurface fracture creation/fluid loss/microsismic activity - 50% limit is arbitrary"," ") -> 
A60: =OUT!H625 -> 7021.518157 | B60: DRILLING
B61: RESERVOIR PERFORMANCE
A62: =IN!A9 -> 0 | B62: Input: | C62: =IF(AND(A62=1,A63=1,A64<13.375),"Need to use Larger Diameter production well at specified resource depth in order to allow for production pump with Binary plant. Minimum casing size 13-3/8 inch"," ") ->  | D62: =IF(AND(A62=1,A63=1,A64<13.375),1,0) -> 0
A63: =IN!B84 -> 1 | B63: RESOURCE DEFINITION
A64: =OUT!H672 -> 20 | B64: DRILLING
B65: Input: | C65: =IF(AND(A66=0,A67=1),"Stimulation has been specified with a Hydrothermal Resouce scenario",IF(AND(A66=1,A67=0),"No stimulation specified with EGS Resource scenario"," ")) -> Stimulation has been specified with a Hydrothermal Resouce scenario | D65: =IF(AND(A66=0,A67=1),1,IF(AND(A66=1,A67=0),1,0)) -> 1
A66: =OUT!A4 -> 0 | B66: RESOURCE DEFINITION
A67: =IN!B93 -> 1 | B67: DRILLING
A68: =IN!B93 -> 1 | B68: Input: | C68: =IF(AND(A68=1,OR(A69<=0,A69>1)),"The stimulation success rates should be between 0 and 100%"," ") ->  | D68: =IF(AND(A68=1,OR(A69<=0,A69>1)),1,0) -> 0
A69: =OUT!H210 -> 0.9 | B69: DRILLING
B70: Input: | C70: =IF(OR(A71<=0,A71>1),"Pump efficiency should be >0% & <=100%"," ") ->  | D70: =IF(OR(A71>1,A71<=0),1,0) -> 0
A71: =IN!I117 -> 0.675 | B71: GEOFLUID GATHERING SYSTEM
A72: =IN!A4 -> 0 | B72: Input: | C72: =IF(AND(A72=1,A73=1),"Can not input pump depth with EGS resource - inputted value ignored & calculated pump depth is used if wells are pumped"," ") ->  | D72: =IF(AND(A72=1,A73=1),1,0) -> 0
A73: =IF(ISBLANK('Scenario Definition'!J267),0,1) -> 0 | B73: GEOFLUID GATHERING SYSTEM
A74: =IN!B118 -> 0 | B74: Input: | C74: =IF(AND(A74=1,A76>A75),"The pump depth exceeds the depth of the resource/production well. The inputted depth needs to be reduced, or if calculated, the well flow rate needs to be reduced, or productivity index increased.", " ") ->  | D74: =IF(AND(A74=1,A76>A75),1,0) -> 0
A75: =OUT!H633 -> 16404.15 | B75: GEOFLUID GATHERING SYSTEM
A76: =OUT!H584 -> 0 | B76: RESERVOIR PERFORMANCE
A77: =OUT!A5 -> 0 | B77: Input: | C77: =IF(AND(A77=1,A79<A78),"When either no pumping is specified or inputted pump depth less than calculated, it is probable that geoflud will flash before getting to binary plant heat exchangers. To decrease calculated depth, decrease well flow or increase Productivity Index."," ") ->  | D77: =IF(AND(A77=1,A79<A78),1,0) -> 0
A78: =OUT!H580 -> 366.6050201 | B78: GEOFLUID GATHERING SYSTEM
A79: =OUT!H584 -> 0 | B79: RESERVOIR PERFORMANCE
A80: =OUT!A4 -> 0 | B80: Input: | C80: =IF(AND(A80=0,A81=1,OR(A82=1,A83=1)),"Any input for water loss or water cost is ignored with Hydrothermal Resource scenarios using air-cooled binary plants."," ") ->  | D80: =IF(AND(A80=0,A81=1,OR(A82=1,A83=1)),1,0) -> 0
A81: =OUT!A5 -> 0
A82: ='Scenario Definition'!D311 -> 0 | B82: RESERVOIR PERFORMANCE
A83: ='Scenario Definition'!D312 -> 0
B84: Input: | C84: =IF(AND(A85=1,A86>2000),"Pump depth exceeds 2,000 ft limit for specified Line-shaft Pump Change pump type, change inputted pump depth or reduce flow/increase productivity index"," ") ->  | D84: =IF(AND(A85=1,A86>2000),1,0) -> 0
A85: =IN!B191 -> 1 | B85: O&M
A86: =OUT!H584 -> 0 | B86: GEOFLUID GATHERING SYSTEM
B87: RESERVOIR PERFORMANCE
A88: =IF(OR(OUT!G588="Yes",OUT!H588="Yes"),1,0) -> 1 | B88: Input: | C88: =IF(AND(A88=1,A89=1),"Flashing may occur in Production Well or surface piping - OK with Flash Plant. If Binary, use pumped wells or revise inputted pump depth"," ") ->  | D88: =IF(AND(A88=1,A89=1),1,0) -> 0
A89: =OUT!A5 -> 0 | B89: GEOFLUID GATHERING SYSTEM
A90: =IF(OR(OUT!H588="Yes",OUT!H648<OUT!H593),1,0) -> 1 | B90: Input: | C90: =IF(AND(A90=1,A92=1,A91=1),"With inputted pump depth, flashing is predicted in Production Well or surface piping with a Binary Plant"," ") ->  | D90: =IF(AND(A90=1,A92=1,A91=1),1,0) -> 0
A91: =IF(IN!B119=1,0,1) -> 0 | B91: GEOFLUID GATHERING SYSTEM
A92: =OUT!A5 -> 0
A93: =OUT!H439 -> 10.43480689 | B93: Input: | C93: =IF(A93>A94," ","The geothermal pumping power exceeds the plant output - define a more efficient plant, decrease flow and/or increase Productivity/Injectivity Index") ->  | D93: =IF(A93<A94,1,0) -> 0
A94: =OUT!H572 -> 0.401985643 | B94: POWER PLANT
B95: RESERVOIR PERFORMANCE
A96: =IN!B180 -> 0 | B96: Input: | C96: =IF(AND(A96=1,A97=1),"If you input the O&M LCOE contribution, you must enter a value for the contributions from both the plant and well field"," ") ->  | D96: =IF(AND(A96=1,A97=1),1,0) -> 0
A97: =IF(OR(ISBLANK('Scenario Definition'!J352),ISBLANK('Scenario Definition'!J353)),1,0) -> 1 | B97: O&M
A98: =OUT!A5 -> 0 | B98: Input: | C98: =IF(AND(A98=1,A100>A99),"Revised Binary Plant Performance exceeds that allowed in GETEM's Cost Correlations"," ") ->  | D98: =IF(AND(A98=1,A100>A99),1,0) -> 0
A99: =OUT!H450 -> 12.5640356 | B99: POWER PLANT
A100: =OUT!H454 -> 10.19007595
A101: =OUT!A5 -> 0 | B101: Input: | C101: =IF(AND(A101=0,OR(A103>A102,A103<14.7,A104>A102,A104<14.7)),"The HP or Single Flash pressure is out of range - it exceeds the estimated well head pressure or is less than 1 atmosphere; production well needs to be pumped, the well flow rate reduced or flash pressure revised."," ") ->  | D101: =IF(AND(A101=0,OR(A103>A102,A104>A102,A103<14.7,A104<14.7)),1,0) -> 0
A102: =OUT!H591 -> 297.7729194 | B102: POWER PLANT
A103: =OUT!H472 -> 119.3161959 | B103: GEOFLUID GATHERING SYSTEM
A104: =OUT!H466 -> 38.65325069
A105: =OUT!A5 -> 0 | B105: Input: | C105: =IF(OR(A105=1,A108=1)," ",IF(A106>A107,"LP Flash pressure exceeds HP Flash Pressure - revise LP Flash pressure",IF(OR(A107<14.7,A106<14.7),"LP flash pressure is less than 1 atm - reduce well flow rate or use production pumps"," "))) ->  | D105: =IF(AND(A105=0,A108>1,OR(A106>A107,A106>A103,A106<14.7)),1,0) -> 0
A106: =IF(A108=2,OUT!H474,A104) -> 27.5615927
A107: =A102 -> 297.7729194 | B107: POWER PLANT
A108: =OUT!H463 -> 2

Sheet Schedule
E1: Based on input provided GETEM uses the schedule below for the 'Revised' Scenario. It is based on the premise that the plant construction starts after a PPA is obtained. It does not assign a cost to obtaining the PPA (that cost is assumed to be part of the indirect cost applied to each project phase). It is assumed that the Utilization Permit is required to get the PPA, and that there are plant engineering costs incurred before the PPA is obtained. It is also assumed that some fraction of the required field production and injection capacity is required to get the PPA - input that can be varied. The figure shows the accrual of costs as the project progresses.
E4: year | F4: Operation Begins | G4: -0.5 | H4: -1 | I4: -1.5 | J4: -2 | K4: -2.5 | L4: -3 | M4: -3.5 | N4: -4 | O4: -4.5 | P4: -5 | Q4: -5.5 | R4: -6 | S4: -6.5 | T4: -7 | U4: -7.5 | V4: -8 | W4: -8.5 | X4: -9 | Y4: -9.5 | Z4: -10 | AA4: -10.5 | AB4: -11 | AC4: -11.5 | AD4: -12 | BQ4: overnight costs
E5: Activity | BR5: ='EERE COE'!Q168 -> -5 | BS5: ='EERE COE'!R168 -> -4 | BT5: ='EERE COE'!S168 -> -3 | BU5: ='EERE COE'!T168 -> -2 | BV5: ='EERE COE'!U168 -> -1 | BW5: ='EERE COE'!V168 -> 0 | BX5: ='EERE COE'!W168 -> 1 | BY5: ='EERE COE'!X168 -> 2 | BZ5: ='EERE COE'!Y168 -> 3 | CA5: ='EERE COE'!Z168 -> 4 | CB5: ='EERE COE'!AA168 -> 5 | CC5: ='EERE COE'!AB168 -> 6 | CD5: ='EERE COE'!AC168 -> 7 | CE5: ='EERE COE'!AD168 -> 8 | CF5: ='EERE COE'!AE168 -> 9 | CG5: ='EERE COE'!AF168 -> 10 | CH5: ='EERE COE'!AG168 -> 11
E6: Operation | BQ6: overnight costs | BR6: ='EERE COE'!Q167*'EERE COE'!$D163*1000 -> 0 | BS6: ='EERE COE'!R167*'EERE COE'!$D163*1000 -> 0 | BT6: ='EERE COE'!S167*'EERE COE'!$D163*1000 -> 1052466.307 | BU6: ='EERE COE'!T167*'EERE COE'!$D163*1000 -> 9429383.581 | BV6: ='EERE COE'!U167*'EERE COE'!$D163*1000 -> 73465182.5 | BW6: ='EERE COE'!V167*'EERE COE'!$D163*1000 -> 71858111.11 | BX6: ='EERE COE'!W167*'EERE COE'!$D163*1000 -> 0 | BY6: ='EERE COE'!X167*'EERE COE'!$D163*1000 -> 0 | BZ6: ='EERE COE'!Y167*'EERE COE'!$D163*1000 -> 0 | CA6: ='EERE COE'!Z167*'EERE COE'!$D163*1000 -> 0 | CB6: ='EERE COE'!AA167*'EERE COE'!$D163*1000 -> 0 | CC6: ='EERE COE'!AB167*'EERE COE'!$D163*1000 -> 0 | CD6: ='EERE COE'!AC167*'EERE COE'!$D163*1000 -> 0 | CE6: ='EERE COE'!AD167*'EERE COE'!$D163*1000 -> 0 | CF6: ='EERE COE'!AE167*'EERE COE'!$D163*1000 -> 0 | CG6: ='EERE COE'!AF167*'EERE COE'!$D163*1000 -> 0 | CH6: ='EERE COE'!AG167*'EERE COE'!$D163*1000 -> 0
B7: =IN!I33 -> 1.5 | C7: ='EERE COE'!H184 -> 0 | E7: Power Plant Construction | F7: =IF(F4>$C7," ",IF($B7+F$4<0," ","********")) ->  | G7: =IF(G$4-$C7>=0," ",IF($C7-$B7-G$4>0," ","********")) -> ******** | H7: =IF(H$4-$C7>=0," ",IF($C7-$B7-H$4>0," ","********")) -> ******** | I7: ******** | BQ7: financed | BR7: ='EERE COE'!Q164*'EERE COE'!$D163*1000 -> 0 | BS7: ='EERE COE'!R164*'EERE COE'!$D163*1000 -> 0 | BT7: ='EERE COE'!S164*'EERE COE'!$D163*1000 -> 1052466.307 | BU7: ='EERE COE'!T164*'EERE COE'!$D163*1000 -> 9503056.223 | BV7: ='EERE COE'!U164*'EERE COE'!$D163*1000 -> 74204069.08 | BW7: ='EERE COE'!V164*'EERE COE'!$D163*1000 -> 77791282.52 | BX7: ='EERE COE'!W164*'EERE COE'!$D163*1000 -> 0 | BY7: ='EERE COE'!X164*'EERE COE'!$D163*1000 -> 0 | BZ7: ='EERE COE'!Y164*'EERE COE'!$D163*1000 -> 0 | CA7: ='EERE COE'!Z164*'EERE COE'!$D163*1000 -> 0 | CB7: ='EERE COE'!AA164*'EERE COE'!$D163*1000 -> 0 | CC7: ='EERE COE'!AB164*'EERE COE'!$D163*1000 -> 0 | CD7: ='EERE COE'!AC164*'EERE COE'!$D163*1000 -> 0 | CE7: ='EERE COE'!AD164*'EERE COE'!$D163*1000 -> 0 | CF7: ='EERE COE'!AE164*'EERE COE'!$D163*1000 -> 0 | CG7: ='EERE COE'!AF164*'EERE COE'!$D163*1000 -> 0 | CH7: ='EERE COE'!AG164*'EERE COE'!$D163*1000 -> 0
B8: ='EERE COE'!E180+'EERE COE'!E183 -> 1.75 | C8: ='EERE COE'!H183 -> -0.75 | E8: Power Plant Design | G8: =IF(G$4-$C8>=0," ",IF($C8-$B8-G$4>0," ","********")) ->  | H8: =IF(H$4-$C8>=0," ",IF($C8-$B8-H$4>0," ","********")) -> ******** | I8: ******** | J8: ******** | K8: ********
E9: Obtain PPA | G9: =IF(OR($B7+G$4>=0,$B7+G$4<-0.5)," ","PPA") ->  | J9: PPA | BR9: =BR5 -> -5 | BS9: -4 | BT9: -3 | BU9: -2 | BV9: -1 | BW9: 0 | BX9: 1 | BY9: 2 | BZ9: 3 | CA9: 4 | CB9: 5 | CC9: 6 | CD9: 7 | CE9: 8 | CF9: 9 | CG9: 10 | CH9: 11
B10: =IN!I30 -> 1 | C10: ='EERE COE'!H178 -> -1.5 | E10: Utilization Permit | G10: =IF(G$4-$C10>=0," ",IF($C10-$B10-G$4>0," ","********")) ->  | H10: =IF(H$4-$C10>=0," ",IF($C10-$B10-H$4>0," ","********")) ->  | J10: ******** | K10: ******** | BQ10: Overnight | BR10: =BR6 -> 0 | BS10: =BR10+BS6 -> 0 | BT10: =BT6+BS10 -> 1052466.307 | BU10: 10481849.89 | BV10: 83947032.39 | BW10: 155805143.5 | BX10: 155805143.5 | BY10: 155805143.5 | BZ10: 155805143.5 | CA10: 155805143.5 | CB10: 155805143.5 | CC10: 155805143.5 | CD10: 155805143.5 | CE10: 155805143.5 | CF10: 155805143.5 | CG10: 155805143.5 | CH10: 155805143.5
B11: ='EERE COE'!E182 -> 1.5 | C11: ='EERE COE'!H182 -> 0 | E11: GF Pumps installed | G11: ******** | H11: =IF(H$4-$C11>=0," ",IF($C11-$B11-H$4>0," ","********")) -> ******** | I11: ******** | BQ11: With Finance Costs | BR11: =BR7 -> 0 | BS11: =BR11+BS7 -> 0 | BT11: =BT7+BS11 -> 1052466.307 | BU11: 10555522.53 | BV11: 84759591.61 | BW11: 162550874.1 | BX11: 162550874.1 | BY11: 162550874.1 | BZ11: 162550874.1 | CA11: 162550874.1 | CB11: 162550874.1 | CC11: 162550874.1 | CD11: 162550874.1 | CE11: 162550874.1 | CF11: 162550874.1 | CG11: 162550874.1 | CH11: 162550874.1
B12: =IN!I31 -> 0.5 | C12: ='EERE COE'!H181 -> -0.6666666667 | E12: Surface equipment installed | H12: =IF(H$4-$C12>=0," ",IF($C12-$B12-H$4>0," ","********")) -> ********
B13: =IN!I29 -> 1 | C13: ='EERE COE'!H175 -> -0.6666666667 | E13: Drilling completed | H13: =IF(H$4-$C13>=0," ",IF($C13-$B13-H$4>0," ","********")) -> ******** | I13: ******** | BX13: est overnight | BY13: ='EERE COE'!J186*'EERE COE'!D163*1000 -> 155805143.5
B14: ='EERE COE'!E172 -> 0.5 | C14: ='EERE COE'!H172 -> -1.666666667 | E14: Exploration Drilling | H14: =IF(H$4-$C14>=0," ",IF($C14-$B14-H$4>0," ","********")) ->  | J14: ******** | BX14: est financed | BY14: ='EERE COE'!O186*'EERE COE'!D163*1000 -> 162550874.1
B15: =IN!I28 -> 1 | C15: ='EERE COE'!H171 -> -1.666666667 | E15: Exploration Activities | H15: =IF(H$4-$C15>=0," ",IF($C15-$B15-H$4>0," ","********")) ->  | J15: ******** | K15: ******** | O15: =IF(O$4-$C15>=0," ",IF($C15-$B15-O$4>0," ","********")) -> 
B16: =IN!I27 -> 1 | C16: ='EERE COE'!H170 -> -2.666666667 | E16: Exploration Permit | H16: =IF(H$4-$C16>=0," ",IF($C16-$B16-H$4>0," ","********")) ->  | L16: ******** | M16: ********

Sheet EERE COE
B1: LCOE | AA1: Yes
A2: =IF(D2="Yes",1,0) -> 1 | B2: Do you wish use 'rounded up' years to estimate the effect of well field replacement? | C2: Yes or No | D2: Yes | E2: Yes is consistent with EERE spreadsheet; No is consistent with GETEM Cash Flow Sheet | AA2: No
A3: =IN!A9 -> 0
B4: DEFAULT SCENARIO
B5: Taxes | D5: =IN!H21 -> 0.392
B6: Contingency | D6: =OUT!G53 -> 0.15
B7: Plant/Project Life | C7: yr | D7: =OUT!G10 -> 30
B8: Discount Rate | D8: =OUT!G57 -> 0.07
B9: Power Sales | C9: MW | D9: =OUT!G9 -> 40
B10: Net Capacity Factor | D10: =OUT!G52 -> 0.95
B11: Inflation Rate | D11: 0
B12: Inflation Adjusted Discount for Depreciation | D12: =(1+D8)*(1+D11)-1 -> 0.07
B13: Well capacity confirmed in Drilling Phase | D13: =OUT!G168 -> 0.4330817659
F14: Activity | P14: yr -> | Q14: =-E33 -> -5 | R14: =Q14+1 -> -4 | S14: =R14+1 -> -3 | T14: -2 | U14: -1 | V14: 0 | W14: 1 | X14: 2 | Y14: 3 | Z14: 4 | AA14: 5 | AB14: =AA14+1 -> 6 | AC14: 7 | AD14: 8 | AE14: =AD14+1 -> 9 | AF14: 10
D15: CAPEX with contingency | E15: Duration yrs | F15: Discount rate | G15: start | H15: end | J15: Cost
A16: =IN!A$40 -> 0 | B16: Permitting (Exploration) & Leasing | D16: =('Out-LCOE'!C$8+'Out-LCOE'!C$9+'Out-LCOE'!C$10)*(1+D6) -> 1578699.46 | E16: =IN!H$27 -> 1 | F16: =IN!H$36 -> 0.07 | G16: =H16-E16 -> -3.666666667 | H16: =G17 -> -2.666666667 | I16: =IF(A$16=1,F$30,F16) -> 0.07 | J16: =(D16)/(D$9*1000) -> 39.46748651 | K16: $/kW | L16: =J16/J$32 -> 0.01016175397 | M16: =SERIESSUM(1/(1+$F16),-E$33,1,(Q16:AF16))*L16 -> 0.01217712109 | N16: =(SERIESSUM(1/(1+$F16),-E$33+E$30,1,(Q16:AF16))*L16)/(1+I16)^G$30 -> 0.01217712109 | O16: =N16*J$32 -> 47.29502048 | P16: =SUM(Q16:AF16) -> 1 | Q16: =IF($G16>=Q$14,0,IF($H16+1<=Q$14,0,IF(AND(ROUNDDOWN($G16,0)=Q$14,MOD(-$G16,1)>=$E16),1,IF(AND(Q$14>=$G16+1,Q$14<=$H16),1/$E16,IF(ROUNDDOWN($G16,0)=Q$14,MOD(-$G16,1)/$E16,IF(ROUNDDOWN($H16,0)=Q$14,MOD($H16,1)/$E16,)))))) -> 0 | R16: =IF($G16>=R$14,0,IF($H16+1<=R$14,0,IF(AND(ROUNDDOWN($G16,0)=R$14,MOD(-$G16,1)>=$E16),1,IF(AND(R$14>=$G16+1,R$14<=$H16),1/$E16,IF(ROUNDDOWN($G16,0)=R$14,MOD(-$G16,1)/$E16,IF(ROUNDDOWN($H16,0)=R$14,MOD($H16,1)/$E16,)))))) -> 0 | S16: 0.6666666667 | T16: 0.3333333333 | U16: 0 | V16: 0 | W16: 0 | X16: 0 | Y16: 0 | Z16: 0 | AA16: 0 | AB16: 0 | AC16: 0 | AD16: 0 | AE16: 0 | AF16: 0
B17: Exploration | D17: =('Out-LCOE'!C$11)*(1+D6) -> 1206368.921 | E17: =IN!H$28 -> 1 | F17: =IN!H$36 -> 0.07 | G17: =H17-E17 -> -2.666666667 | H17: =H18 -> -1.666666667 | I17: 0.07 | J17: =(D17)/(D$9*1000) -> 30.15922303 | K17: $/kW | L17: =J17/J$32 -> 0.007765141171 | M17: =SERIESSUM(1/(1+$F17),-E$33,1,(Q17:AF17))*L17 -> 0.008696440435 | N17: =(SERIESSUM(1/(1+$F17),-E$33+E$30,1,(Q17:AF17))*L17)/(1+I17)^G$30 -> 0.008696440435 | O17: =N17*J$32 -> 33.77631918 | P17: =SUM(Q17:AF17) -> 1 | Q17: =IF($G17>=Q$14,0,IF($H17+1<=Q$14,0,IF(AND(ROUNDDOWN($G17,0)=Q$14,MOD(-$G17,1)>=$E17),1,IF(AND(Q$14>=$G17+1,Q$14<=$H17),1/$E17,IF(ROUNDDOWN($G17,0)=Q$14,MOD(-$G17,1)/$E17,IF(ROUNDDOWN($H17,0)=Q$14,MOD($H17,1)/$E17,)))))) -> 0 | R17: 0 | S17: 0 | T17: 0.6666666667 | U17: 0.3333333333 | V17: 0 | W17: 0 | X17: 0 | Y17: 0 | Z17: 0 | AA17: 0 | AB17: 0 | AC17: 0 | AD17: 0 | AE17: 0 | AF17: 0
B18: Exploration Drilling | D18: ='Out-LCOE'!C$13+('Out-LCOE'!C$12+'Out-LCOE'!C$14+'Out-LCOE'!C$15)*(1+D6) -> 18278738.08 | E18: =E17-0.5 -> 0.5 | F18: =IN!H$36 -> 0.07 | G18: -2.166666667 | H18: =MIN(G20,G25) -> -1.666666667 | I18: 0.07 | J18: 456.968452 | K18: $/kW | L18: 0.1176563646 | M18: 0.1288297973 | N18: 0.1288297973 | O18: 500.3652227 | P18: 1 | Q18: 0 | R18: 0 | S18: 0 | T18: 0.3333333333 | U18: 0.6666666667 | V18: 0 | W18: 0 | X18: 0 | Y18: 0 | Z18: 0 | AA18: 0 | AB18: 0 | AC18: 0 | AD18: 0 | AE18: 0 | AF18: 0
B19: Permitting (Early Drilling) | E19: 0 | F19: =IN!H$37 -> 0.07 | G19: -1.666666667 | H19: =G20 -> -1.666666667 | I19: 0.07 | J19: 0 | K19: $/kW | L19: 0 | M19: 0 | N19: 0 | O19: 0 | P19: 1 | Q19: 0 | R19: 0 | S19: 0 | T19: 0 | U19: 1 | V19: 0 | W19: 0 | X19: 0 | Y19: 0 | Z19: 0 | AA19: 0 | AB19: 0 | AC19: 0 | AD19: 0 | AE19: 0 | AF19: 0
B20: Drilling Before PPA obtained | D20: ='Out-LCOE'!C$20+('Out-LCOE'!C$24+'Out-LCOE'!C$25)*(1+'EERE COE'!D6) -> 9705293.258 | E20: =IN!H$29-E21 -> 0.1666666667 | F20: =IN!H$37 -> 0.07 | G20: -1.666666667 | H20: =G21 -> -1.5 | I20: 0.07 | J20: 242.6323314 | K20: $/kW | L20: 0.06247091659 | M20: 0.06684388075 | N20: 0.06684388075 | O20: 259.6165947 | P20: 1 | Q20: 0 | R20: 0 | S20: 0 | T20: 0 | U20: 1 | V20: 0 | W20: 0 | X20: 0 | Y20: 0 | Z20: 0 | AA20: 0 | AB20: 0 | AC20: 0 | AD20: 0 | AE20: 0 | AF20: 0
B21: Drilling After PPA obtained | D21: ='Out-LCOE'!C$21+'Out-LCOE'!C$26*(1+'EERE COE'!D6) -> 12446902.05 | E21: =MROUND((1-D13)*E30,1/12) -> 0.8333333333 | F21: =IN!H$37 -> 0.07 | G21: -1.5 | H21: =G30+E21 -> -0.6666666667 | I21: 0.07 | J21: 311.1725512 | K21: $/kW | L21: 0.08011807155 | M21: 0.08348303056 | N21: =(SERIESSUM(1/(1+$I21),-E$33,1,(Q21:AF21))*L21) -> 0.08348303056 | O21: 324.2417984 | P21: 1 | Q21: 0 | R21: 0 | S21: 0 | T21: 0 | U21: 0.6 | V21: 0.4 | W21: 0 | X21: 0 | Y21: 0 | Z21: 0 | AA21: 0 | AB21: 0 | AC21: 0 | AD21: 0 | AE21: 0 | AF21: 0
B22: Well Field Stimulation Before PPA | D22: ='Out-LCOE'!C$22*(1+D6) -> 0 | E22: =IN!H$29-E23 -> 0.1666666667 | F22: =IN!H$37 -> 0.07 | G22: -1.666666667 | H22: =G23 -> -1.5 | I22: 0.07 | J22: 0 | K22: $/kW | L22: 0 | M22: 0 | N22: 0 | O22: 0 | P22: 1 | Q22: =IF($G22>=Q$14,0,IF($H22+1<=Q$14,0,IF(AND(ROUNDDOWN($G22,0)=Q$14,MOD(-$G22,1)>=$E22),1,IF(AND(Q$14>=$G22+1,Q$14<=$H22),1/$E22,IF(ROUNDDOWN($G22,0)=Q$14,MOD(-$G22,1)/$E22,IF(ROUNDDOWN($H22,0)=Q$14,MOD($H22,1)/$E22,)))))) -> 0 | R22: 0 | S22: 0 | T22: 0 | U22: 1 | V22: 0 | W22: 0 | X22: 0 | Y22: 0 | Z22: 0 | AA22: 0 | AB22: 0 | AC22: 0 | AD22: 0 | AE22: 0 | AF22: 0
B23: Well Field Stimulation After PPA | D23: ='Out-LCOE'!C$23*(1+D6) -> 3240263.676 | E23: =MROUND((1-D13)*E30,1/12) -> 0.8333333333 | F23: =IN!H$37 -> 0.07 | G23: -1.5 | H23: =G30+E23 -> -0.6666666667 | I23: 0.07 | J23: 81.00659189 | K23: $/kW | L23: 0.02085689081 | M23: 0.02173288023 | N23: =(SERIESSUM(1/(1+$I23),-E$33,1,(Q23:AF23))*L23) -> 0.02173288023 | O23: 84.40886875 | P23: 1 | Q23: =IF($G23>=Q$14,0,IF($H23+1<=Q$14,0,IF(AND(ROUNDDOWN($G23,0)=Q$14,MOD(-$G23,1)>=$E23),1,IF(AND(Q$14>=$G23+1,Q$14<=$H23),1/$E23,IF(ROUNDDOWN($G23,0)=Q$14,MOD(-$G23,1)/$E23,IF(ROUNDDOWN($H23,0)=Q$14,MOD($H23,1)/$E23,)))))) -> 0 | R23: 0 | S23: 0 | T23: 0 | U23: 0.6 | V23: 0.4 | W23: 0 | X23: 0 | Y23: 0 | Z23: 0 | AA23: 0 | AB23: 0 | AC23: 0 | AD23: 0 | AE23: 0 | AF23: 0
B24: Permitting (Field and Plant) | D24: ='Out-LCOE'!C$19*(1+$D$6) -> 1358762.696 | E24: =IN!H$30 -> 1 | F24: =IN!H$38 -> 0.07 | G24: -2.5 | H24: =G30 -> -1.5 | I24: 0.07 | J24: 33.96906741 | K24: $/kW | L24: 0.008746067615 | M24: 0.00968583258 | N24: 0.00968583258 | O24: 37.6190437 | P24: 1 | Q24: =IF($G24>=Q$14,0,IF($H24+1<=Q$14,0,IF(AND(ROUNDDOWN($G24,0)=Q$14,MOD(-$G24,1)>=$E24),1,IF(AND(Q$14>=$G24+1,Q$14<=$H24),1/$E24,IF(ROUNDDOWN($G24,0)=Q$14,MOD(-$G24,1)/$E24,IF(ROUNDDOWN($H24,0)=Q$14,MOD($H24,1)/$E24,)))))) -> 0 | R24: 0 | S24: 0 | T24: 0.5 | U24: 0.5 | V24: 0 | W24: 0 | X24: 0 | Y24: 0 | Z24: 0 | AA24: 0 | AB24: 0 | AC24: 0 | AD24: 0 | AE24: 0 | AF24: 0
B25: Field Gathering System (Surface) Before PPA | D25: =('Out-LCOE'!C$30+'Out-LCOE'!C$34)*(1+D6) -> 4307489.569 | E25: =IN!H$31-E27 -> -0.3333333333 | F25: =IN!H$38 -> 0.07 | G25: -1.166666667 | H25: =G27 -> -1.5 | I25: 0.07 | J25: 107.6872392 | K25: $/kW | L25: 0.02772639779 | M25: 0.02966724564 | N25: 0.02966724564 | O25: 115.225346 | P25: 1 | Q25: 0 | R25: 0 | S25: 0 | T25: 0 | U25: 1 | V25: 0 | W25: 0 | X25: 0 | Y25: 0 | Z25: 0 | AA25: 0 | AB25: 0 | AC25: 0 | AD25: 0 | AE25: 0 | AF25: 0
B26: Engineering Before PPA | D26: ='Out-LCOE'!C$44*(1+D6) -> 2653220.877 | E26: =IN!H$32 -> 1 | F26: =IN!H$39 -> 0.07 | G26: =H26-E26 -> -2.5 | H26: =G29 -> -1.5 | I26: 0.07 | J26: =(D26)/(D$9*1000) -> 66.33052192 | K26: $/kW | L26: 0.01707822068 | M26: 0.0189132755 | N26: =(SERIESSUM(1/(1+$F26),-E$33+E$30,1,(Q26:AF26))*L26)/(1+I26)^G$30 -> 0.0189132755 | O26: 73.4577365 | P26: =SUM(Q26:AF26) -> 1 | Q26: =IF($G26>=Q$14,0,IF($H26+1<=Q$14,0,IF(AND(ROUNDDOWN($G26,0)=Q$14,MOD(-$G26,1)>=$E26),1,IF(AND(Q$14>=$G26+1,Q$14<=$H26),1/$E26,IF(ROUNDDOWN($G26,0)=Q$14,MOD(-$G26,1)/$E26,IF(ROUNDDOWN($H26,0)=Q$14,MOD($H26,1)/$E26,)))))) -> 0 | R26: 0 | S26: 0 | T26: 0.5 | U26: 0.5 | V26: 0 | W26: 0 | X26: 0 | Y26: 0 | Z26: 0 | AA26: 0 | AB26: 0 | AC26: 0 | AD26: 0 | AE26: 0 | AF26: 0
B27: Field Gathering System (Surface) After PPA | D27: =('Out-LCOE'!C$31+'Out-LCOE'!C$35)*(1+D6) -> 2871659.713 | E27: =MROUND((1-D13)*E30,1/12) -> 0.8333333333 | F27: =IN!H$38 -> 0.07 | G27: -1.5 | H27: =G28+E27 -> -0.6666666667 | I27: 0.07 | J27: 71.79149282 | K27: $/kW | L27: 0.01848426519 | M27: 0.01926060433 | N27: =(SERIESSUM(1/(1+$I27),-E$33,1,(Q27:AF27))*L27) -> 0.01926060433 | O27: 74.80673551 | P27: 1 | Q27: 0 | R27: 0 | S27: 0 | T27: 0 | U27: 0.6 | V27: 0.4 | W27: 0 | X27: 0 | Y27: 0 | Z27: 0 | AA27: =IF($G27>=AA$14,0,IF($H27+1<=AA$14,0,IF(AND(ROUNDDOWN($G27,0)=AA$14,MOD(-$G27,1)>=$E27),1,IF(AND(AA$14>=$G27+1,AA$14<=$H27),1/$E27,IF(ROUNDDOWN($G27,0)=AA$14,MOD(-$G27,1)/$E27,IF(ROUNDDOWN($H27,0)=AA$14,MOD($H27,1)/$E27,)))))) -> 0 | AB27: 0 | AC27: 0 | AD27: 0 | AE27: 0 | AF27: 0
B28: Geothermal Pump Installation | D28: =('Out-LCOE'!C$32+'Out-LCOE'!C$33+'Out-LCOE'!C$36)*(1+D6) -> 1309228.294 | E28: =E30 -> 1.5 | F28: =IN!H$38 -> 0.07 | G28: -1.5 | H28: =H30 -> 0 | I28: 0.07 | J28: 32.73070734 | K28: $/kW | L28: 0.008427225159 | M28: 0.008623860412 | N28: =(SERIESSUM(1/(1+$I28),-E$33,1,(Q28:AF28))*L28) -> 0.008623860412 | O28: 33.49442384 | P28: 1 | Q28: 0 | R28: 0 | S28: 0 | T28: 0 | U28: 0.3333333333 | V28: 0.6666666667 | W28: 0 | X28: 0 | Y28: 0 | Z28: 0 | AA28: 0 | AB28: 0 | AC28: 0 | AD28: 0 | AE28: 0 | AF28: 0
B29: Engineering After PPA | D29: ='Out-LCOE'!C$45*(1+D6) -> 2653220.877 | E29: =0.5*E30 -> 0.75 | F29: =IN!H$39 -> 0.07 | G29: -1.5 | H29: =G30+E29 -> -0.75 | I29: 0.07 | J29: 66.33052192 | K29: $/kW | L29: 0.01707822068 | M29: 0.01787520432 | N29: =(SERIESSUM(1/(1+$I29),-E$33,1,(Q29:AF29))*L29) -> 0.01787520432 | O29: 69.42594627 | P29: 1 | Q29: 0 | R29: 0 | S29: 0 | T29: 0 | U29: 0.6666666667 | V29: 0.3333333333 | W29: 0 | X29: 0 | Y29: 0 | Z29: 0 | AA29: 0 | AB29: 0 | AC29: 0 | AD29: 0 | AE29: 0 | AF29: 0
B30: Plant Construction | D30: =('Out-LCOE'!C$46+'Out-LCOE'!C$47)*(1+D6) -> 93747137.64 | E30: =IN!H$33 -> 1.5 | F30: =IN!H$39 -> 0.07 | G30: -1.5 | H30: 0 | I30: 0.07 | J30: 2343.678441 | K30: $/kW | L30: 0.6034304642 | M30: 0.6175105084 | N30: =(SERIESSUM(1/(1+$I30),-E$33,1,(Q30:AF30))*L30) -> 0.6175105084 | O30: 2398.364271 | P30: 1 | Q30: 0 | R30: 0 | S30: 0 | T30: 0 | U30: 0.3333333333 | V30: 0.6666666667 | W30: 0 | X30: 0 | Y30: 0 | Z30: 0 | AA30: 0 | AB30: 0 | AC30: 0 | AD30: 0 | AE30: 0 | AF30: 0
L31: =SUM(L16:L30) -> 1 | Q31: =($L31*AH31)/(1+$F31)^(Q$13) -> 0 | R31: 0 | S31: 0 | T31: 0 | U31: 0 | V31: 0 | W31: 0 | X31: 0 | Y31: 0 | Z31: 0 | AA31: 0 | AB31: 0 | AC31: 0 | AD31: 0 | AE31: 0 | AF31: 0
B32: TOTAL - OVERNIGHT | D32: =SUM(D16:D30) -> 155356985.1 | E32: =E16+MAX(E17:E19)+MAX(E20,E22,E24:E26)+MAX(E27:E30) -> 4.5 | I32: TOTAL - OVERNIGHT | J32: =SUM(J16:J30) -> 3883.924628 | K32: $/kW | L32: ∑ | M32: =SUM(M16:M30) -> 1.043299682 | N32: =SUM(N16:N30) -> 1.043299682 | O32: =SUM(O16:O30) -> 4052.097327
B33: (with contingency) | E33: =ROUNDUP(E32,0) -> 5
B36: Well Field - drilling | D36: =OUT!G205*(1+D6) -> 23807688.8 | G36: =(D36)/(D$9*1000) -> 595.19222 | I36: =N20+N21 -> 0.1503269113
B37: Exploration Drilling | D37: =OUT!G109*(1+D6) -> 16832892.14 | G37: =(D37)/(D$9*1000) -> 420.8223035 | I37: =N18 -> 0.1288297973
B38: Total Drilling Costs | D38: =SUM(D36:D37) -> 40640580.94 | F38: OVERNIGHT | G38: =SUM(G36:G37) -> 1016.014524 | H38: ∑ | I38: =SUM(I36:I37) -> 0.2791567087
B40: Construction time multiplier (CT) | D40: =N32 -> 1.043299682 | F40: ='DCF-COE'!I57 -> 1.043299682 | G40: values in green are from the cash flow sheet "DCF-COE"
B41: PV of pre-operation activities | C41: $/kW | D41: =J32*D40 -> 4052.097327 | E41: =D41*D$9*1000 -> 162083893.1 | F41: ='DCF-COE'!G58 -> 162083893.1 | K41: NPV | L41: $/kW
B42: PV of Drilling activities | C42: $/kW | D42: =J32*I38 -> 1084.223616 | E42: =D42*D$9*1000 -> 43368944.63 | J42: Plant Construction | K42: =L42*D$9*1000 -> 101649918.2 | L42: =(N30+N26+N29)*J32 -> 2541.247954
J43: Well Field Stimulation | K43: 3376354.75 | L43: =(N22+N23)*J32 -> 84.40886875
J44: Drilling | K44: 23354335.72 | L44: =(N21+N20)*J32 -> 583.858393
B45: Effect of Resource Degradation | J45: Field Completion | K45: 8941060.213 | L45: =(N25+N27+N28)*J32 -> 223.5265053
B46: GETEM Estimate of Initial Reservoir Life | C46: yr | D46: =IF(D61=1000,D7,D61) -> 30 | J46: Exploration | K46: 21365661.68 | L46: =(N17+N18)*J32 -> 534.1415419
B47: Power at End of Reservoir Life | C47: MW | D47: =OUT!G309 -> 25.90843525 | J47: permitting | K47: 3396562.567 | L47: =(N16+N24+N19)*J32 -> 84.91406418
B48: δc, degradation in capacity (utilization) factor | D48: =1-EXP(LN(D47*D10/(D10*D9))/D46) -> 0.01437274012 | K48: =SUM(K42:K47) -> 162083893.1 | L48: =SUM(L42:L47) -> 4052.097327
B49: effective discount rate (dc) | D49: =(D8+D48)/(1-D48) -> 0.08560309111
B50: ∑1/(1+dc)^t | D50: =SERIESSUM(1/(1+D49),1,1,J89:J128) -> 10.68783939
B51: MCRFc | D51: =(1)/D50 -> 0.09356428028
B52: Year Capacity degradation starts | D52: =IF(D61=1000,0,IF(MOD(D7,F61)<5,1,0))*0+1 -> 1
B54: Well Field Makeup | D54: =OUT!G113 -> 2.024036912 | E54: # reservoirs found
B55: Makeup Cost (RC,tr) | D55: =IF(D61=1000,0,1)*OUT!G311 -> 0
B56: Replacement Cost | C56: $/kW | D56: =D55/(D9*1000) -> 0
B57: Skip Last Make-up (1-Yes,0-No) | D57: =IF(FLOOR(D7/D61,1)*D61>D7-5,1,0) -> 0
B58: Replacement - 1 if once, 0 if repeat | D58: =IF(ROUNDDOWN(D54-1,0)>1,0,1) -> 1 | E58: from EERE spreadsheet
D59: If operating year =1000, no makeup | G59: PV of Makeup
D60: year | E60: round up | G60: 1/(1+d)^Tr
B61: 1st Makeup (Tr) | D61: =IF($A$3=0,'Reservoir Flash'!AI48,'Reservoir Binary'!AF48) -> 1000 | E61: =ROUNDUP(D61,0) -> 1000 | F61: =IF(D$7<D61,D61,IF(A$2=1,E61,D61)) -> 1000 | G61: =IF(F61>D$7-5,0,(1+D$8)^-F61) -> 0
B62: 2nd Makeup (Tr) | D62: =IF($A$3=0,'Reservoir Flash'!AI49,'Reservoir Binary'!AF49) -> 1000 | E62: 1000 | F62: 1000 | G62: 0
B63: 3rd Makeup (Tr) | D63: =IF($A$3=0,'Reservoir Flash'!AI50,'Reservoir Binary'!AF50) -> 1000 | E63: 1000 | F63: 1000 | G63: 0
B64: 4th Makeup (Tr) | D64: =IF($A$3=0,'Reservoir Flash'!AI51,'Reservoir Binary'!AF51) -> 1000 | E64: 1000 | F64: 1000 | G64: 0
B65: 5th Makeup (Tr) | D65: =IF($A$3=0,'Reservoir Flash'!AI52,'Reservoir Binary'!AF52) -> 1000 | E65: 1000 | F65: 1000 | G65: 0
B66: 6th Makeup (Tr) | D66: =IF($A$3=0,'Reservoir Flash'!AI53,'Reservoir Binary'!AF53) -> 1000 | E66: 1000 | F66: 1000 | G66: 0
B67: 7th Makeup (Tr) | D67: =IF($A$3=0,'Reservoir Flash'!AI54,'Reservoir Binary'!AF54) -> 1000 | E67: 1000 | F67: 1000 | G67: 0
B68: PV of Replacement | D68: =SUM(G61:G68) -> 0
B69: PV Factor with Replacement | D69: =IF(D58=1,1/(1+D8)^F61,IF(F61<=0,1,(1-(1+D8)^(-F61*(CEILING(D7/F61,1)-1-D57)))/(1-(1+D8)^(-F61)))) -> 4.132589946e-30
B70: PV of post-startup capital | C70: $/kW | D70: =D56*D68 -> 0 | E70: ='DCF-COE'!G87 -> 0
B71: Present value of ICC [ PV(ICC) ] | C71: $/kW | D71: =D70+D41 -> 4052.097327
B74: Capital Costs
B75: Levelized Capital Costs | C75: $/kW-hr | D75: =(D40*J32+D56*D68)*(1-D5*D103)/(1-D5)/D116 -> 0.04977973291
B78: O&M Cost
A79: =IN!$A$180 -> 0 | B79: Inputted Total O&M Cost | C79: $/kW-hr | D79: =IF(A79=1,(IN!G$181+IN!G$182)/100,0) -> 0 | E79: =D79*8760*D10 -> 0
B80: Fixed (do not vary with output)
B81: Labor | D81: =IF(A79=1,0,'Out-LCOE'!C$53+'Out-LCOE'!C$54) -> 1500358.752 | E81: =D81/(D$9*1000) -> 37.50896879 | F81: $/kW
B82: Plant Maintenance | D82: =IF(A79=1,0,'Out-LCOE'!C$60+'Out-LCOE'!C$61) -> 1672052.274 | E82: 41.80130685 | F82: $/kW
B83: Well Maintenance | D83: =IF(A79=1,0,('Out-LCOE'!C$55+'Out-LCOE'!C$56+'Out-LCOE'!C$58)) -> 1060354.69 | E83: 26.50886726 | F83: $/kW
B84: Gathering system Maintenance | D84: =IF(A79=1,0,('Out-LCOE'!C$57)) -> 97431.81217 | E84: 2.435795304 | F84: $/kW
B85: Water Makeup (reservoir and plant) | D85: =IF(A79=1,0,'Out-LCOE'!C$59) -> 0 | E85: 0 | F85: $/kW
B86: Pump Replacement/Repair | D86: =IF(A79=1,0,'Out-LCOE'!C$62) -> 0 | E86: 0 | F86: $/kW
C87: $/kW | D87: =SUM(E79:E86) -> 108.2549382 | I87: Operating
B88: ∑1/(1+d)^t | D88: =SERIESSUM(((1)/(1+D8)),1,1,J89:J128) -> 12.40904118 | E88: this is applied to the above 'fixed' O&M costs | I88: Year | K88: Depreciation
B89: PV O&M | C89: $/kW | D89: =D87*D88 -> 1343.339986 | E89: =D89*D$9*1000 -> 53733599.46 | F89: ='DCF-COE'!G125 -> 53733599.46 | I89: 1 | J89: =IF(I89>D$7,0,1) -> 1 | K89: =OUT!G66 -> 0.2
B90: Taxes $ Insurance | D90: =IF(A79=1,0,OUT!G413) -> 1039871.409 | I90: 2 | J90: 1 | K90: =OUT!G67 -> 0.32
B91: Taxes & Insurance | C91: $/kW | D91: =D90/(D9*1000) -> 25.99678523 | E91: =D87+D91 -> 134.2517234 | I91: 3 | J91: 1 | K91: =OUT!G68 -> 0.192
B92: ∑1/(1+d)^t | D92: =SERIESSUM(1+D8,-1,-1,J89:J128) -> 12.40904118 | I92: 4 | J92: 1 | K92: =OUT!G69 -> 0.1152
B93: PV (Taxes & Insurance) | C93: $/kW | D93: =D91*D92 -> 322.5951785 | E93: =D93*D$9*1000 -> 12903807.14 | F93: ='DCF-COE'!G128 -> 12903807.14 | I93: 5 | J93: 1 | K93: =OUT!G70 -> 0.1152
B94: PV (Fix O&M) | D94: =D89+D93 -> 1665.935165 | E94: =D94*D$9*1000 -> 66637406.6 | F94: =F89+F93 -> 66637406.6 | I94: 6 | J94: 1 | K94: =OUT!G71 -> 0.0576
B95: Variable O&M | C95: $/MW-hr | D95: 0 | I95: 7 | J95: 1
I96: 8 | J96: 1
B97: Uniform PV Factor | D97: =(((1+D8)^$D7-1)/(D8*(1+D8)^$D7)) -> 12.40904118 | I97: 9 | J97: 1
B98: Levelized Operating Costs | C98: $/kW-hr | D98: =D97*(D87+D91)/D116+D95/1000 -> 0.01846091283 | I98: 10 | J98: 1
I99: 11 | J99: 1
I100: 12 | J100: 1
B101: Depreciation | I101: 13 | J101: 1
B102: Depreciation (based on discount rate - No inflation adjustment) | I102: 14 | J102: 1
B103: PV(Depreciation Schedule) | D103: =SERIESSUM(1/(1+D8),1,1,K89:K94) -> 0.8315483217 | I103: 15 | J103: 1
B104: PV(Depreciation) of Replacement Capital | I104: 16 | J104: 1
B105: PV(Depreciation) | C105: $/kW | I105: 17 | J105: 1
B106: PV(Depreciation) | C106: $/kW | I106: 18 | J106: 1
I107: 19 | J107: 1
I108: 20 | J108: 1
I109: 21 | J109: 1
B110: Annual Energy Produced (hours operating) | C110: hr/yr | D110: =8760*D10 -> 8322 | E110: Capacity/Utilization Factor * Max Hrs per year | I110: 22 | J110: 1
I111: 23 | J111: 1
B112: Power Production | D112: No Makeup | E112: With Makeup | I112: 24 | J112: 1
B113: PV Factor for power produced | D113: =(((1+D49)^D7-1)/(D49*(1+D49)^D7))/(1-D48)^D52 -> 10.84369297 | E113: =((((1+D49)^F61-1)/(D49*(1+D49)^F61))/(1-D48)^D52)*(1-(1+D8)^(-F61*(FLOOR(D7/F61,1)-D57)))/(1-(1+D8)^(-F61))+((((1+D49)^(MOD(D7,F61)+D57*F61)-1)/(D49*(1+D49)^(MOD(D7,F61)+D57*F61)))/(1-D48)^D52)/(1+D8)^(D7-(MOD(D7,F61)+D57*F61)) -> 10.84369297 | I113: 25 | J113: 1
B114: PV of Electrical Power | C114: kW-hrs/kW | D114: =D113*D110 -> 90241.21288 | E114: =E113*D110 -> 90241.21288 | I114: 26 | J114: 1
I115: 27 | J115: 1
B116: PV of Electrical Power | C116: kW-hrs/kW | D116: =IF(D7<D61,D114,E114) -> 90241.21288 | I116: 28 | J116: 1
B117: PV of Power Produced - Cash Flow | C117: kW-hrs/kW | D117: ='DCF-COE'!G66/(D9*1000) -> 90364.40233 | E117: =IF(D61<D7,"With Makeup","No Makeup") -> No Makeup | I117: 29 | J117: 1
C118: Difference in GETEM estimate and Capacity Factor Decline | D118: =D116/D117-1 -> -0.00136325194 | I118: 30 | J118: 1
I119: 31 | J119: 0
I120: 32 | J120: 0
B121: Royalties | I121: 33 | J121: 0
B122: Initial Royalty Rate | D122: =OUT!G54 -> 0.0175 | I122: 34 | J122: 0
B123: thru yr | D123: 10 | I123: 35 | J123: 0
B124: Final Royalty Rate | D124: =OUT!G55 -> 0.035 | I124: 36 | J124: 0
D125: No Makeup | E125: With Makeup | I125: 37 | J125: 0
B126: PV Factor of Royalties During Initial Period | D126: =(((1+D49)^D123-1)/(D49*(1+D49)^D123))/(1-D48)^D52 -> 6.639176392 | E126: =((((1+D49)^F61-1)/(D49*(1+D49)^F61))/(1-D48)^D52)*(1-(1+D8)^(-F61*(FLOOR(D123/F61,1))))/(1-(1+D8)^(-F61))+((((1+D49)^MOD(D123,F61)-1)/(D49*(1+D49)^MOD(D123,F61)))/(1-D48)^D52)/(1+D8)^(D123-MOD(D123,F61)) -> 6.639176392 | I126: 38 | J126: 0
B127: PV Factor of Royalties Project Life | D127: =D113 -> 10.84369297 | E127: =E113 -> 10.84369297 | I127: 39 | J127: 0
B128: PV Royalties - Initial Period | C128: kW-hrs/kW | D128: =IF(D61>D7,D126,E126)*D110 -> 55251.22593 | F128: ='DCF-COE'!H66/(D9*1000) -> 55136.99351 | I128: 40 | J128: 0
B129: PV Royalties - Project Life | C129: kW-hrs/kW | D129: =IF(D61>D7,D127,E127)*D110 -> 90241.21288 | F129: =D117 -> 90364.40233
B130: Levelized Royalties | D130: =(D122*D128+D124*(D129-D128))/D116 -> 0.02428542267
B133: LCOE, with Royalties | C133: $/kW-hr | D133: =(D75+D98)/(1-D130) -> 0.0699391475 | F133: ='DCF-COE'!G1 -> 0.1023070356 | G133: LCOE from DCF-COE sheet
B135: Capital Costs | D135: =SUM(D136:D152) -> 0.0699391475 | E135: =SUM(D136:D142) -> 0.04977973291
B136: Exploration | C136: $/kW-hr | D136: =(L46*(1-D$5*D$103)/(1-D$5))/D$116 -> 0.006561891569
B137: Drilling | C137: $/kW-hr | D137: =(L44*(1-D$5*D$103)/(1-D$5))/D$116 -> 0.007172659617
B138: Field Gathering System | C138: $/kW-hr | D138: =(L45*(1-D$5*D$103)/(1-D$5))/D$116 -> 0.00274600752
B139: Stimulation | C139: $/kW-hr | D139: =(L43*(1-D$5*D$103)/(1-D$5))/D$116 -> 0.001036957063
B140: Power Plant | C140: $/kW-hr | D140: =(L42*(1-D$5*D$103)/(1-D$5))/D$116 -> 0.03121905379
B141: Permitting | C141: $/kW-hr | D141: =(L47*(1-D$5*D$103)/(1-D$5))/D$116 -> 0.001043163353
B142: Makeup Drilling Costs | C142: $/kW-hr | D142: =(D56*D68*(1-D$5*D$103)/(1-D$5))/D$116 -> 0
B143: Operating Costs
B144: Fixed O&M Cost | C144: $/kW-hr | D144: =E79*D$97/D$116 -> 0 | E144: =SUM(D144:D152) -> 0.02015941459
B145: O&M - Labor | C145: $/kW-hr | D145: =E81*D$97/D$116 -> 0.00515784666
B146: Maintenance - Plant | C146: $/kW-hr | D146: 0.005748084735
B147: Maintenance- Wells/Reservoir | C147: $/kW-hr | D147: 0.003645226112
B148: Maintenance- Gathering System | C148: $/kW-hr | D148: 0.0003349454565
B149: Water Makeup Costs | C149: $/kW-hr | D149: 0
B150: Production Pump Maintenance | C150: $/kW-hr | D150: 0
B151: Taxes & Insurance | C151: $/kW-hr | D151: =D91*D$97/D$116 -> 0.00357480987
B152: Royalties | C152: $/kW-hr | D152: =D130*D133 -> 0.001698501758
B154: Drilling Costs | C154: $/kW-hr | D154: =((I38*J$32*(1-D$5*D$103)/(1-D$5))/D$116) -> 0.01331961146
B158: REVISED SCENARIO
B159: Taxes | D159: =IN!I21 -> 0.392
B160: Contingency | D160: =OUT!H53 -> 0.15
B161: Plant/Project Life | C161: yr | D161: =IF('DCF-COE'!J194-OUT!H10<0,'DCF-COE'!J194,OUT!H10) -> 30
B162: Discount Rate | D162: =OUT!H57 -> 0.07
B163: Power Sales | C163: MW | D163: =OUT!H9 -> 40
B164: Net Capacity Factor | D164: =OUT!H52 -> 0.95 | Q164: =AJ166*$J186 -> 0 | R164: =IF(R168>0,0,AK166*$J186-SUM(Q164:$Q164)) -> 0 | S164: =IF(S168>0,0,AL166*$J186-SUM($Q164:R164)) -> 26.31165767 | T164: =IF(T168>0,0,AM166*$J186-SUM($Q164:S164)) -> 237.5764056 | U164: =IF(U168>0,0,AN166*$J186-SUM($Q164:T164)) -> 1855.101727 | V164: =IF(V168>0,0,AO166*$J186-SUM($Q164:U164)) -> 1944.782063 | W164: =IF(W168>0,0,AP166*$J186-SUM($Q164:V164)) -> 0 | X164: =IF(X168>0,0,AQ166*$J186-SUM($Q164:W164)) -> 0 | Y164: =IF(Y168>0,0,AR166*$J186-SUM($Q164:X164)) -> 0 | Z164: =IF(Z168>0,0,AS166*$J186-SUM($Q164:Y164)) -> 0 | AA164: =IF(AA168>0,0,AT166*$J186-SUM($Q164:Z164)) -> 0 | AB164: =IF(AB168>0,0,AU166*$J186-SUM($Q164:AA164)) -> 0 | AC164: =IF(AC168>0,0,AV166*$J186-SUM($Q164:AB164)) -> 0 | AD164: =IF(AD168>0,0,AW166*$J186-SUM($Q164:AC164)) -> 0 | AE164: =IF(AE168>0,0,AX166*$J186-SUM($Q164:AD164)) -> 0 | AF164: =IF(AF168>0,0,AY166*$J186-SUM($Q164:AE164)) -> 0 | AG164: =IF(AG168>0,0,AZ166*$J186-SUM($Q164:AF164)) -> 0
B165: Inflation Rate | D165: 0 | Q165: =($N170*Q170+$N171*Q171+$N172*Q172+$N173*Q173+$N174*Q174+$N175*Q175+$N176*Q176+$N177*Q177+$N178*Q178+$N179*Q179+$N180*Q180+$N181*Q181+$N182*Q182+$N183*Q183+$N184*Q184)*$J186 -> 0 | R165: =($N170*R170+$N171*R171+$N172*R172+$N173*R173+$N174*R174+$N175*R175+$N176*R176+$N177*R177+$N178*R178+$N179*R179+$N180*R180+$N181*R181+$N182*R182+$N183*R183+$N184*R184)*$J186 -> 0 | S165: 31.53001365 | T165: 260.6093506 | U165: 1929.198605 | V165: 1842.433884 | W165: 0 | X165: 0 | Y165: 0 | Z165: 0 | AA165: 0 | AB165: 0 | AC165: 0 | AD165: 0 | AE165: 0 | AF165: 0 | AG165: 0
B166: Inflation Adjusted Discount for Depreciation | D166: =(1+D162)*(1+D165)-1 -> 0.07 | Q166: =($M170*Q170+$M171*Q171+$M172*Q172+$M173*Q173+$M174*Q174+$M175*Q175+$M176*Q176+$M177*Q177+$M178*Q178+$M179*Q179+$M180*Q180+$M181*Q181+$M182*Q182+$M183*Q183+$M184*Q184)*$J186 -> 0 | R166: =($M170*R170+$M171*R171+$M172*R172+$M173*R173+$M174*R174+$M175*R175+$M176*R176+$M177*R177+$M178*R178+$M179*R179+$M180*R180+$M181*R181+$M182*R182+$M183*R183+$M184*R184)*$J186 -> 0 | S166: 31.53001365 | T166: 260.6093506 | U166: 1929.198605 | V166: 1842.433884 | W166: 0 | X166: 0 | Y166: 0 | Z166: 0 | AA166: 0 | AB166: 0 | AC166: 0 | AD166: 0 | AE166: 0 | AF166: 0 | AG166: 0 | AJ166: =IF(AJ168>0,0,SUM(AJ170:AJ184)) -> 0 | AK166: =IF(AK168>0,0,SUM(AK170:AK184)) -> 0 | AL166: 0.006755016447 | AM166: 0.06774822893 | AN166: 0.5440102278 | AO166: 1.043295943 | AP166: 0 | AQ166: 0 | AR166: 0 | AS166: 0 | AT166: 0 | AU166: 0 | AV166: 0 | AW166: 0 | AX166: 0 | AY166: 0 | AZ166: 0
B167: Well capacity confirmed in Drilling Phase | D167: =OUT!H168 -> 0.4330817659 | Q167: =($L170*Q170+$L171*Q171+$L172*Q172+$L173*Q173+$L174*Q174+$L175*Q175+$L176*Q176+$L177*Q177+$L178*Q178+$L179*Q179+$L180*Q180+$L181*Q181+$L182*Q182+$L183*Q183+$L184*Q184)*$J186 -> 0 | R167: =($L170*R170+$L171*R171+$L172*R172+$L173*R173+$L174*R174+$L175*R175+$L176*R176+$L177*R177+$L178*R178+$L179*R179+$L180*R180+$L181*R181+$L182*R182+$L183*R183+$L184*R184)*$J186 -> 0 | S167: 26.31165767 | T167: 235.7345895 | U167: 1836.629562 | V167: 1796.452778 | W167: 0 | X167: 0 | Y167: 0 | Z167: 0 | AA167: 0 | AB167: 0 | AC167: 0 | AD167: 0 | AE167: 0 | AF167: 0 | AG167: 0
P168: yr -> | Q168: =-E187 -> -5 | R168: =Q168+1 -> -4 | S168: =R168+1 -> -3 | T168: -2 | U168: -1 | V168: 0 | W168: 1 | X168: 2 | Y168: 3 | Z168: 4 | AA168: 5 | AB168: =AA168+1 -> 6 | AC168: 7 | AD168: 8 | AE168: 9 | AF168: 10 | AG168: 11 | AI168: =IF(AND(A170=1,F170>F184),1,IF(F170>F184,2,0)) -> 0 | AJ168: =Q168 -> -5 | AK168: =R168 -> -4 | AL168: -3 | AM168: -2 | AN168: -1 | AO168: 0 | AP168: 1 | AQ168: 2 | AR168: 3 | AS168: 4 | AT168: 5 | AU168: 6 | AV168: 7 | AW168: 8 | AX168: 9 | AY168: 10 | AZ168: =AG168 -> 11
D169: CAPEX with contingency | E169: Duration yrs | F169: Discount rate | G169: start | H169: end | J169: Cost
A170: =IN!B40 -> 0 | B170: Permitting (Exploration) & Leasing | D170: =('Out-LCOE'!E$8+'Out-LCOE'!E$9+'Out-LCOE'!E$10)*(1+D160) -> 1578699.46 | E170: =IN!I$27 -> 1 | F170: =IN!I$36 -> 0.07 | G170: =H170-E170 -> -3.666666667 | H170: =G171 -> -2.666666667 | I170: =IF(A$170=1,F$184,F170) -> 0.07 | J170: =(D170)/(D$163*1000) -> 39.46748651 | K170: $/kW | L170: =J170/J$186 -> 0.01013252467 | M170: =SERIESSUM(1/(1+$F170),-E$187,1,(Q170:AG170))*L170 -> 0.01214209478 | N170: =(SERIESSUM(1/(1+$F170),-E$187+E$184,1,(Q170:AG170))*L170)/(1+I170)^G$184 -> 0.01214209478 | O170: =N170*J$186 -> 47.29502048 | P170: =SUM(Q170:AF170) -> 1 | Q170: =IF($G170>=Q$168,0,IF($H170+1<=Q$168,0,IF(AND(ROUNDDOWN($G170,0)=Q$168,MOD(-$G170,1)>=$E170),1,IF(AND(Q$168>=$G170+1,Q$168<=$H170),1/$E170,IF(ROUNDDOWN($G170,0)=Q$168,MOD(-$G170,1)/$E170,IF(ROUNDDOWN($H170,0)=Q$168,MOD($H170,1)/$E170,)))))) -> 0 | R170: =IF($G170>=R$168,0,IF($H170+1<=R$168,0,IF(AND(ROUNDDOWN($G170,0)=R$168,MOD(-$G170,1)>=$E170),1,IF(AND(R$168>=$G170+1,R$168<=$H170),1/$E170,IF(ROUNDDOWN($G170,0)=R$168,MOD(-$G170,1)/$E170,IF(ROUNDDOWN($H170,0)=R$168,MOD($H170,1)/$E170,)))))) -> 0 | S170: 0.6666666667 | T170: 0.3333333333 | U170: 0 | V170: 0 | W170: 0 | X170: 0 | Y170: 0 | Z170: 0 | AA170: 0 | AB170: 0 | AC170: 0 | AD170: 0 | AE170: 0 | AF170: 0 | AG170: 0 | AJ170: =($L170*Q170) -> 0 | AK170: =($L170*R170)+AJ170*IF(AK168>0,1,(1+IF(AK168<-1,$F170,$I170))^(AK$168-AJ$168)) -> 0 | AL170: =($L170*S170)+AK170*IF(AL$168>0,1,(1+IF(AL$168<-1,$F170,$I170))^(AL$168-AK$168)) -> 0.006755016447 | AM170: =($L170*T170)+AL170*IF(AM$168>0,1,(1+IF(AM$168<-1,$F170,$I170))^(AM$168-AL$168)) -> 0.01060537582 | AN170: 0.01134775213 | AO170: 0.01214209478 | AP170: 0.01214209478 | AQ170: 0.01214209478 | AR170: 0.01214209478 | AS170: 0.01214209478 | AT170: 0.01214209478 | AU170: 0.01214209478 | AV170: 0.01214209478 | AW170: 0.01214209478 | AX170: 0.01214209478 | AY170: 0.01214209478 | AZ170: 0.01214209478
B171: Exploration | D171: =('Out-LCOE'!E$11)*(1+D160) -> 1206368.921 | E171: =IN!I$28 -> 1 | F171: =IN!I$36 -> 0.07 | G171: -2.666666667 | H171: =H172 -> -1.666666667 | I171: 0.07 | J171: =(D171)/(D$163*1000) -> 30.15922303 | K171: $/kW | L171: =J171/J$186 -> 0.007742805495 | M171: =SERIESSUM(1/(1+$F171),-E$187,1,(Q171:AG171))*L171 -> 0.008671425967 | N171: =(SERIESSUM(1/(1+$F171),-E$187+E$184,1,(Q171:AG171))*L171)/(1+I171)^G$184 -> 0.008671425967 | O171: =N171*J$186 -> 33.77631918 | P171: =SUM(Q171:AF171) -> 1 | Q171: =IF($G171>=Q$168,0,IF($H171+1<=Q$168,0,IF(AND(ROUNDDOWN($G171,0)=Q$168,MOD(-$G171,1)>=$E171),1,IF(AND(Q$168>=$G171+1,Q$168<=$H171),1/$E171,IF(ROUNDDOWN($G171,0)=Q$168,MOD(-$G171,1)/$E171,IF(ROUNDDOWN($H171,0)=Q$168,MOD($H171,1)/$E171,)))))) -> 0 | R171: 0 | S171: 0 | T171: 0.6666666667 | U171: 0.3333333333 | V171: 0 | W171: 0 | X171: 0 | Y171: 0 | Z171: 0 | AA171: 0 | AB171: 0 | AC171: 0 | AD171: 0 | AE171: 0 | AF171: 0 | AG171: 0 | AJ171: =($L171*Q171) -> 0 | AK171: =($L171*R171)+AJ171*IF(AK169>0,1,(1+IF(AK169<-1,$F171,$I171))^(AK$168-AJ$168)) -> 0 | AL171: =($L171*S171)+AK171*IF(AL$168>0,1,(1+IF(AL$168<-1,$F171,$I171))^(AL$168-AK$168)) -> 0 | AM171: 0.00516187033 | AN171: 0.008104136418 | AO171: 0.008671425967 | AP171: 0.008671425967 | AQ171: 0.008671425967 | AR171: 0.008671425967 | AS171: 0.008671425967 | AT171: 0.008671425967 | AU171: 0.008671425967 | AV171: 0.008671425967 | AW171: 0.008671425967 | AX171: 0.008671425967 | AY171: 0.008671425967 | AZ171: 0.008671425967
B172: Exploration Drilling | D172: ='Out-LCOE'!E$13+('Out-LCOE'!E$12+'Out-LCOE'!E$14+'Out-LCOE'!E$15)*(1+D160) -> 18278738.08 | E172: =E171-0.5 -> 0.5 | F172: =IN!I$36 -> 0.07 | G172: -2.166666667 | H172: =MIN(G174,G179) -> -1.666666667 | I172: 0.07 | J172: 456.968452 | K172: $/kW | L172: 0.1173179375 | M172: 0.1284592309 | N172: =(SERIESSUM(1/(1+$F172),-E$187+E$184,1,(Q172:AG172))*L172)/(1+I172)^G$184 -> 0.1284592309 | O172: 500.3652227 | P172: 1 | Q172: 0 | R172: 0 | S172: 0 | T172: 0.3333333333 | U172: 0.6666666667 | V172: 0 | W172: 0 | X172: 0 | Y172: 0 | Z172: 0 | AA172: 0 | AB172: 0 | AC172: 0 | AD172: 0 | AE172: 0 | AF172: 0 | AG172: 0 | AJ172: 0 | AK172: 0 | AL172: 0 | AM172: 0.03910597916 | AN172: 0.120055356 | AO172: 0.1284592309 | AP172: 0.1284592309 | AQ172: 0.1284592309 | AR172: 0.1284592309 | AS172: 0.1284592309 | AT172: 0.1284592309 | AU172: 0.1284592309 | AV172: 0.1284592309 | AW172: 0.1284592309 | AX172: 0.1284592309 | AY172: 0.1284592309 | AZ172: 0.1284592309
B173: Permitting (Early Drilling) | E173: 0 | F173: =IN!I$37 -> 0.07 | G173: -1.666666667 | H173: =G174 -> -1.666666667 | I173: 0.07 | J173: 0 | K173: $/kW | L173: 0 | M173: 0 | N173: =(SERIESSUM(1/(1+$F173),-E$187+E$184,1,(Q173:AG173))*L173)/(1+I173)^G$184 -> 0 | O173: 0 | P173: 1 | Q173: 0 | R173: 0 | S173: 0 | T173: 0 | U173: 1 | V173: 0 | W173: 0 | X173: 0 | Y173: 0 | Z173: 0 | AA173: 0 | AB173: 0 | AC173: 0 | AD173: 0 | AE173: 0 | AF173: 0 | AG173: 0 | AJ173: 0 | AK173: 0 | AL173: 0 | AM173: 0 | AN173: 0 | AO173: 0 | AP173: 0 | AQ173: 0 | AR173: 0 | AS173: 0 | AT173: 0 | AU173: 0 | AV173: 0 | AW173: 0 | AX173: 0 | AY173: 0 | AZ173: 0
B174: Drilling Before PPA obtained | D174: ='Out-LCOE'!E$20+('Out-LCOE'!E$24+'Out-LCOE'!E$25)*(1+'EERE COE'!D160) -> 9705293.258 | E174: =IN!I$29-E175 -> 0.1666666667 | F174: =IN!I$37 -> 0.07 | G174: -1.666666667 | H174: =G175 -> -1.5 | I174: 0.07 | J174: 242.6323314 | K174: $/kW | L174: 0.06229122505 | M174: 0.06665161081 | N174: =(SERIESSUM(1/(1+$F174),-E$187+E$184,1,(Q174:AG174))*L174)/(1+I174)^G$184 -> 0.06665161081 | O174: 259.6165947 | P174: 1 | Q174: 0 | R174: 0 | S174: 0 | T174: 0 | U174: 1 | V174: 0 | W174: 0 | X174: 0 | Y174: 0 | Z174: 0 | AA174: 0 | AB174: 0 | AC174: 0 | AD174: 0 | AE174: 0 | AF174: 0 | AG174: 0 | AJ174: 0 | AK174: 0 | AL174: 0 | AM174: 0 | AN174: 0.06229122505 | AO174: 0.06665161081 | AP174: 0.06665161081 | AQ174: 0.06665161081 | AR174: 0.06665161081 | AS174: 0.06665161081 | AT174: 0.06665161081 | AU174: 0.06665161081 | AV174: 0.06665161081 | AW174: 0.06665161081 | AX174: 0.06665161081 | AY174: 0.06665161081 | AZ174: 0.06665161081
B175: Drilling After PPA obtained | D175: ='Out-LCOE'!E$21+'Out-LCOE'!E$26*(1+'EERE COE'!D160) -> 12446902.05 | E175: =MROUND((1-D167)*E184,1/12) -> 0.8333333333 | F175: =IN!I$37 -> 0.07 | G175: -1.5 | H175: =G184+E175 -> -0.6666666667 | I175: 0.07 | J175: 311.1725512 | K175: $/kW | L175: 0.07988761969 | M175: =SERIESSUM(1/(1+$F175),-E$187,1,(Q175:AG175))*L175 -> 0.08324289972 | N175: =(SERIESSUM(1/(1+$I175),-E$187,1,(Q175:AG175))*L175) -> 0.08324289972 | O175: 324.2417984 | P175: 1 | Q175: 0 | R175: 0 | S175: 0 | T175: 0 | U175: 0.6 | V175: 0.4 | W175: 0 | X175: 0 | Y175: 0 | Z175: 0 | AA175: 0 | AB175: 0 | AC175: 0 | AD175: 0 | AE175: 0 | AF175: 0 | AG175: 0 | AJ175: 0 | AK175: 0 | AL175: 0 | AM175: 0 | AN175: 0.04793257181 | AO175: 0.08324289972 | AP175: 0.08324289972 | AQ175: 0.08324289972 | AR175: 0.08324289972 | AS175: 0.08324289972 | AT175: 0.08324289972 | AU175: 0.08324289972 | AV175: 0.08324289972 | AW175: 0.08324289972 | AX175: 0.08324289972 | AY175: 0.08324289972 | AZ175: 0.08324289972
B176: Well Field Stimulation Before PPA | D176: ='Out-LCOE'!E$22*(1+D160) -> 0 | E176: =IN!I$29-E177 -> 0.1666666667 | F176: =IN!I$37 -> 0.07 | G176: -1.666666667 | H176: =G177 -> -1.5 | I176: 0.07 | J176: 0 | K176: $/kW | L176: =J176/J$186 -> 0 | M176: =SERIESSUM(1/(1+$F176),-E$187,1,(Q176:AG176))*L176 -> 0 | N176: =(SERIESSUM(1/(1+$F176),-E$187+E$184,1,(Q176:AG176))*L176)/(1+I176)^G$184 -> 0 | O176: 0 | P176: 1 | Q176: 0 | R176: 0 | S176: 0 | T176: 0 | U176: 1 | V176: 0 | W176: 0 | X176: 0 | Y176: 0 | Z176: 0 | AA176: 0 | AB176: 0 | AC176: =IF($G176>=AC$168,0,IF($H176+1<=AC$168,0,IF(AND(ROUNDDOWN($G176,0)=AC$168,MOD(-$G176,1)>=$E176),1,IF(AND(AC$168>=$G176+1,AC$168<=$H176),1/$E176,IF(ROUNDDOWN($G176,0)=AC$168,MOD(-$G176,1)/$E176,IF(ROUNDDOWN($H176,0)=AC$168,MOD($H176,1)/$E176,)))))) -> 0 | AD176: 0 | AE176: 0 | AF176: 0 | AG176: 0 | AJ176: 0 | AK176: 0 | AL176: 0 | AM176: 0 | AN176: 0 | AO176: 0 | AP176: 0 | AQ176: 0 | AR176: 0 | AS176: 0 | AT176: 0 | AU176: 0 | AV176: 0 | AW176: 0 | AX176: 0 | AY176: 0 | AZ176: 0
B177: Well Field Stimulation After PPA | D177: ='Out-LCOE'!E$23*(1+D160) -> 3688422.063 | E177: =MROUND((1-D167)*E184,1/12) -> 0.8333333333 | F177: =IN!I$37 -> 0.07 | G177: -1.5 | H177: =G184+E177 -> -0.6666666667 | I177: 0.07 | J177: 92.21055158 | K177: $/kW | L177: 0.02367330102 | M177: =SERIESSUM(1/(1+$F177),-E$187,1,(Q177:AG177))*L177 -> 0.02466757967 | N177: =(SERIESSUM(1/(1+$I177),-E$187,1,(Q177:AG177))*L177) -> 0.02466757967 | O177: 96.08339475 | P177: 1 | Q177: 0 | R177: 0 | S177: 0 | T177: 0 | U177: 0.6 | V177: 0.4 | W177: 0 | X177: 0 | Y177: 0 | Z177: 0 | AA177: 0 | AB177: 0 | AC177: 0 | AD177: 0 | AE177: 0 | AF177: 0 | AG177: 0 | AJ177: 0 | AK177: 0 | AL177: 0 | AM177: 0 | AN177: 0.01420398061 | AO177: 0.02466757967 | AP177: 0.02466757967 | AQ177: 0.02466757967 | AR177: 0.02466757967 | AS177: 0.02466757967 | AT177: 0.02466757967 | AU177: 0.02466757967 | AV177: 0.02466757967 | AW177: 0.02466757967 | AX177: 0.02466757967 | AY177: 0.02466757967 | AZ177: 0.02466757967
B178: Permitting (Field and Plant) | D178: ='Out-LCOE'!E$19*(1+D160) -> 1358762.696 | E178: =IN!I$30 -> 1 | F178: =IN!I$38 -> 0.07 | G178: -2.5 | H178: =G184 -> -1.5 | I178: 0.07 | J178: 33.96906741 | K178: $/kW | L178: 0.008720910399 | M178: 0.009657972222 | N178: =(SERIESSUM(1/(1+$F178),-E$187+E$184,1,(Q178:AG178))*L178)/(1+I178)^G$184 -> 0.009657972222 | O178: 37.6190437 | P178: 1 | Q178: 0 | R178: 0 | S178: 0 | T178: 0.5 | U178: 0.5 | V178: 0 | W178: 0 | X178: 0 | Y178: 0 | Z178: 0 | AA178: 0 | AB178: 0 | AC178: 0 | AD178: 0 | AE178: 0 | AF178: 0 | AG178: 0 | AJ178: 0 | AK178: 0 | AL178: 0 | AM178: 0.0043604552 | AN178: 0.009026142263 | AO178: 0.009657972222 | AP178: 0.009657972222 | AQ178: 0.009657972222 | AR178: 0.009657972222 | AS178: 0.009657972222 | AT178: 0.009657972222 | AU178: 0.009657972222 | AV178: 0.009657972222 | AW178: 0.009657972222 | AX178: 0.009657972222 | AY178: 0.009657972222 | AZ178: 0.009657972222
B179: Field Gathering Sys (Surface) Before PPA | D179: =('Out-LCOE'!E$30+'Out-LCOE'!E$34)*(1+D160) -> 4307489.569 | E179: =IN!I$31-E181 -> -0.3333333333 | F179: =IN!I$38 -> 0.07 | G179: -1.166666667 | H179: =G181 -> -1.5 | I179: 0.07 | J179: 107.6872392 | K179: $/kW | L179: 0.0276466455 | M179: 0.02958191068 | N179: =(SERIESSUM(1/(1+$F179),-E$187+E$184,1,(Q179:AG179))*L179)/(1+I179)^G$184 -> 0.02958191068 | O179: 115.225346 | P179: 1 | Q179: 0 | R179: 0 | S179: 0 | T179: 0 | U179: 1 | V179: 0 | W179: 0 | X179: 0 | Y179: 0 | Z179: 0 | AA179: 0 | AB179: 0 | AC179: 0 | AD179: 0 | AE179: 0 | AF179: 0 | AG179: 0 | AJ179: 0 | AK179: 0 | AL179: 0 | AM179: 0 | AN179: 0.0276466455 | AO179: 0.02958191068 | AP179: 0.02958191068 | AQ179: 0.02958191068 | AR179: 0.02958191068 | AS179: 0.02958191068 | AT179: 0.02958191068 | AU179: 0.02958191068 | AV179: 0.02958191068 | AW179: 0.02958191068 | AX179: 0.02958191068 | AY179: 0.02958191068 | AZ179: 0.02958191068
B180: Engineering Before PPA | D180: ='Out-LCOE'!E$44*(1+D160) -> 2653220.877 | E180: =IN!I$32 -> 1 | F180: =IN!I$38 -> 0.07 | G180: =H180-E180 -> -2.5 | H180: =G183 -> -1.5 | I180: 0.07 | J180: =(D180)/(D$163*1000) -> 66.33052192 | K180: $/kW | L180: 0.01702909684 | M180: 0.01885887329 | N180: =(SERIESSUM(1/(1+$F180),-E$187+E$184,1,(Q180:AG180))*L180)/(1+I180)^G$184 -> 0.01885887329 | O180: 73.4577365 | P180: =SUM(Q180:AF180) -> 1 | Q180: =IF($G180>=Q$168,0,IF($H180+1<=Q$168,0,IF(AND(ROUNDDOWN($G180,0)=Q$168,MOD(-$G180,1)>=$E180),1,IF(AND(Q$168>=$G180+1,Q$168<=$H180),1/$E180,IF(ROUNDDOWN($G180,0)=Q$168,MOD(-$G180,1)/$E180,IF(ROUNDDOWN($H180,0)=Q$168,MOD($H180,1)/$E180,)))))) -> 0 | R180: 0 | S180: 0 | T180: 0.5 | U180: 0.5 | V180: 0 | W180: 0 | X180: 0 | Y180: 0 | Z180: 0 | AA180: 0 | AB180: 0 | AC180: 0 | AD180: 0 | AE180: 0 | AF180: 0 | AG180: 0 | AJ180: 0 | AK180: 0 | AL180: 0 | AM180: 0.008514548419 | AN180: 0.01762511523 | AO180: 0.01885887329 | AP180: 0.01885887329 | AQ180: 0.01885887329 | AR180: 0.01885887329 | AS180: 0.01885887329 | AT180: 0.01885887329 | AU180: 0.01885887329 | AV180: 0.01885887329 | AW180: 0.01885887329 | AX180: 0.01885887329 | AY180: 0.01885887329 | AZ180: 0.01885887329
B181: Field Gathering Sys (Surface) After PPA | D181: =('Out-LCOE'!E$31+'Out-LCOE'!E$35)*(1+D160) -> 2871659.713 | E181: =MROUND((1-D167)*E184,1/12) -> 0.8333333333 | F181: =IN!I$38 -> 0.07 | G181: -1.5 | H181: =G182+E181 -> -0.6666666667 | I181: 0.07 | J181: 71.79149282 | K181: $/kW | L181: 0.018431097 | M181: 0.01920520307 | N181: =(SERIESSUM(1/(1+$I181),-E$187,1,(Q181:AG181))*L181) -> 0.01920520307 | O181: 74.80673551 | P181: 1 | Q181: 0 | R181: 0 | S181: 0 | T181: 0 | U181: 0.6 | V181: 0.4 | W181: 0 | X181: 0 | Y181: 0 | Z181: 0 | AA181: 0 | AB181: 0 | AC181: 0 | AD181: 0 | AE181: 0 | AF181: 0 | AG181: 0 | AJ181: 0 | AK181: 0 | AL181: 0 | AM181: 0 | AN181: 0.0110586582 | AO181: 0.01920520307 | AP181: 0.01920520307 | AQ181: 0.01920520307 | AR181: 0.01920520307 | AS181: 0.01920520307 | AT181: 0.01920520307 | AU181: 0.01920520307 | AV181: 0.01920520307 | AW181: 0.01920520307 | AX181: 0.01920520307 | AY181: 0.01920520307 | AZ181: 0.01920520307
B182: Geothermal Pump Installation | D182: =('Out-LCOE'!E$32+'Out-LCOE'!E$33+'Out-LCOE'!E$36)*(1+D160) -> 1309228.294 | E182: =E184 -> 1.5 | F182: =IN!I$38 -> 0.07 | G182: -1.5 | H182: =H184 -> 0 | I182: 0.07 | J182: 32.73070734 | K182: $/kW | L182: 0.008402985063 | M182: 0.008599054714 | N182: =(SERIESSUM(1/(1+$I182),-E$187,1,(Q182:AG182))*L182) -> 0.008599054714 | O182: 33.49442384 | P182: 1 | Q182: 0 | R182: 0 | S182: 0 | T182: 0 | U182: 0.3333333333 | V182: 0.6666666667 | W182: 0 | X182: 0 | Y182: 0 | Z182: 0 | AA182: 0 | AB182: 0 | AC182: 0 | AD182: 0 | AE182: 0 | AF182: 0 | AG182: 0 | AJ182: 0 | AK182: 0 | AL182: 0 | AM182: 0 | AN182: 0.002800995021 | AO182: 0.008599054714 | AP182: 0.008599054714 | AQ182: 0.008599054714 | AR182: 0.008599054714 | AS182: 0.008599054714 | AT182: 0.008599054714 | AU182: 0.008599054714 | AV182: 0.008599054714 | AW182: 0.008599054714 | AX182: 0.008599054714 | AY182: 0.008599054714 | AZ182: 0.008599054714
B183: Engineering After PPA | D183: ='Out-LCOE'!E$45*(1+D160) -> 2653220.877 | E183: =0.5*E184 -> 0.75 | F183: =IN!I$39 -> 0.07 | G183: -1.5 | H183: =G184+E183 -> -0.75 | I183: 0.07 | J183: 66.33052192 | K183: $/kW | L183: 0.01702909684 | M183: 0.01782378802 | N183: =(SERIESSUM(1/(1+$I183),-E$187,1,(Q183:AG183))*L183) -> 0.01782378802 | O183: 69.42594627 | P183: 1 | Q183: 0 | R183: 0 | S183: 0 | T183: 0 | U183: 0.6666666667 | V183: 0.3333333333 | W183: 0 | X183: 0 | Y183: 0 | Z183: 0 | AA183: 0 | AB183: 0 | AC183: 0 | AD183: 0 | AE183: 0 | AF183: 0 | AG183: 0 | AJ183: 0 | AK183: 0 | AL183: 0 | AM183: 0 | AN183: 0.01135273123 | AO183: 0.01782378802 | AP183: 0.01782378802 | AQ183: 0.01782378802 | AR183: 0.01782378802 | AS183: 0.01782378802 | AT183: 0.01782378802 | AU183: 0.01782378802 | AV183: 0.01782378802 | AW183: 0.01782378802 | AX183: 0.01782378802 | AY183: 0.01782378802 | AZ183: 0.01782378802
B184: Plant Construction | D184: =('Out-LCOE'!E$46+'Out-LCOE'!E$47)*(1+D160) -> 93747137.64 | E184: =IN!I$33 -> 1.5 | F184: =IN!I$39 -> 0.07 | G184: -1.5 | H184: 0 | I184: 0.07 | J184: 2343.678441 | K184: $/kW | L184: 0.601694755 | M184: 0.6157342993 | N184: =(SERIESSUM(1/(1+$I184),-E$187,1,(Q184:AG184))*L184) -> 0.6157342993 | O184: 2398.364271 | P184: 1 | Q184: 0 | R184: 0 | S184: 0 | T184: 0 | U184: 0.3333333333 | V184: 0.6666666667 | W184: 0 | X184: 0 | Y184: 0 | Z184: 0 | AA184: 0 | AB184: 0 | AC184: 0 | AD184: 0 | AE184: 0 | AF184: 0 | AG184: 0 | AJ184: 0 | AK184: 0 | AL184: 0 | AM184: 0 | AN184: 0.2005649183 | AO184: 0.6157342993 | AP184: 0.6157342993 | AQ184: 0.6157342993 | AR184: 0.6157342993 | AS184: 0.6157342993 | AT184: 0.6157342993 | AU184: 0.6157342993 | AV184: 0.6157342993 | AW184: 0.6157342993 | AX184: 0.6157342993 | AY184: 0.6157342993 | AZ184: 0.6157342993
L185: =SUM(L170:L184) -> 1 | Q185: =IF($G185>=Q$168,0,IF($H185+1<=Q$168,0,IF(AND(ROUNDDOWN($G185,0)=Q$168,MOD(-$G185,1)>=$E185),1,IF(AND(Q$168>=$G185+1,Q$168<=$H185),1/$E185,IF(ROUNDDOWN($G185,0)=Q$168,MOD(-$G185,1)/$E185,IF(ROUNDDOWN($H185,0)=Q$168,MOD($H185,1)/$E185,)))))) -> 0 | R185: 0 | S185: 0 | T185: 0 | U185: 0 | V185: 0 | W185: 0 | X185: 0 | Y185: 0 | Z185: 0 | AA185: 0 | AB185: 0 | AC185: 0 | AD185: 0 | AE185: 0 | AF185: 0 | AG185: 0 | AJ185: 0 | AK185: 0 | AL185: 0 | AM185: 0 | AN185: 0 | AO185: 0 | AP185: 0 | AQ185: 0 | AR185: 0 | AS185: 0 | AT185: 0 | AU185: 0 | AV185: 0 | AW185: 0 | AX185: 0 | AY185: 0 | AZ185: 0
B186: TOTAL - OVERNIGHT | D186: =SUM(D170:D184) -> 155805143.5 | E186: =E170+MAX(E171:E173)+MAX(E174,E176,E178:E180)+MAX(E181:E184) -> 4.5 | I186: TOTAL - OVERNIGHT | J186: =SUM(J170:J184) -> 3895.128588 | K186: $/kW | L186: ∑ | M186: =SUM(M170:M184) -> 1.043295943 | N186: =SUM(N170:N184) -> 1.043295943 | O186: =SUM(O170:O184) -> 4063.771853
E187: =ROUNDUP(E186,0) -> 5
B190: Well Field Completion - drilling | D190: =OUT!H205*(1+D160) -> 23807688.8 | G190: =(D190)/(D$163*1000) -> 595.19222 | I190: =N174+N175 -> 0.1498945105
B191: Exploration Drilling | D191: =OUT!H109*(1+D160) -> 16832892.14 | G191: =(D191)/(D$163*1000) -> 420.8223035 | I191: =N172 -> 0.1284592309
B192: Total Drilling Costs | D192: =SUM(D190:D191) -> 40640580.94 | F192: OVERNIGHT | G192: =SUM(G190:G191) -> 1016.014524 | H192: ∑ | I192: =SUM(I190:I191) -> 0.2783537414
B194: Construction time multiplier (CT) | D194: =N186 -> 1.043295943 | F194: ='DCF-COE'!I189 -> 1.043295943 | G194: values in green are from the cash flow sheet "DCF-COE"
B195: PV of pre-operation activities | C195: $/kW | D195: =J186*D194 -> 4063.771853 | E195: =D195*D$163*1000 -> 162550874.1 | F195: ='DCF-COE'!G190 -> 162550874.1 | K195: NPV | L195: $/kW
B196: PV of Drilling activities | C196: $/kW | D196: =J186*I192 -> 1084.223616 | E196: =D196*D$163*1000 -> 43368944.63 | J196: Plant Construction | K196: =L196*D$163*1000 -> 101649918.2 | L196: =(N184+N180+N183)*J186 -> 2541.247954
J197: Well Field Stimulation | K197: 3843335.79 | L197: =(N176+N177)*J186 -> 96.08339475
J198: Drilling | K198: 23354335.72 | L198: =(N175+N174)*J186 -> 583.858393
B199: Effect of Resource Degradation | J199: GF Gathering | K199: 8941060.213 | L199: =(N179+N181+N182)*J186 -> 223.5265053
B200: GETEM Estimate of Initial Reservoir Life | C200: yr | D200: =IF(D215=1000,D161,D215) -> 30 | J200: Exploration | K200: 21365661.68 | L200: =(N171+N172)*J186 -> 534.1415419
B201: Power at End of Reservoir Life | C201: MW | D201: =OUT!H309 -> 25.90843525 | J201: permitting | K201: 3396562.567 | L201: =(N170+N178+N173)*J186 -> 84.91406418
B202: δc, degradation in capacity (utilization) factor | D202: =1-EXP(LN((D201*D164)/(D164*D163))/D200) -> 0.01437274012 | K202: =SUM(K196:K201) -> 162550874.1 | L202: =SUM(L196:L201) -> 4063.771853
B203: effective discount rate (dc) | D203: =(D162+D202)/(1-D202) -> 0.08560309111
B204: ∑1/(1+dc)^t | D204: =SERIESSUM(1/(1+D203),1,1,J243:J282) -> 10.68783939
B205: MCRFc | D205: =(1)/D204 -> 0.09356428028
B206: Year Capacity degradation starts | D206: =IF(D215=1000,0,IF(MOD(D161,F215)<5,1,0))*0+1 -> 1
B208: Well Field Makeup | D208: =OUT!H113 -> 2.024036912 | E208: # reservoirs found
B209: Makeup Cost (RC,tr) | D209: =IF(D215=1000,0,1)*OUT!H311 -> 0
B210: Replacement Cost | C210: $/kW | D210: =D209/(D163*1000) -> 0
B211: Skip Last Make-up (1-Yes,0-No) | D211: =IF(FLOOR(D161/D215,1)*D215>D161-5,1,0) -> 0
B212: Replacement - 1 if once, 0 if repeat | D212: =IF(ROUNDDOWN(D208-1,0)>1,0,1) -> 1
D213: If operating year =1000, no makeup | G213: PV of Makeup
D214: year | E214: round up | G214: 1/(1+d)^Tr
B215: 1st Makeup (Tr) | D215: =IF(A$3=0,'Reservoir Flash'!AJ48,'Reservoir Binary'!AG48) -> 1000 | E215: =ROUNDUP(D215,0) -> 1000 | F215: =IF(D$161<D215,D215,IF(A$2=1,E215,D215)) -> 1000 | G215: =IF(F215>D$161-5,0,(1+D$162)^-F215) -> 0
B216: 2nd Makeup (Tr) | D216: =IF(A$3=0,'Reservoir Flash'!AJ49,'Reservoir Binary'!AG49) -> 1000 | E216: 1000 | F216: 1000 | G216: 0
B217: 3rd Makeup (Tr) | D217: =IF(A$3=0,'Reservoir Flash'!AJ50,'Reservoir Binary'!AG50) -> 1000 | E217: 1000 | F217: 1000 | G217: 0
B218: 4th Makeup (Tr) | D218: =IF(A$3=0,'Reservoir Flash'!AJ51,'Reservoir Binary'!AG51) -> 1000 | E218: 1000 | F218: 1000 | G218: 0
B219: 5th Makeup (Tr) | D219: =IF(A$3=0,'Reservoir Flash'!AJ52,'Reservoir Binary'!AG52) -> 1000 | E219: 1000 | F219: 1000 | G219: 0
... 81 more rows

Sheet DCF-COE
A1: DEFAULT SCENARIO | E1: COE | G1: 0.1023070356
E2: Cash Flow | G2: =G68+G75+G114-G58-G87-G125-G128-G131-G136 -> 69602363.42
A5: REVISED SCENARIO | E5: COE | G5: 0.1007099398
E6: Cash Flow | G6: =G200+G207+G246-G190-G219-G257-G260-G263-G268 -> 65839002.11
A9: DEFAULT SCENARIO
B10: Contingency | F10: =OUT!G53 -> 0.15
B11: Discount Rate During Operation | F11: =OUT!G57 -> 0.07
B12: Net Capacity Factor | F12: =OUT!G52 -> 0.95
B13: Project Life (yrs) | F13: =OUT!G10 -> 30
B14: Design Power Sales, MW | F14: =OUT!G9 -> 40
B15: Tax Rate | F15: =IN!H21 -> 0.392
B16: Inflation | F16: ='EERE COE'!D11 -> 0
B17: Inflation Adjusted Discount for Depreciation | F17: =(1+F11)*(1+F16)-1 -> 0.07 | G17: EERE definition
B18: Royalty thru yr 10 | F18: =OUT!G54 -> 0.0175
B19: Royalty after yr 10 | F19: =OUT!G55 -> 0.035
B20: Field Capacity to get PPA -Drilling Phase | F20: =OUT!G168 -> 0.4330817659 | G20: Activity
B21: Duration of Pre-Operation activities | F21: =F39 -> 5 | G21: Discount rate | H21: start | I21: end
B22: Permitting (Exploration) & Leasing | F22: =IN!H$27 -> 1 | G22: =IN!H$36 -> 0.07 | H22: =I22-F22 -> -3.666666667 | I22: =H23 -> -2.666666667
B23: Exploration | F23: =IN!H$28 -> 1 | G23: =IN!H$36 -> 0.07 | H23: -2.666666667 | I23: =I24 -> -1.666666667
B24: Exploration Drilling | F24: =F23-0.5 -> 0.5 | G24: =IN!H$36 -> 0.07 | H24: -2.166666667 | I24: =H26 -> -1.666666667
B25: Permitting (Early Drilling) | F25: 0 | G25: =IN!H$37 -> 0.07 | H25: -1.666666667 | I25: =H26 -> -1.666666667
B26: Drilling Before PPA obtained | F26: =IN!H$29-F27 -> 0.1666666667 | G26: =IN!H$37 -> 0.07 | H26: -1.666666667 | I26: =H27 -> -1.5
B27: Drilling After PPA obtained | F27: =MROUND((1-F20)*F36,1/12) -> 0.8333333333 | G27: =IN!H$37 -> 0.07 | H27: -1.5 | I27: =H36+F27 -> -0.6666666667
B28: Well Field Stimulation Before PPA | F28: =IN!H$29-F29 -> 0.1666666667 | G28: =IN!H$37 -> 0.07 | H28: -1.666666667 | I28: =H29 -> -1.5
B29: Well Field Stimulation After PPA | F29: =MROUND((1-F20)*F36,1/12) -> 0.8333333333 | G29: =IN!H$37 -> 0.07 | H29: -1.5 | I29: =H36+F29 -> -0.6666666667
B30: Permitting (Field and Plant) | F30: =IN!H$30 -> 1 | G30: =IN!H$38 -> 0.07 | H30: -2.5 | I30: =H36 -> -1.5
B31: Field Gathering System (Surface) Before PPA | F31: =IN!H$31-F33 -> -0.3333333333 | G31: =IN!H$38 -> 0.07 | H31: -1.166666667 | I31: =H33 -> -1.5
B32: Engineering Before PPA | F32: =IN!H$32 -> 1 | G32: =IN!H$39 -> 0.07 | H32: -2.5 | I32: =H36 -> -1.5
B33: Field Gathering System (Surface) After PPA | F33: =MROUND((1-F20)*F36,1/12) -> 0.8333333333 | G33: =IN!H$38 -> 0.07 | H33: =I33-F33 -> -1.5 | I33: =H36+F33 -> -0.6666666667
B34: Geothermal Pump Installation | F34: =F36 -> 1.5 | G34: =IN!H$38 -> 0.07 | H34: =I34-F34 -> -1.5 | I34: =I36 -> 0
B35: Engineering After PPA | F35: =0.5*F36 -> 0.75 | G35: =IN!H$39 -> 0.07 | H35: =I35-F35 -> -1.5 | I35: =H36+F35 -> -0.75
B36: Plant Construction | F36: =IN!H$33 -> 1.5 | G36: =IN!H$39 -> 0.07 | H36: =I36-F36 -> -1.5 | I36: 0
F38: =F22+MAX(F23:F25)+MAX(F26,F28,F30:F32)+MAX(F33:F36) -> 4.5
F39: =ROUNDUP(F38,0) -> 5
A40: PRE-OPERATION | I40: year => | J40: =-F21 -> -5 | K40: =J40+1 -> -4 | L40: =K40+1 -> -3 | M40: -2 | N40: -1 | O40: 0 | P40: 1 | Q40: 2 | R40: 3 | S40: 4 | T40: 5 | U40: 6 | V40: 7 | W40: 8 | X40: 9 | Y40: 10 | Z40: 11
A41: =IN!A$40 -> 0 | B41: Activity | F41: Cost | G41: frac of total | H41: disc rate @SU
B42: Permitting (Exploration) & Leasing | F42: =('Out-LCOE'!C8+'Out-LCOE'!C9+'Out-LCOE'!C10)*(1+F10) -> 1578699.46 | G42: =F42/F$57 -> 0.01016175397 | H42: =IF(A$41=1,G$36,G22) -> 0.07 | I42: =(SERIESSUM(1/(1+$G22),-F$39+F$36,1,(J42:Y42))*G42)/(1+H42)^H$36 -> 0.01217712109 | J42: =IF($H22>=J$40,0,IF($I22+1<=J$40,0,IF(AND(ROUNDDOWN($H22,0)=J$40,MOD(-$H22,1)>=$F22),1,IF(AND(J$40>=$H22+1,J$40<=$I22),1/$F22,IF(ROUNDDOWN($H22,0)=J$40,MOD(-$H22,1)/$F22,IF(ROUNDDOWN($I22,0)=J$40,MOD($I22,1)/$F22,)))))) -> 0 | K42: =IF($H22>=K$40,0,IF($I22+1<=K$40,0,IF(AND(ROUNDDOWN($H22,0)=K$40,MOD(-$H22,1)>=$F22),1,IF(AND(K$40>=$H22+1,K$40<=$I22),1/$F22,IF(ROUNDDOWN($H22,0)=K$40,MOD(-$H22,1)/$F22,IF(ROUNDDOWN($I22,0)=K$40,MOD($I22,1)/$F22,)))))) -> 0 | L42: 0.6666666667 | M42: 0.3333333333 | N42: 0 | O42: 0 | P42: 0 | Q42: 0 | R42: 0 | S42: 0 | T42: 0 | U42: 0 | V42: 0 | W42: 0 | X42: 0 | Y42: 0 | Z42: 0
B43: Exploration | F43: ='Out-LCOE'!C11*(1+F10) -> 1206368.921 | G43: =F43/F$57 -> 0.007765141171 | H43: =IF(A$41=1,G$36,G23) -> 0.07 | I43: =(SERIESSUM(1/(1+$G23),-F$39+F$36,1,(J43:Y43))*G43)/(1+H43)^H$36 -> 0.008696440435 | J43: =IF($H23>=J$40,0,IF($I23+1<=J$40,0,IF(AND(ROUNDDOWN($H23,0)=J$40,MOD(-$H23,1)>=$F23),1,IF(AND(J$40>=$H23+1,J$40<=$I23),1/$F23,IF(ROUNDDOWN($H23,0)=J$40,MOD(-$H23,1)/$F23,IF(ROUNDDOWN($I23,0)=J$40,MOD($I23,1)/$F23,)))))) -> 0 | K43: 0 | L43: 0 | M43: 0.6666666667 | N43: 0.3333333333 | O43: 0 | P43: 0 | Q43: 0 | R43: 0 | S43: 0 | T43: 0 | U43: 0 | V43: 0 | W43: 0 | X43: 0 | Y43: 0 | Z43: 0
B44: Exploration Drilling | F44: ='Out-LCOE'!C$13+('Out-LCOE'!C$12+'Out-LCOE'!C$14+'Out-LCOE'!C$15)*(1+F10) -> 18278738.08 | G44: 0.1176563646 | H44: 0.07 | I44: 0.1288297973 | J44: =IF($H24>=J$40,0,IF($I24+1<=J$40,0,IF(AND(ROUNDDOWN($H24,0)=J$40,MOD(-$H24,1)>=$F24),1,IF(AND(J$40>=$H24+1,J$40<=$I24),1/$F24,IF(ROUNDDOWN($H24,0)=J$40,MOD(-$H24,1)/$F24,IF(ROUNDDOWN($I24,0)=J$40,MOD($I24,1)/$F24,)))))) -> 0 | K44: 0 | L44: 0 | M44: 0.3333333333 | N44: 0.6666666667 | O44: 0 | P44: 0 | Q44: 0 | R44: 0 | S44: 0 | T44: 0 | U44: 0 | V44: 0 | W44: 0 | X44: 0 | Y44: 0 | Z44: 0
